Workbook

Sheet Cover

Sheet summary
A1: INPUTS | M1: OUTPUTS | AH1: 2019-24 post-DM vs pre-DM factor | AI1: =AB5/AB4 -> 0.7777777778
A2: Global variables | E2: Res & nonres split for DM cost by customer mix | M2: HV augex deferred outside 19-24 - post DM | T2: DM opex cashflow ($1819M) | AB2: HV augex pre & post DM ($1819M) | AH2: post period
A3: res DR cost ($/kVA) | B3: 250 | E3: nonres | F3: mixed | G3: res | O3: No. projects by deferral year | T3: total 19-24 | U3: 2019/20 | V3: 2020/21 | W3: 2021/22 | X3: 2022/23 | Y3: 2023/24 | AB3: total 19-24 | AC3: 2019/20 | AD3: 2020/21 | AE3: 2021/22 | AF3: 2022/23 | AG3: 2023/24 | AH3: 2024/25 | AI3: 2025/26 | AJ3: 2026/27 | AK3: 2027/28 | AL3: 2028/29
A4: nonres DR cost ($/kVA) | B4: 100 | D4: Res DR | E4: 0.05 | F4: 0.2 | G4: 0.5 | M4: proj type | N4: cost per proj | O4: 1 | P4: 2 | Q4: 3 | R4: total ($M) | T4: =SUM(U4:Y4) -> 4.092695463 | U4: =(SUM(AK22:AK66)+SUM(AP22:AP66)+SUM(AU22:AU66)) / 1000000 -> 0.1691185142 | V4: =(SUM(AL22:AL66)+SUM(AQ22:AQ66)+SUM(AV22:AV66)) / 1000000 -> 0.5674741984 | W4: =(SUM(AM22:AM66)+SUM(AR22:AR66)+SUM(AW22:AW66)) / 1000000 -> 0.6222824354 | X4: =(SUM(AN22:AN66)+SUM(AS22:AS66)+SUM(AX22:AX66)) / 1000000 -> 1.418470469 | Y4: =(SUM(AO22:AO66)+SUM(AT22:AT66)+SUM(AY22:AY66)) / 1000000 -> 1.315349847 | AA4: pre-DM | AB4: =SUM(AC4:AG4) -> 80.73682818 | AC4: =-'[1]HV est'!D6/1000000 * 'DM analysis'!$H$2 -> 8.974917727 | AD4: =-'[1]HV est'!E6/1000000 * 'DM analysis'!$H$2 -> 17.94047761 | AE4: =-'[1]HV est'!F6/1000000 * 'DM analysis'!$H$2 -> 17.94047761 | AF4: =-'[1]HV est'!G6/1000000 * 'DM analysis'!$H$2 -> 17.94047761 | AG4: =-'[1]HV est'!H6/1000000 * 'DM analysis'!$H$2 -> 17.94047761 | AH4: =$AC$4 -> 8.974917727 | AI4: =$AC$4 -> 8.974917727 | AJ4: 8.974917727 | AK4: 8.974917727 | AL4: 8.974917727
A5: res DR learning rate | B5: 0.15 | D5: Nonres DR | E5: =1-E4 -> 0.95 | F5: =1-F4 -> 0.8 | G5: 0.5 | M5: L | N5: ='DM analysis'!Q11 -> 1.432432395 | O5: =S26+S41+S56 -> 1.555555556 | P5: =SUM(T25:T26)+SUM(T40:T41)+SUM(T55:T56) -> 0 | Q5: =SUM(U24:U26)+SUM(U39:U41)+SUM(U54:U56) -> 0 | R5: =SUM(O5:Q5)*N5 -> 2.22822817 | AA5: post-DM | AB5: =SUM(AC5:AG5) -> 62.7953108 | AC5: =Y76 -> 7.17645628 | AD5: =Z76 -> 13.42646168 | AE5: 16.61625744 | AF5: 8.391909419 | AG5: 17.18422598 | AH5: =$AI$1*AH4 -> 6.980491565 | AI5: =$AI$1*AI4 -> 6.980491565 | AJ5: 6.980491565 | AK5: 6.980491565 | AL5: 6.980491565
A6: nonres DR learning rate | B6: 0.1 | M6: M | N6: ='DM analysis'!Q10 -> 0.680188321 | O6: =S31+S46+S61 -> 9.555555556 | P6: =SUM(T30:T31)+SUM(T45:T46)+SUM(T60:T61) -> 0 | Q6: =SUM(U29:U31)+SUM(U44:U46)+SUM(U59:U61) -> 0 | R6: =SUM(O6:Q6)*N6 -> 6.499577289
A7: startup cost cost | B7: 10000 | M7: S | N7: ='DM analysis'!Q9 -> 0.2839842713 | O7: =S36+S51+S66 -> 32.44444444 | P7: =SUM(T35:T36)+SUM(T50:T51)+SUM(T65:T66) -> 0 | Q7: =SUM(U34:U36)+SUM(U49:U51)+SUM(U64:U66) -> 0 | R7: =SUM(O7:Q7)*N7 -> 9.213711914 | T7: DM opex cashflow ($1617M) | AB7: HV augex pre & post DM ($1617M) | AH7: post period
A8: startup cost learning rate | B8: 0.15 | Q8: total | R8: =SUM(R5:R7) -> 17.94151737 | T8: total 19-24 | U8: 2019/20 | V8: 2020/21 | W8: 2021/22 | X8: 2022/23 | Y8: 2023/24 | AB8: total 19-24 | AC8: 2019/20 | AD8: 2020/21 | AE8: 2021/22 | AF8: 2022/23 | AG8: 2023/24 | AH8: 2024/25 | AI8: 2025/26 | AJ8: 2026/27 | AK8: 2027/28 | AL8: 2028/29
A9: discount rate | B9: 0.039 | T9: =SUM(U9:Y9) -> 3.925921011 | U9: =U4/'DM analysis'!$H$2 -> 0.1622270541 | V9: =V4/'DM analysis'!$H$2 -> 0.5443500253 | W9: =W4/'DM analysis'!$H$2 -> 0.5969248653 | X9: =X4/'DM analysis'!$H$2 -> 1.360668798 | Y9: =Y4/'DM analysis'!$H$2 -> 1.261750268 | AA9: pre-DM | AB9: =SUM(AC9:AG9) -> 77.4468594 | AC9: =AC4/'DM analysis'!$H$2 -> 8.609196163 | AD9: =AD4/'DM analysis'!$H$2 -> 17.20941581 | AE9: =AE4/'DM analysis'!$H$2 -> 17.20941581 | AF9: =AF4/'DM analysis'!$H$2 -> 17.20941581 | AG9: =AG4/'DM analysis'!$H$2 -> 17.20941581 | AH9: =AH4/'DM analysis'!$H$2 -> 8.609196163 | AI9: =AI4/'DM analysis'!$H$2 -> 8.609196163 | AJ9: =AJ4/'DM analysis'!$H$2 -> 8.609196163 | AK9: =AK4/'DM analysis'!$H$2 -> 8.609196163 | AL9: =AL4/'DM analysis'!$H$2 -> 8.609196163
G10: share of DM proj by deferral yrs | H10: 1 | I10: 0 | J10: =1-SUM(H10:I10) -> 0 | AA10: post-DM | AB10: =SUM(AC10:AG10) -> 60.2364462 | AC10: =AC5/'DM analysis'!$H$2 -> 6.884020751 | AD10: =AD5/'DM analysis'!$H$2 -> 12.87934284 | AE10: =AE5/'DM analysis'!$H$2 -> 15.93915667 | AF10: =AF5/'DM analysis'!$H$2 -> 8.049945032 | AG10: =AG5/'DM analysis'!$H$2 -> 16.4839809 | AH10: =AH5/'DM analysis'!$H$2 -> 6.69604146 | AI10: =AI5/'DM analysis'!$H$2 -> 6.69604146 | AJ10: =AJ5/'DM analysis'!$H$2 -> 6.69604146 | AK10: =AK5/'DM analysis'!$H$2 -> 6.69604146 | AL10: =AL5/'DM analysis'!$H$2 -> 6.69604146
AE17: col ref | AF17: 2 | AG17: 3 | AH17: 4 | AI17: 5 | AJ17: 6 | AK17: 2 | AL17: 3 | AM17: 4 | AN17: 5 | AO17: 6 | AP17: 2 | AQ17: 3 | AR17: 4 | AS17: 5 | AT17: 6
AE18: deferral yrs | AF18: 1 | AG18: 1 | AH18: 1 | AI18: 1 | AJ18: 1 | AK18: 2 | AL18: 2 | AM18: 2 | AN18: 2 | AO18: 2 | AP18: 3 | AQ18: 3 | AR18: 3 | AS18: 3 | AT18: 3
V19: stay | Y19: shift | AB19: stay + shift (2019-24) | AG19: shift (2025-29) | AK19: DM opex cost 2019-24
A20: % DM cost vs DM budget | E20: DM cost vs DM budget | H20: No. projects | L20: 1st yr half | M20: DM cost <= DM budget flag | P20: avg no. total projects | S20: avg no. viable DM projects | V20: non DM viable projects | Y20: deferable projects post-DM shift | AB20: resultant HV projects post DM | AG20: post 19-24 | AK20: 1 year deferral | AP20: 2 year deferral | AU20: 3 year deferral
A21: proj type (S/M/L) | B21: cust mix | C21: reg yr proj timing | D21: sheet ref | E21: 1 | F21: 2 | G21: 3 | H21: 1 | I21: 2 | J21: 3 | K21: max no. proj | M21: 1 | N21: 2 | O21: 3 | P21: 1 | Q21: 2 | R21: 3 | S21: 1 | T21: 2 | U21: 3 | V21: 1 | W21: 2 | X21: 3 | Y21: 1 | Z21: 2 | AA21: 3 | AB21: 1 | AC21: 2 | AD21: 3 | AF21: reg yr | AG21: 1 | AH21: 2 | AI21: 3 | AK21: 2019/20 | AL21: 2020/21 | AM21: 2021/22 | AN21: 2022/23 | AO21: 2023/24 | AP21: 2019/20 | AQ21: 2020/21 | AR21: 2021/22 | AS21: 2022/23 | AT21: 2023/24 | AU21: 2019/20 | AV21: 2020/21 | AW21: 2021/22 | AX21: 2022/23 | AY21: 2023/24
A22: L | B22: nonres | C22: 1 | D22: =A22&C22&"_"&B22 -> L1_nonres | E22: =VLOOKUP(E$21, INDIRECT("'"&$D22&"'!$Q$3:$T$5"), 4, 0) -> 0.8217575935 | F22: =VLOOKUP(F$21, INDIRECT("'"&$D22&"'!$Q$3:$T$5"), 4, 0) -> 1.094290005 | G22: =VLOOKUP(G$21, INDIRECT("'"&$D22&"'!$Q$3:$T$5"), 4, 0) -> 1.342802117 | H22: =$K22 * H$10 -> 1 | I22: =$K22 * I$10 -> 0 | J22: 0 | K22: =B70 -> 1 | L22: =1/9 -> 0.1111111111 | M22: =IF(E22<=1, 1, "") -> 1 | N22: =IF(F22<=1, 1, "") ->  | O22: =IF(G22<=1, 1, "") ->  | P22: =$L22 * H$22 -> 0.1111111111 | Q22: =$L22 * I$22 -> 0 | R22: 0 | S22: =IF(M22="", 0, $L22 * M22 * H$22) -> 0.1111111111 | T22: =IF(N22="", 0, $L22 * N22 * I$22) -> 0 | U22: 0 | V22: =P22-S22 -> 0 | W22: =Q22-T22 -> 0 | X22: 0 | AB22: =V22+Y22 -> 0 | AC22: =W22+Z22 -> 0 | AD22: 0 | AF22: 6 | AG22: =S26 -> 0.2222222222 | AH22: =T25 -> 0 | AI22: =U24 -> 0 | AK22: =IF($S22="", 0, VLOOKUP(AF$18, INDIRECT("'"&$D22&"'!$V$3:$AA$5"), AF$17, 0)*$S22) -> 12845.63492 | AL22: =IF($S22="", 0, VLOOKUP(AG$18, INDIRECT("'"&$D22&"'!$V$3:$AA$5"), AG$17, 0)*$S22) -> 0 | AM22: =IF($S22="", 0, VLOOKUP(AH$18, INDIRECT("'"&$D22&"'!$V$3:$AA$5"), AH$17, 0)*$S22) -> 0 | AN22: =IF($S22="", 0, VLOOKUP(AI$18, INDIRECT("'"&$D22&"'!$V$3:$AA$5"), AI$17, 0)*$S22) -> 0 | AO22: =IF($S22="", 0, VLOOKUP(AJ$18, INDIRECT("'"&$D22&"'!$V$3:$AA$5"), AJ$17, 0)*$S22) -> 0 | AP22: =IF($T22="", 0, VLOOKUP(AK$18, INDIRECT("'"&$D22&"'!$V$3:$AA$5"), AK$17, 0)*$T22) -> 0 | AQ22: =IF($T22="", 0, VLOOKUP(AL$18, INDIRECT("'"&$D22&"'!$V$3:$AA$5"), AL$17, 0)*$T22) -> 0 | AR22: =IF($T22="", 0, VLOOKUP(AM$18, INDIRECT("'"&$D22&"'!$V$3:$AA$5"), AM$17, 0)*$T22) -> 0 | AS22: =IF($T22="", 0, VLOOKUP(AN$18, INDIRECT("'"&$D22&"'!$V$3:$AA$5"), AN$17, 0)*$T22) -> 0 | AT22: =IF($T22="", 0, VLOOKUP(AO$18, INDIRECT("'"&$D22&"'!$V$3:$AA$5"), AO$17, 0)*$T22) -> 0 | AU22: =IF($U22="", 0, VLOOKUP(AP$18, INDIRECT("'"&$D22&"'!$V$3:$AA$5"), AP$17, 0)*$U22) -> 0 | AV22: =IF($U22="", 0, VLOOKUP(AQ$18, INDIRECT("'"&$D22&"'!$V$3:$AA$5"), AQ$17, 0)*$U22) -> 0 | AW22: =IF($U22="", 0, VLOOKUP(AR$18, INDIRECT("'"&$D22&"'!$V$3:$AA$5"), AR$17, 0)*$U22) -> 0 | AX22: =IF($U22="", 0, VLOOKUP(AS$18, INDIRECT("'"&$D22&"'!$V$3:$AA$5"), AS$17, 0)*$U22) -> 0 | AY22: =IF($U22="", 0, VLOOKUP(AT$18, INDIRECT("'"&$D22&"'!$V$3:$AA$5"), AT$17, 0)*$U22) -> 0
A23: L | B23: nonres | C23: 2 | D23: =A23&C23&"_"&B23 -> L2_nonres | E23: =VLOOKUP(E$21, INDIRECT("'"&$D23&"'!$Q$3:$T$5"), 4, 0) -> 0.7287199487 | F23: 0.9726425939 | G23: 1.194333505 | L23: =2/9 -> 0.2222222222 | M23: =IF(E23<=1, 1, "") -> 1 | N23: =IF(F23<=1, 1, "") -> 1 | O23: =IF(G23<=1, 1, "") ->  | P23: =$L23 * H$22 -> 0.2222222222 | Q23: =$L23 * I$22 -> 0 | R23: =$L23 * J$22 -> 0 | S23: =IF(M23="", 0, $L23 * M23 * H$22) -> 0.2222222222 | T23: =IF(N23="", 0, $L23 * N23 * I$22) -> 0 | U23: =IF(O23="", 0, $L23 * O23 * J$22) -> 0 | V23: =P23-S23 -> 0 | W23: =Q23-T23 -> 0 | X23: =R23-U23 -> 0 | Y23: =S22 -> 0.1111111111 | AB23: =V23+Y23 -> 0.1111111111 | AC23: =W23+Z23 -> 0 | AD23: =X23+AA23 -> 0 | AF23: 7 | AH23: =T26 -> 0 | AI23: =U25 -> 0 | AK23: 0 | AL23: 22896.15079 | AM23: 0 | AN23: 0 | AO23: 0 | AP23: 0 | AQ23: 0 | AR23: 0 | AS23: 0 | AT23: 0 | AU23: 0 | AV23: 0 | AW23: 0 | AX23: 0 | AY23: 0
A24: L | B24: nonres | C24: 3 | D24: L3_nonres | E24: 0.6464021828 | F24: 0.8646807726 | G24: 1.062439819 | L24: =2/9 -> 0.2222222222 | M24: 1 | N24: 1 | P24: 0.2222222222 | Q24: 0 | R24: 0 | S24: 0.2222222222 | T24: 0 | U24: 0 | V24: 0 | W24: 0 | X24: 0 | Y24: =S23 -> 0.2222222222 | Z24: =T22 -> 0 | AB24: 0.2222222222 | AC24: 0 | AD24: 0 | AF24: 8 | AI24: 0 | AK24: 0 | AL24: 0 | AM24: 20414.44246 | AN24: 0 | AO24: 0 | AP24: 0 | AQ24: 0 | AR24: 0 | AS24: 0 | AT24: 0 | AU24: 0 | AV24: 0 | AW24: 0 | AX24: 0 | AY24: 0
A25: L | B25: nonres | C25: 4 | D25: L4_nonres | E25: 0.5735359655 | F25: 0.7688317357 | G25: 0.945235231 | L25: 0.2222222222 | M25: 1 | N25: 1 | O25: 1 | P25: 0.2222222222 | Q25: 0 | R25: 0 | S25: 0.2222222222 | T25: 0 | U25: 0 | V25: 0 | W25: 0 | X25: 0 | Y25: 0.2222222222 | Z25: =T23 -> 0 | AA25: =U22 -> 0 | AB25: 0.2222222222 | AC25: 0 | AD25: 0 | AF25: 9 | AK25: 0 | AL25: 0 | AM25: 0 | AN25: 18209.71895 | AO25: 0 | AP25: 0 | AQ25: 0 | AR25: 0 | AS25: 0 | AT25: 0 | AU25: 0 | AV25: 0 | AW25: 0 | AX25: 0 | AY25: 0
A26: L | B26: nonres | C26: 5 | D26: L5_nonres | E26: 0.5090081526 | F26: 0.6837089237 | G26: 0.8410545625 | L26: 0.2222222222 | M26: 1 | N26: 1 | O26: 1 | P26: 0.2222222222 | Q26: 0 | R26: 0 | S26: 0.2222222222 | T26: 0 | U26: 0 | V26: 0 | W26: 0 | X26: 0 | Y26: 0.2222222222 | Z26: 0 | AA26: =U23 -> 0 | AB26: 0.2222222222 | AC26: 0 | AD26: 0 | AF26: 10 | AK26: 0 | AL26: 0 | AM26: 0 | AN26: 0 | AO26: 16249.95968 | AP26: 0 | AQ26: 0 | AR26: 0 | AS26: 0 | AT26: 0 | AU26: 0 | AV26: 0 | AW26: 0 | AX26: 0 | AY26: 0
A27: M | B27: nonres | C27: 1 | D27: M1_nonres | E27: 0.9811990924 | F27: 1.257933548 | G27: 1.527036865 | H27: =$K27 * H$10 -> 9 | I27: 0 | J27: 0 | K27: =B71 -> 9 | L27: =1/9 -> 0.1111111111 | M27: 1 | P27: =$L27 * H$27 -> 1 | Q27: =$L27 * I$27 -> 0 | R27: 0 | S27: =IF(M27="", 0, $L27 * M27 * H$27) -> 1 | T27: =IF(N27="", 0, $L27 * N27 * I$27) -> 0 | U27: 0 | V27: 0 | W27: 0 | X27: 0 | AB27: 0 | AC27: 0 | AD27: 0 | AF27: 6 | AG27: =S31 -> 2 | AH27: =T30 -> 0 | AI27: =U29 -> 0 | AK27: 65549.06977 | AL27: 0 | AM27: 0 | AN27: 0 | AO27: 0 | AP27: 0 | AQ27: 0 | AR27: 0 | AS27: 0 | AT27: 0 | AU27: 0 | AV27: 0 | AW27: 0 | AX27: 0 | AY27: 0
A28: M | B28: nonres | C28: 2 | D28: M2_nonres | E28: 0.8676716934 | F28: 1.116777576 | G28: 1.357282412 | L28: =2/9 -> 0.2222222222 | M28: 1 | P28: =$L28 * H$27 -> 2 | Q28: =$L28 * I$27 -> 0 | R28: =$L28 * J$27 -> 0 | S28: =IF(M28="", 0, $L28 * M28 * H$27) -> 2 | T28: =IF(N28="", 0, $L28 * N28 * I$27) -> 0 | U28: =IF(O28="", 0, $L28 * O28 * J$27) -> 0 | V28: 0 | W28: 0 | X28: 0 | Y28: =S27 -> 1 | AB28: 1 | AC28: 0 | AD28: 0 | AF28: 7 | AH28: 0 | AI28: 0 | AK28: 0 | AL28: 116507.7442 | AM28: 0 | AN28: 0 | AO28: 0 | AP28: 0 | AQ28: 0 | AR28: 0 | AS28: 0 | AT28: 0 | AU28: 0 | AV28: 0 | AW28: 0 | AX28: 0 | AY28: 0
A29: M | B29: nonres | C29: 3 | D29: M3_nonres | E29: 0.7675755102 | F29: 0.9916951628 | G29: 1.206614565 | L29: 0.2222222222 | M29: 1 | N29: 1 | P29: 2 | Q29: 0 | R29: 0 | S29: 2 | T29: 0 | U29: 0 | V29: 0 | W29: 0 | X29: 0 | Y29: =S28 -> 2 | Z29: =T27 -> 0 | AB29: 2 | AC29: 0 | AD29: 0 | AF29: 8 | AI29: 0 | AK29: 0 | AL29: 0 | AM29: 103598.4756 | AN29: 0 | AO29: 0 | AP29: 0 | AQ29: 0 | AR29: 0 | AS29: 0 | AT29: 0 | AU29: 0 | AV29: 0 | AW29: 0 | AX29: 0 | AY29: 0
A30: M | B30: nonres | C30: 4 | D30: M4_nonres | E30: 0.6792729338 | F30: 0.8808116477 | G30: 1.072842338 | L30: 0.2222222222 | M30: 1 | N30: 1 | P30: 2 | Q30: 0 | R30: 0 | S30: 2 | T30: 0 | U30: 0 | V30: 0 | W30: 0 | X30: 0 | Y30: 2 | Z30: =T28 -> 0 | AA30: =U27 -> 0 | AB30: 2 | AC30: 0 | AD30: 0 | AF30: 9 | AK30: 0 | AL30: 0 | AM30: 0 | AN30: 92168.90797 | AO30: 0 | AP30: 0 | AQ30: 0 | AR30: 0 | AS30: 0 | AT30: 0 | AU30: 0 | AV30: 0 | AW30: 0 | AX30: 0 | AY30: 0
A31: M | B31: nonres | C31: 5 | D31: M5_nonres | E31: 0.6013331429 | F31: 0.7824781022 | G31: 0.9540337756 | L31: 0.2222222222 | M31: 1 | N31: 1 | O31: 1 | P31: 2 | Q31: 0 | R31: 0 | S31: 2 | T31: 0 | U31: 0 | V31: 0 | W31: 0 | X31: 0 | Y31: 2 | Z31: 0 | AA31: =U28 -> 0 | AB31: 2 | AC31: 0 | AD31: 0 | AF31: 10 | AK31: 0 | AL31: 0 | AM31: 0 | AN31: 0 | AO31: 82042.75512 | AP31: 0 | AQ31: 0 | AR31: 0 | AS31: 0 | AT31: 0 | AU31: 0 | AV31: 0 | AW31: 0 | AX31: 0 | AY31: 0
A32: S | B32: nonres | C32: 1 | D32: S1_nonres | E32: 1.199862357 | F32: 1.406487689 | G32: 1.660768929 | H32: =$K32 * H$10 -> 21 | I32: 0 | J32: 0 | K32: =B72 -> 21 | L32: =1/9 -> 0.1111111111 | P32: =$L32 * H$32 -> 2.333333333 | Q32: =$L32 * I$32 -> 0 | R32: 0 | S32: =IF(M32="", 0, $L32 * M32 * H$32) -> 0 | T32: =IF(N32="", 0, $L32 * N32 * I$32) -> 0 | U32: 0 | V32: 2.333333333 | W32: 0 | X32: 0 | AB32: 2.333333333 | AC32: 0 | AD32: 0 | AF32: 6 | AG32: =S36 -> 4.666666667 | AH32: =T35 -> 0 | AI32: =U34 -> 0 | AK32: 0 | AL32: 0 | AM32: 0 | AN32: 0 | AO32: 0 | AP32: 0 | AQ32: 0 | AR32: 0 | AS32: 0 | AT32: 0 | AU32: 0 | AV32: 0 | AW32: 0 | AX32: 0 | AY32: 0
A33: S | B33: nonres | C33: 2 | D33: S2_nonres | E33: 1.054434304 | F33: 1.244958525 | G33: 1.473545108 | L33: =2/9 -> 0.2222222222 | P33: =$L33 * H$32 -> 4.666666667 | Q33: =$L33 * I$32 -> 0 | R33: =$L33 * J$32 -> 0 | S33: =IF(M33="", 0, $L33 * M33 * H$32) -> 0 | T33: =IF(N33="", 0, $L33 * N33 * I$32) -> 0 | U33: =IF(O33="", 0, $L33 * O33 * J$32) -> 0 | V33: 4.666666667 | W33: 0 | X33: 0 | Y33: =S32 -> 0 | AB33: 4.666666667 | AC33: 0 | AD33: 0 | AF33: 7 | AH33: 0 | AI33: 0 | AK33: 0 | AL33: 0 | AM33: 0 | AN33: 0 | AO33: 0 | AP33: 0 | AQ33: 0 | AR33: 0 | AS33: 0 | AT33: 0 | AU33: 0 | AV33: 0 | AW33: 0 | AX33: 0 | AY33: 0
A34: S | B34: nonres | C34: 3 | D34: S3_nonres | E34: 0.9271400725 | F34: 1.102361095 | G34: 1.307754738 | L34: 0.2222222222 | M34: 1 | P34: 4.666666667 | Q34: 0 | R34: 0 | S34: 4.666666667 | T34: 0 | U34: 0 | V34: 0 | W34: 0 | X34: 0 | Y34: =S33 -> 0 | Z34: =T32 -> 0 | AB34: 0 | AC34: 0 | AD34: 0 | AF34: 8 | AI34: 0 | AK34: 0 | AL34: 0 | AM34: 121904.4358 | AN34: 0 | AO34: 0 | AP34: 0 | AQ34: 0 | AR34: 0 | AS34: 0 | AT34: 0 | AU34: 0 | AV34: 0 | AW34: 0 | AX34: 0 | AY34: 0
A35: S | B35: nonres | C35: 4 | D35: S4_nonres | E35: 0.8156435938 | F35: 0.9764119192 | G35: 1.160883006 | L35: 0.2222222222 | M35: 1 | N35: 1 | P35: 4.666666667 | Q35: 0 | R35: 0 | S35: 4.666666667 | T35: 0 | U35: 0 | V35: 0 | W35: 0 | X35: 0 | Y35: 4.666666667 | Z35: =T33 -> 0 | AA35: =U32 -> 0 | AB35: 4.666666667 | AC35: 0 | AD35: 0 | AF35: 9 | AK35: 0 | AL35: 0 | AM35: 0 | AN35: 107815.8132 | AO35: 0 | AP35: 0 | AQ35: 0 | AR35: 0 | AS35: 0 | AT35: 0 | AU35: 0 | AV35: 0 | AW35: 0 | AX35: 0 | AY35: 0
A36: S | B36: nonres | C36: 5 | D36: S5_nonres | E36: 0.7179198543 | F36: 0.865112627 | G36: 1.030719862 | L36: 0.2222222222 | M36: 1 | N36: 1 | P36: 4.666666667 | Q36: 0 | R36: 0 | S36: 4.666666667 | T36: 0 | U36: 0 | V36: 0 | W36: 0 | X36: 0 | Y36: 4.666666667 | Z36: 0 | AA36: =U33 -> 0 | AB36: 4.666666667 | AC36: 0 | AD36: 0 | AF36: 10 | AK36: 0 | AL36: 0 | AM36: 0 | AN36: 0 | AO36: 95420.77969 | AP36: 0 | AQ36: 0 | AR36: 0 | AS36: 0 | AT36: 0 | AU36: 0 | AV36: 0 | AW36: 0 | AX36: 0 | AY36: 0
A37: L | B37: mixed | C37: 1 | D37: =A37&C37&"_"&B37 -> L1_mixed | E37: =VLOOKUP(E$21, INDIRECT("'"&$D37&"'!$Q$3:$T$5"), 4, 0) -> 0.9672932978 | F37: =VLOOKUP(F$21, INDIRECT("'"&$D37&"'!$Q$3:$T$5"), 4, 0) -> 1.285871963 | G37: =VLOOKUP(G$21, INDIRECT("'"&$D37&"'!$Q$3:$T$5"), 4, 0) -> 1.567277454 | H37: =$K37 * H$10 -> 6 | I37: 0 | J37: 0 | K37: =C70 -> 6 | L37: =1/9 -> 0.1111111111 | M37: 1 | P37: =$L37 * H$37 -> 0.6666666667 | Q37: =$L37 * I$37 -> 0 | R37: 0 | S37: =IF(M37="", 0, $L37 * M37 * H$37) -> 0.6666666667 | T37: =IF(N37="", 0, $L37 * N37 * I$37) -> 0 | U37: 0 | V37: 0 | W37: 0 | X37: 0 | AB37: 0 | AC37: 0 | AD37: 0 | AF37: 6 | AG37: =S41 -> 1.333333333 | AH37: =T40 -> 0 | AI37: =U39 -> 0 | AK37: 90723.80952 | AL37: 0 | AM37: 0 | AN37: 0 | AO37: 0 | AP37: 0 | AQ37: 0 | AR37: 0 | AS37: 0 | AT37: 0 | AU37: 0 | AV37: 0 | AW37: 0 | AX37: 0 | AY37: 0
A38: L | B38: mixed | C38: 2 | D38: =A38&C38&"_"&B38 -> L2_mixed | E38: =VLOOKUP(E$21, INDIRECT("'"&$D38&"'!$Q$3:$T$5"), 4, 0) -> 0.8464918874 | F38: 1.127200718 | G38: 1.37483914 | L38: =2/9 -> 0.2222222222 | M38: 1 | P38: =$L38 * H$37 -> 1.333333333 | Q38: =$L38 * I$37 -> 0 | R38: =$L38 * J$37 -> 0 | S38: =IF(M38="", 0, $L38 * M38 * H$37) -> 1.333333333 | T38: =IF(N38="", 0, $L38 * N38 * I$37) -> 0 | U38: =IF(O38="", 0, $L38 * O38 * J$37) -> 0 | V38: 0 | W38: 0 | X38: 0 | Y38: =S37 -> 0.6666666667 | AB38: 0.6666666667 | AC38: 0 | AD38: 0 | AF38: 7 | AH38: 0 | AI38: 0 | AK38: 0 | AL38: 159579.0476 | AM38: 0 | AN38: 0 | AO38: 0 | AP38: 0 | AQ38: 0 | AR38: 0 | AS38: 0 | AT38: 0 | AU38: 0 | AV38: 0 | AW38: 0 | AX38: 0 | AY38: 0
A39: L | B39: mixed | C39: 3 | D39: L3_mixed | E39: 0.7412317987 | F39: 0.9886874847 | G39: 1.206715009 | L39: =2/9 -> 0.2222222222 | M39: 1 | N39: 1 | P39: 1.333333333 | Q39: 0 | R39: 0 | S39: 1.333333333 | T39: 0 | U39: 0 | V39: 0 | W39: 0 | X39: 0 | Y39: =S38 -> 1.333333333 | Z39: =T37 -> 0 | AB39: 1.333333333 | AC39: 0 | AD39: 0 | AF39: 8 | AI39: 0 | AK39: 0 | AL39: 0 | AM39: 140455.9048 | AN39: 0 | AO39: 0 | AP39: 0 | AQ39: 0 | AR39: 0 | AS39: 0 | AT39: 0 | AU39: 0 | AV39: 0 | AW39: 0 | AX39: 0 | AY39: 0
A40: L | B40: mixed | C40: 4 | D40: L4_mixed | E40: 0.6494498043 | F40: 0.8676882004 | G40: 1.059733205 | L40: 0.2222222222 | M40: 1 | N40: 1 | P40: 1.333333333 | Q40: 0 | R40: 0 | S40: 1.333333333 | T40: 0 | U40: 0 | V40: 0 | W40: 0 | X40: 0 | Y40: 1.333333333 | Z40: =T38 -> 0 | AA40: =U37 -> 0 | AB40: 1.333333333 | AC40: 0 | AD40: 0 | AF40: 9 | AK40: 0 | AL40: 0 | AM40: 0 | AN40: 123719.8619 | AO40: 0 | AP40: 0 | AQ40: 0 | AR40: 0 | AS40: 0 | AT40: 0 | AU40: 0 | AV40: 0 | AW40: 0 | AX40: 0 | AY40: 0
A41: L | B41: mixed | C41: 5 | D41: L5_mixed | E41: 0.5693648349 | F41: 0.7619165835 | G41: 0.9311489639 | L41: 0.2222222222 | M41: 1 | N41: 1 | O41: 1 | P41: 1.333333333 | Q41: 0 | R41: 0 | S41: 1.333333333 | T41: 0 | U41: 0 | V41: 0 | W41: 0 | X41: 0 | Y41: 1.333333333 | Z41: 0 | AA41: =U38 -> 0 | AB41: 1.333333333 | AC41: 0 | AD41: 0 | AF41: 10 | AK41: 0 | AL41: 0 | AM41: 0 | AN41: 0 | AO41: 109060.9912 | AP41: 0 | AQ41: 0 | AR41: 0 | AS41: 0 | AT41: 0 | AU41: 0 | AV41: 0 | AW41: 0 | AX41: 0 | AY41: 0
A42: M | B42: mixed | C42: 1 | D42: M1_mixed | E42: 1.144440438 | F42: 1.472823061 | G42: 1.778821514 | H42: =$K42 * H$10 -> 18 | I42: 0 | J42: 0 | K42: =C71 -> 18 | L42: =1/9 -> 0.1111111111 | P42: =$L42 * H$42 -> 2 | Q42: =$L42 * I$42 -> 0 | R42: 0 | S42: =IF(M42="", 0, $L42 * M42 * H$42) -> 0 | T42: =IF(N42="", 0, $L42 * N42 * I$42) -> 0 | U42: 0 | V42: 2 | W42: 0 | X42: 0 | AB42: 2 | AC42: 0 | AD42: 0 | AF42: 6 | AG42: =S46 -> 4 | AH42: =T45 -> 0 | AI42: =U44 -> 0 | AK42: 0 | AL42: 0 | AM42: 0 | AN42: 0 | AO42: 0 | AP42: 0 | AQ42: 0 | AR42: 0 | AS42: 0 | AT42: 0 | AU42: 0 | AV42: 0 | AW42: 0 | AX42: 0 | AY42: 0
A43: M | B43: mixed | C43: 2 | D43: M2_mixed | E43: 0.9997715784 | F43: 1.290138995 | G43: 1.559748075 | L43: =2/9 -> 0.2222222222 | M43: 1 | P43: =$L43 * H$42 -> 4 | Q43: =$L43 * I$42 -> 0 | R43: =$L43 * J$42 -> 0 | S43: =IF(M43="", 0, $L43 * M43 * H$42) -> 4 | T43: =IF(N43="", 0, $L43 * N43 * I$42) -> 0 | U43: =IF(O43="", 0, $L43 * O43 * J$42) -> 0 | V43: 0 | W43: 0 | X43: 0 | Y43: =S42 -> 0 | AB43: 0 | AC43: 0 | AD43: 0 | AF43: 7 | AH43: 0 | AI43: 0 | AK43: 0 | AL43: 268491.2558 | AM43: 0 | AN43: 0 | AO43: 0 | AP43: 0 | AQ43: 0 | AR43: 0 | AS43: 0 | AT43: 0 | AU43: 0 | AV43: 0 | AW43: 0 | AX43: 0 | AY43: 0
A44: M | B44: mixed | C44: 3 | D44: M3_mixed | E44: 0.873941946 | F44: 1.130788334 | G44: 1.368442044 | L44: 0.2222222222 | M44: 1 | P44: 4 | Q44: 0 | R44: 0 | S44: 4 | T44: 0 | U44: 0 | V44: 0 | W44: 0 | X44: 0 | Y44: =S43 -> 4 | Z44: =T42 -> 0 | AB44: 4 | AC44: 0 | AD44: 0 | AF44: 8 | AI44: 0 | AK44: 0 | AL44: 0 | AM44: 235909.1767 | AN44: 0 | AO44: 0 | AP44: 0 | AQ44: 0 | AR44: 0 | AS44: 0 | AT44: 0 | AU44: 0 | AV44: 0 | AW44: 0 | AX44: 0 | AY44: 0
A45: M | B45: mixed | C45: 4 | D45: M4_mixed | E45: 0.7644223292 | F45: 0.9916948323 | G45: 1.201269953 | L45: 0.2222222222 | M45: 1 | N45: 1 | P45: 4 | Q45: 0 | R45: 0 | S45: 4 | T45: 0 | U45: 0 | V45: 0 | W45: 0 | X45: 0 | Y45: 4 | Z45: =T43 -> 0 | AA45: =U42 -> 0 | AB45: 4 | AC45: 0 | AD45: 0 | AF45: 9 | AK45: 0 | AL45: 0 | AM45: 0 | AN45: 207445.2486 | AO45: 0 | AP45: 0 | AQ45: 0 | AR45: 0 | AS45: 0 | AT45: 0 | AU45: 0 | AV45: 0 | AW45: 0 | AX45: 0 | AY45: 0
A46: M | B46: mixed | C46: 5 | D46: M5_mixed | E46: 0.6690327229 | F46: 0.8702003812 | G46: 1.055088918 | L46: 0.2222222222 | M46: 1 | N46: 1 | P46: 4 | Q46: 0 | R46: 0 | S46: 4 | T46: 0 | U46: 0 | V46: 0 | W46: 0 | X46: 0 | Y46: 4 | Z46: 0 | AA46: =U43 -> 0 | AB46: 4 | AC46: 0 | AD46: 0 | AF46: 10 | AK46: 0 | AL46: 0 | AM46: 0 | AN46: 0 | AO46: 182558.6648 | AP46: 0 | AQ46: 0 | AR46: 0 | AS46: 0 | AT46: 0 | AU46: 0 | AV46: 0 | AW46: 0 | AX46: 0 | AY46: 0
A47: S | B47: mixed | C47: 1 | D47: S1_mixed | E47: 1.370969567 | F47: 1.631731758 | G47: 1.924685943 | H47: =$K47 * H$10 -> 113 | I47: 0 | J47: 0 | K47: =C72 -> 113 | L47: =1/9 -> 0.1111111111 | P47: =$L47 * H$47 -> 12.55555556 | Q47: =$L47 * I$47 -> 0 | R47: 0 | S47: =IF(M47="", 0, $L47 * M47 * H$47) -> 0 | T47: =IF(N47="", 0, $L47 * N47 * I$47) -> 0 | U47: 0 | V47: 12.55555556 | W47: 0 | X47: 0 | AB47: 12.55555556 | AC47: 0 | AD47: 0 | AF47: 6 | AG47: =S51 -> 25.11111111 | AH47: =T50 -> 0 | AI47: =U49 -> 0 | AK47: 0 | AL47: 0 | AM47: 0 | AN47: 0 | AO47: 0 | AP47: 0 | AQ47: 0 | AR47: 0 | AS47: 0 | AT47: 0 | AU47: 0 | AV47: 0 | AW47: 0 | AX47: 0 | AY47: 0
A48: S | B48: mixed | C48: 2 | D48: S2_mixed | E48: 1.192899486 | F48: 1.426673449 | G48: 1.685766677 | L48: =2/9 -> 0.2222222222 | P48: =$L48 * H$47 -> 25.11111111 | Q48: =$L48 * I$47 -> 0 | R48: =$L48 * J$47 -> 0 | S48: =IF(M48="", 0, $L48 * M48 * H$47) -> 0 | T48: =IF(N48="", 0, $L48 * N48 * I$47) -> 0 | U48: =IF(O48="", 0, $L48 * O48 * J$47) -> 0 | V48: 25.11111111 | W48: 0 | X48: 0 | Y48: =S47 -> 0 | AB48: 25.11111111 | AC48: 0 | AD48: 0 | AF48: 7 | AH48: 0 | AI48: 0 | AK48: 0 | AL48: 0 | AM48: 0 | AN48: 0 | AO48: 0 | AP48: 0 | AQ48: 0 | AR48: 0 | AS48: 0 | AT48: 0 | AU48: 0 | AV48: 0 | AW48: 0 | AX48: 0 | AY48: 0
A49: S | B49: mixed | C49: 3 | D49: S3_mixed | E49: 1.038631827 | F49: 1.248156538 | G49: 1.477379952 | L49: 0.2222222222 | P49: 25.11111111 | Q49: 0 | R49: 0 | S49: 0 | T49: 0 | U49: 0 | V49: 25.11111111 | W49: 0 | X49: 0 | Y49: =S48 -> 0 | Z49: =T47 -> 0 | AB49: 25.11111111 | AC49: 0 | AD49: 0 | AF49: 8 | AI49: 0 | AK49: 0 | AL49: 0 | AM49: 0 | AN49: 0 | AO49: 0 | AP49: 0 | AQ49: 0 | AR49: 0 | AS49: 0 | AT49: 0 | AU49: 0 | AV49: 0 | AW49: 0 | AX49: 0 | AY49: 0
A50: S | B50: mixed | C50: 4 | D50: S4_mixed | E50: 0.9048959543 | F50: 1.092638064 | G50: 1.295498968 | L50: 0.2222222222 | M50: 1 | P50: 25.11111111 | Q50: 0 | R50: 0 | S50: 25.11111111 | T50: 0 | U50: 0 | V50: 0 | W50: 0 | X50: 0 | Y50: 0 | Z50: =T48 -> 0 | AA50: =U47 -> 0 | AB50: 0 | AC50: 0 | AD50: 0 | AF50: 9 | AK50: 0 | AL50: 0 | AM50: 0 | AN50: 643635.2613 | AO50: 0 | AP50: 0 | AQ50: 0 | AR50: 0 | AS50: 0 | AT50: 0 | AU50: 0 | AV50: 0 | AW50: 0 | AX50: 0 | AY50: 0
A51: S | B51: mixed | C51: 5 | D51: S5_mixed | E51: 0.7888815715 | F51: 0.9570618467 | G51: 1.136644396 | L51: 0.2222222222 | M51: 1 | N51: 1 | P51: 25.11111111 | Q51: 0 | R51: 0 | S51: 25.11111111 | T51: 0 | U51: 0 | V51: 0 | W51: 0 | X51: 0 | Y51: 25.11111111 | Z51: 0 | AA51: =U48 -> 0 | AB51: 25.11111111 | AC51: 0 | AD51: 0 | AF51: 10 | AK51: 0 | AL51: 0 | AM51: 0 | AN51: 0 | AO51: 564206.3328 | AP51: 0 | AQ51: 0 | AR51: 0 | AS51: 0 | AT51: 0 | AU51: 0 | AV51: 0 | AW51: 0 | AX51: 0 | AY51: 0
A52: L | B52: res | C52: 1 | D52: L1_res | E52: 1.258364706 | F52: 1.669035878 | G52: 2.016228128 | H52: =$K52 * H$10 -> 0 | I52: 0 | J52: 0 | K52: =D70 -> 0 | L52: =1/9 -> 0.1111111111 | P52: =$L52 * H$52 -> 0 | Q52: =$L52 * I$52 -> 0 | R52: 0 | S52: =IF(M52="", 0, $L52 * M52 * H$52) -> 0 | T52: =IF(N52="", 0, $L52 * N52 * I$52) -> 0 | U52: 0 | V52: 0 | W52: 0 | X52: 0 | AB52: 0 | AC52: 0 | AD52: 0 | AF52: 6 | AG52: =S56 -> 0 | AH52: =T55 -> 0 | AI52: =U54 -> 0 | AK52: 0 | AL52: 0 | AM52: 0 | AN52: 0 | AO52: 0 | AP52: 0 | AQ52: 0 | AR52: 0 | AS52: 0 | AT52: 0 | AU52: 0 | AV52: 0 | AW52: 0 | AX52: 0 | AY52: 0
A53: L | B53: res | C53: 2 | D53: L2_res | E53: 1.082035765 | F53: 1.436316966 | G53: 1.735850411 | L53: =2/9 -> 0.2222222222 | P53: =$L53 * H$52 -> 0 | Q53: =$L53 * I$52 -> 0 | R53: =$L53 * J$52 -> 0 | S53: =IF(M53="", 0, $L53 * M53 * H$52) -> 0 | T53: =IF(N53="", 0, $L53 * N53 * I$52) -> 0 | U53: =IF(O53="", 0, $L53 * O53 * J$52) -> 0 | V53: 0 | W53: 0 | X53: 0 | Y53: =S52 -> 0 | AB53: 0 | AC53: 0 | AD53: 0 | AF53: 7 | AH53: 0 | AI53: 0 | AK53: 0 | AL53: 0 | AM53: 0 | AN53: 0 | AO53: 0 | AP53: 0 | AQ53: 0 | AR53: 0 | AS53: 0 | AT53: 0 | AU53: 0 | AV53: 0 | AW53: 0 | AX53: 0 | AY53: 0
A54: L | B54: res | C54: 3 | D54: L3_res | E54: =VLOOKUP(E$21, INDIRECT("'"&$D54&"'!$Q$3:$T$5"), 4, 0) -> 0.9308910305 | F54: 1.236700909 | G54: 1.495265387 | L54: =2/9 -> 0.2222222222 | M54: 1 | P54: 0 | Q54: 0 | R54: 0 | S54: 0 | T54: 0 | U54: 0 | V54: 0 | W54: 0 | X54: 0 | Y54: =S53 -> 0 | Z54: =T52 -> 0 | AB54: 0 | AC54: 0 | AD54: 0 | AF54: 8 | AI54: 0 | AK54: 0 | AL54: 0 | AM54: 0 | AN54: 0 | AO54: 0 | AP54: 0 | AQ54: 0 | AR54: 0 | AS54: 0 | AT54: 0 | AU54: 0 | AV54: 0 | AW54: 0 | AX54: 0 | AY54: 0
A55: L | B55: res | C55: 4 | D55: L4_res | E55: 0.801277482 | F55: 1.06540113 | G55: 1.288729153 | L55: 0.2222222222 | M55: 1 | P55: 0 | Q55: 0 | R55: 0 | S55: 0 | T55: 0 | U55: 0 | V55: 0 | W55: 0 | X55: 0 | Y55: 0 | Z55: =T53 -> 0 | AA55: =U52 -> 0 | AB55: 0 | AC55: 0 | AD55: 0 | AF55: 9 | AK55: 0 | AL55: 0 | AM55: 0 | AN55: 0 | AO55: 0 | AP55: 0 | AQ55: 0 | AR55: 0 | AS55: 0 | AT55: 0 | AU55: 0 | AV55: 0 | AW55: 0 | AX55: 0 | AY55: 0
A56: L | B56: res | C56: 5 | D56: L5_res | E56: 0.6900781993 | F56: 0.918331903 | G56: 1.111337766 | L56: 0.2222222222 | M56: 1 | N56: 1 | P56: 0 | Q56: 0 | R56: 0 | S56: 0 | T56: 0 | U56: 0 | V56: 0 | W56: 0 | X56: 0 | Y56: 0 | Z56: 0 | AA56: =U53 -> 0 | AB56: 0 | AC56: 0 | AD56: 0 | AF56: 10 | AK56: 0 | AL56: 0 | AM56: 0 | AN56: 0 | AO56: 0 | AP56: 0 | AQ56: 0 | AR56: 0 | AS56: 0 | AT56: 0 | AU56: 0 | AV56: 0 | AW56: 0 | AX56: 0 | AY56: 0
A57: M | B57: res | C57: 1 | D57: M1_res | E57: 1.47092313 | F57: 1.902602087 | G57: 2.282390811 | H57: =$K57 * H$10 -> 16 | I57: 0 | J57: 0 | K57: =D71 -> 16 | L57: =1/9 -> 0.1111111111 | P57: =$L57 * H$57 -> 1.777777778 | Q57: =$L57 * I$57 -> 0 | R57: 0 | S57: =IF(M57="", 0, $L57 * M57 * H$57) -> 0 | T57: =IF(N57="", 0, $L57 * N57 * I$57) -> 0 | U57: 0 | V57: 1.777777778 | W57: 0 | X57: 0 | AB57: 1.777777778 | AC57: 0 | AD57: 0 | AF57: 6 | AG57: =S61 -> 3.555555556 | AH57: =T60 -> 0 | AI57: =U59 -> 0 | AK57: 0 | AL57: 0 | AM57: 0 | AN57: 0 | AO57: 0 | AP57: 0 | AQ57: 0 | AR57: 0 | AS57: 0 | AT57: 0 | AU57: 0 | AV57: 0 | AW57: 0 | AX57: 0 | AY57: 0
A58: M | B58: res | C58: 2 | D58: M2_res | E58: 1.263971348 | F58: 1.636861833 | G58: 1.964679401 | L58: =2/9 -> 0.2222222222 | P58: =$L58 * H$57 -> 3.555555556 | Q58: =$L58 * I$57 -> 0 | R58: =$L58 * J$57 -> 0 | S58: =IF(M58="", 0, $L58 * M58 * H$57) -> 0 | T58: =IF(N58="", 0, $L58 * N58 * I$57) -> 0 | U58: =IF(O58="", 0, $L58 * O58 * J$57) -> 0 | V58: 3.555555556 | W58: 0 | X58: 0 | Y58: =S57 -> 0 | AB58: 3.555555556 | AC58: 0 | AD58: 0 | AF58: 7 | AH58: 0 | AI58: 0 | AK58: 0 | AL58: 0 | AM58: 0 | AN58: 0 | AO58: 0 | AP58: 0 | AQ58: 0 | AR58: 0 | AS58: 0 | AT58: 0 | AU58: 0 | AV58: 0 | AW58: 0 | AX58: 0 | AY58: 0
A59: M | B59: res | C59: 3 | D59: M3_res | E59: 1.086674818 | F59: 1.408974676 | G59: 1.692097001 | L59: 0.2222222222 | P59: 3.555555556 | Q59: 0 | R59: 0 | S59: 0 | T59: 0 | U59: 0 | V59: 3.555555556 | W59: 0 | X59: 0 | Y59: =S58 -> 0 | Z59: =T57 -> 0 | AB59: 3.555555556 | AC59: 0 | AD59: 0 | AF59: 8 | AI59: 0 | AK59: 0 | AL59: 0 | AM59: 0 | AN59: 0 | AO59: 0 | AP59: 0 | AQ59: 0 | AR59: 0 | AS59: 0 | AT59: 0 | AU59: 0 | AV59: 0 | AW59: 0 | AX59: 0 | AY59: 0
A60: M | B60: res | C60: 4 | D60: M4_res | E60: 0.9347211201 | F60: 1.213461202 | G60: 1.458125183 | L60: 0.2222222222 | M60: 1 | P60: 3.555555556 | Q60: 0 | R60: 0 | S60: 3.555555556 | T60: 0 | U60: 0 | V60: 0 | W60: 0 | X60: 0 | Y60: 0 | Z60: =T58 -> 0 | AA60: =U57 -> 0 | AB60: 0 | AC60: 0 | AD60: 0 | AF60: 9 | AK60: 0 | AL60: 0 | AM60: 0 | AN60: 225475.6568 | AO60: 0 | AP60: 0 | AQ60: 0 | AR60: 0 | AS60: 0 | AT60: 0 | AU60: 0 | AV60: 0 | AW60: 0 | AX60: 0 | AY60: 0
A61: M | B61: res | C61: 5 | D61: M5_res | E61: 0.8044318828 | F61: 1.045644939 | G61: 1.257199203 | L61: 0.2222222222 | M61: 1 | P61: 3.555555556 | Q61: 0 | R61: 0 | S61: 3.555555556 | T61: 0 | U61: 0 | V61: 0 | W61: 0 | X61: 0 | Y61: 3.555555556 | Z61: 0 | AA61: =U58 -> 0 | AB61: 3.555555556 | AC61: 0 | AD61: 0 | AF61: 10 | AK61: 0 | AL61: 0 | AM61: 0 | AN61: 0 | AO61: 195115.5325 | AP61: 0 | AQ61: 0 | AR61: 0 | AS61: 0 | AT61: 0 | AU61: 0 | AV61: 0 | AW61: 0 | AX61: 0 | AY61: 0
A62: S | B62: res | C62: 1 | D62: S1_res | E62: 1.713183987 | F62: 2.082219896 | G62: 2.452519972 | H62: =$K62 * H$10 -> 12 | I62: 0 | J62: 0 | K62: =D72 -> 12 | L62: =1/9 -> 0.1111111111 | P62: =$L62 * H$62 -> 1.333333333 | Q62: =$L62 * I$62 -> 0 | R62: 0 | S62: =IF(M62="", 0, $L62 * M62 * H$62) -> 0 | T62: =IF(N62="", 0, $L62 * N62 * I$62) -> 0 | U62: 0 | V62: 1.333333333 | W62: 0 | X62: 0 | AB62: 1.333333333 | AC62: 0 | AD62: 0 | AF62: 6 | AG62: =S66 -> 2.666666667 | AH62: =T65 -> 0 | AI62: =U64 -> 0 | AK62: 0 | AL62: 0 | AM62: 0 | AN62: 0 | AO62: 0 | AP62: 0 | AQ62: 0 | AR62: 0 | AS62: 0 | AT62: 0 | AU62: 0 | AV62: 0 | AW62: 0 | AX62: 0 | AY62: 0
A63: S | B63: res | C63: 2 | D63: S2_res | E63: 1.469829851 | F63: 1.790103295 | G63: 2.110209816 | L63: =2/9 -> 0.2222222222 | P63: =$L63 * H$62 -> 2.666666667 | Q63: =$L63 * I$62 -> 0 | R63: =$L63 * J$62 -> 0 | S63: =IF(M63="", 0, $L63 * M63 * H$62) -> 0 | T63: =IF(N63="", 0, $L63 * N63 * I$62) -> 0 | U63: =IF(O63="", 0, $L63 * O63 * J$62) -> 0 | V63: 2.666666667 | W63: 0 | X63: 0 | Y63: =S62 -> 0 | AB63: 2.666666667 | AC63: 0 | AD63: 0 | AF63: 7 | AH63: 0 | AI63: 0 | AK63: 0 | AL63: 0 | AM63: 0 | AN63: 0 | AO63: 0 | AP63: 0 | AQ63: 0 | AR63: 0 | AS63: 0 | AT63: 0 | AU63: 0 | AV63: 0 | AW63: 0 | AX63: 0 | AY63: 0
A64: S | B64: res | C64: 3 | D64: S3_res | E64: 1.261615335 | F64: 1.539747424 | G64: 1.816630381 | L64: 0.2222222222 | P64: 2.666666667 | Q64: 0 | R64: 0 | S64: 0 | T64: 0 | U64: 0 | V64: 2.666666667 | W64: 0 | X64: 0 | Y64: =S63 -> 0 | Z64: =T62 -> 0 | AB64: 2.666666667 | AC64: 0 | AD64: 0 | AF64: 8 | AI64: 0 | AK64: 0 | AL64: 0 | AM64: 0 | AN64: 0 | AO64: 0 | AP64: 0 | AQ64: 0 | AR64: 0 | AS64: 0 | AT64: 0 | AU64: 0 | AV64: 0 | AW64: 0 | AX64: 0 | AY64: 0
A65: S | B65: res | C65: 4 | D65: S4_res | E65: 1.083400675 | F65: 1.325090354 | G65: 1.564730892 | L65: 0.2222222222 | P65: 2.666666667 | Q65: 0 | R65: 0 | S65: 0 | T65: 0 | U65: 0 | V65: 2.666666667 | W65: 0 | X65: 0 | Y65: 0 | Z65: =T63 -> 0 | AA65: =U62 -> 0 | AB65: 2.666666667 | AC65: 0 | AD65: 0 | AF65: 9 | AK65: 0 | AL65: 0 | AM65: 0 | AN65: 0 | AO65: 0 | AP65: 0 | AQ65: 0 | AR65: 0 | AS65: 0 | AT65: 0 | AU65: 0 | AV65: 0 | AW65: 0 | AX65: 0 | AY65: 0
A66: S | B66: res | C66: 5 | D66: S5_res | E66: 0.9308050059 | F66: 1.140960286 | G66: 1.348493464 | L66: 0.2222222222 | M66: 1 | P66: 2.666666667 | Q66: 0 | R66: 0 | S66: 2.666666667 | T66: 0 | U66: 0 | V66: 0 | W66: 0 | X66: 0 | Y66: 0 | Z66: 0 | AA66: =U63 -> 0 | AB66: 0 | AC66: 0 | AD66: 0 | AF66: 10 | AK66: 0 | AL66: 0 | AM66: 0 | AN66: 0 | AO66: 70694.83064 | AP66: 0 | AQ66: 0 | AR66: 0 | AS66: 0 | AT66: 0 | AU66: 0 | AV66: 0 | AW66: 0 | AX66: 0 | AY66: 0
A68: No. projects by type & customer mix | H68: No. DM projects | P68: 2019-24 post DM no. HV projects by type, deferral yrs and reg yr | X68: Post DM no. HV projects by type and reg yr | AL68: 11kV augex in period 19-24 by proj type and deferral yr
A69: proj type | B69: nonres | C69: mixed | D69: res | E69: Total | H69: proj type | I69: nonres | J69: mixed | K69: res | M69: total | N69: % Deferred | P69: proj type | Q69: reg yr | R69: 1 | S69: 2 | T69: 3 | U69: total | X69: proj type | Y69: 2019/20 | Z69: 2020/21 | AA69: 2021/22 | AB69: 2022/23 | AC69: 2023/24 | AD69: 2024/25 | AE69: 2025/26 | AF69: 2026/27 | AG69: 2027/28 | AH69: 2028/29 | AI69: cost per proj | AN69: No. projects by deferral year
A70: L | B70: ='DM analysis'!C3 -> 1 | C70: ='DM analysis'!E3 -> 6 | D70: ='DM analysis'!B3 -> 0 | E70: =SUM(B70:D70) -> 7 | H70: L | I70: =SUM(S22:U26) -> 1 | J70: =SUM(S37:U41) -> 6 | K70: =SUM(S52:U56) -> 0 | M70: =SUM(I70:K70) -> 7 | N70: =M70/E70 -> 1 | P70: L | Q70: 1 | R70: =SUMIFS(AB$22:AB$66, $A$22:$A$66, $P70, $C$22:$C$66, $Q70) -> 0 | S70: =SUMIFS(AC$22:AC$66, $A$22:$A$66, $P70, $C$22:$C$66, $Q70) -> 0 | T70: =SUMIFS(AD$22:AD$66, $A$22:$A$66, $P70, $C$22:$C$66, $Q70) -> 0 | U70: =SUM(R70:T70) -> 0 | X70: L | Y70: =TRANSPOSE(U70:U74) -> 0 | Z70: 0.7777777778 | AA70: 1.555555556 | AB70: 1.555555556 | AC70: 1.555555556 | AD70: =TRANSPOSE(U88:U92) -> 1.555555556 | AE70: 0 | AF70: 0 | AG70: 0 | AH70: 0 | AI70: =N5 -> 1.432432395 | AL70: proj type | AM70: cost per proj | AN70: 1 | AO70: 2 | AP70: 3 | AQ70: total ($M)
A71: M | B71: ='DM analysis'!C4 -> 9 | C71: ='DM analysis'!E4 -> 18 | D71: ='DM analysis'!B4 -> 16 | E71: =SUM(B71:D71) -> 43 | H71: M | I71: =SUM(S27:U31) -> 9 | J71: =SUM(S42:U46) -> 16 | K71: =SUM(S57:U61) -> 7.111111111 | M71: =SUM(I71:K71) -> 32.11111111 | N71: =M71/E71 -> 0.7467700258 | P71: L | Q71: 2 | R71: 0.7777777778 | S71: 0 | T71: 0 | U71: =SUM(R71:T71) -> 0.7777777778 | X71: M | Y71: =TRANSPOSE(U75:U79) -> 3.777777778 | Z71: 4.555555556 | AA71: 9.555555556 | AB71: 6 | AC71: 9.555555556 | AD71: =TRANSPOSE(U93:U97) -> 9.555555556 | AE71: 0 | AF71: 0 | AG71: 0 | AH71: 0 | AI71: =N6 -> 0.680188321 | AL71: L | AM71: =N5 -> 1.432432395 | AN71: =SUM(P22:P26)+SUM(P37:P41)+SUM(P52:P56)-O5 -> 5.444444444 | AO71: =SUM(Q22:Q26)+SUM(Q37:Q41)+SUM(Q52:Q56)-P5 -> 0 | AP71: =SUM(R22:R26)+SUM(R37:R41)+SUM(R52:R56)-Q5 -> 0 | AQ71: =SUM(AN71:AP71)*AM71 -> 7.798798595
A72: S | B72: ='DM analysis'!C5 -> 21 | C72: ='DM analysis'!E5 -> 113 | D72: ='DM analysis'!B5 -> 12 | E72: =SUM(B72:D72) -> 146 | H72: S | I72: =SUM(S32:U36) -> 14 | J72: =SUM(S47:U51) -> 50.22222222 | K72: =SUM(S62:U66) -> 2.666666667 | M72: =SUM(I72:K72) -> 66.88888889 | N72: =M72/E72 -> 0.4581430746 | P72: L | Q72: 3 | R72: 1.555555556 | S72: 0 | T72: 0 | U72: 1.555555556 | X72: S | Y72: =TRANSPOSE(U80:U84) -> 16.22222222 | Z72: 32.44444444 | AA72: 27.77777778 | AB72: 7.333333333 | AC72: 29.77777778 | AD72: =TRANSPOSE(U98:U102) -> 32.44444444 | AE72: 0 | AF72: 0 | AG72: 0 | AH72: 0 | AI72: =N7 -> 0.2839842713 | AL72: M | AM72: =N6 -> 0.680188321 | AN72: =SUM(P27:P31)+SUM(P42:P46)+SUM(P57:P61)-O6 -> 33.44444444 | AO72: =SUM(Q27:Q31)+SUM(Q42:Q46)+SUM(Q57:Q61)-P6 -> 0 | AP72: =SUM(R27:R31)+SUM(R42:R46)+SUM(R57:R61)-Q6 -> 0 | AQ72: =SUM(AN72:AP72)*AM72 -> 22.74852051
A73: total | B73: =SUM(B70:B72) -> 31 | C73: =SUM(C70:C72) -> 137 | D73: =SUM(D70:D72) -> 28 | E73: =SUM(E70:E72) -> 196 | H73: total | I73: =SUM(I70:I72) -> 24 | J73: =SUM(J70:J72) -> 72.22222222 | K73: 9.777777778 | M73: 106 | N73: =M73/E73 -> 0.5408163265 | P73: L | Q73: 4 | R73: 1.555555556 | S73: 0 | T73: 0 | U73: 1.555555556 | AL73: S | AM73: =N7 -> 0.2839842713 | AN73: =SUM(P32:P36)+SUM(P47:P51)+SUM(P62:P66)-O7 -> 113.5555556 | AO73: =SUM(Q32:Q36)+SUM(Q47:Q51)+SUM(Q62:Q66)-P7 -> 0 | AP73: =SUM(R32:R36)+SUM(R47:R51)+SUM(R62:R66)-Q7 -> 0 | AQ73: =SUM(AN73:AP73)*AM73 -> 32.2479917
P74: L | Q74: 5 | R74: 1.555555556 | S74: 0 | T74: 0 | U74: 1.555555556 | X74: HV augex cashflow | AP74: total | AQ74: =SUM(AQ71:AQ73) -> 62.7953108
P75: M | Q75: 1 | R75: 3.777777778 | S75: 0 | T75: 0 | U75: 3.777777778 | X75: total 19-24 | Y75: 2019/20 | Z75: 2020/21 | AA75: 2021/22 | AB75: 2022/23 | AC75: 2023/24 | AD75: 2024/25 | AE75: 2025/26 | AF75: 2026/27 | AG75: 2027/28 | AH75: 2028/29
P76: M | Q76: 2 | R76: 4.555555556 | S76: 0 | T76: 0 | U76: 4.555555556 | X76: =SUM(Y76:AC76) -> 62.7953108 | Y76: =SUMPRODUCT(Y70:Y72, $AI$70:$AI$72) -> 7.17645628 | Z76: =SUMPRODUCT(Z70:Z72, $AI$70:$AI$72) -> 13.42646168 | AA76: =SUMPRODUCT(AA70:AA72, $AI$70:$AI$72) -> 16.61625744 | AB76: =SUMPRODUCT(AB70:AB72, $AI$70:$AI$72) -> 8.391909419 | AC76: =SUMPRODUCT(AC70:AC72, $AI$70:$AI$72) -> 17.18422598 | AD76: =SUMPRODUCT(AD70:AD72, $AI$70:$AI$72) -> 17.94151737 | AE76: 0 | AF76: 0 | AG76: 0 | AH76: 0
P77: M | Q77: 3 | R77: 9.555555556 | S77: 0 | T77: 0 | U77: 9.555555556
P78: M | Q78: 4 | R78: 6 | S78: 0 | T78: 0 | U78: 6
P79: M | Q79: 5 | R79: 9.555555556 | S79: 0 | T79: 0 | U79: 9.555555556
P80: S | Q80: 1 | R80: 16.22222222 | S80: 0 | T80: 0 | U80: 16.22222222
P81: S | Q81: 2 | R81: 32.44444444 | S81: 0 | T81: 0 | U81: 32.44444444
P82: S | Q82: 3 | R82: 27.77777778 | S82: 0 | T82: 0 | U82: 27.77777778
P83: S | Q83: 4 | R83: 7.333333333 | S83: 0 | T83: 0 | U83: 7.333333333
P84: S | Q84: 5 | R84: 29.77777778 | S84: 0 | T84: 0 | U84: 29.77777778
P86: 2025-29 Post DM no. HV projects by type, deferral yrs and reg yr
P87: proj type | Q87: reg yr | R87: 1 | S87: 2 | T87: 3 | U87: total
P88: L | Q88: 6 | R88: =SUMIFS(AG$22:AG$66, $A$22:$A$66, $P88, $AF$22:$AF$66, $Q88) -> 1.555555556 | S88: =SUMIFS(AH$22:AH$66, $A$22:$A$66, $P88, $AF$22:$AF$66, $Q88) -> 0 | T88: 0 | U88: =SUM(R88:T88) -> 1.555555556
P89: L | Q89: 7 | R89: =SUMIFS(AG$22:AG$66, $A$22:$A$66, $P89, $AF$22:$AF$66, $Q89) -> 0 | S89: =SUMIFS(AH$22:AH$66, $A$22:$A$66, $P89, $AF$22:$AF$66, $Q89) -> 0 | T89: =SUMIFS(AI$22:AI$66, $A$22:$A$66, $P89, $AF$22:$AF$66, $Q89) -> 0 | U89: =SUM(R89:T89) -> 0
P90: L | Q90: 8 | R90: 0 | S90: 0 | T90: 0 | U90: 0
P91: L | Q91: 9 | R91: 0 | S91: 0 | T91: 0 | U91: 0
P92: L | Q92: 10 | R92: 0 | S92: 0 | T92: 0 | U92: 0
P93: M | Q93: 6 | R93: 9.555555556 | S93: 0 | T93: 0 | U93: 9.555555556
P94: M | Q94: 7 | R94: 0 | S94: 0 | T94: 0 | U94: 0
P95: M | Q95: 8 | R95: 0 | S95: 0 | T95: 0 | U95: 0
P96: M | Q96: 9 | R96: 0 | S96: 0 | T96: 0 | U96: 0
P97: M | Q97: 10 | R97: 0 | S97: 0 | T97: 0 | U97: 0
P98: S | Q98: 6 | R98: 32.44444444 | S98: 0 | T98: 0 | U98: 32.44444444
P99: S | Q99: 7 | R99: 0 | S99: 0 | T99: 0 | U99: 0
P100: S | Q100: 8 | R100: 0 | S100: 0 | T100: 0 | U100: 0
P101: S | Q101: 9 | R101: 0 | S101: 0 | T101: 0 | U101: 0
P102: S | Q102: 10 | R102: 0 | S102: 0 | T102: 0 | U102: 0

Sheet DM analysis
B1: res | C1: nonres | D1: total | E1: mixed | G1: link to FY17 to FY19 escalation index | H1: K:\00 - System Planning\04 - DM\Work\60 DM Policy & Regulation\RESET 1924\DM Opex\[HV DM Opex Comparison.xlsx]HV'!$S$23
A2: >= threshold | B2: 0.65 | C2: 0.65 | G2: index | H2: 1.042480338 | I2: 16/17$ to 18/19$
A3: L | B3: =SUMIF(B9:B12, ">="&$B$2, E9:E12) -> 0 | C3: =SUMIF(C9:C12, ">="&$C$2, E9:E12) -> 1 | D3: =SUM(E9:E12) -> 7 | E3: =D3-C3-B3 -> 6 | U3: histogram | V3: L | W3: =SUM(W9:W12) -> 0 | X3: =SUM(X9:X12) -> 0 | Y3: 0 | Z3: 0 | AA3: 0 | AB3: 0 | AC3: 0 | AD3: 0 | AE3: 0 | AF3: 0 | AG3: 0 | AH3: 0 | AI3: 0 | AJ3: 0 | AK3: 0 | AL3: 0 | AM3: 0 | AN3: 0 | AO3: 0 | AP3: 0 | AQ3: 0 | AR3: 0 | AS3: 0 | AT3: 0 | AU3: 0 | AV3: =SUM(AV9:AV12) -> 1 | AW3: 1 | AX3: 0 | AY3: 0 | AZ3: =SUM(AZ9:AZ12) -> 5
A4: M | B4: =SUMIF(B13:B30, ">="&$B$2, E13:E30) -> 16 | C4: =SUMIF(C13:C30, ">="&$C$2, E13:E30) -> 9 | D4: =SUM(E13:E30) -> 43 | E4: =D4-C4-B4 -> 18 | G4: rounding adjustment | H4: 0.9987988058 | V4: M | W4: =SUM(W13:W30) -> 0 | X4: =SUM(X13:X30) -> 0 | Y4: 0 | Z4: 0 | AA4: 0 | AB4: 0 | AC4: 0 | AD4: 0 | AE4: 0 | AF4: 0 | AG4: 0 | AH4: 6 | AI4: 15 | AJ4: 9 | AK4: 5 | AL4: 2 | AM4: 2 | AN4: 4 | AO4: 0 | AP4: 0 | AQ4: 0 | AR4: 0 | AS4: 0 | AT4: 0 | AU4: 0 | AV4: =SUM(AV13:AV30) -> 0 | AW4: 0 | AX4: 0 | AY4: 0 | AZ4: =SUM(AZ13:AZ30) -> 0
A5: S | B5: =SUMIF(B31:B75, ">="&$B$2, E31:E75) -> 12 | C5: =SUMIF(C31:C75, ">="&$C$2, E31:E75) -> 21 | D5: =SUM(E31:E75) -> 146 | E5: 113 | V5: S | W5: =SUM(W31:W75) -> 0 | X5: =SUM(X31:X75) -> 6 | Y5: 13 | Z5: 24 | AA5: 24 | AB5: 22 | AC5: 10 | AD5: 10 | AE5: 25 | AF5: 4 | AG5: 8 | AH5: 0 | AI5: 0 | AJ5: 0 | AK5: 0 | AL5: 0 | AM5: 0 | AN5: 0 | AO5: 0 | AP5: 0 | AQ5: 0 | AR5: 0 | AS5: 0 | AT5: 0 | AU5: 0 | AV5: =SUM(AV31:AV75) -> 0 | AW5: 0 | AX5: 0 | AY5: 0 | AZ5: =SUM(AZ31:AZ75) -> 0
A6: total | B6: =SUM(B3:B5) -> 28 | C6: =SUM(C3:C5) -> 31 | D6: 196 | E6: 137 | V6: total | W6: =SUM(W9:W96) -> 0 | X6: =SUM(X9:X96) -> 6 | Y6: 13 | Z6: 24 | AA6: 24 | AB6: 22 | AC6: 10 | AD6: 10 | AE6: 25 | AF6: 4 | AG6: 8 | AH6: 6 | AI6: 15 | AJ6: 9 | AK6: 5 | AL6: 2 | AM6: 2 | AN6: 4 | AO6: 0 | AP6: 0 | AQ6: 0 | AR6: 0 | AS6: 0 | AT6: 0 | AU6: 0 | AV6: =SUM(AV9:AV96) -> 1 | AW6: 1 | AX6: 0 | AY6: 0 | AZ6: =SUM(AZ9:AZ96) -> 5
D7: zone aggregated | K7: large | L7: medium | M7: small | Q7: 18/19$ | V7: > | W7: 0 | X7: =W8 -> 0.05 | Y7: =X8 -> 0.1 | Z7: =Y8 -> 0.15 | AA7: 0.2 | AB7: 0.25 | AC7: 0.3 | AD7: 0.35 | AE7: 0.4 | AF7: 0.45 | AG7: 0.5 | AH7: 0.55 | AI7: 0.6 | AJ7: 0.65 | AK7: 0.7 | AL7: 0.75 | AM7: 0.8 | AN7: 0.85 | AO7: 0.9 | AP7: 0.95 | AQ7: 1 | AR7: 1.05 | AS7: 1.1 | AT7: 1.15 | AU7: 1.2 | AV7: =AU8 -> 1.25 | AW7: =AV8 -> 1.3 | AX7: =AW8 -> 1.35 | AY7: =AX8 -> 1.4 | AZ7: 1.45
A8: zone sub | B8: % res | C8: % nonres | D8: pre DM ($1617M) | E8: No. projects | F8: avg proj cost ($M) | G8: Urban LAR (MVA) | H8: Rural LAR (MVA) | I8: Total LAR (MVA) | J8: LAR per proj (MVA) | K8: L | L8: M | M8: S | O8: proj size | P8: range | Q8: avg proj cost | R8: num proj | S8: total cat. | T8: avg LAR (MVA) | V8: <= | W8: 0.05 | X8: =X7+$W$8 -> 0.1 | Y8: =Y7+$W$8 -> 0.15 | Z8: =Z7+$W$8 -> 0.2 | AA8: 0.25 | AB8: 0.3 | AC8: 0.35 | AD8: 0.4 | AE8: 0.45 | AF8: 0.5 | AG8: 0.55 | AH8: 0.6 | AI8: 0.65 | AJ8: =AJ7+$W$8 -> 0.7 | AK8: =AK7+$W$8 -> 0.75 | AL8: =AL7+$W$8 -> 0.8 | AM8: =AM7+$W$8 -> 0.85 | AN8: =AN7+$W$8 -> 0.9 | AO8: =AO7+$W$8 -> 0.95 | AP8: =AP7+$W$8 -> 1 | AQ8: =AQ7+$W$8 -> 1.05 | AR8: =AR7+$W$8 -> 1.1 | AS8: =AS7+$W$8 -> 1.15 | AT8: =AT7+$W$8 -> 1.2 | AU8: =AU7+$W$8 -> 1.25 | AV8: 1.3 | AW8: 1.35 | AX8: 1.4 | AY8: 1.45 | AZ8: =AZ7+$W$8 -> 1.5
A9: Metford 33 | B9: =VLOOKUP($A9, 'zone data'!$A$2:$D$68, 3, 0) -> 0.588663035 | C9: =VLOOKUP($A9, 'zone data'!$A$2:$D$68, 4, 0) -> 0.411336965 | D9: =VLOOKUP($A9,'Total zone summary'!$B$4:$N$91, 13, 0)*$H$4 -> 5.743093133 | E9: =VLOOKUP($A9,'Total zone summary'!$B$4:$J$91,9,0) -> 4 | F9: =D9/E9*$H$2 -> 1.496765418 | G9: =VLOOKUP($A9,'Total zone summary'!$B$4:$I$91,7,0) -> 23 | H9: =VLOOKUP($A9,'Total zone summary'!$B$4:$I$91,8,0) -> 0 | I9: =G9+H9*'Total zone summary'!$AN$1 -> 23 | J9: =I9/E9 -> 5.75 | K9: =$Q$11 -> 1.432432395 | O9: S | P9: < $500k | Q9: =SUM($D$31:$D$75)/SUM(E31:E75) * $H$2 -> 0.2839842713 | R9: =SUM($E$31:$E$75) -> 146 | S9: =$R9*Q9 -> 41.46170361 | T9: =SUM($I$31:$I$75)/SUM(E31:E75) -> 1.298630137 | W9: =IF(AND($F9>W$7, $F9<=W$8), $E9, 0) -> 0 | X9: =IF(AND($F9>X$7, $F9<=X$8), $E9, 0) -> 0 | Y9: 0 | Z9: 0 | AA9: 0 | AB9: 0 | AC9: 0 | AD9: 0 | AE9: 0 | AF9: 0 | AG9: 0 | AH9: 0 | AI9: 0 | AJ9: 0 | AK9: 0 | AL9: 0 | AM9: 0 | AN9: 0 | AO9: 0 | AP9: 0 | AQ9: 0 | AR9: 0 | AS9: 0 | AT9: 0 | AU9: 0 | AV9: 0 | AW9: 0 | AX9: 0 | AY9: 0 | AZ9: =IF(AND($F9>AZ$7, $F9<=AZ$8), $E9, 0) -> 4
A10: Charlestown 132 | B10: =VLOOKUP($A10, 'zone data'!$A$2:$D$68, 3, 0) -> 0.5216033374 | C10: =VLOOKUP($A10, 'zone data'!$A$2:$D$68, 4, 0) -> 0.4783966626 | D10: =VLOOKUP($A10,'Total zone summary'!$B$4:$N$91, 13, 0)*$H$4 -> 1.398318328 | E10: =VLOOKUP($A10,'Total zone summary'!$B$4:$J$91,9,0) -> 1 | F10: =D10/E10*$H$2 -> 1.457719364 | G10: =VLOOKUP($A10,'Total zone summary'!$B$4:$I$91,7,0) -> 5.6 | H10: =VLOOKUP($A10,'Total zone summary'!$B$4:$I$91,8,0) -> 0 | I10: =G10+H10*'Total zone summary'!$AN$1 -> 5.6 | J10: =I10/E10 -> 5.6 | K10: =$Q$11 -> 1.432432395 | O10: M | P10: $500k to $1m | Q10: =SUM($D$13:$D$30)/SUM(E13:E30) * $H$2 -> 0.680188321 | R10: =SUM($E$13:$E$30) -> 43 | S10: =$R10*Q10 -> 29.2480978 | T10: =SUM($I$13:$I$30)/SUM(E13:E30) -> 2.96744186 | W10: =IF(AND($F10>W$7, $F10<=W$8), $E10, 0) -> 0 | X10: 0 | Y10: 0 | Z10: 0 | AA10: 0 | AB10: 0 | AC10: 0 | AD10: 0 | AE10: 0 | AF10: 0 | AG10: 0 | AH10: 0 | AI10: 0 | AJ10: 0 | AK10: 0 | AL10: 0 | AM10: 0 | AN10: 0 | AO10: 0 | AP10: 0 | AQ10: 0 | AR10: 0 | AS10: 0 | AT10: 0 | AU10: 0 | AV10: 0 | AW10: 0 | AX10: 0 | AY10: 0 | AZ10: 1
A11: New Lambton 33 | B11: =VLOOKUP($A11, 'zone data'!$A$2:$D$68, 3, 0) -> 0.306989929 | C11: =VLOOKUP($A11, 'zone data'!$A$2:$D$68, 4, 0) -> 0.693010071 | D11: =VLOOKUP($A11,'Total zone summary'!$B$4:$N$91, 13, 0)*$H$4 -> 1.248498507 | E11: =VLOOKUP($A11,'Total zone summary'!$B$4:$J$91,9,0) -> 1 | F11: 1.301535146 | G11: =VLOOKUP($A11,'Total zone summary'!$B$4:$I$91,7,0) -> 5 | H11: =VLOOKUP($A11,'Total zone summary'!$B$4:$I$91,8,0) -> 0 | I11: =G11+H11*'Total zone summary'!$AN$1 -> 5 | J11: 5 | K11: =$Q$11 -> 1.432432395 | O11: L | P11: > $1m | Q11: =SUM($D$9:$D$12)/SUM(E9:E12) * $H$2 -> 1.432432395 | R11: =SUM($E$9:$E$12) -> 7 | S11: =$R11*Q11 -> 10.02702676 | T11: =SUM(I9:I12)/SUM(E9:E12) -> 5.571428571 | W11: 0 | X11: 0 | Y11: 0 | Z11: 0 | AA11: 0 | AB11: 0 | AC11: 0 | AD11: 0 | AE11: 0 | AF11: 0 | AG11: 0 | AH11: 0 | AI11: 0 | AJ11: 0 | AK11: 0 | AL11: 0 | AM11: 0 | AN11: 0 | AO11: 0 | AP11: 0 | AQ11: 0 | AR11: 0 | AS11: 0 | AT11: 0 | AU11: 0 | AV11: 0 | AW11: 1 | AX11: 0 | AY11: 0 | AZ11: 0
A12: Jesmond 132 | B12: =VLOOKUP($A12, 'zone data'!$A$2:$D$68, 3, 0) -> 0.4983846367 | C12: =VLOOKUP($A12, 'zone data'!$A$2:$D$68, 4, 0) -> 0.5016153633 | D12: =VLOOKUP($A12,'Total zone summary'!$B$4:$N$91, 13, 0)*$H$4 -> 1.228522531 | E12: =VLOOKUP($A12,'Total zone summary'!$B$4:$J$91,9,0) -> 1 | F12: 1.280710584 | G12: =VLOOKUP($A12,'Total zone summary'!$B$4:$I$91,7,0) -> 4.4 | H12: =VLOOKUP($A12,'Total zone summary'!$B$4:$I$91,8,0) -> 2 | I12: =G12+H12*'Total zone summary'!$AN$1 -> 5.4 | J12: 5.4 | K12: =$Q$11 -> 1.432432395 | W12: 0 | X12: 0 | Y12: 0 | Z12: 0 | AA12: 0 | AB12: 0 | AC12: 0 | AD12: 0 | AE12: 0 | AF12: 0 | AG12: 0 | AH12: 0 | AI12: 0 | AJ12: 0 | AK12: 0 | AL12: 0 | AM12: 0 | AN12: 0 | AO12: 0 | AP12: 0 | AQ12: 0 | AR12: 0 | AS12: 0 | AT12: 0 | AU12: 0 | AV12: 1 | AW12: 0 | AX12: 0 | AY12: 0 | AZ12: 0
A13: Tarro 33 | B13: =VLOOKUP($A13, 'zone data'!$A$2:$D$68, 3, 0) -> 0.2447521263 | C13: =VLOOKUP($A13, 'zone data'!$A$2:$D$68, 4, 0) -> 0.7552478737 | D13: =VLOOKUP($A13,'Total zone summary'!$B$4:$N$91, 13, 0)*$H$4 -> 0.8489789849 | E13: =VLOOKUP($A13,'Total zone summary'!$B$4:$J$91,9,0) -> 1 | F13: 0.8850438993 | G13: =VLOOKUP($A13,'Total zone summary'!$B$4:$I$91,7,0) -> 3.4 | H13: =VLOOKUP($A13,'Total zone summary'!$B$4:$I$91,8,0) -> 0 | I13: =G13+H13*'Total zone summary'!$AN$1 -> 3.4 | J13: 3.4 | L13: =$Q$10 -> 0.680188321 | Q13: total | R13: =SUM(R9:R11) -> 196 | S13: =SUM(S9:S11) -> 80.73682818 | W13: 0 | X13: 0 | Y13: 0 | Z13: 0 | AA13: 0 | AB13: 0 | AC13: 0 | AD13: 0 | AE13: 0 | AF13: 0 | AG13: 0 | AH13: 0 | AI13: 0 | AJ13: 0 | AK13: 0 | AL13: 0 | AM13: 0 | AN13: 1 | AO13: 0 | AP13: 0 | AQ13: 0 | AR13: 0 | AS13: 0 | AT13: 0 | AU13: 0 | AV13: 0 | AW13: 0 | AX13: 0 | AY13: 0 | AZ13: 0
A14: Nulkaba 33 | B14: =VLOOKUP($A14, 'zone data'!$A$2:$D$68, 3, 0) -> 0.4495173025 | C14: =VLOOKUP($A14, 'zone data'!$A$2:$D$68, 4, 0) -> 0.5504826975 | D14: =VLOOKUP($A14,'Total zone summary'!$B$4:$N$91, 13, 0)*$H$4 -> 2.526960979 | E14: =VLOOKUP($A14,'Total zone summary'!$B$4:$J$91,9,0) -> 3 | F14: 0.8781023785 | G14: =VLOOKUP($A14,'Total zone summary'!$B$4:$I$91,7,0) -> 6.8 | H14: =VLOOKUP($A14,'Total zone summary'!$B$4:$I$91,8,0) -> 13.2 | I14: =G14+H14*'Total zone summary'!$AN$1 -> 13.4 | J14: 4.466666667 | L14: 0.680188321 | W14: 0 | X14: 0 | Y14: 0 | Z14: 0 | AA14: 0 | AB14: 0 | AC14: 0 | AD14: 0 | AE14: 0 | AF14: 0 | AG14: 0 | AH14: 0 | AI14: 0 | AJ14: 0 | AK14: 0 | AL14: 0 | AM14: 0 | AN14: 3 | AO14: 0 | AP14: 0 | AQ14: 0 | AR14: 0 | AS14: 0 | AT14: 0 | AU14: 0 | AV14: 0 | AW14: 0 | AX14: 0 | AY14: 0 | AZ14: 0
A15: Croudace Bay 33/11 | B15: =VLOOKUP($A15, 'zone data'!$A$2:$D$68, 3, 0) -> 0.7450594147 | C15: =VLOOKUP($A15, 'zone data'!$A$2:$D$68, 4, 0) -> 0.2549405853 | D15: =VLOOKUP($A15,'Total zone summary'!$B$4:$N$91, 13, 0)*$H$4 -> 1.598078089 | E15: =VLOOKUP($A15,'Total zone summary'!$B$4:$J$91,9,0) -> 2 | F15: 0.8329824934 | G15: =VLOOKUP($A15,'Total zone summary'!$B$4:$I$91,7,0) -> 6.4 | H15: =VLOOKUP($A15,'Total zone summary'!$B$4:$I$91,8,0) -> 0 | I15: =G15+H15*'Total zone summary'!$AN$1 -> 6.4 | J15: 3.2 | L15: 0.680188321 | W15: 0 | X15: 0 | Y15: 0 | Z15: 0 | AA15: 0 | AB15: 0 | AC15: 0 | AD15: 0 | AE15: 0 | AF15: 0 | AG15: 0 | AH15: 0 | AI15: 0 | AJ15: 0 | AK15: 0 | AL15: 0 | AM15: 2 | AN15: 0 | AO15: 0 | AP15: 0 | AQ15: 0 | AR15: 0 | AS15: 0 | AT15: 0 | AU15: 0 | AV15: 0 | AW15: 0 | AX15: 0 | AY15: 0 | AZ15: 0
A16: Argenton 132/11 | B16: =VLOOKUP($A16, 'zone data'!$A$2:$D$68, 3, 0) -> 0.4694335488 | C16: =VLOOKUP($A16, 'zone data'!$A$2:$D$68, 4, 0) -> 0.5305664512 | D16: =VLOOKUP($A16,'Total zone summary'!$B$4:$N$91, 13, 0)*$H$4 -> 1.498198209 | E16: =VLOOKUP($A16,'Total zone summary'!$B$4:$J$91,9,0) -> 2 | F16: 0.7809210876 | G16: =VLOOKUP($A16,'Total zone summary'!$B$4:$I$91,7,0) -> 6 | H16: =VLOOKUP($A16,'Total zone summary'!$B$4:$I$91,8,0) -> 0 | I16: =G16+H16*'Total zone summary'!$AN$1 -> 6 | J16: 3 | L16: 0.680188321 | W16: 0 | X16: 0 | Y16: 0 | Z16: 0 | AA16: 0 | AB16: 0 | AC16: 0 | AD16: 0 | AE16: 0 | AF16: 0 | AG16: 0 | AH16: 0 | AI16: 0 | AJ16: 0 | AK16: 0 | AL16: 2 | AM16: 0 | AN16: 0 | AO16: 0 | AP16: 0 | AQ16: 0 | AR16: 0 | AS16: 0 | AT16: 0 | AU16: 0 | AV16: 0 | AW16: 0 | AX16: 0 | AY16: 0 | AZ16: 0
A17: Edgeworth 33 | B17: =VLOOKUP($A17, 'zone data'!$A$2:$D$68, 3, 0) -> 0.7274653096 | C17: =VLOOKUP($A17, 'zone data'!$A$2:$D$68, 4, 0) -> 0.2725346904 | D17: =VLOOKUP($A17,'Total zone summary'!$B$4:$N$91, 13, 0)*$H$4 -> 2.047537552 | E17: =VLOOKUP($A17,'Total zone summary'!$B$4:$J$91,9,0) -> 3 | F17: 0.7115058798 | G17: =VLOOKUP($A17,'Total zone summary'!$B$4:$I$91,7,0) -> 6.8 | H17: =VLOOKUP($A17,'Total zone summary'!$B$4:$I$91,8,0) -> 5.6 | I17: =G17+H17*'Total zone summary'!$AN$1 -> 9.6 | J17: 3.2 | L17: 0.680188321 | W17: 0 | X17: 0 | Y17: 0 | Z17: 0 | AA17: 0 | AB17: 0 | AC17: 0 | AD17: 0 | AE17: 0 | AF17: 0 | AG17: 0 | AH17: 0 | AI17: 0 | AJ17: 0 | AK17: 3 | AL17: 0 | AM17: 0 | AN17: 0 | AO17: 0 | AP17: 0 | AQ17: 0 | AR17: 0 | AS17: 0 | AT17: 0 | AU17: 0 | AV17: 0 | AW17: 0 | AX17: 0 | AY17: 0 | AZ17: 0
A18: Newcastle CBD 33 | B18: =VLOOKUP($A18, 'zone data'!$A$2:$D$68, 3, 0) -> 0.2718313952 | C18: =VLOOKUP($A18, 'zone data'!$A$2:$D$68, 4, 0) -> 0.7281686048 | D18: =VLOOKUP($A18,'Total zone summary'!$B$4:$N$91, 13, 0)*$H$4 -> 1.348378388 | E18: =VLOOKUP($A18,'Total zone summary'!$B$4:$J$91,9,0) -> 2 | F18: 0.7028289788 | G18: =VLOOKUP($A18,'Total zone summary'!$B$4:$I$91,7,0) -> 5.4 | H18: =VLOOKUP($A18,'Total zone summary'!$B$4:$I$91,8,0) -> 0 | I18: =G18+H18*'Total zone summary'!$AN$1 -> 5.4 | J18: 2.7 | L18: 0.680188321 | W18: 0 | X18: 0 | Y18: 0 | Z18: 0 | AA18: =IF(AND($F18>AA$7, $F18<=AA$8), $E18, 0) -> 0 | AB18: 0 | AC18: 0 | AD18: 0 | AE18: 0 | AF18: 0 | AG18: 0 | AH18: 0 | AI18: 0 | AJ18: 0 | AK18: 2 | AL18: 0 | AM18: 0 | AN18: 0 | AO18: 0 | AP18: 0 | AQ18: =IF(AND($F18>AQ$7, $F18<=AQ$8), $E18, 0) -> 0 | AR18: 0 | AS18: 0 | AT18: 0 | AU18: 0 | AV18: 0 | AW18: 0 | AX18: 0 | AY18: 0 | AZ18: 0
A19: Rathmines 132 | B19: =VLOOKUP($A19, 'zone data'!$A$2:$D$68, 3, 0) -> 0.8135448245 | C19: =VLOOKUP($A19, 'zone data'!$A$2:$D$68, 4, 0) -> 0.1864551755 | D19: =VLOOKUP($A19,'Total zone summary'!$B$4:$N$91, 13, 0)*$H$4 -> 1.947657671 | E19: =VLOOKUP($A19,'Total zone summary'!$B$4:$J$91,9,0) -> 3 | F19: 0.6767982759 | G19: =VLOOKUP($A19,'Total zone summary'!$B$4:$I$91,7,0) -> 6.4 | H19: =VLOOKUP($A19,'Total zone summary'!$B$4:$I$91,8,0) -> 5.6 | I19: =G19+H19*'Total zone summary'!$AN$1 -> 9.2 | J19: 3.066666667 | L19: 0.680188321 | W19: 0 | X19: 0 | Y19: 0 | Z19: 0 | AA19: 0 | AB19: 0 | AC19: 0 | AD19: 0 | AE19: 0 | AF19: 0 | AG19: 0 | AH19: 0 | AI19: 0 | AJ19: 3 | AK19: 0 | AL19: 0 | AM19: 0 | AN19: 0 | AO19: 0 | AP19: 0 | AQ19: 0 | AR19: 0 | AS19: 0 | AT19: 0 | AU19: 0 | AV19: 0 | AW19: 0 | AX19: 0 | AY19: 0 | AZ19: 0
A20: Telarah 33 | B20: =VLOOKUP($A20, 'zone data'!$A$2:$D$68, 3, 0) -> 0.6957855902 | C20: =VLOOKUP($A20, 'zone data'!$A$2:$D$68, 4, 0) -> 0.3042144098 | D20: =VLOOKUP($A20,'Total zone summary'!$B$4:$N$91, 13, 0)*$H$4 -> 1.298438448 | E20: =VLOOKUP($A20,'Total zone summary'!$B$4:$J$91,9,0) -> 2 | F20: 0.6767982759 | G20: =VLOOKUP($A20,'Total zone summary'!$B$4:$I$91,7,0) -> 4.4 | H20: =VLOOKUP($A20,'Total zone summary'!$B$4:$I$91,8,0) -> 3.2 | I20: =G20+H20*'Total zone summary'!$AN$1 -> 6 | J20: 3 | L20: 0.680188321 | W20: 0 | X20: 0 | Y20: 0 | Z20: 0 | AA20: 0 | AB20: 0 | AC20: 0 | AD20: 0 | AE20: 0 | AF20: 0 | AG20: 0 | AH20: 0 | AI20: 0 | AJ20: 2 | AK20: 0 | AL20: 0 | AM20: 0 | AN20: 0 | AO20: 0 | AP20: 0 | AQ20: 0 | AR20: 0 | AS20: 0 | AT20: 0 | AU20: 0 | AV20: 0 | AW20: 0 | AX20: 0 | AY20: 0 | AZ20: 0
A21: Mitchell Line 66 | B21: =VLOOKUP($A21, 'zone data'!$A$2:$D$68, 3, 0) -> 0.5317458317 | C21: =VLOOKUP($A21, 'zone data'!$A$2:$D$68, 4, 0) -> 0.4682541683 | D21: =VLOOKUP($A21,'Total zone summary'!$B$4:$N$91, 13, 0)*$H$4 -> 1.298438448 | E21: =VLOOKUP($A21,'Total zone summary'!$B$4:$J$91,9,0) -> 2 | F21: 0.6767982759 | G21: =VLOOKUP($A21,'Total zone summary'!$B$4:$I$91,7,0) -> 4.8 | H21: =VLOOKUP($A21,'Total zone summary'!$B$4:$I$91,8,0) -> 1.6 | I21: =G21+H21*'Total zone summary'!$AN$1 -> 5.6 | J21: 2.8 | L21: 0.680188321 | W21: 0 | X21: 0 | Y21: 0 | Z21: 0 | AA21: 0 | AB21: 0 | AC21: 0 | AD21: 0 | AE21: 0 | AF21: 0 | AG21: 0 | AH21: 0 | AI21: 0 | AJ21: 2 | AK21: 0 | AL21: 0 | AM21: 0 | AN21: 0 | AO21: 0 | AP21: 0 | AQ21: 0 | AR21: 0 | AS21: 0 | AT21: 0 | AU21: 0 | AV21: 0 | AW21: 0 | AX21: 0 | AY21: 0 | AZ21: 0
A22: Maryland 132 | B22: =VLOOKUP($A22, 'zone data'!$A$2:$D$68, 3, 0) -> 0.6781536395 | C22: =VLOOKUP($A22, 'zone data'!$A$2:$D$68, 4, 0) -> 0.3218463605 | D22: =VLOOKUP($A22,'Total zone summary'!$B$4:$N$91, 13, 0)*$H$4 -> 0.6492192238 | E22: =VLOOKUP($A22,'Total zone summary'!$B$4:$J$91,9,0) -> 1 | F22: 0.6767982759 | G22: =VLOOKUP($A22,'Total zone summary'!$B$4:$I$91,7,0) -> 1.4 | H22: =VLOOKUP($A22,'Total zone summary'!$B$4:$I$91,8,0) -> 4.8 | I22: =G22+H22*'Total zone summary'!$AN$1 -> 3.8 | J22: 3.8 | L22: 0.680188321 | W22: 0 | X22: 0 | Y22: 0 | Z22: 0 | AA22: 0 | AB22: 0 | AC22: 0 | AD22: 0 | AE22: 0 | AF22: 0 | AG22: 0 | AH22: 0 | AI22: 0 | AJ22: 1 | AK22: 0 | AL22: 0 | AM22: 0 | AN22: 0 | AO22: 0 | AP22: 0 | AQ22: 0 | AR22: 0 | AS22: 0 | AT22: 0 | AU22: 0 | AV22: 0 | AW22: 0 | AX22: 0 | AY22: 0 | AZ22: 0
A23: Jewells 33 | B23: =VLOOKUP($A23, 'zone data'!$A$2:$D$68, 3, 0) -> 0.6953290109 | C23: =VLOOKUP($A23, 'zone data'!$A$2:$D$68, 4, 0) -> 0.3046709891 | D23: =VLOOKUP($A23,'Total zone summary'!$B$4:$N$91, 13, 0)*$H$4 -> 0.6492192238 | E23: =VLOOKUP($A23,'Total zone summary'!$B$4:$J$91,9,0) -> 1 | F23: 0.6767982759 | G23: =VLOOKUP($A23,'Total zone summary'!$B$4:$I$91,7,0) -> 2.6 | H23: =VLOOKUP($A23,'Total zone summary'!$B$4:$I$91,8,0) -> 0 | I23: =G23+H23*'Total zone summary'!$AN$1 -> 2.6 | J23: 2.6 | L23: 0.680188321 | W23: 0 | X23: 0 | Y23: 0 | Z23: 0 | AA23: 0 | AB23: 0 | AC23: 0 | AD23: 0 | AE23: 0 | AF23: 0 | AG23: 0 | AH23: 0 | AI23: 0 | AJ23: 1 | AK23: 0 | AL23: 0 | AM23: 0 | AN23: 0 | AO23: 0 | AP23: 0 | AQ23: 0 | AR23: 0 | AS23: 0 | AT23: 0 | AU23: 0 | AV23: 0 | AW23: 0 | AX23: 0 | AY23: 0 | AZ23: 0
A24: Cardiff 33 | B24: =VLOOKUP($A24, 'zone data'!$A$2:$D$68, 3, 0) -> 0.5247363256 | C24: =VLOOKUP($A24, 'zone data'!$A$2:$D$68, 4, 0) -> 0.4752636744 | D24: =VLOOKUP($A24,'Total zone summary'!$B$4:$N$91, 13, 0)*$H$4 -> 1.847777791 | E24: =VLOOKUP($A24,'Total zone summary'!$B$4:$J$91,9,0) -> 3 | F24: 0.642090672 | G24: =VLOOKUP($A24,'Total zone summary'!$B$4:$I$91,7,0) -> 7.4 | H24: =VLOOKUP($A24,'Total zone summary'!$B$4:$I$91,8,0) -> 0 | I24: =G24+H24*'Total zone summary'!$AN$1 -> 7.4 | J24: 2.466666667 | L24: 0.680188321 | W24: 0 | X24: 0 | Y24: 0 | Z24: 0 | AA24: 0 | AB24: 0 | AC24: 0 | AD24: 0 | AE24: 0 | AF24: 0 | AG24: 0 | AH24: 0 | AI24: 3 | AJ24: 0 | AK24: 0 | AL24: 0 | AM24: 0 | AN24: 0 | AO24: 0 | AP24: 0 | AQ24: 0 | AR24: 0 | AS24: 0 | AT24: 0 | AU24: 0 | AV24: 0 | AW24: 0 | AX24: 0 | AY24: 0 | AZ24: 0
A25: Mortdale Zone | B25: =VLOOKUP($A25, 'zone data'!$A$2:$D$68, 3, 0) -> 0.7275605321 | C25: =VLOOKUP($A25, 'zone data'!$A$2:$D$68, 4, 0) -> 0.2724394679 | D25: =VLOOKUP($A25,'Total zone summary'!$B$4:$N$91, 13, 0)*$H$4 -> 2.447057074 | E25: =VLOOKUP($A25,'Total zone summary'!$B$4:$J$91,9,0) -> 4 | F25: 0.6377522215 | G25: =VLOOKUP($A25,'Total zone summary'!$B$4:$I$91,7,0) -> 9.8 | H25: =VLOOKUP($A25,'Total zone summary'!$B$4:$I$91,8,0) -> 0 | I25: =G25+H25*'Total zone summary'!$AN$1 -> 9.8 | J25: 2.45 | L25: 0.680188321 | W25: 0 | X25: 0 | Y25: 0 | Z25: 0 | AA25: 0 | AB25: 0 | AC25: 0 | AD25: 0 | AE25: 0 | AF25: 0 | AG25: 0 | AH25: 0 | AI25: 4 | AJ25: 0 | AK25: 0 | AL25: 0 | AM25: 0 | AN25: 0 | AO25: 0 | AP25: 0 | AQ25: 0 | AR25: 0 | AS25: 0 | AT25: 0 | AU25: 0 | AV25: 0 | AW25: 0 | AX25: 0 | AY25: 0 | AZ25: 0
A26: Rutherford 33 | B26: =VLOOKUP($A26, 'zone data'!$A$2:$D$68, 3, 0) -> 0.363167501 | C26: =VLOOKUP($A26, 'zone data'!$A$2:$D$68, 4, 0) -> 0.636832499 | D26: =VLOOKUP($A26,'Total zone summary'!$B$4:$N$91, 13, 0)*$H$4 -> 3.026360382 | E26: =VLOOKUP($A26,'Total zone summary'!$B$4:$J$91,9,0) -> 5 | F26: 0.6309842388 | G26: =VLOOKUP($A26,'Total zone summary'!$B$4:$I$91,7,0) -> 5.8 | H26: =VLOOKUP($A26,'Total zone summary'!$B$4:$I$91,8,0) -> 25.2 | I26: =G26+H26*'Total zone summary'!$AN$1 -> 18.4 | J26: 3.68 | L26: 0.680188321 | W26: 0 | X26: 0 | Y26: 0 | Z26: 0 | AA26: 0 | AB26: 0 | AC26: 0 | AD26: 0 | AE26: 0 | AF26: 0 | AG26: 0 | AH26: 0 | AI26: 5 | AJ26: 0 | AK26: 0 | AL26: 0 | AM26: 0 | AN26: 0 | AO26: 0 | AP26: 0 | AQ26: 0 | AR26: 0 | AS26: 0 | AT26: 0 | AU26: 0 | AV26: 0 | AW26: 0 | AX26: 0 | AY26: 0 | AZ26: 0
A27: Tomaree 33 | B27: =VLOOKUP($A27, 'zone data'!$A$2:$D$68, 3, 0) -> 0.6379476063 | C27: =VLOOKUP($A27, 'zone data'!$A$2:$D$68, 4, 0) -> 0.3620523937 | D27: =VLOOKUP($A27,'Total zone summary'!$B$4:$N$91, 13, 0)*$H$4 -> 1.777861874 | E27: =VLOOKUP($A27,'Total zone summary'!$B$4:$J$91,9,0) -> 3 | F27: 0.6177953493 | G27: =VLOOKUP($A27,'Total zone summary'!$B$4:$I$91,7,0) -> 6.6 | H27: =VLOOKUP($A27,'Total zone summary'!$B$4:$I$91,8,0) -> 2 | I27: =G27+H27*'Total zone summary'!$AN$1 -> 7.6 | J27: 2.533333333 | L27: 0.680188321 | W27: 0 | X27: 0 | Y27: 0 | Z27: 0 | AA27: 0 | AB27: 0 | AC27: 0 | AD27: 0 | AE27: 0 | AF27: 0 | AG27: 0 | AH27: 0 | AI27: 3 | AJ27: 0 | AK27: 0 | AL27: 0 | AM27: 0 | AN27: 0 | AO27: 0 | AP27: 0 | AQ27: 0 | AR27: 0 | AS27: 0 | AT27: 0 | AU27: 0 | AV27: 0 | AW27: 0 | AX27: 0 | AY27: 0 | AZ27: 0
A28: St Peters Zone | B28: =VLOOKUP($A28, 'zone data'!$A$2:$D$68, 3, 0) -> 0.1946171999 | C28: =VLOOKUP($A28, 'zone data'!$A$2:$D$68, 4, 0) -> 0.8053828001 | D28: =VLOOKUP($A28,'Total zone summary'!$B$4:$N$91, 13, 0)*$H$4 -> 1.098678686 | E28: =VLOOKUP($A28,'Total zone summary'!$B$4:$J$91,9,0) -> 2 | F28: 0.5726754642 | G28: =VLOOKUP($A28,'Total zone summary'!$B$4:$I$91,7,0) -> 4.4 | H28: =VLOOKUP($A28,'Total zone summary'!$B$4:$I$91,8,0) -> 0 | I28: =G28+H28*'Total zone summary'!$AN$1 -> 4.4 | J28: 2.2 | L28: 0.680188321 | W28: 0 | X28: 0 | Y28: 0 | Z28: 0 | AA28: 0 | AB28: 0 | AC28: 0 | AD28: 0 | AE28: 0 | AF28: 0 | AG28: 0 | AH28: 2 | AI28: 0 | AJ28: 0 | AK28: 0 | AL28: 0 | AM28: 0 | AN28: 0 | AO28: 0 | AP28: 0 | AQ28: 0 | AR28: 0 | AS28: 0 | AT28: 0 | AU28: 0 | AV28: 0 | AW28: 0 | AX28: 0 | AY28: 0 | AZ28: 0
A29: Campbell St Zone | B29: =VLOOKUP($A29, 'zone data'!$A$2:$D$68, 3, 0) -> 0.1896628577 | C29: =VLOOKUP($A29, 'zone data'!$A$2:$D$68, 4, 0) -> 0.8103371423 | D29: =VLOOKUP($A29,'Total zone summary'!$B$4:$N$91, 13, 0)*$H$4 -> 0.5493393432 | E29: =VLOOKUP($A29,'Total zone summary'!$B$4:$J$91,9,0) -> 1 | F29: 0.5726754642 | G29: =VLOOKUP($A29,'Total zone summary'!$B$4:$I$91,7,0) -> 2.2 | H29: =VLOOKUP($A29,'Total zone summary'!$B$4:$I$91,8,0) -> 0 | I29: =G29+H29*'Total zone summary'!$AN$1 -> 2.2 | J29: 2.2 | L29: 0.680188321 | W29: 0 | X29: 0 | Y29: 0 | Z29: 0 | AA29: 0 | AB29: 0 | AC29: 0 | AD29: 0 | AE29: 0 | AF29: 0 | AG29: 0 | AH29: 1 | AI29: 0 | AJ29: 0 | AK29: 0 | AL29: 0 | AM29: 0 | AN29: 0 | AO29: 0 | AP29: 0 | AQ29: 0 | AR29: 0 | AS29: 0 | AT29: 0 | AU29: 0 | AV29: 0 | AW29: 0 | AX29: 0 | AY29: 0 | AZ29: 0
A30: Greenacre Park Zone | B30: =VLOOKUP($A30, 'zone data'!$A$2:$D$68, 3, 0) -> 0.2861925796 | C30: =VLOOKUP($A30, 'zone data'!$A$2:$D$68, 4, 0) -> 0.7138074204 | D30: =VLOOKUP($A30,'Total zone summary'!$B$4:$N$91, 13, 0)*$H$4 -> 1.598078089 | E30: =VLOOKUP($A30,'Total zone summary'!$B$4:$J$91,9,0) -> 3 | F30: 0.5553216623 | G30: =VLOOKUP($A30,'Total zone summary'!$B$4:$I$91,7,0) -> 6.4 | H30: =VLOOKUP($A30,'Total zone summary'!$B$4:$I$91,8,0) -> 0 | I30: =G30+H30*'Total zone summary'!$AN$1 -> 6.4 | J30: 2.133333333 | L30: 0.680188321 | W30: 0 | X30: 0 | Y30: 0 | Z30: 0 | AA30: 0 | AB30: 0 | AC30: 0 | AD30: 0 | AE30: 0 | AF30: 0 | AG30: 0 | AH30: 3 | AI30: 0 | AJ30: 0 | AK30: 0 | AL30: 0 | AM30: 0 | AN30: 0 | AO30: 0 | AP30: 0 | AQ30: 0 | AR30: 0 | AS30: 0 | AT30: 0 | AU30: 0 | AV30: 0 | AW30: 0 | AX30: 0 | AY30: 0 | AZ30: 0
A31: Bass Hill Zone | B31: =VLOOKUP($A31, 'zone data'!$A$2:$D$68, 3, 0) -> 0.4183363078 | C31: =VLOOKUP($A31, 'zone data'!$A$2:$D$68, 4, 0) -> 0.5816636922 | D31: =VLOOKUP($A31,'Total zone summary'!$B$4:$N$91, 13, 0)*$H$4 -> 2.496997014 | E31: =VLOOKUP($A31,'Total zone summary'!$B$4:$J$91,9,0) -> 5 | F31: 0.5206140584 | G31: =VLOOKUP($A31,'Total zone summary'!$B$4:$I$91,7,0) -> 10 | H31: =VLOOKUP($A31,'Total zone summary'!$B$4:$I$91,8,0) -> 0 | I31: =G31+H31*'Total zone summary'!$AN$1 -> 10 | J31: 2 | M31: =$Q$9 -> 0.2839842713 | W31: 0 | X31: 0 | Y31: 0 | Z31: 0 | AA31: 0 | AB31: 0 | AC31: 0 | AD31: 0 | AE31: 0 | AF31: 0 | AG31: 5 | AH31: 0 | AI31: 0 | AJ31: 0 | AK31: 0 | AL31: 0 | AM31: 0 | AN31: 0 | AO31: 0 | AP31: 0 | AQ31: 0 | AR31: 0 | AS31: 0 | AT31: 0 | AU31: 0 | AV31: 0 | AW31: 0 | AX31: 0 | AY31: 0 | AZ31: 0
A32: Pelican 33 | B32: =VLOOKUP($A32, 'zone data'!$A$2:$D$68, 3, 0) -> 0.4838828886 | C32: =VLOOKUP($A32, 'zone data'!$A$2:$D$68, 4, 0) -> 0.5161171114 | D32: =VLOOKUP($A32,'Total zone summary'!$B$4:$N$91, 13, 0)*$H$4 -> 0.4993994029 | E32: =VLOOKUP($A32,'Total zone summary'!$B$4:$J$91,9,0) -> 1 | F32: 0.5206140584 | G32: =VLOOKUP($A32,'Total zone summary'!$B$4:$I$91,7,0) -> 2 | H32: =VLOOKUP($A32,'Total zone summary'!$B$4:$I$91,8,0) -> 0 | I32: =G32+H32*'Total zone summary'!$AN$1 -> 2 | J32: 2 | M32: 0.2839842713 | W32: 0 | X32: 0 | Y32: 0 | Z32: 0 | AA32: 0 | AB32: 0 | AC32: 0 | AD32: 0 | AE32: 0 | AF32: 0 | AG32: 1 | AH32: 0 | AI32: 0 | AJ32: 0 | AK32: 0 | AL32: 0 | AM32: 0 | AN32: 0 | AO32: 0 | AP32: 0 | AQ32: 0 | AR32: 0 | AS32: 0 | AT32: 0 | AU32: 0 | AV32: 0 | AW32: 0 | AX32: 0 | AY32: 0 | AZ32: 0
A33: Chatswood Zone | B33: =VLOOKUP($A33, 'zone data'!$A$2:$D$68, 3, 0) -> 0.4416271845 | C33: =VLOOKUP($A33, 'zone data'!$A$2:$D$68, 4, 0) -> 0.5583728155 | D33: =VLOOKUP($A33,'Total zone summary'!$B$4:$N$91, 13, 0)*$H$4 -> 0.4993994029 | E33: =VLOOKUP($A33,'Total zone summary'!$B$4:$J$91,9,0) -> 1 | F33: 0.5206140584 | G33: =VLOOKUP($A33,'Total zone summary'!$B$4:$I$91,7,0) -> 2 | H33: =VLOOKUP($A33,'Total zone summary'!$B$4:$I$91,8,0) -> 0 | I33: =G33+H33*'Total zone summary'!$AN$1 -> 2 | J33: 2 | M33: 0.2839842713 | W33: 0 | X33: 0 | Y33: 0 | Z33: 0 | AA33: 0 | AB33: 0 | AC33: 0 | AD33: 0 | AE33: 0 | AF33: 0 | AG33: 1 | AH33: 0 | AI33: 0 | AJ33: 0 | AK33: 0 | AL33: 0 | AM33: 0 | AN33: 0 | AO33: 0 | AP33: 0 | AQ33: 0 | AR33: 0 | AS33: 0 | AT33: 0 | AU33: 0 | AV33: 0 | AW33: 0 | AX33: 0 | AY33: 0 | AZ33: 0
A34: Macquarie Park Zone | B34: =VLOOKUP($A34, 'zone data'!$A$2:$D$68, 3, 0) -> 0.06765425136 | C34: =VLOOKUP($A34, 'zone data'!$A$2:$D$68, 4, 0) -> 0.9323457486 | D34: =VLOOKUP($A34,'Total zone summary'!$B$4:$N$91, 13, 0)*$H$4 -> 0.4993994029 | E34: =VLOOKUP($A34,'Total zone summary'!$B$4:$J$91,9,0) -> 1 | F34: 0.5206140584 | G34: =VLOOKUP($A34,'Total zone summary'!$B$4:$I$91,7,0) -> 2 | H34: =VLOOKUP($A34,'Total zone summary'!$B$4:$I$91,8,0) -> 0 | I34: =G34+H34*'Total zone summary'!$AN$1 -> 2 | J34: 2 | M34: 0.2839842713 | W34: 0 | X34: 0 | Y34: 0 | Z34: 0 | AA34: 0 | AB34: 0 | AC34: =IF(AND($F34>AC$7, $F34<=AC$8), $E34, 0) -> 0 | AD34: 0 | AE34: 0 | AF34: 0 | AG34: 1 | AH34: 0 | AI34: 0 | AJ34: 0 | AK34: 0 | AL34: 0 | AM34: 0 | AN34: 0 | AO34: 0 | AP34: 0 | AQ34: 0 | AR34: 0 | AS34: 0 | AT34: 0 | AU34: 0 | AV34: 0 | AW34: 0 | AX34: 0 | AY34: 0 | AZ34: 0
A35: Mount Hutton 33 | B35: =VLOOKUP($A35, 'zone data'!$A$2:$D$68, 3, 0) -> 0.7705850881 | C35: =VLOOKUP($A35, 'zone data'!$A$2:$D$68, 4, 0) -> 0.2294149119 | D35: =VLOOKUP($A35,'Total zone summary'!$B$4:$N$91, 13, 0)*$H$4 -> 0.4494594626 | E35: =VLOOKUP($A35,'Total zone summary'!$B$4:$J$91,9,0) -> 1 | F35: 0.4685526526 | G35: =VLOOKUP($A35,'Total zone summary'!$B$4:$I$91,7,0) -> 1.8 | H35: =VLOOKUP($A35,'Total zone summary'!$B$4:$I$91,8,0) -> 0 | I35: =G35+H35*'Total zone summary'!$AN$1 -> 1.8 | J35: 1.8 | M35: 0.2839842713 | W35: =IF(AND($F35>W$7, $F35<=W$8), $E35, 0) -> 0 | X35: 0 | Y35: 0 | Z35: 0 | AA35: 0 | AB35: 0 | AC35: 0 | AD35: 0 | AE35: 0 | AF35: 1 | AG35: 0 | AH35: 0 | AI35: 0 | AJ35: 0 | AK35: 0 | AL35: 0 | AM35: 0 | AN35: 0 | AO35: 0 | AP35: 0 | AQ35: 0 | AR35: 0 | AS35: 0 | AT35: 0 | AU35: 0 | AV35: 0 | AW35: 0 | AX35: 0 | AY35: 0 | AZ35: 0
A36: Auburn Zone | B36: =VLOOKUP($A36, 'zone data'!$A$2:$D$68, 3, 0) -> 0.1277302086 | C36: =VLOOKUP($A36, 'zone data'!$A$2:$D$68, 4, 0) -> 0.8722697914 | D36: =VLOOKUP($A36,'Total zone summary'!$B$4:$N$91, 13, 0)*$H$4 -> 0.4494594626 | E36: =VLOOKUP($A36,'Total zone summary'!$B$4:$J$91,9,0) -> 1 | F36: 0.4685526526 | G36: =VLOOKUP($A36,'Total zone summary'!$B$4:$I$91,7,0) -> 1.8 | H36: =VLOOKUP($A36,'Total zone summary'!$B$4:$I$91,8,0) -> 0 | I36: =G36+H36*'Total zone summary'!$AN$1 -> 1.8 | J36: 1.8 | M36: 0.2839842713 | W36: 0 | X36: 0 | Y36: 0 | Z36: 0 | AA36: 0 | AB36: 0 | AC36: 0 | AD36: 0 | AE36: 0 | AF36: 1 | AG36: 0 | AH36: 0 | AI36: 0 | AJ36: 0 | AK36: 0 | AL36: 0 | AM36: 0 | AN36: 0 | AO36: 0 | AP36: 0 | AQ36: 0 | AR36: 0 | AS36: 0 | AT36: 0 | AU36: 0 | AV36: 0 | AW36: 0 | AX36: 0 | AY36: 0 | AZ36: 0
A37: Lake Munmorah Zone | B37: =VLOOKUP($A37, 'zone data'!$A$2:$D$68, 3, 0) -> 0.665951384 | C37: =VLOOKUP($A37, 'zone data'!$A$2:$D$68, 4, 0) -> 0.334048616 | D37: =VLOOKUP($A37,'Total zone summary'!$B$4:$N$91, 13, 0)*$H$4 -> 0.4494594626 | E37: =VLOOKUP($A37,'Total zone summary'!$B$4:$J$91,9,0) -> 1 | F37: 0.4685526526 | G37: =VLOOKUP($A37,'Total zone summary'!$B$4:$I$91,7,0) -> 0 | H37: =VLOOKUP($A37,'Total zone summary'!$B$4:$I$91,8,0) -> 7.2 | I37: =G37+H37*'Total zone summary'!$AN$1 -> 3.6 | J37: 3.6 | M37: 0.2839842713 | W37: 0 | X37: 0 | Y37: 0 | Z37: 0 | AA37: 0 | AB37: 0 | AC37: 0 | AD37: 0 | AE37: 0 | AF37: 1 | AG37: 0 | AH37: 0 | AI37: 0 | AJ37: 0 | AK37: 0 | AL37: 0 | AM37: 0 | AN37: 0 | AO37: 0 | AP37: 0 | AQ37: 0 | AR37: 0 | AS37: 0 | AT37: 0 | AU37: 0 | AV37: 0 | AW37: 0 | AX37: 0 | AY37: 0 | AZ37: 0
A38: Potts Hill Zone | B38: =VLOOKUP($A38, 'zone data'!$A$2:$D$68, 3, 0) -> 0.3132859887 | C38: =VLOOKUP($A38, 'zone data'!$A$2:$D$68, 4, 0) -> 0.6867140113 | D38: =VLOOKUP($A38,'Total zone summary'!$B$4:$N$91, 13, 0)*$H$4 -> 0.4494594626 | E38: =VLOOKUP($A38,'Total zone summary'!$B$4:$J$91,9,0) -> 1 | F38: 0.4685526526 | G38: =VLOOKUP($A38,'Total zone summary'!$B$4:$I$91,7,0) -> 1.8 | H38: =VLOOKUP($A38,'Total zone summary'!$B$4:$I$91,8,0) -> 0 | I38: =G38+H38*'Total zone summary'!$AN$1 -> 1.8 | J38: 1.8 | M38: 0.2839842713 | W38: 0 | X38: 0 | Y38: 0 | Z38: 0 | AA38: 0 | AB38: 0 | AC38: 0 | AD38: 0 | AE38: 0 | AF38: 1 | AG38: 0 | AH38: 0 | AI38: 0 | AJ38: 0 | AK38: 0 | AL38: 0 | AM38: 0 | AN38: 0 | AO38: 0 | AP38: 0 | AQ38: 0 | AR38: 0 | AS38: 0 | AT38: 0 | AU38: 0 | AV38: 0 | AW38: 0 | AX38: 0 | AY38: 0 | AZ38: 0
A39: Maitland 33 | B39: =VLOOKUP($A39, 'zone data'!$A$2:$D$68, 3, 0) -> 0.4928120627 | C39: =VLOOKUP($A39, 'zone data'!$A$2:$D$68, 4, 0) -> 0.5071879373 | D39: =VLOOKUP($A39,'Total zone summary'!$B$4:$N$91, 13, 0)*$H$4 -> 2.496997014 | E39: =VLOOKUP($A39,'Total zone summary'!$B$4:$J$91,9,0) -> 6 | F39: 0.4338450487 | G39: =VLOOKUP($A39,'Total zone summary'!$B$4:$I$91,7,0) -> 4.6 | H39: =VLOOKUP($A39,'Total zone summary'!$B$4:$I$91,8,0) -> 21.6 | I39: =G39+H39*'Total zone summary'!$AN$1 -> 15.4 | J39: 2.566666667 | M39: 0.2839842713 | W39: 0 | X39: 0 | Y39: 0 | Z39: 0 | AA39: 0 | AB39: 0 | AC39: 0 | AD39: 0 | AE39: 6 | AF39: 0 | AG39: 0 | AH39: 0 | AI39: 0 | AJ39: 0 | AK39: 0 | AL39: 0 | AM39: 0 | AN39: 0 | AO39: 0 | AP39: 0 | AQ39: 0 | AR39: 0 | AS39: 0 | AT39: 0 | AU39: 0 | AV39: 0 | AW39: 0 | AX39: 0 | AY39: 0 | AZ39: 0
A40: Sefton Zone | B40: =VLOOKUP($A40, 'zone data'!$A$2:$D$68, 3, 0) -> 0.5070319115 | C40: =VLOOKUP($A40, 'zone data'!$A$2:$D$68, 4, 0) -> 0.4929680885 | D40: =VLOOKUP($A40,'Total zone summary'!$B$4:$N$91, 13, 0)*$H$4 -> 1.248498507 | E40: =VLOOKUP($A40,'Total zone summary'!$B$4:$J$91,9,0) -> 3 | F40: 0.4338450487 | G40: =VLOOKUP($A40,'Total zone summary'!$B$4:$I$91,7,0) -> 5 | H40: =VLOOKUP($A40,'Total zone summary'!$B$4:$I$91,8,0) -> 0 | I40: =G40+H40*'Total zone summary'!$AN$1 -> 5 | J40: 1.666666667 | M40: 0.2839842713 | W40: 0 | X40: 0 | Y40: 0 | Z40: 0 | AA40: 0 | AB40: 0 | AC40: 0 | AD40: 0 | AE40: 3 | AF40: 0 | AG40: 0 | AH40: 0 | AI40: 0 | AJ40: 0 | AK40: 0 | AL40: 0 | AM40: 0 | AN40: 0 | AO40: 0 | AP40: 0 | AQ40: 0 | AR40: 0 | AS40: 0 | AT40: 0 | AU40: 0 | AV40: 0 | AW40: 0 | AX40: 0 | AY40: 0 | AZ40: 0
A41: Somersby Zone | B41: =VLOOKUP($A41, 'zone data'!$A$2:$D$68, 3, 0) -> 0.2544274551 | C41: =VLOOKUP($A41, 'zone data'!$A$2:$D$68, 4, 0) -> 0.7455725449 | D41: =VLOOKUP($A41,'Total zone summary'!$B$4:$N$91, 13, 0)*$H$4 -> 1.248498507 | E41: =VLOOKUP($A41,'Total zone summary'!$B$4:$J$91,9,0) -> 3 | F41: 0.4338450487 | G41: =VLOOKUP($A41,'Total zone summary'!$B$4:$I$91,7,0) -> 5 | H41: =VLOOKUP($A41,'Total zone summary'!$B$4:$I$91,8,0) -> 0 | I41: =G41+H41*'Total zone summary'!$AN$1 -> 5 | J41: 1.666666667 | M41: 0.2839842713 | W41: 0 | X41: 0 | Y41: 0 | Z41: 0 | AA41: 0 | AB41: 0 | AC41: 0 | AD41: 0 | AE41: 3 | AF41: 0 | AG41: 0 | AH41: 0 | AI41: 0 | AJ41: 0 | AK41: 0 | AL41: 0 | AM41: 0 | AN41: 0 | AO41: 0 | AP41: 0 | AQ41: 0 | AR41: 0 | AS41: 0 | AT41: 0 | AU41: 0 | AV41: 0 | AW41: 0 | AX41: 0 | AY41: 0 | AZ41: 0
A42: Concord Zone | B42: =VLOOKUP($A42, 'zone data'!$A$2:$D$68, 3, 0) -> 0.3521034676 | C42: =VLOOKUP($A42, 'zone data'!$A$2:$D$68, 4, 0) -> 0.6478965324 | D42: =VLOOKUP($A42,'Total zone summary'!$B$4:$N$91, 13, 0)*$H$4 -> 1.64801803 | E42: =VLOOKUP($A42,'Total zone summary'!$B$4:$J$91,9,0) -> 4 | F42: 0.4295065982 | G42: =VLOOKUP($A42,'Total zone summary'!$B$4:$I$91,7,0) -> 6.6 | H42: =VLOOKUP($A42,'Total zone summary'!$B$4:$I$91,8,0) -> 0 | I42: =G42+H42*'Total zone summary'!$AN$1 -> 6.6 | J42: 1.65 | M42: 0.2839842713 | W42: 0 | X42: 0 | Y42: 0 | Z42: 0 | AA42: 0 | AB42: 0 | AC42: 0 | AD42: 0 | AE42: 4 | AF42: 0 | AG42: 0 | AH42: 0 | AI42: 0 | AJ42: 0 | AK42: 0 | AL42: 0 | AM42: 0 | AN42: 0 | AO42: 0 | AP42: 0 | AQ42: 0 | AR42: 0 | AS42: 0 | AT42: 0 | AU42: 0 | AV42: 0 | AW42: 0 | AX42: 0 | AY42: 0 | AZ42: 0
A43: Tanilba Bay 33 | B43: =VLOOKUP($A43, 'zone data'!$A$2:$D$68, 3, 0) -> 0.7035885901 | C43: =VLOOKUP($A43, 'zone data'!$A$2:$D$68, 4, 0) -> 0.2964114099 | D43: =VLOOKUP($A43,'Total zone summary'!$B$4:$N$91, 13, 0)*$H$4 -> 0.7990390446 | E43: =VLOOKUP($A43,'Total zone summary'!$B$4:$J$91,9,0) -> 2 | F43: 0.4164912467 | G43: =VLOOKUP($A43,'Total zone summary'!$B$4:$I$91,7,0) -> 3.2 | H43: =VLOOKUP($A43,'Total zone summary'!$B$4:$I$91,8,0) -> 0 | I43: =G43+H43*'Total zone summary'!$AN$1 -> 3.2 | J43: 1.6 | M43: 0.2839842713 | W43: 0 | X43: 0 | Y43: 0 | Z43: 0 | AA43: 0 | AB43: 0 | AC43: 0 | AD43: 0 | AE43: 2 | AF43: 0 | AG43: 0 | AH43: 0 | AI43: 0 | AJ43: 0 | AK43: 0 | AL43: 0 | AM43: 0 | AN43: 0 | AO43: 0 | AP43: 0 | AQ43: 0 | AR43: 0 | AS43: 0 | AT43: 0 | AU43: 0 | AV43: 0 | AW43: 0 | AX43: 0 | AY43: 0 | AZ43: 0
A44: Campsie Zone | B44: =VLOOKUP($A44, 'zone data'!$A$2:$D$68, 3, 0) -> 0.5669463083 | C44: =VLOOKUP($A44, 'zone data'!$A$2:$D$68, 4, 0) -> 0.4330536917 | D44: =VLOOKUP($A44,'Total zone summary'!$B$4:$N$91, 13, 0)*$H$4 -> 0.3995195223 | E44: =VLOOKUP($A44,'Total zone summary'!$B$4:$J$91,9,0) -> 1 | F44: 0.4164912467 | G44: =VLOOKUP($A44,'Total zone summary'!$B$4:$I$91,7,0) -> 1.6 | H44: =VLOOKUP($A44,'Total zone summary'!$B$4:$I$91,8,0) -> 0 | I44: =G44+H44*'Total zone summary'!$AN$1 -> 1.6 | J44: 1.6 | M44: 0.2839842713 | W44: 0 | X44: 0 | Y44: 0 | Z44: 0 | AA44: 0 | AB44: 0 | AC44: 0 | AD44: 0 | AE44: 1 | AF44: 0 | AG44: 0 | AH44: 0 | AI44: 0 | AJ44: 0 | AK44: 0 | AL44: 0 | AM44: 0 | AN44: 0 | AO44: 0 | AP44: 0 | AQ44: 0 | AR44: 0 | AS44: 0 | AT44: 0 | AU44: 0 | AV44: 0 | AW44: 0 | AX44: 0 | AY44: 0 | AZ44: 0
A45: North Sydney Zone | B45: =VLOOKUP($A45, 'zone data'!$A$2:$D$68, 3, 0) -> 0.2139205014 | C45: =VLOOKUP($A45, 'zone data'!$A$2:$D$68, 4, 0) -> 0.7860794986 | D45: =VLOOKUP($A45,'Total zone summary'!$B$4:$N$91, 13, 0)*$H$4 -> 0.3995195223 | E45: =VLOOKUP($A45,'Total zone summary'!$B$4:$J$91,9,0) -> 1 | F45: 0.4164912467 | G45: =VLOOKUP($A45,'Total zone summary'!$B$4:$I$91,7,0) -> 1.6 | H45: =VLOOKUP($A45,'Total zone summary'!$B$4:$I$91,8,0) -> 0 | I45: =G45+H45*'Total zone summary'!$AN$1 -> 1.6 | J45: 1.6 | M45: 0.2839842713 | W45: 0 | X45: 0 | Y45: 0 | Z45: 0 | AA45: 0 | AB45: 0 | AC45: 0 | AD45: 0 | AE45: 1 | AF45: 0 | AG45: 0 | AH45: 0 | AI45: 0 | AJ45: 0 | AK45: 0 | AL45: 0 | AM45: 0 | AN45: 0 | AO45: 0 | AP45: 0 | AQ45: 0 | AR45: 0 | AS45: 0 | AT45: 0 | AU45: 0 | AV45: 0 | AW45: 0 | AX45: 0 | AY45: 0 | AZ45: 0
A46: Drummoyne Zone | B46: =VLOOKUP($A46, 'zone data'!$A$2:$D$68, 3, 0) -> 0.6232864652 | C46: =VLOOKUP($A46, 'zone data'!$A$2:$D$68, 4, 0) -> 0.3767135348 | D46: =VLOOKUP($A46,'Total zone summary'!$B$4:$N$91, 13, 0)*$H$4 -> 1.947657671 | E46: =VLOOKUP($A46,'Total zone summary'!$B$4:$J$91,9,0) -> 5 | F46: 0.4060789656 | G46: =VLOOKUP($A46,'Total zone summary'!$B$4:$I$91,7,0) -> 7.8 | H46: =VLOOKUP($A46,'Total zone summary'!$B$4:$I$91,8,0) -> 0 | I46: =G46+H46*'Total zone summary'!$AN$1 -> 7.8 | J46: 1.56 | M46: 0.2839842713 | W46: 0 | X46: 0 | Y46: 0 | Z46: 0 | AA46: 0 | AB46: 0 | AC46: 0 | AD46: 0 | AE46: 5 | AF46: 0 | AG46: 0 | AH46: 0 | AI46: 0 | AJ46: 0 | AK46: 0 | AL46: 0 | AM46: 0 | AN46: 0 | AO46: 0 | AP46: 0 | AQ46: 0 | AR46: 0 | AS46: 0 | AT46: 0 | AU46: 0 | AV46: 0 | AW46: 0 | AX46: 0 | AY46: 0 | AZ46: 0
A47: Menai Zone | B47: =VLOOKUP($A47, 'zone data'!$A$2:$D$68, 3, 0) -> 0.7787835771 | C47: =VLOOKUP($A47, 'zone data'!$A$2:$D$68, 4, 0) -> 0.2212164229 | D47: =VLOOKUP($A47,'Total zone summary'!$B$4:$N$91, 13, 0)*$H$4 -> 1.148618627 | E47: =VLOOKUP($A47,'Total zone summary'!$B$4:$J$91,9,0) -> 3 | F47: 0.3991374448 | G47: =VLOOKUP($A47,'Total zone summary'!$B$4:$I$91,7,0) -> 4.6 | H47: =VLOOKUP($A47,'Total zone summary'!$B$4:$I$91,8,0) -> 0 | I47: =G47+H47*'Total zone summary'!$AN$1 -> 4.6 | J47: 1.533333333 | M47: 0.2839842713 | W47: 0 | X47: 0 | Y47: 0 | Z47: 0 | AA47: 0 | AB47: 0 | AC47: 0 | AD47: 3 | AE47: 0 | AF47: 0 | AG47: 0 | AH47: 0 | AI47: 0 | AJ47: 0 | AK47: 0 | AL47: 0 | AM47: 0 | AN47: 0 | AO47: 0 | AP47: 0 | AQ47: 0 | AR47: 0 | AS47: 0 | AT47: 0 | AU47: 0 | AV47: 0 | AW47: 0 | AX47: 0 | AY47: 0 | AZ47: 0
A48: Scone 66 | B48: =VLOOKUP($A48, 'zone data'!$A$2:$D$68, 3, 0) -> 0.4590783297 | C48: =VLOOKUP($A48, 'zone data'!$A$2:$D$68, 4, 0) -> 0.5409216703 | D48: =VLOOKUP($A48,'Total zone summary'!$B$4:$N$91, 13, 0)*$H$4 -> 0.7490991043 | E48: =VLOOKUP($A48,'Total zone summary'!$B$4:$J$91,9,0) -> 2 | F48: 0.3904605438 | G48: =VLOOKUP($A48,'Total zone summary'!$B$4:$I$91,7,0) -> 1.8 | H48: =VLOOKUP($A48,'Total zone summary'!$B$4:$I$91,8,0) -> 4.8 | I48: =G48+H48*'Total zone summary'!$AN$1 -> 4.2 | J48: 2.1 | M48: 0.2839842713 | W48: 0 | X48: 0 | Y48: 0 | Z48: 0 | AA48: 0 | AB48: 0 | AC48: 0 | AD48: 2 | AE48: 0 | AF48: 0 | AG48: 0 | AH48: 0 | AI48: 0 | AJ48: 0 | AK48: 0 | AL48: 0 | AM48: 0 | AN48: 0 | AO48: 0 | AP48: 0 | AQ48: 0 | AR48: 0 | AS48: 0 | AT48: 0 | AU48: 0 | AV48: 0 | AW48: 0 | AX48: 0 | AY48: 0 | AZ48: 0
A49: Bankstown Zone | B49: =VLOOKUP($A49, 'zone data'!$A$2:$D$68, 3, 0) -> 0.4801563808 | C49: =VLOOKUP($A49, 'zone data'!$A$2:$D$68, 4, 0) -> 0.5198436192 | D49: =VLOOKUP($A49,'Total zone summary'!$B$4:$N$91, 13, 0)*$H$4 -> 1.448258268 | E49: =VLOOKUP($A49,'Total zone summary'!$B$4:$J$91,9,0) -> 4 | F49: 0.3774451923 | G49: =VLOOKUP($A49,'Total zone summary'!$B$4:$I$91,7,0) -> 4 | H49: =VLOOKUP($A49,'Total zone summary'!$B$4:$I$91,8,0) -> 7.2 | I49: =G49+H49*'Total zone summary'!$AN$1 -> 7.6 | J49: 1.9 | M49: 0.2839842713 | W49: 0 | X49: 0 | Y49: 0 | Z49: 0 | AA49: 0 | AB49: 0 | AC49: 0 | AD49: 4 | AE49: 0 | AF49: 0 | AG49: 0 | AH49: 0 | AI49: 0 | AJ49: 0 | AK49: 0 | AL49: 0 | AM49: 0 | AN49: 0 | AO49: 0 | AP49: 0 | AQ49: 0 | AR49: 0 | AS49: 0 | AT49: 0 | AU49: 0 | AV49: 0 | AW49: 0 | AX49: 0 | AY49: =IF(AND($F49>AY$7, $F49<=AY$8), $E49, 0) -> 0 | AZ49: 0
A50: Tomago 33 | B50: =VLOOKUP($A50, 'zone data'!$A$2:$D$68, 3, 0) -> 0.02765766364 | C50: =VLOOKUP($A50, 'zone data'!$A$2:$D$68, 4, 0) -> 0.9723423364 | D50: =VLOOKUP($A50,'Total zone summary'!$B$4:$N$91, 13, 0)*$H$4 -> 0.349579582 | E50: =VLOOKUP($A50,'Total zone summary'!$B$4:$J$91,9,0) -> 1 | F50: 0.3644298409 | G50: =VLOOKUP($A50,'Total zone summary'!$B$4:$I$91,7,0) -> 1.4 | H50: =VLOOKUP($A50,'Total zone summary'!$B$4:$I$91,8,0) -> 0 | I50: =G50+H50*'Total zone summary'!$AN$1 -> 1.4 | J50: 1.4 | M50: 0.2839842713 | W50: 0 | X50: 0 | Y50: 0 | Z50: 0 | AA50: 0 | AB50: 0 | AC50: 0 | AD50: 1 | AE50: 0 | AF50: 0 | AG50: 0 | AH50: 0 | AI50: 0 | AJ50: 0 | AK50: 0 | AL50: 0 | AM50: 0 | AN50: 0 | AO50: 0 | AP50: 0 | AQ50: 0 | AR50: 0 | AS50: 0 | AT50: 0 | AU50: 0 | AV50: 0 | AW50: 0 | AX50: 0 | AY50: 0 | AZ50: 0
A51: Berowra Zone | B51: =VLOOKUP($A51, 'zone data'!$A$2:$D$68, 3, 0) -> 0.4279032847 | C51: =VLOOKUP($A51, 'zone data'!$A$2:$D$68, 4, 0) -> 0.5720967153 | D51: =VLOOKUP($A51,'Total zone summary'!$B$4:$N$91, 13, 0)*$H$4 -> 0.9488588655 | E51: =VLOOKUP($A51,'Total zone summary'!$B$4:$J$91,9,0) -> 3 | F51: 0.329722237 | G51: =VLOOKUP($A51,'Total zone summary'!$B$4:$I$91,7,0) -> 3 | H51: =VLOOKUP($A51,'Total zone summary'!$B$4:$I$91,8,0) -> 3.2 | I51: =G51+H51*'Total zone summary'!$AN$1 -> 4.6 | J51: 1.533333333 | M51: 0.2839842713 | W51: 0 | X51: 0 | Y51: 0 | Z51: 0 | AA51: 0 | AB51: 0 | AC51: 3 | AD51: 0 | AE51: 0 | AF51: 0 | AG51: 0 | AH51: 0 | AI51: 0 | AJ51: 0 | AK51: 0 | AL51: 0 | AM51: 0 | AN51: 0 | AO51: 0 | AP51: 0 | AQ51: 0 | AR51: 0 | AS51: 0 | AT51: 0 | AU51: 0 | AV51: 0 | AW51: 0 | AX51: 0 | AY51: 0 | AZ51: 0
A52: Caringbah Zone | B52: =VLOOKUP($A52, 'zone data'!$A$2:$D$68, 3, 0) -> 0.3054243659 | C52: =VLOOKUP($A52, 'zone data'!$A$2:$D$68, 4, 0) -> 0.6945756341 | D52: =VLOOKUP($A52,'Total zone summary'!$B$4:$N$91, 13, 0)*$H$4 -> 0.2996396417 | E52: =VLOOKUP($A52,'Total zone summary'!$B$4:$J$91,9,0) -> 1 | F52: 0.312368435 | G52: =VLOOKUP($A52,'Total zone summary'!$B$4:$I$91,7,0) -> 1.2 | H52: =VLOOKUP($A52,'Total zone summary'!$B$4:$I$91,8,0) -> 0 | I52: =G52+H52*'Total zone summary'!$AN$1 -> 1.2 | J52: 1.2 | M52: 0.2839842713 | W52: 0 | X52: 0 | Y52: 0 | Z52: 0 | AA52: 0 | AB52: 0 | AC52: 1 | AD52: 0 | AE52: 0 | AF52: 0 | AG52: 0 | AH52: 0 | AI52: 0 | AJ52: 0 | AK52: 0 | AL52: 0 | AM52: 0 | AN52: 0 | AO52: 0 | AP52: 0 | AQ52: 0 | AR52: 0 | AS52: 0 | AT52: 0 | AU52: 0 | AV52: 0 | AW52: 0 | AX52: 0 | AY52: 0 | AZ52: 0
A53: Peats Ridge Zone | B53: =VLOOKUP($A53, 'zone data'!$A$2:$D$68, 3, 0) -> 0.3114511943 | C53: =VLOOKUP($A53, 'zone data'!$A$2:$D$68, 4, 0) -> 0.6885488057 | D53: =VLOOKUP($A53,'Total zone summary'!$B$4:$N$91, 13, 0)*$H$4 -> 0.2996396417 | E53: =VLOOKUP($A53,'Total zone summary'!$B$4:$J$91,9,0) -> 1 | F53: 0.312368435 | G53: =VLOOKUP($A53,'Total zone summary'!$B$4:$I$91,7,0) -> 0 | H53: =VLOOKUP($A53,'Total zone summary'!$B$4:$I$91,8,0) -> 4.8 | I53: =G53+H53*'Total zone summary'!$AN$1 -> 2.4 | J53: 2.4 | M53: 0.2839842713 | W53: 0 | X53: 0 | Y53: 0 | Z53: 0 | AA53: 0 | AB53: 0 | AC53: 1 | AD53: 0 | AE53: 0 | AF53: 0 | AG53: 0 | AH53: 0 | AI53: 0 | AJ53: 0 | AK53: 0 | AL53: 0 | AM53: 0 | AN53: 0 | AO53: 0 | AP53: 0 | AQ53: 0 | AR53: 0 | AS53: 0 | AT53: 0 | AU53: 0 | AV53: 0 | AW53: 0 | AX53: 0 | AY53: 0 | AZ53: 0
A54: Hunters Hill Zone | B54: =VLOOKUP($A54, 'zone data'!$A$2:$D$68, 3, 0) -> 0.5322347437 | C54: =VLOOKUP($A54, 'zone data'!$A$2:$D$68, 4, 0) -> 0.4677652563 | D54: =VLOOKUP($A54,'Total zone summary'!$B$4:$N$91, 13, 0)*$H$4 -> 1.448258268 | E54: =VLOOKUP($A54,'Total zone summary'!$B$4:$J$91,9,0) -> 5 | F54: 0.3019561539 | G54: =VLOOKUP($A54,'Total zone summary'!$B$4:$I$91,7,0) -> 5.8 | H54: =VLOOKUP($A54,'Total zone summary'!$B$4:$I$91,8,0) -> 0 | I54: =G54+H54*'Total zone summary'!$AN$1 -> 5.8 | J54: 1.16 | M54: 0.2839842713 | W54: 0 | X54: 0 | Y54: 0 | Z54: 0 | AA54: 0 | AB54: 0 | AC54: 5 | AD54: 0 | AE54: 0 | AF54: 0 | AG54: 0 | AH54: 0 | AI54: 0 | AJ54: 0 | AK54: 0 | AL54: 0 | AM54: 0 | AN54: 0 | AO54: 0 | AP54: 0 | AQ54: 0 | AR54: 0 | AS54: 0 | AT54: 0 | AU54: 0 | AV54: 0 | AW54: 0 | AX54: 0 | AY54: 0 | AZ54: 0
A55: Punchbowl Zone | B55: =VLOOKUP($A55, 'zone data'!$A$2:$D$68, 3, 0) -> 0.6173336571 | C55: =VLOOKUP($A55, 'zone data'!$A$2:$D$68, 4, 0) -> 0.3826663429 | D55: =VLOOKUP($A55,'Total zone summary'!$B$4:$N$91, 13, 0)*$H$4 -> 1.148618627 | E55: =VLOOKUP($A55,'Total zone summary'!$B$4:$J$91,9,0) -> 4 | F55: 0.2993530836 | G55: =VLOOKUP($A55,'Total zone summary'!$B$4:$I$91,7,0) -> 4.6 | H55: =VLOOKUP($A55,'Total zone summary'!$B$4:$I$91,8,0) -> 0 | I55: =G55+H55*'Total zone summary'!$AN$1 -> 4.6 | J55: 1.15 | M55: 0.2839842713 | W55: 0 | X55: 0 | Y55: 0 | Z55: 0 | AA55: 0 | AB55: 4 | AC55: 0 | AD55: 0 | AE55: 0 | AF55: 0 | AG55: 0 | AH55: 0 | AI55: 0 | AJ55: 0 | AK55: 0 | AL55: 0 | AM55: 0 | AN55: 0 | AO55: 0 | AP55: 0 | AQ55: 0 | AR55: 0 | AS55: 0 | AT55: 0 | AU55: 0 | AV55: 0 | AW55: 0 | AX55: 0 | AY55: 0 | AZ55: 0
A56: Leichhardt Zone | B56: =VLOOKUP($A56, 'zone data'!$A$2:$D$68, 3, 0) -> 0.4418194868 | C56: =VLOOKUP($A56, 'zone data'!$A$2:$D$68, 4, 0) -> 0.5581805132 | D56: =VLOOKUP($A56,'Total zone summary'!$B$4:$N$91, 13, 0)*$H$4 -> 0.5493393432 | E56: =VLOOKUP($A56,'Total zone summary'!$B$4:$J$91,9,0) -> 2 | F56: 0.2863377321 | G56: =VLOOKUP($A56,'Total zone summary'!$B$4:$I$91,7,0) -> 2.2 | H56: =VLOOKUP($A56,'Total zone summary'!$B$4:$I$91,8,0) -> 0 | I56: =G56+H56*'Total zone summary'!$AN$1 -> 2.2 | J56: 1.1 | M56: 0.2839842713 | W56: 0 | X56: 0 | Y56: 0 | Z56: 0 | AA56: 0 | AB56: 2 | AC56: 0 | AD56: 0 | AE56: 0 | AF56: 0 | AG56: 0 | AH56: 0 | AI56: 0 | AJ56: 0 | AK56: 0 | AL56: 0 | AM56: 0 | AN56: 0 | AO56: 0 | AP56: 0 | AQ56: 0 | AR56: 0 | AS56: 0 | AT56: 0 | AU56: 0 | AV56: 0 | AW56: 0 | AX56: 0 | AY56: 0 | AZ56: 0
A57: Nelson Bay 33 | B57: =VLOOKUP($A57, 'zone data'!$A$2:$D$68, 3, 0) -> 0.5445028498 | C57: =VLOOKUP($A57, 'zone data'!$A$2:$D$68, 4, 0) -> 0.4554971502 | D57: =VLOOKUP($A57,'Total zone summary'!$B$4:$N$91, 13, 0)*$H$4 -> 1.897717731 | E57: =VLOOKUP($A57,'Total zone summary'!$B$4:$J$91,9,0) -> 7 | F57: 0.2826190603 | G57: =VLOOKUP($A57,'Total zone summary'!$B$4:$I$91,7,0) -> 2.4 | H57: =VLOOKUP($A57,'Total zone summary'!$B$4:$I$91,8,0) -> 20.8 | I57: =G57+H57*'Total zone summary'!$AN$1 -> 12.8 | J57: 1.828571429 | M57: 0.2839842713 | W57: 0 | X57: 0 | Y57: 0 | Z57: 0 | AA57: 0 | AB57: 7 | AC57: 0 | AD57: 0 | AE57: 0 | AF57: 0 | AG57: 0 | AH57: 0 | AI57: 0 | AJ57: 0 | AK57: 0 | AL57: 0 | AM57: 0 | AN57: 0 | AO57: 0 | AP57: 0 | AQ57: 0 | AR57: 0 | AS57: 0 | AT57: 0 | AU57: 0 | AV57: 0 | AW57: 0 | AX57: 0 | AY57: 0 | AZ57: 0
A58: Muswellbrook 33 | B58: =VLOOKUP($A58, 'zone data'!$A$2:$D$68, 3, 0) -> 0.4940549913 | C58: =VLOOKUP($A58, 'zone data'!$A$2:$D$68, 4, 0) -> 0.5059450087 | D58: =VLOOKUP($A58,'Total zone summary'!$B$4:$N$91, 13, 0)*$H$4 -> 0.5293633671 | E58: =VLOOKUP($A58,'Total zone summary'!$B$4:$J$91,9,0) -> 2 | F58: 0.275925451 | G58: =VLOOKUP($A58,'Total zone summary'!$B$4:$I$91,7,0) -> 1 | H58: =VLOOKUP($A58,'Total zone summary'!$B$4:$I$91,8,0) -> 4.4 | I58: =G58+H58*'Total zone summary'!$AN$1 -> 3.2 | J58: 1.6 | M58: 0.2839842713 | W58: 0 | X58: 0 | Y58: 0 | Z58: 0 | AA58: 0 | AB58: 2 | AC58: 0 | AD58: 0 | AE58: 0 | AF58: 0 | AG58: 0 | AH58: 0 | AI58: 0 | AJ58: 0 | AK58: 0 | AL58: 0 | AM58: 0 | AN58: 0 | AO58: 0 | AP58: 0 | AQ58: 0 | AR58: 0 | AS58: 0 | AT58: 0 | AU58: 0 | AV58: 0 | AW58: 0 | AX58: 0 | AY58: 0 | AZ58: 0
A59: Kurri Kurri 132/11Kv | B59: =VLOOKUP($A59, 'zone data'!$A$2:$D$68, 3, 0) -> 0.5688313934 | C59: =VLOOKUP($A59, 'zone data'!$A$2:$D$68, 4, 0) -> 0.4311686066 | D59: =VLOOKUP($A59,'Total zone summary'!$B$4:$N$91, 13, 0)*$H$4 -> 1.278462471 | E59: =VLOOKUP($A59,'Total zone summary'!$B$4:$J$91,9,0) -> 5 | F59: 0.2665543979 | G59: =VLOOKUP($A59,'Total zone summary'!$B$4:$I$91,7,0) -> 0 | H59: =VLOOKUP($A59,'Total zone summary'!$B$4:$I$91,8,0) -> 20.4 | I59: =G59+H59*'Total zone summary'!$AN$1 -> 10.2 | J59: 2.04 | M59: 0.2839842713 | W59: 0 | X59: 0 | Y59: 0 | Z59: =IF(AND($F59>Z$7, $F59<=Z$8), $E59, 0) -> 0 | AA59: 0 | AB59: 5 | AC59: 0 | AD59: 0 | AE59: 0 | AF59: 0 | AG59: 0 | AH59: 0 | AI59: 0 | AJ59: 0 | AK59: 0 | AL59: 0 | AM59: 0 | AN59: 0 | AO59: 0 | AP59: =IF(AND($F59>AP$7, $F59<=AP$8), $E59, 0) -> 0 | AQ59: 0 | AR59: 0 | AS59: 0 | AT59: 0 | AU59: 0 | AV59: 0 | AW59: 0 | AX59: 0 | AY59: 0 | AZ59: 0
A60: Marrickville Zone | B60: =VLOOKUP($A60, 'zone data'!$A$2:$D$68, 3, 0) -> 0.435775636 | C60: =VLOOKUP($A60, 'zone data'!$A$2:$D$68, 4, 0) -> 0.564224364 | D60: =VLOOKUP($A60,'Total zone summary'!$B$4:$N$91, 13, 0)*$H$4 -> 0.4993994029 | E60: =VLOOKUP($A60,'Total zone summary'!$B$4:$J$91,9,0) -> 2 | F60: 0.2603070292 | G60: =VLOOKUP($A60,'Total zone summary'!$B$4:$I$91,7,0) -> 2 | H60: =VLOOKUP($A60,'Total zone summary'!$B$4:$I$91,8,0) -> 0 | I60: =G60+H60*'Total zone summary'!$AN$1 -> 2 | J60: 1 | M60: 0.2839842713 | W60: 0 | X60: 0 | Y60: 0 | Z60: 0 | AA60: 0 | AB60: 2 | AC60: 0 | AD60: 0 | AE60: 0 | AF60: 0 | AG60: 0 | AH60: 0 | AI60: 0 | AJ60: 0 | AK60: 0 | AL60: 0 | AM60: 0 | AN60: 0 | AO60: 0 | AP60: 0 | AQ60: 0 | AR60: 0 | AS60: 0 | AT60: 0 | AU60: 0 | AV60: 0 | AW60: 0 | AX60: 0 | AY60: 0 | AZ60: 0
A61: Raymond Terrace 33 | B61: =VLOOKUP($A61, 'zone data'!$A$2:$D$68, 3, 0) -> 0.4493840155 | C61: =VLOOKUP($A61, 'zone data'!$A$2:$D$68, 4, 0) -> 0.5506159845 | D61: =VLOOKUP($A61,'Total zone summary'!$B$4:$N$91, 13, 0)*$H$4 -> 0.2297237253 | E61: =VLOOKUP($A61,'Total zone summary'!$B$4:$J$91,9,0) -> 1 | F61: 0.2394824669 | G61: =VLOOKUP($A61,'Total zone summary'!$B$4:$I$91,7,0) -> 0 | H61: =VLOOKUP($A61,'Total zone summary'!$B$4:$I$91,8,0) -> 3.6 | I61: =G61+H61*'Total zone summary'!$AN$1 -> 1.8 | J61: 1.8 | M61: 0.2839842713 | W61: =IF(AND($F61>W$7, $F61<=W$8), $E61, 0) -> 0 | X61: 0 | Y61: 0 | Z61: 0 | AA61: 1 | AB61: 0 | AC61: 0 | AD61: 0 | AE61: 0 | AF61: 0 | AG61: 0 | AH61: 0 | AI61: 0 | AJ61: 0 | AK61: 0 | AL61: 0 | AM61: 0 | AN61: 0 | AO61: 0 | AP61: 0 | AQ61: 0 | AR61: 0 | AS61: 0 | AT61: 0 | AU61: 0 | AV61: 0 | AW61: 0 | AX61: 0 | AY61: 0 | AZ61: 0
A62: Charmhaven Zone | B62: =VLOOKUP($A62, 'zone data'!$A$2:$D$68, 3, 0) -> 0.5883297472 | C62: =VLOOKUP($A62, 'zone data'!$A$2:$D$68, 4, 0) -> 0.4116702528 | D62: =VLOOKUP($A62,'Total zone summary'!$B$4:$N$91, 13, 0)*$H$4 -> 1.328402412 | E62: =VLOOKUP($A62,'Total zone summary'!$B$4:$J$91,9,0) -> 6 | F62: 0.2308055659 | G62: =VLOOKUP($A62,'Total zone summary'!$B$4:$I$91,7,0) -> 4.8 | H62: =VLOOKUP($A62,'Total zone summary'!$B$4:$I$91,8,0) -> 2 | I62: =G62+H62*'Total zone summary'!$AN$1 -> 5.8 | J62: 0.9666666667 | M62: 0.2839842713 | W62: 0 | X62: 0 | Y62: 0 | Z62: 0 | AA62: 6 | AB62: 0 | AC62: 0 | AD62: 0 | AE62: 0 | AF62: 0 | AG62: 0 | AH62: 0 | AI62: 0 | AJ62: 0 | AK62: 0 | AL62: 0 | AM62: 0 | AN62: 0 | AO62: 0 | AP62: 0 | AQ62: 0 | AR62: 0 | AS62: 0 | AT62: 0 | AU62: 0 | AV62: 0 | AW62: 0 | AX62: 0 | AY62: 0 | AZ62: 0
A63: Thornton 33 | B63: =VLOOKUP($A63, 'zone data'!$A$2:$D$68, 3, 0) -> 0.6231776211 | C63: =VLOOKUP($A63, 'zone data'!$A$2:$D$68, 4, 0) -> 0.3768223789 | D63: =VLOOKUP($A63,'Total zone summary'!$B$4:$N$91, 13, 0)*$H$4 -> 1.098678686 | E63: =VLOOKUP($A63,'Total zone summary'!$B$4:$J$91,9,0) -> 5 | F63: 0.2290701857 | G63: =VLOOKUP($A63,'Total zone summary'!$B$4:$I$91,7,0) -> 1.8 | H63: =VLOOKUP($A63,'Total zone summary'!$B$4:$I$91,8,0) -> 10.4 | I63: =G63+H63*'Total zone summary'!$AN$1 -> 7 | J63: 1.4 | M63: 0.2839842713 | W63: 0 | X63: 0 | Y63: 0 | Z63: 0 | AA63: 5 | AB63: 0 | AC63: 0 | AD63: 0 | AE63: 0 | AF63: 0 | AG63: 0 | AH63: 0 | AI63: 0 | AJ63: 0 | AK63: 0 | AL63: 0 | AM63: 0 | AN63: 0 | AO63: 0 | AP63: 0 | AQ63: 0 | AR63: 0 | AS63: 0 | AT63: 0 | AU63: 0 | AV63: 0 | AW63: 0 | AX63: 0 | AY63: 0 | AZ63: 0
A64: Rose Bay Zone | B64: =VLOOKUP($A64, 'zone data'!$A$2:$D$68, 3, 0) -> 0.7030902744 | C64: =VLOOKUP($A64, 'zone data'!$A$2:$D$68, 4, 0) -> 0.2969097256 | D64: =VLOOKUP($A64,'Total zone summary'!$B$4:$N$91, 13, 0)*$H$4 -> 0.6492192238 | E64: =VLOOKUP($A64,'Total zone summary'!$B$4:$J$91,9,0) -> 3 | F64: 0.2255994253 | G64: =VLOOKUP($A64,'Total zone summary'!$B$4:$I$91,7,0) -> 2.6 | H64: =VLOOKUP($A64,'Total zone summary'!$B$4:$I$91,8,0) -> 0 | I64: =G64+H64*'Total zone summary'!$AN$1 -> 2.6 | J64: 0.8666666667 | M64: 0.2839842713 | W64: 0 | X64: 0 | Y64: 0 | Z64: 0 | AA64: 3 | AB64: 0 | AC64: 0 | AD64: 0 | AE64: 0 | AF64: 0 | AG64: 0 | AH64: 0 | AI64: 0 | AJ64: 0 | AK64: 0 | AL64: 0 | AM64: 0 | AN64: 0 | AO64: 0 | AP64: 0 | AQ64: 0 | AR64: 0 | AS64: 0 | AT64: 0 | AU64: 0 | AV64: 0 | AW64: 0 | AX64: 0 | AY64: 0 | AZ64: 0
A65: West Gosford Zone | B65: =VLOOKUP($A65, 'zone data'!$A$2:$D$68, 3, 0) -> 0.3839733697 | C65: =VLOOKUP($A65, 'zone data'!$A$2:$D$68, 4, 0) -> 0.6160266303 | D65: =VLOOKUP($A65,'Total zone summary'!$B$4:$N$91, 13, 0)*$H$4 -> 1.248498507 | E65: =VLOOKUP($A65,'Total zone summary'!$B$4:$J$91,9,0) -> 6 | F65: 0.2169225243 | G65: =VLOOKUP($A65,'Total zone summary'!$B$4:$I$91,7,0) -> 5 | H65: =VLOOKUP($A65,'Total zone summary'!$B$4:$I$91,8,0) -> 0 | I65: =G65+H65*'Total zone summary'!$AN$1 -> 5 | J65: 0.8333333333 | M65: 0.2839842713 | W65: 0 | X65: 0 | Y65: 0 | Z65: 0 | AA65: 6 | AB65: 0 | AC65: 0 | AD65: 0 | AE65: 0 | AF65: 0 | AG65: 0 | AH65: 0 | AI65: 0 | AJ65: 0 | AK65: 0 | AL65: 0 | AM65: 0 | AN65: 0 | AO65: 0 | AP65: 0 | AQ65: 0 | AR65: 0 | AS65: 0 | AT65: 0 | AU65: 0 | AV65: 0 | AW65: 0 | AX65: 0 | AY65: 0 | AZ65: 0
A66: Burwood Zone | B66: =VLOOKUP($A66, 'zone data'!$A$2:$D$68, 3, 0) -> 0.3403142595 | C66: =VLOOKUP($A66, 'zone data'!$A$2:$D$68, 4, 0) -> 0.6596857405 | D66: =VLOOKUP($A66,'Total zone summary'!$B$4:$N$91, 13, 0)*$H$4 -> 0.5992792835 | E66: =VLOOKUP($A66,'Total zone summary'!$B$4:$J$91,9,0) -> 3 | F66: 0.2082456234 | G66: =VLOOKUP($A66,'Total zone summary'!$B$4:$I$91,7,0) -> 2.4 | H66: =VLOOKUP($A66,'Total zone summary'!$B$4:$I$91,8,0) -> 0 | I66: =G66+H66*'Total zone summary'!$AN$1 -> 2.4 | J66: 0.8 | M66: 0.2839842713 | W66: 0 | X66: 0 | Y66: 0 | Z66: 0 | AA66: 3 | AB66: 0 | AC66: 0 | AD66: 0 | AE66: 0 | AF66: 0 | AG66: 0 | AH66: 0 | AI66: 0 | AJ66: 0 | AK66: 0 | AL66: 0 | AM66: 0 | AN66: 0 | AO66: 0 | AP66: 0 | AQ66: 0 | AR66: 0 | AS66: 0 | AT66: 0 | AU66: 0 | AV66: 0 | AW66: 0 | AX66: 0 | AY66: 0 | AZ66: 0
A67: Erina Zone | B67: =VLOOKUP($A67, 'zone data'!$A$2:$D$68, 3, 0) -> 0.4355385928 | C67: =VLOOKUP($A67, 'zone data'!$A$2:$D$68, 4, 0) -> 0.5644614072 | D67: =VLOOKUP($A67,'Total zone summary'!$B$4:$N$91, 13, 0)*$H$4 -> 0.9488588655 | E67: =VLOOKUP($A67,'Total zone summary'!$B$4:$J$91,9,0) -> 5 | F67: 0.1978333422 | G67: =VLOOKUP($A67,'Total zone summary'!$B$4:$I$91,7,0) -> 3.8 | H67: =VLOOKUP($A67,'Total zone summary'!$B$4:$I$91,8,0) -> 0 | I67: =G67+H67*'Total zone summary'!$AN$1 -> 3.8 | J67: 0.76 | M67: 0.2839842713 | W67: 0 | X67: 0 | Y67: 0 | Z67: 5 | AA67: 0 | AB67: 0 | AC67: 0 | AD67: 0 | AE67: 0 | AF67: 0 | AG67: 0 | AH67: 0 | AI67: 0 | AJ67: 0 | AK67: 0 | AL67: 0 | AM67: 0 | AN67: 0 | AO67: 0 | AP67: 0 | AQ67: 0 | AR67: 0 | AS67: 0 | AT67: 0 | AU67: 0 | AV67: 0 | AW67: 0 | AX67: 0 | AY67: 0 | AZ67: 0
A68: Flemington Zone | B68: =VLOOKUP($A68, 'zone data'!$A$2:$D$68, 3, 0) -> 0.1302394393 | C68: =VLOOKUP($A68, 'zone data'!$A$2:$D$68, 4, 0) -> 0.8697605607 | D68: =VLOOKUP($A68,'Total zone summary'!$B$4:$N$91, 13, 0)*$H$4 -> 0.349579582 | E68: =VLOOKUP($A68,'Total zone summary'!$B$4:$J$91,9,0) -> 2 | F68: 0.1822149204 | G68: =VLOOKUP($A68,'Total zone summary'!$B$4:$I$91,7,0) -> 1.4 | H68: =VLOOKUP($A68,'Total zone summary'!$B$4:$I$91,8,0) -> 0 | I68: =G68+H68*'Total zone summary'!$AN$1 -> 1.4 | J68: 0.7 | M68: 0.2839842713 | W68: 0 | X68: 0 | Y68: 0 | Z68: 2 | AA68: 0 | AB68: 0 | AC68: 0 | AD68: 0 | AE68: 0 | AF68: 0 | AG68: 0 | AH68: 0 | AI68: 0 | AJ68: 0 | AK68: 0 | AL68: 0 | AM68: 0 | AN68: 0 | AO68: 0 | AP68: 0 | AQ68: 0 | AR68: 0 | AS68: 0 | AT68: 0 | AU68: 0 | AV68: 0 | AW68: 0 | AX68: 0 | AY68: 0 | AZ68: 0
A69: Pennant Hills Zone | B69: =VLOOKUP($A69, 'zone data'!$A$2:$D$68, 3, 0) -> 0.61838185 | C69: =VLOOKUP($A69, 'zone data'!$A$2:$D$68, 4, 0) -> 0.38161815 | D69: =VLOOKUP($A69,'Total zone summary'!$B$4:$N$91, 13, 0)*$H$4 -> 1.548138149 | E69: =VLOOKUP($A69,'Total zone summary'!$B$4:$J$91,9,0) -> 10 | F69: 0.1613903581 | G69: =VLOOKUP($A69,'Total zone summary'!$B$4:$I$91,7,0) -> 6.2 | H69: =VLOOKUP($A69,'Total zone summary'!$B$4:$I$91,8,0) -> 0 | I69: =G69+H69*'Total zone summary'!$AN$1 -> 6.2 | J69: 0.62 | M69: 0.2839842713 | W69: 0 | X69: 0 | Y69: 0 | Z69: 10 | AA69: 0 | AB69: 0 | AC69: 0 | AD69: 0 | AE69: 0 | AF69: 0 | AG69: 0 | AH69: 0 | AI69: 0 | AJ69: 0 | AK69: 0 | AL69: 0 | AM69: 0 | AN69: 0 | AO69: 0 | AP69: 0 | AQ69: 0 | AR69: 0 | AS69: 0 | AT69: 0 | AU69: 0 | AV69: 0 | AW69: 0 | AX69: 0 | AY69: 0 | AZ69: 0
A70: Long Jetty Zone | B70: =VLOOKUP($A70, 'zone data'!$A$2:$D$68, 3, 0) -> 0.639299988 | C70: =VLOOKUP($A70, 'zone data'!$A$2:$D$68, 4, 0) -> 0.360700012 | D70: =VLOOKUP($A70,'Total zone summary'!$B$4:$N$91, 13, 0)*$H$4 -> 0.4494594626 | E70: =VLOOKUP($A70,'Total zone summary'!$B$4:$J$91,9,0) -> 3 | F70: 0.1561842175 | G70: =VLOOKUP($A70,'Total zone summary'!$B$4:$I$91,7,0) -> 1.8 | H70: =VLOOKUP($A70,'Total zone summary'!$B$4:$I$91,8,0) -> 0 | I70: =G70+H70*'Total zone summary'!$AN$1 -> 1.8 | J70: 0.6 | M70: 0.2839842713 | W70: 0 | X70: 0 | Y70: 0 | Z70: 3 | AA70: 0 | AB70: 0 | AC70: 0 | AD70: 0 | AE70: 0 | AF70: 0 | AG70: 0 | AH70: 0 | AI70: 0 | AJ70: 0 | AK70: 0 | AL70: 0 | AM70: 0 | AN70: 0 | AO70: 0 | AP70: 0 | AQ70: 0 | AR70: 0 | AS70: 0 | AT70: 0 | AU70: 0 | AV70: 0 | AW70: 0 | AX70: 0 | AY70: 0 | AZ70: 0
A71: Adamstown 132 | B71: =VLOOKUP($A71, 'zone data'!$A$2:$D$68, 3, 0) -> 0.5862109205 | C71: =VLOOKUP($A71, 'zone data'!$A$2:$D$68, 4, 0) -> 0.4137890795 | D71: =VLOOKUP($A71,'Total zone summary'!$B$4:$N$91, 13, 0)*$H$4 -> 0.2996396417 | E71: =VLOOKUP($A71,'Total zone summary'!$B$4:$J$91,9,0) -> 2 | F71: 0.1561842175 | G71: =VLOOKUP($A71,'Total zone summary'!$B$4:$I$91,7,0) -> 1.2 | H71: =VLOOKUP($A71,'Total zone summary'!$B$4:$I$91,8,0) -> 0 | I71: =G71+H71*'Total zone summary'!$AN$1 -> 1.2 | J71: 0.6 | M71: 0.2839842713 | W71: 0 | X71: 0 | Y71: 0 | Z71: 2 | AA71: 0 | AB71: 0 | AC71: 0 | AD71: 0 | AE71: 0 | AF71: 0 | AG71: 0 | AH71: 0 | AI71: 0 | AJ71: 0 | AK71: 0 | AL71: 0 | AM71: 0 | AN71: 0 | AO71: 0 | AP71: 0 | AQ71: 0 | AR71: 0 | AS71: 0 | AT71: 0 | AU71: 0 | AV71: 0 | AW71: 0 | AX71: 0 | AY71: 0 | AZ71: 0
A72: St Ives Zone | B72: =VLOOKUP($A72, 'zone data'!$A$2:$D$68, 3, 0) -> 0.7809645792 | C72: =VLOOKUP($A72, 'zone data'!$A$2:$D$68, 4, 0) -> 0.2190354208 | D72: =VLOOKUP($A72,'Total zone summary'!$B$4:$N$91, 13, 0)*$H$4 -> 0.2996396417 | E72: =VLOOKUP($A72,'Total zone summary'!$B$4:$J$91,9,0) -> 2 | F72: 0.1561842175 | G72: =VLOOKUP($A72,'Total zone summary'!$B$4:$I$91,7,0) -> 1.2 | H72: =VLOOKUP($A72,'Total zone summary'!$B$4:$I$91,8,0) -> 0 | I72: =G72+H72*'Total zone summary'!$AN$1 -> 1.2 | J72: 0.6 | M72: 0.2839842713 | W72: 0 | X72: 0 | Y72: 0 | Z72: 2 | AA72: 0 | AB72: 0 | AC72: 0 | AD72: 0 | AE72: 0 | AF72: 0 | AG72: 0 | AH72: 0 | AI72: 0 | AJ72: 0 | AK72: 0 | AL72: 0 | AM72: 0 | AN72: 0 | AO72: 0 | AP72: 0 | AQ72: 0 | AR72: 0 | AS72: 0 | AT72: 0 | AU72: 0 | AV72: 0 | AW72: 0 | AX72: 0 | AY72: 0 | AZ72: 0
A73: Top Ryde Zone | B73: =VLOOKUP($A73, 'zone data'!$A$2:$D$68, 3, 0) -> 0.405042326 | C73: =VLOOKUP($A73, 'zone data'!$A$2:$D$68, 4, 0) -> 0.594957674 | D73: =VLOOKUP($A73,'Total zone summary'!$B$4:$N$91, 13, 0)*$H$4 -> 0.3995195223 | E73: =VLOOKUP($A73,'Total zone summary'!$B$4:$J$91,9,0) -> 3 | F73: 0.1388304156 | G73: =VLOOKUP($A73,'Total zone summary'!$B$4:$I$91,7,0) -> 1.6 | H73: =VLOOKUP($A73,'Total zone summary'!$B$4:$I$91,8,0) -> 0 | I73: =G73+H73*'Total zone summary'!$AN$1 -> 1.6 | J73: 0.5333333333 | M73: 0.2839842713 | W73: 0 | X73: 0 | Y73: 3 | Z73: 0 | AA73: 0 | AB73: 0 | AC73: 0 | AD73: 0 | AE73: 0 | AF73: 0 | AG73: 0 | AH73: 0 | AI73: 0 | AJ73: 0 | AK73: 0 | AL73: 0 | AM73: 0 | AN73: 0 | AO73: 0 | AP73: 0 | AQ73: 0 | AR73: 0 | AS73: 0 | AT73: 0 | AU73: 0 | AV73: 0 | AW73: 0 | AX73: 0 | AY73: 0 | AZ73: 0
A74: Wyong Zone | B74: =VLOOKUP($A74, 'zone data'!$A$2:$D$68, 3, 0) -> 0.4892452585 | C74: =VLOOKUP($A74, 'zone data'!$A$2:$D$68, 4, 0) -> 0.5107547415 | D74: =VLOOKUP($A74,'Total zone summary'!$B$4:$N$91, 13, 0)*$H$4 -> 1.298438448 | E74: =VLOOKUP($A74,'Total zone summary'!$B$4:$J$91,9,0) -> 10 | F74: =D74/E74*$H$2 -> 0.1353596552 | G74: =VLOOKUP($A74,'Total zone summary'!$B$4:$I$91,7,0) -> 2.4 | H74: =VLOOKUP($A74,'Total zone summary'!$B$4:$I$91,8,0) -> 11.2 | I74: =G74+H74*'Total zone summary'!$AN$1 -> 8 | J74: =I74/E74 -> 0.8 | M74: 0.2839842713 | W74: 0 | X74: 0 | Y74: 10 | Z74: 0 | AA74: 0 | AB74: 0 | AC74: 0 | AD74: 0 | AE74: 0 | AF74: 0 | AG74: 0 | AH74: 0 | AI74: 0 | AJ74: 0 | AK74: 0 | AL74: 0 | AM74: 0 | AN74: 0 | AO74: 0 | AP74: 0 | AQ74: 0 | AR74: 0 | AS74: 0 | AT74: 0 | AU74: 0 | AV74: 0 | AW74: 0 | AX74: 0 | AY74: 0 | AZ74: 0
A75: Berkeley Vale Zone | B75: =VLOOKUP($A75, 'zone data'!$A$2:$D$68, 3, 0) -> 0.2918132661 | C75: =VLOOKUP($A75, 'zone data'!$A$2:$D$68, 4, 0) -> 0.7081867339 | D75: =VLOOKUP($A75,'Total zone summary'!$B$4:$N$91, 13, 0)*$H$4 -> 0.4494594626 | E75: =VLOOKUP($A75,'Total zone summary'!$B$4:$J$91,9,0) -> 6 | F75: 0.07809210876 | G75: =VLOOKUP($A75,'Total zone summary'!$B$4:$I$91,7,0) -> 1.8 | H75: =VLOOKUP($A75,'Total zone summary'!$B$4:$I$91,8,0) -> 0 | I75: =G75+H75*'Total zone summary'!$AN$1 -> 1.8 | J75: 0.3 | M75: 0.2839842713 | W75: 0 | X75: 6 | Y75: 0 | Z75: 0 | AA75: 0 | AB75: 0 | AC75: 0 | AD75: 0 | AE75: 0 | AF75: 0 | AG75: 0 | AH75: 0 | AI75: 0 | AJ75: 0 | AK75: 0 | AL75: 0 | AM75: 0 | AN75: 0 | AO75: 0 | AP75: 0 | AQ75: 0 | AR75: 0 | AS75: 0 | AT75: 0 | AU75: 0 | AV75: 0 | AW75: 0 | AX75: 0 | AY75: 0 | AZ75: 0
A76: Five Dock Zone | D76: =VLOOKUP($A76,'Total zone summary'!$B$4:$N$91, 13, 0)*$H$4 -> 0 | E76: =VLOOKUP($A76,'Total zone summary'!$B$4:$J$91,9,0) -> 0 | F76: 0 | G76: =VLOOKUP($A76,'Total zone summary'!$B$4:$I$91,7,0) -> 0 | H76: =VLOOKUP($A76,'Total zone summary'!$B$4:$I$91,8,0) -> 0 | I76: =G76+H76*'Total zone summary'!$AN$1 -> 0 | J76: 0 | W76: 0 | X76: 0 | Y76: 0 | Z76: 0 | AA76: 0 | AB76: 0 | AC76: 0 | AD76: 0 | AE76: 0 | AF76: 0 | AG76: 0 | AH76: 0 | AI76: 0 | AJ76: 0 | AK76: 0 | AL76: =IF(AND($F76>AL$7, $F76<=AL$8), $E76, 0) -> 0 | AM76: 0 | AN76: 0 | AO76: 0 | AP76: 0 | AQ76: 0 | AR76: 0 | AS76: 0 | AT76: 0 | AU76: 0 | AV76: 0 | AW76: 0 | AX76: 0 | AY76: 0 | AZ76: 0
A77: Zetland Zone | D77: =VLOOKUP($A77,'Total zone summary'!$B$4:$N$91, 13, 0)*$H$4 -> 0 | E77: =VLOOKUP($A77,'Total zone summary'!$B$4:$J$91,9,0) -> 0 | F77: 0 | G77: =VLOOKUP($A77,'Total zone summary'!$B$4:$I$91,7,0) -> 0 | H77: =VLOOKUP($A77,'Total zone summary'!$B$4:$I$91,8,0) -> 0 | I77: =G77+H77*'Total zone summary'!$AN$1 -> 0 | J77: 0 | W77: =IF(AND($F77>W$7, $F77<=W$8), $E77, 0) -> 0 | X77: 0 | Y77: 0 | Z77: 0 | AA77: 0 | AB77: 0 | AC77: 0 | AD77: 0 | AE77: 0 | AF77: 0 | AG77: 0 | AH77: 0 | AI77: 0 | AJ77: 0 | AK77: 0 | AL77: 0 | AM77: 0 | AN77: 0 | AO77: 0 | AP77: 0 | AQ77: 0 | AR77: 0 | AS77: 0 | AT77: 0 | AU77: 0 | AV77: 0 | AW77: 0 | AX77: 0 | AY77: 0 | AZ77: 0
A78: Botany Zone | D78: =VLOOKUP($A78,'Total zone summary'!$B$4:$N$91, 13, 0)*$H$4 -> 0 | E78: =VLOOKUP($A78,'Total zone summary'!$B$4:$J$91,9,0) -> 0 | F78: 0 | G78: =VLOOKUP($A78,'Total zone summary'!$B$4:$I$91,7,0) -> 0 | H78: =VLOOKUP($A78,'Total zone summary'!$B$4:$I$91,8,0) -> 0 | I78: =G78+H78*'Total zone summary'!$AN$1 -> 0 | J78: 0 | W78: 0 | X78: 0 | Y78: 0 | Z78: 0 | AA78: 0 | AB78: 0 | AC78: 0 | AD78: 0 | AE78: 0 | AF78: 0 | AG78: 0 | AH78: 0 | AI78: 0 | AJ78: 0 | AK78: 0 | AL78: 0 | AM78: 0 | AN78: 0 | AO78: 0 | AP78: 0 | AQ78: 0 | AR78: 0 | AS78: 0 | AT78: 0 | AU78: 0 | AV78: 0 | AW78: 0 | AX78: 0 | AY78: 0 | AZ78: 0
A79: Paddington Zone | D79: =VLOOKUP($A79,'Total zone summary'!$B$4:$N$91, 13, 0)*$H$4 -> 0 | E79: =VLOOKUP($A79,'Total zone summary'!$B$4:$J$91,9,0) -> 0 | F79: 0 | G79: =VLOOKUP($A79,'Total zone summary'!$B$4:$I$91,7,0) -> 0 | H79: =VLOOKUP($A79,'Total zone summary'!$B$4:$I$91,8,0) -> 0 | I79: =G79+H79*'Total zone summary'!$AN$1 -> 0 | J79: 0 | W79: 0 | X79: 0 | Y79: 0 | Z79: 0 | AA79: 0 | AB79: 0 | AC79: 0 | AD79: 0 | AE79: 0 | AF79: 0 | AG79: 0 | AH79: 0 | AI79: 0 | AJ79: 0 | AK79: 0 | AL79: 0 | AM79: 0 | AN79: 0 | AO79: 0 | AP79: 0 | AQ79: 0 | AR79: 0 | AS79: 0 | AT79: 0 | AU79: 0 | AV79: 0 | AW79: 0 | AX79: 0 | AY79: 0 | AZ79: 0
A80: Camperdown Zone | D80: =VLOOKUP($A80,'Total zone summary'!$B$4:$N$91, 13, 0)*$H$4 -> 0 | E80: =VLOOKUP($A80,'Total zone summary'!$B$4:$J$91,9,0) -> 0 | F80: 0 | G80: =VLOOKUP($A80,'Total zone summary'!$B$4:$I$91,7,0) -> 0 | H80: =VLOOKUP($A80,'Total zone summary'!$B$4:$I$91,8,0) -> 0 | I80: =G80+H80*'Total zone summary'!$AN$1 -> 0 | J80: 0 | W80: 0 | X80: 0 | Y80: 0 | Z80: 0 | AA80: 0 | AB80: 0 | AC80: 0 | AD80: 0 | AE80: 0 | AF80: 0 | AG80: 0 | AH80: 0 | AI80: 0 | AJ80: 0 | AK80: 0 | AL80: 0 | AM80: 0 | AN80: 0 | AO80: 0 | AP80: 0 | AQ80: 0 | AR80: 0 | AS80: 0 | AT80: 0 | AU80: 0 | AV80: 0 | AW80: 0 | AX80: 0 | AY80: 0 | AZ80: 0
A81: Dulwich Hill Zone | D81: =VLOOKUP($A81,'Total zone summary'!$B$4:$N$91, 13, 0)*$H$4 -> 0 | E81: =VLOOKUP($A81,'Total zone summary'!$B$4:$J$91,9,0) -> 0 | F81: 0 | G81: =VLOOKUP($A81,'Total zone summary'!$B$4:$I$91,7,0) -> 0 | H81: =VLOOKUP($A81,'Total zone summary'!$B$4:$I$91,8,0) -> 0 | I81: =G81+H81*'Total zone summary'!$AN$1 -> 0 | J81: 0 | W81: 0 | X81: 0 | Y81: 0 | Z81: 0 | AA81: 0 | AB81: 0 | AC81: 0 | AD81: 0 | AE81: 0 | AF81: 0 | AG81: 0 | AH81: 0 | AI81: 0 | AJ81: 0 | AK81: 0 | AL81: 0 | AM81: 0 | AN81: 0 | AO81: 0 | AP81: 0 | AQ81: 0 | AR81: 0 | AS81: 0 | AT81: 0 | AU81: 0 | AV81: 0 | AW81: 0 | AX81: 0 | AY81: 0 | AZ81: 0
A82: Mascot Zone | D82: =VLOOKUP($A82,'Total zone summary'!$B$4:$N$91, 13, 0)*$H$4 -> 0 | E82: =VLOOKUP($A82,'Total zone summary'!$B$4:$J$91,9,0) -> 0 | F82: 0 | G82: =VLOOKUP($A82,'Total zone summary'!$B$4:$I$91,7,0) -> 0 | H82: =VLOOKUP($A82,'Total zone summary'!$B$4:$I$91,8,0) -> 0 | I82: =G82+H82*'Total zone summary'!$AN$1 -> 0 | J82: 0 | W82: 0 | X82: 0 | Y82: 0 | Z82: 0 | AA82: 0 | AB82: 0 | AC82: 0 | AD82: 0 | AE82: 0 | AF82: 0 | AG82: 0 | AH82: 0 | AI82: 0 | AJ82: 0 | AK82: 0 | AL82: 0 | AM82: 0 | AN82: 0 | AO82: 0 | AP82: 0 | AQ82: 0 | AR82: 0 | AS82: 0 | AT82: 0 | AU82: 0 | AV82: 0 | AW82: 0 | AX82: 0 | AY82: 0 | AZ82: 0
A83: Hornsby Zone | D83: =VLOOKUP($A83,'Total zone summary'!$B$4:$N$91, 13, 0)*$H$4 -> 0 | E83: =VLOOKUP($A83,'Total zone summary'!$B$4:$J$91,9,0) -> 0 | F83: 0 | G83: =VLOOKUP($A83,'Total zone summary'!$B$4:$I$91,7,0) -> 0 | H83: =VLOOKUP($A83,'Total zone summary'!$B$4:$I$91,8,0) -> 0 | I83: =G83+H83*'Total zone summary'!$AN$1 -> 0 | J83: 0 | W83: 0 | X83: 0 | Y83: 0 | Z83: 0 | AA83: 0 | AB83: 0 | AC83: 0 | AD83: 0 | AE83: 0 | AF83: 0 | AG83: 0 | AH83: 0 | AI83: 0 | AJ83: 0 | AK83: 0 | AL83: 0 | AM83: 0 | AN83: 0 | AO83: 0 | AP83: 0 | AQ83: 0 | AR83: 0 | AS83: 0 | AT83: 0 | AU83: 0 | AV83: 0 | AW83: 0 | AX83: 0 | AY83: 0 | AZ83: 0
A84: Surry Hills Zone | D84: =VLOOKUP($A84,'Total zone summary'!$B$4:$N$91, 13, 0)*$H$4 -> 0 | E84: =VLOOKUP($A84,'Total zone summary'!$B$4:$J$91,9,0) -> 0 | F84: 0 | G84: =VLOOKUP($A84,'Total zone summary'!$B$4:$I$91,7,0) -> 0 | H84: =VLOOKUP($A84,'Total zone summary'!$B$4:$I$91,8,0) -> 0 | I84: =G84+H84*'Total zone summary'!$AN$1 -> 0 | J84: 0 | W84: 0 | X84: 0 | Y84: 0 | Z84: 0 | AA84: 0 | AB84: 0 | AC84: 0 | AD84: 0 | AE84: 0 | AF84: 0 | AG84: 0 | AH84: 0 | AI84: 0 | AJ84: 0 | AK84: 0 | AL84: 0 | AM84: 0 | AN84: 0 | AO84: 0 | AP84: 0 | AQ84: 0 | AR84: 0 | AS84: 0 | AT84: 0 | AU84: 0 | AV84: 0 | AW84: 0 | AX84: 0 | AY84: 0 | AZ84: 0
A85: Lindfield Zone | D85: =VLOOKUP($A85,'Total zone summary'!$B$4:$N$91, 13, 0)*$H$4 -> 0 | E85: =VLOOKUP($A85,'Total zone summary'!$B$4:$J$91,9,0) -> 0 | F85: 0 | G85: =VLOOKUP($A85,'Total zone summary'!$B$4:$I$91,7,0) -> 0 | H85: =VLOOKUP($A85,'Total zone summary'!$B$4:$I$91,8,0) -> 0 | I85: =G85+H85*'Total zone summary'!$AN$1 -> 0 | J85: 0 | W85: 0 | X85: 0 | Y85: 0 | Z85: 0 | AA85: 0 | AB85: 0 | AC85: 0 | AD85: 0 | AE85: 0 | AF85: 0 | AG85: 0 | AH85: 0 | AI85: 0 | AJ85: 0 | AK85: 0 | AL85: 0 | AM85: 0 | AN85: 0 | AO85: 0 | AP85: 0 | AQ85: 0 | AR85: 0 | AS85: 0 | AT85: 0 | AU85: 0 | AV85: 0 | AW85: 0 | AX85: 0 | AY85: 0 | AZ85: 0
A86: Revesby Zone | D86: =VLOOKUP($A86,'Total zone summary'!$B$4:$N$91, 13, 0)*$H$4 -> 0 | E86: =VLOOKUP($A86,'Total zone summary'!$B$4:$J$91,9,0) -> 0 | F86: 0 | G86: =VLOOKUP($A86,'Total zone summary'!$B$4:$I$91,7,0) -> 0 | H86: =VLOOKUP($A86,'Total zone summary'!$B$4:$I$91,8,0) -> 0 | I86: =G86+H86*'Total zone summary'!$AN$1 -> 0 | J86: 0 | W86: 0 | X86: 0 | Y86: 0 | Z86: 0 | AA86: 0 | AB86: 0 | AC86: 0 | AD86: 0 | AE86: 0 | AF86: 0 | AG86: 0 | AH86: 0 | AI86: 0 | AJ86: 0 | AK86: 0 | AL86: 0 | AM86: 0 | AN86: 0 | AO86: 0 | AP86: 0 | AQ86: 0 | AR86: 0 | AS86: 0 | AT86: 0 | AU86: 0 | AV86: 0 | AW86: 0 | AX86: 0 | AY86: 0 | AZ86: 0
A87: Homebush Bay Zone | D87: =VLOOKUP($A87,'Total zone summary'!$B$4:$N$91, 13, 0)*$H$4 -> 0 | E87: =VLOOKUP($A87,'Total zone summary'!$B$4:$J$91,9,0) -> 0 | F87: 0 | G87: =VLOOKUP($A87,'Total zone summary'!$B$4:$I$91,7,0) -> 0 | H87: =VLOOKUP($A87,'Total zone summary'!$B$4:$I$91,8,0) -> 0 | I87: =G87+H87*'Total zone summary'!$AN$1 -> 0 | J87: 0 | W87: 0 | X87: 0 | Y87: 0 | Z87: 0 | AA87: 0 | AB87: 0 | AC87: 0 | AD87: 0 | AE87: 0 | AF87: 0 | AG87: 0 | AH87: 0 | AI87: 0 | AJ87: 0 | AK87: 0 | AL87: 0 | AM87: 0 | AN87: 0 | AO87: 0 | AP87: 0 | AQ87: 0 | AR87: 0 | AS87: 0 | AT87: 0 | AU87: 0 | AV87: 0 | AW87: 0 | AX87: 0 | AY87: 0 | AZ87: 0
A88: Milperra Zone | D88: =VLOOKUP($A88,'Total zone summary'!$B$4:$N$91, 13, 0)*$H$4 -> 0 | E88: =VLOOKUP($A88,'Total zone summary'!$B$4:$J$91,9,0) -> 0 | F88: 0 | G88: =VLOOKUP($A88,'Total zone summary'!$B$4:$I$91,7,0) -> 0 | H88: =VLOOKUP($A88,'Total zone summary'!$B$4:$I$91,8,0) -> 0 | I88: =G88+H88*'Total zone summary'!$AN$1 -> 0 | J88: 0 | W88: 0 | X88: 0 | Y88: 0 | Z88: 0 | AA88: 0 | AB88: 0 | AC88: 0 | AD88: 0 | AE88: 0 | AF88: 0 | AG88: 0 | AH88: 0 | AI88: 0 | AJ88: 0 | AK88: 0 | AL88: 0 | AM88: 0 | AN88: 0 | AO88: 0 | AP88: 0 | AQ88: 0 | AR88: 0 | AS88: 0 | AT88: 0 | AU88: 0 | AV88: 0 | AW88: 0 | AX88: 0 | AY88: 0 | AZ88: 0
A89: Clovelly Zone | D89: =VLOOKUP($A89,'Total zone summary'!$B$4:$N$91, 13, 0)*$H$4 -> 0 | E89: =VLOOKUP($A89,'Total zone summary'!$B$4:$J$91,9,0) -> 0 | F89: 0 | G89: =VLOOKUP($A89,'Total zone summary'!$B$4:$I$91,7,0) -> 0 | H89: =VLOOKUP($A89,'Total zone summary'!$B$4:$I$91,8,0) -> 0 | I89: =G89+H89*'Total zone summary'!$AN$1 -> 0 | J89: 0 | W89: 0 | X89: 0 | Y89: 0 | Z89: 0 | AA89: 0 | AB89: 0 | AC89: 0 | AD89: 0 | AE89: 0 | AF89: 0 | AG89: 0 | AH89: 0 | AI89: 0 | AJ89: 0 | AK89: 0 | AL89: 0 | AM89: 0 | AN89: 0 | AO89: 0 | AP89: 0 | AQ89: 0 | AR89: 0 | AS89: 0 | AT89: 0 | AU89: 0 | AV89: 0 | AW89: 0 | AX89: 0 | AY89: 0 | AZ89: 0
A90: Double Bay Zone | D90: =VLOOKUP($A90,'Total zone summary'!$B$4:$N$91, 13, 0)*$H$4 -> 0 | E90: =VLOOKUP($A90,'Total zone summary'!$B$4:$J$91,9,0) -> 0 | F90: 0 | G90: =VLOOKUP($A90,'Total zone summary'!$B$4:$I$91,7,0) -> 0 | H90: =VLOOKUP($A90,'Total zone summary'!$B$4:$I$91,8,0) -> 0 | I90: =G90+H90*'Total zone summary'!$AN$1 -> 0 | J90: 0 | W90: 0 | X90: 0 | Y90: 0 | Z90: 0 | AA90: 0 | AB90: 0 | AC90: 0 | AD90: 0 | AE90: 0 | AF90: 0 | AG90: 0 | AH90: 0 | AI90: 0 | AJ90: 0 | AK90: 0 | AL90: 0 | AM90: 0 | AN90: 0 | AO90: 0 | AP90: 0 | AQ90: 0 | AR90: 0 | AS90: 0 | AT90: 0 | AU90: 0 | AV90: 0 | AW90: 0 | AX90: 0 | AY90: 0 | AZ90: 0
A91: Meadowbank Zone | D91: =VLOOKUP($A91,'Total zone summary'!$B$4:$N$91, 13, 0)*$H$4 -> 0 | E91: =VLOOKUP($A91,'Total zone summary'!$B$4:$J$91,9,0) -> 0 | F91: 0 | G91: =VLOOKUP($A91,'Total zone summary'!$B$4:$I$91,7,0) -> 0 | H91: =VLOOKUP($A91,'Total zone summary'!$B$4:$I$91,8,0) -> 0 | I91: =G91+H91*'Total zone summary'!$AN$1 -> 0 | J91: 0 | W91: 0 | X91: 0 | Y91: 0 | Z91: 0 | AA91: 0 | AB91: 0 | AC91: 0 | AD91: 0 | AE91: 0 | AF91: 0 | AG91: 0 | AH91: 0 | AI91: 0 | AJ91: 0 | AK91: 0 | AL91: 0 | AM91: 0 | AN91: 0 | AO91: 0 | AP91: 0 | AQ91: 0 | AR91: 0 | AS91: 0 | AT91: 0 | AU91: 0 | AV91: 0 | AW91: 0 | AX91: 0 | AY91: 0 | AZ91: 0
A92: Darling Harbour Zone | D92: =VLOOKUP($A92,'Total zone summary'!$B$4:$N$91, 13, 0)*$H$4 -> 0 | E92: =VLOOKUP($A92,'Total zone summary'!$B$4:$J$91,9,0) -> 0 | F92: 0 | G92: =VLOOKUP($A92,'Total zone summary'!$B$4:$I$91,7,0) -> 0 | H92: =VLOOKUP($A92,'Total zone summary'!$B$4:$I$91,8,0) -> 0 | I92: =G92+H92*'Total zone summary'!$AN$1 -> 0 | J92: 0 | W92: 0 | X92: 0 | Y92: 0 | Z92: 0 | AA92: 0 | AB92: 0 | AC92: 0 | AD92: 0 | AE92: 0 | AF92: 0 | AG92: 0 | AH92: 0 | AI92: 0 | AJ92: 0 | AK92: 0 | AL92: =IF(AND($F92>AL$7, $F92<=AL$8), $E92, 0) -> 0 | AM92: 0 | AN92: 0 | AO92: 0 | AP92: 0 | AQ92: 0 | AR92: 0 | AS92: 0 | AT92: 0 | AU92: 0 | AV92: 0 | AW92: 0 | AX92: 0 | AY92: 0 | AZ92: 0
A93: Sans Souci Zone | D93: =VLOOKUP($A93,'Total zone summary'!$B$4:$N$91, 13, 0)*$H$4 -> 0 | E93: =VLOOKUP($A93,'Total zone summary'!$B$4:$J$91,9,0) -> 0 | F93: 0 | G93: =VLOOKUP($A93,'Total zone summary'!$B$4:$I$91,7,0) -> 0 | H93: =VLOOKUP($A93,'Total zone summary'!$B$4:$I$91,8,0) -> 0 | I93: =G93+H93*'Total zone summary'!$AN$1 -> 0 | J93: 0 | W93: =IF(AND($F93>W$7, $F93<=W$8), $E93, 0) -> 0 | X93: 0 | Y93: 0 | Z93: 0 | AA93: 0 | AB93: 0 | AC93: 0 | AD93: 0 | AE93: 0 | AF93: 0 | AG93: 0 | AH93: 0 | AI93: 0 | AJ93: 0 | AK93: 0 | AL93: 0 | AM93: 0 | AN93: 0 | AO93: 0 | AP93: 0 | AQ93: 0 | AR93: 0 | AS93: 0 | AT93: 0 | AU93: 0 | AV93: 0 | AW93: 0 | AX93: 0 | AY93: 0 | AZ93: 0
A94: Avoca Zone | D94: =VLOOKUP($A94,'Total zone summary'!$B$4:$N$91, 13, 0)*$H$4 -> 0 | E94: =VLOOKUP($A94,'Total zone summary'!$B$4:$J$91,9,0) -> 0 | F94: 0 | G94: =VLOOKUP($A94,'Total zone summary'!$B$4:$I$91,7,0) -> 0 | H94: =VLOOKUP($A94,'Total zone summary'!$B$4:$I$91,8,0) -> 0 | I94: =G94+H94*'Total zone summary'!$AN$1 -> 0 | J94: 0 | W94: 0 | X94: 0 | Y94: 0 | Z94: 0 | AA94: 0 | AB94: 0 | AC94: 0 | AD94: 0 | AE94: 0 | AF94: 0 | AG94: 0 | AH94: 0 | AI94: 0 | AJ94: 0 | AK94: 0 | AL94: 0 | AM94: 0 | AN94: 0 | AO94: 0 | AP94: 0 | AQ94: 0 | AR94: 0 | AS94: 0 | AT94: 0 | AU94: 0 | AV94: 0 | AW94: 0 | AX94: 0 | AY94: 0 | AZ94: 0
A95: Lisarow Zone | D95: =VLOOKUP($A95,'Total zone summary'!$B$4:$N$91, 13, 0)*$H$4 -> 0 | E95: =VLOOKUP($A95,'Total zone summary'!$B$4:$J$91,9,0) -> 0 | F95: 0 | G95: =VLOOKUP($A95,'Total zone summary'!$B$4:$I$91,7,0) -> 0 | H95: =VLOOKUP($A95,'Total zone summary'!$B$4:$I$91,8,0) -> 0 | I95: =G95+H95*'Total zone summary'!$AN$1 -> 0 | J95: 0 | W95: 0 | X95: 0 | Y95: 0 | Z95: 0 | AA95: 0 | AB95: 0 | AC95: 0 | AD95: 0 | AE95: 0 | AF95: 0 | AG95: 0 | AH95: 0 | AI95: 0 | AJ95: 0 | AK95: 0 | AL95: 0 | AM95: 0 | AN95: 0 | AO95: 0 | AP95: 0 | AQ95: 0 | AR95: 0 | AS95: 0 | AT95: 0 | AU95: 0 | AV95: 0 | AW95: 0 | AX95: 0 | AY95: 0 | AZ95: 0
A96: Port Botany Zone | D96: =VLOOKUP($A96,'Total zone summary'!$B$4:$N$91, 13, 0)*$H$4 -> 0 | E96: =VLOOKUP($A96,'Total zone summary'!$B$4:$J$91,9,0) -> 0 | F96: 0 | G96: =VLOOKUP($A96,'Total zone summary'!$B$4:$I$91,7,0) -> 0 | H96: =VLOOKUP($A96,'Total zone summary'!$B$4:$I$91,8,0) -> 0 | I96: =G96+H96*'Total zone summary'!$AN$1 -> 0 | J96: 0 | W96: 0 | X96: 0 | Y96: 0 | Z96: 0 | AA96: 0 | AB96: 0 | AC96: 0 | AD96: 0 | AE96: 0 | AF96: 0 | AG96: 0 | AH96: 0 | AI96: 0 | AJ96: 0 | AK96: 0 | AL96: 0 | AM96: 0 | AN96: 0 | AO96: 0 | AP96: 0 | AQ96: 0 | AR96: 0 | AS96: 0 | AT96: 0 | AU96: 0 | AV96: 0 | AW96: 0 | AX96: 0 | AY96: 0 | AZ96: 0

Sheet Total zone summary
A1: ZONE | D1: WITH SPOTS | F1: WITHOUT SPOTS | L1: WITH SPOTS | M1: WITHOUT SPOTS | N1: FINAL | O1: Zone Area Plan with LAR | S1: DM Factor | T1: 0.7765024503 | X1: Direct % | AC1: 0.57 | AM1: Rural adjustment | AN1: 0.5 | AR1: Urban | AS1: Rural | AT1: Total
A2: GIS ID | B2: NAME | C2: Area Plan | D2: ALL | E2: URBAN ONLY | F2: ALL | G2: URBAN ONLY | H2: Urban LAR (MVA) | I2: Rural LAR (MVA) | J2: Number of issues | L2: Rural adjusted | M2: Rural adjusted | Q2: OH% | R2: UG% | S2: OH ($M) | T2: UG ($M) | U2: Total ($M) - DM impact | X2: Area Plan | Y2: Zones with LAR | Z2: OH budget inc DM | AA2: UG budget inc DM | AB2: Total budget inc DM | AC2: OH Unit rate | AD2: UG Unit rate | AE2: OH Length | AF2: UG Length | AH2: Urban % | AI2: Capacity Shortfall DM | AJ2: Capacity Shortfall (ex DM) | AK2: Total budget (ex DM) | AM2: ROG component | AN2: Spots component | AQ2: Budget ($M) | AR2: =AT2-AS2 -> 65.99 | AS2: =(F3-G3)/2 -> 11.55 | AT2: =N3 -> 77.54
D3: =SUM(D4:D91) -> 153.05 | E3: =SUM(E4:E91) -> 125.65 | F3: =SUM(F4:F91) -> 89.05 | G3: =SUM(G4:G91) -> 65.95 | L3: =SUM(L4:L91) -> 139.35 | M3: =SUM(M4:M91) -> 77.54 | N3: =SUM(N4:N91) -> 77.54 | P3: check | S3: =SUM(S4:S91) -> 29.80131757 | T3: =SUM(T4:T91) -> 30.40868243 | U3: =SUM(U4:U91) -> 60.21 | W3: $/kVA | Z3: ($M) | AA3: ($M) | AB3: ($M) | AC3: ($/km) | AE3: (km) | AF3: (km) | AK3: ($M) | AM3: =(L3-M3)/L3 -> 0.4435593828 | AN3: =1-AM3 -> 0.5564406172 | AQ3: % | AR3: =AR2/$AT$2 -> 0.8510446221 | AS3: =AS2/$AT$2 -> 0.1489553779 | AT3: =AT2/$AT$2 -> 1
A4: CBZZN 202 | B4: Newcastle CBD 33 | C4: =VLOOKUP(B4,'Zone - Area Plan'!$A$2:$B$224,2,1) -> Newcastle Inner City | D4: 1.35 | E4: 1.35 | F4: 1.35 | G4: 1.35 | H4: =G4/250*1000 -> 5.4 | I4: =(F4-G4)/125*1000 -> 0 | J4: 2 | K4: =AVERAGE(F4:G4) -> 1.35 | L4: =D4-((D4-E4)*(1-$AN$1)) -> 1.35 | M4: =ROUNDUP((F4-((F4-G4)*(1-$AN$1))),2) -> 1.35 | N4: =M4 -> 1.35 | O4: =IF(N4<>0,C4,"") -> Newcastle Inner City | P4: =(H4*250+I4*125*$AN$1)/1000 -> 1.35 | Q4: =VLOOKUP(B4,'OH & UG split'!$P$2:$S$187,3,FALSE)/VLOOKUP(B4,'OH & UG split'!$P$2:$S$187,4,FALSE) -> 0.2248814251 | R4: =1-Q4 -> 0.7751185749 | S4: =Q4*$U4 -> 0.2357383198 | T4: =R4*$U4 -> 0.8125399881 | U4: =N4*$T$1 -> 1.048278308 | W4: =250 -> 250 | X4: Auburn / Homebush | Y4: =COUNTIF($O$4:$O$91,X4) -> 6 | Z4: =SUMIF($C$4:$C$91,$X4,S$4:S$91) -> 0.01243757894 | AA4: =SUMIF($C$4:$C$91,$X4,T$4:T$91) -> 4.29715102 | AB4: =SUMIF($C$4:$C$91,$X4,U$4:U$91) -> 4.309588599 | AC4: =250000*$AC$1 -> 142500 | AD4: 504186.108 | AE4: =IFERROR($Z4/AC4*1000000,0) -> 0.08728125568 | AF4: =IFERROR($AA4/AD4*1000000,0) -> 8.522946095 | AH4: =IFERROR(1-(SUMIFS($M$4:$M$91,$C$4:$C$91,X4) - SUMIFS($G$4:$G$91,$C$4:$C$91,X4))/SUMIFS($M$4:$M$91,$C$4:$C$91,X4),0) -> 1 | AI4: =AB4/W4*1000*AH4+AB4*2/W4*1000*(1-AH4) -> 17.2383544 | AJ4: =SUMIF($C$4:$C$91,$X4,N$4:N$91)/W4*1000*AH4+SUMIF($C$4:$C$91,$X4,N$4:N$91)*2/W4*1000*(1-AH4) -> 22.2 | AK4: =SUMIF($C$4:$C$91,$X4,N$4:N$91) -> 5.55 | AQ4: MVA Network | AR4: =AR2/(250*1000/1000000) -> 263.96 | AS4: =AS2/(250*1000/1000000) -> 46.2 | AT4: =AT2/(250*1000/1000000) -> 310.16
A5: CBZZN 206 | B5: Croudace Bay 33/11 | C5: =VLOOKUP(B5,'Zone - Area Plan'!$A$2:$B$224,2,1) -> North East Lake Macquarie | D5: 1.6 | E5: 1.6 | F5: 1.6 | G5: 1.6 | H5: =G5/250*1000 -> 6.4 | I5: =(F5-G5)/125*1000 -> 0 | J5: 2 | K5: =AVERAGE(F5:G5) -> 1.6 | L5: 1.6 | M5: 1.6 | N5: =M5 -> 1.6 | O5: =IF(N5<>0,C5,"") -> North East Lake Macquarie | P5: =(H5*250+I5*125*$AN$1)/1000 -> 1.6 | Q5: =VLOOKUP(B5,'OH & UG split'!$P$2:$S$187,3,FALSE)/VLOOKUP(B5,'OH & UG split'!$P$2:$S$187,4,FALSE) -> 0.6876531613 | R5: =1-Q5 -> 0.3123468387 | S5: 0.8543429836 | T5: 0.3880609369 | U5: =N5*$T$1 -> 1.242403921 | W5: =250 -> 250 | X5: Camperdown & Blackwattle Bay | Y5: =COUNTIF($O$4:$O$91,X5) -> 0 | Z5: 0 | AA5: 0 | AB5: 0 | AC5: 142500 | AD5: 1008111.456 | AE5: 0 | AF5: 0 | AH5: =IFERROR(1-(SUMIFS($M$4:$M$91,$C$4:$C$91,X5) - SUMIFS($G$4:$G$91,$C$4:$C$91,X5))/SUMIFS($M$4:$M$91,$C$4:$C$91,X5),0) -> 0 | AI5: 0 | AJ5: 0 | AK5: =SUMIF($C$4:$C$91,$X5,N$4:N$91) -> 0 | AN5: Ausgrid initiated | AO5: Customer initiated | AQ5: Network / Trunk | AR5: =56.35/80 -> 0.704375 | AS5: =54.4/80 -> 0.68
A6: CBZZN 210 | B6: New Lambton 33 | C6: =VLOOKUP(B6,'Zone - Area Plan'!$A$2:$B$224,2,1) -> Newcastle Inner City | D6: 1.25 | E6: 1.25 | F6: 1.25 | G6: 1.25 | H6: 5 | I6: 0 | J6: 1 | K6: 1.25 | L6: 1.25 | M6: 1.25 | N6: 1.25 | O6: Newcastle Inner City | P6: 1.25 | Q6: =VLOOKUP(B6,'OH & UG split'!$P$2:$S$187,3,FALSE)/VLOOKUP(B6,'OH & UG split'!$P$2:$S$187,4,FALSE) -> 0.7894490127 | R6: 0.2105509873 | S6: 0.766261366 | T6: 0.204366697 | U6: 0.9706280629 | W6: =250 -> 250 | X6: Canterbury Bankstown | Y6: 7 | Z6: 1.092659973 | AA6: 5.74056159 | AB6: 6.833221563 | AC6: 142500 | AD6: 504186.108 | AE6: 7.667789285 | AF6: 11.38579881 | AH6: 0.9488636364 | AI6: 28.73059066 | AJ6: 37 | AK6: 8.8 | AM6: CBD | AN6: 0 | AO6: 0 | AQ6: MVA Trunk | AR6: =AR4*AR5 -> 185.926825 | AS6: =AS4*AS5 -> 31.416
A7: CBZZN 213 | B7: Maryland 132 | C7: =VLOOKUP(B7,'Zone - Area Plan'!$A$2:$B$224,2,1) -> Newcastle Western Corridor | D7: 0.95 | E7: 0.35 | F7: 0.95 | G7: 0.35 | H7: 1.4 | I7: 4.8 | J7: 1 | K7: 0.65 | L7: 0.65 | M7: 0.65 | N7: 0.65 | O7: Newcastle Western Corridor | P7: 0.65 | Q7: =VLOOKUP(B7,'OH & UG split'!$P$2:$S$187,3,FALSE)/VLOOKUP(B7,'OH & UG split'!$P$2:$S$187,4,FALSE) -> 0.370317244 | R7: 0.629682756 | S7: 0.1869089608 | T7: 0.3178176319 | U7: 0.5047265927 | W7: =250 -> 250 | X7: Carlingford | Y7: 3 | Z7: 0.1860054097 | AA7: 1.638775349 | AB7: 1.824780758 | AC7: 142500 | AD7: 596436.108 | AE7: 1.30530112 | AF7: 2.747612572 | AH7: 1 | AI7: 7.299123033 | AJ7: 9.4 | AK7: 2.35 | AM7: Urban | AN7: =(G3/N3) -> 0.8505287594 | AO7: 0
A8: CBZZN 214 | B8: Cardiff 33 | C8: =VLOOKUP(B8,'Zone - Area Plan'!$A$2:$B$224,2,1) -> Newcastle Western Corridor | D8: 1.85 | E8: 1.85 | F8: 1.85 | G8: 1.85 | H8: 7.4 | I8: 0 | J8: 3 | K8: 1.85 | L8: 1.85 | M8: 1.85 | N8: 1.85 | O8: Newcastle Western Corridor | P8: 1.85 | Q8: =VLOOKUP(B8,'OH & UG split'!$P$2:$S$187,3,FALSE)/VLOOKUP(B8,'OH & UG split'!$P$2:$S$187,4,FALSE) -> 0.6763714051 | R8: 0.3236285949 | S8: 0.9716274988 | T8: 0.4649020344 | U8: 1.436529533 | W8: =250 -> 250 | X8: Eastern Suburbs | Y8: 4 | Z8: 1.156468209e-05 | AA8: 2.174195296 | AB8: 2.174206861 | AC8: 142500 | AD8: 1008111.456 | AE8: 8.115566382e-05 | AF8: 2.156701309 | AH8: 1 | AI8: 8.696827444 | AJ8: 11.2 | AK8: 2.8 | AM8: Short Rural | AN8: =(N3-G3)/N3 -> 0.1494712406 | AO8: 0
A9: CBZZN 216 | B9: Edgeworth 33 | C9: =VLOOKUP(B9,'Zone - Area Plan'!$A$2:$B$224,2,1) -> Newcastle Western Corridor | D9: 2.4 | E9: 1.7 | F9: 2.4 | G9: 1.7 | H9: 6.8 | I9: 5.6 | J9: 3 | K9: 2.05 | L9: 2.05 | M9: 2.05 | N9: 2.05 | O9: Newcastle Western Corridor | P9: 2.05 | Q9: =VLOOKUP(B9,'OH & UG split'!$P$2:$S$187,3,FALSE)/VLOOKUP(B9,'OH & UG split'!$P$2:$S$187,4,FALSE) -> 0.527025819 | R9: 0.472974181 | S9: 0.8389355216 | T9: 0.7528945016 | U9: 1.591830023 | W9: =250 -> 250 | X9: Greater Cessnock | Y9: 2 | Z9: 2.531116317 | AA9: 0.4273580188 | AB9: 2.958474336 | AC9: 142500 | AD9: 1178320.824 | AE9: 17.76221977 | AF9: 0.3626839228 | AH9: 0.4461942257 | AI9: 18.38757802 | AJ9: 23.68 | AK9: 3.81 | AM9: Long Rural | AN9: 0 | AO9: 0
A10: CBZZN 217 | B10: Mount Hutton 33 | C10: =VLOOKUP(B10,'Zone - Area Plan'!$A$2:$B$224,2,1) -> North East Lake Macquarie | D10: 0.45 | E10: 0.45 | F10: 0.45 | G10: 0.45 | H10: 1.8 | I10: 0 | J10: 1 | K10: 0.45 | L10: 0.45 | M10: 0.45 | N10: 0.45 | O10: North East Lake Macquarie | P10: 0.45 | Q10: =VLOOKUP(B10,'OH & UG split'!$P$2:$S$187,3,FALSE)/VLOOKUP(B10,'OH & UG split'!$P$2:$S$187,4,FALSE) -> 0.6223897755 | R10: 0.3776102245 | S10: 0.2174792336 | T10: 0.1319468691 | U10: 0.3494261027 | W10: =250 -> 250 | X10: Lower Central Coast | Y10: 6 | Z10: 2.27970941 | AA10: 1.331026984 | AB10: 3.610736394 | AC10: 142500 | AD10: 504186.108 | AE10: 15.99796077 | AF10: 2.639951723 | AH10: 0.935483871 | AI10: 15.37474852 | AJ10: 19.8 | AK10: 4.65
A11: CBZZN 220 | B11: Jewells 33 | C11: =VLOOKUP(B11,'Zone - Area Plan'!$A$2:$B$224,2,1) -> North East Lake Macquarie | D11: 0.65 | E11: 0.65 | F11: 0.65 | G11: 0.65 | H11: 2.6 | I11: 0 | J11: 1 | K11: 0.65 | L11: 0.65 | M11: 0.65 | N11: 0.65 | O11: North East Lake Macquarie | P11: 0.65 | Q11: =VLOOKUP(B11,'OH & UG split'!$P$2:$S$187,3,FALSE)/VLOOKUP(B11,'OH & UG split'!$P$2:$S$187,4,FALSE) -> 0.7787819892 | R11: 0.2212180108 | S11: 0.3930719799 | T11: 0.1116546129 | U11: 0.5047265927 | W11: =250 -> 250 | X11: Lower North Shore | Y11: 2 | Z11: 0.05178606914 | AA11: 0.6470661362 | AB11: 0.6988522053 | AC11: 142500 | AD11: 1166398.608 | AE11: 0.3634110115 | AF11: 0.5547555799 | AH11: 1 | AI11: 2.795408821 | AJ11: 3.6 | AK11: 0.9
A12: CBZZN 222 | B12: Pelican 33 | C12: =VLOOKUP(B12,'Zone - Area Plan'!$A$2:$B$224,2,1) -> North East Lake Macquarie | D12: 0.5 | E12: 0.5 | F12: 0.5 | G12: 0.5 | H12: 2 | I12: 0 | J12: 1 | K12: 0.5 | L12: 0.5 | M12: 0.5 | N12: 0.5 | O12: North East Lake Macquarie | P12: 0.5 | Q12: =VLOOKUP(B12,'OH & UG split'!$P$2:$S$187,3,FALSE)/VLOOKUP(B12,'OH & UG split'!$P$2:$S$187,4,FALSE) -> 0.785123792 | R12: 0.214876208 | S12: 0.3048252742 | T12: 0.08342595102 | U12: 0.3882512252 | W12: =250 -> 250 | X12: Maitland | Y12: 6 | Z12: 7.577520243 | AA12: 3.705060361 | AB12: 11.2825806 | AC12: 142500 | AD12: 596436.108 | AE12: 53.17558065 | AF12: 6.211998756 | AH12: 0.7398485891 | AI12: 56.87103946 | AJ12: 73.24 | AK12: 14.53
A13: CBZZN 224 | B13: Argenton 132/11 | C13: =VLOOKUP(B13,'Zone - Area Plan'!$A$2:$B$224,2,1) -> Newcastle Western Corridor | D13: 1.5 | E13: 1.5 | F13: 1.5 | G13: 1.5 | H13: 6 | I13: 0 | J13: 2 | K13: 1.5 | L13: 1.5 | M13: 1.5 | N13: 1.5 | O13: Newcastle Western Corridor | P13: 1.5 | Q13: =VLOOKUP(B13,'OH & UG split'!$P$2:$S$187,3,FALSE)/VLOOKUP(B13,'OH & UG split'!$P$2:$S$187,4,FALSE) -> 0.7329572409 | R13: 0.2670427591 | S13: 0.8537146403 | T13: 0.3110390352 | U13: 1.164753676 | W13: =250 -> 250 | X13: Manly Warringah | Y13: 0 | Z13: 0 | AA13: 0 | AB13: 0 | AC13: 142500 | AD13: 596436.108 | AE13: 0 | AF13: 0 | AH13: 0 | AI13: 0 | AJ13: 0 | AK13: 0
A14: CBZZN 230 | B14: Tanilba Bay 33 | C14: =VLOOKUP(B14,'Zone - Area Plan'!$A$2:$B$224,2,1) -> Port Stephens | D14: 0.8 | E14: 0.8 | F14: 0.8 | G14: 0.8 | H14: 3.2 | I14: 0 | J14: 2 | K14: 0.8 | L14: 0.8 | M14: 0.8 | N14: 0.8 | O14: Port Stephens | P14: 0.8 | Q14: =VLOOKUP(B14,'OH & UG split'!$P$2:$S$187,3,FALSE)/VLOOKUP(B14,'OH & UG split'!$P$2:$S$187,4,FALSE) -> 0.9161363657 | R14: 0.08386363429 | S14: 0.5691057063 | T14: 0.05209625402 | U14: 0.6212019603 | W14: =250 -> 250 | X14: Newcastle Inner City | Y14: 3 | Z14: 1.167631268 | AA14: 1.084225838 | AB14: 2.251857106 | AC14: 142500 | AD14: 1166398.608 | AE14: 8.193903637 | AF14: 0.92955001 | AH14: 1 | AI14: 9.007428424 | AJ14: 11.6 | AK14: 2.9
A15: CBZZN 232 | B15: Nelson Bay 33 | C15: =VLOOKUP(B15,'Zone - Area Plan'!$A$2:$B$224,2,1) -> Port Stephens | D15: 3.2 | E15: 0.6 | F15: 3.2 | G15: 0.6 | H15: 2.4 | I15: 20.8 | J15: 7 | K15: 1.9 | L15: 1.9 | M15: 1.9 | N15: 1.9 | O15: Port Stephens | P15: 1.9 | Q15: =VLOOKUP(B15,'OH & UG split'!$P$2:$S$187,3,FALSE)/VLOOKUP(B15,'OH & UG split'!$P$2:$S$187,4,FALSE) -> 0.7889546885 | R15: 0.2110453115 | S15: 1.163987973 | T15: 0.3113666829 | U15: 1.475354656 | W15: =250 -> 250 | X15: Newcastle Port | Y15: 1 | Z15: 0.6642300589 | AA15: 0.290867955 | AB15: 0.9550980139 | AC15: 142500 | AD15: 596436.108 | AE15: 4.661263571 | AF15: 0.4876766364 | AH15: 0.8943089431 | AI15: 4.22417333 | AJ15: 5.44 | AK15: 1.23
A16: CBZZN 235 | B16: Tarro 33 | C16: =VLOOKUP(B16,'Zone - Area Plan'!$A$2:$B$224,2,1) -> Maitland | D16: 0.85 | E16: 0.85 | F16: 0.85 | G16: 0.85 | H16: 3.4 | I16: 0 | J16: 1 | K16: 0.85 | L16: 0.85 | M16: 0.85 | N16: 0.85 | O16: Maitland | P16: 0.85 | Q16: =VLOOKUP(B16,'OH & UG split'!$P$2:$S$187,3,FALSE)/VLOOKUP(B16,'OH & UG split'!$P$2:$S$187,4,FALSE) -> 0.9131719142 | R16: 0.08682808577 | S16: 0.6027181946 | T16: 0.05730888816 | U16: 0.6600270828 | W16: =250 -> 250 | X16: Newcastle Western Corridor | Y16: 4 | Z16: 2.851186621 | AA16: 1.846653203 | AB16: 4.697839825 | AC16: 142500 | AD16: 596436.108 | AE16: 20.00832717 | AF16: 3.096145888 | AH16: 0.8925619835 | AI16: 20.81026567 | AJ16: 26.8 | AK16: 6.05
A17: CBZZN 238 | B17: Thornton 33 | C17: =VLOOKUP(B17,'Zone - Area Plan'!$A$2:$B$224,2,1) -> Maitland | D17: 1.75 | E17: 0.45 | F17: 1.75 | G17: 0.45 | H17: 1.8 | I17: 10.4 | J17: 5 | K17: 1.1 | L17: 1.1 | M17: 1.1 | N17: 1.1 | O17: Maitland | P17: 1.1 | Q17: =VLOOKUP(B17,'OH & UG split'!$P$2:$S$187,3,FALSE)/VLOOKUP(B17,'OH & UG split'!$P$2:$S$187,4,FALSE) -> 0.5960652789 | R17: 0.4039347211 | S17: 0.5091307646 | T17: 0.3450219308 | U17: 0.8541526954 | W17: =250 -> 250 | X17: North East Lake Macquarie | Y17: 5 | Z17: 2.551475797 | AA17: 1.020435474 | AB17: 3.571911272 | AC17: 142500 | AD17: 596436.108 | AE17: 17.90509331 | AF17: 1.710888158 | AH17: 1 | AI17: 14.28764509 | AJ17: 18.4 | AK17: 4.6
A18: CBZZN 239 | B18: Rathmines 132 | C18: =VLOOKUP(B18,'Zone - Area Plan'!$A$2:$B$224,2,1) -> West Lake Macquarie | D18: 2.3 | E18: 1.6 | F18: 2.3 | G18: 1.6 | H18: 6.4 | I18: 5.6 | J18: 3 | K18: 1.95 | L18: 1.95 | M18: 1.95 | N18: 1.95 | O18: West Lake Macquarie | P18: 1.95 | Q18: =VLOOKUP(B18,'OH & UG split'!$P$2:$S$187,3,FALSE)/VLOOKUP(B18,'OH & UG split'!$P$2:$S$187,4,FALSE) -> 0.8569104138 | R18: 0.1430895862 | S18: 1.29751642 | T18: 0.2166633579 | U18: 1.514179778 | W18: =250 -> 250 | X18: North West | Y18: 2 | Z18: 0.6150452566 | AA18: 1.326210869 | AB18: 1.941256126 | AC18: 142500 | AD18: 596436.108 | AE18: 4.316107064 | AF18: 2.223558989 | AH18: 0.92 | AI18: 8.386226464 | AJ18: 10.8 | AK18: 2.5
A19: CBZZN 242 | B19: Tomaree 33 | C19: =VLOOKUP(B19,'Zone - Area Plan'!$A$2:$B$224,2,1) -> Port Stephens | D19: 1.9 | E19: 1.65 | F19: 1.9 | G19: 1.65 | H19: 6.6 | I19: 2 | J19: 3 | K19: 1.775 | L19: 1.775 | M19: 1.78 | N19: 1.78 | O19: Port Stephens | P19: 1.775 | Q19: =VLOOKUP(B19,'OH & UG split'!$P$2:$S$187,3,FALSE)/VLOOKUP(B19,'OH & UG split'!$P$2:$S$187,4,FALSE) -> 0.4876511355 | R19: 0.5123488645 | S19: 0.6740188968 | T19: 0.7081554648 | U19: 1.382174362 | W19: =250 -> 250 | X19: Pittwater | Y19: 0 | Z19: 0 | AA19: 0 | AB19: 0 | AC19: 142500 | AD19: 596436.108 | AE19: 0 | AF19: 0 | AH19: 0 | AI19: 0 | AJ19: 0 | AK19: 0
A20: CBZZN 256 | B20: Adamstown 132 | C20: =VLOOKUP(B20,'Zone - Area Plan'!$A$2:$B$224,2,1) -> Newcastle Inner City | D20: 0.3 | E20: 0.3 | F20: 0.3 | G20: 0.3 | H20: 1.2 | I20: 0 | J20: 2 | K20: 0.3 | L20: 0.3 | M20: 0.3 | N20: 0.3 | O20: Newcastle Inner City | P20: 0.3 | Q20: =VLOOKUP(B20,'OH & UG split'!$P$2:$S$187,3,FALSE)/VLOOKUP(B20,'OH & UG split'!$P$2:$S$187,4,FALSE) -> 0.7110154962 | R20: 0.2889845038 | S20: 0.1656315825 | T20: 0.0673191526 | U20: 0.2329507351 | W20: =250 -> 250 | X20: Port Stephens | Y20: 5 | Z20: 2.690785021 | AA20: 1.238317377 | AB20: 3.929102399 | AC20: 142500 | AD20: 504186.108 | AE20: 18.88270191 | AF20: 2.456071989 | AH20: 0.6719367589 | AI20: 20.87238587 | AJ20: 26.88 | AK20: 5.06
A21: CBZZN 258 | B21: Jesmond 132 | C21: =VLOOKUP(B21,'Zone - Area Plan'!$A$2:$B$224,2,1) -> Newcastle Port | D21: 1.35 | E21: 1.1 | F21: 1.35 | G21: 1.1 | H21: 4.4 | I21: 2 | J21: 1 | K21: 1.225 | L21: 1.225 | M21: 1.23 | N21: 1.23 | O21: Newcastle Port | P21: 1.225 | Q21: =VLOOKUP(B21,'OH & UG split'!$P$2:$S$187,3,FALSE)/VLOOKUP(B21,'OH & UG split'!$P$2:$S$187,4,FALSE) -> 0.6954574811 | R21: 0.3045425189 | S21: 0.6642300589 | T21: 0.290867955 | U21: 0.9550980139 | W21: =250 -> 250 | X21: Singleton | Y21: 0 | Z21: 0 | AA21: 0 | AB21: 0 | AC21: 142500 | AD21: 1178320.824 | AE21: 0 | AF21: 0 | AH21: 0 | AI21: 0 | AJ21: 0 | AK21: 0
A22: CBZZN 261 | B22: Charlestown 132 | C22: =VLOOKUP(B22,'Zone - Area Plan'!$A$2:$B$224,2,1) -> North East Lake Macquarie | D22: 1.4 | E22: 1.4 | F22: 1.4 | G22: 1.4 | H22: 5.6 | I22: 0 | J22: 1 | K22: 1.4 | L22: 1.4 | M22: 1.4 | N22: 1.4 | O22: North East Lake Macquarie | P22: 1.4 | Q22: =VLOOKUP(B22,'OH & UG split'!$P$2:$S$187,3,FALSE)/VLOOKUP(B22,'OH & UG split'!$P$2:$S$187,4,FALSE) -> 0.7191186268 | R22: 0.2808813732 | S22: 0.7817563261 | T22: 0.3053471044 | U22: 1.08710343 | W22: =250 -> 250 | X22: St George | Y22: 1 | Z22: 0.9268490798 | AA22: 0.9755819236 | AB22: 1.902431003 | AC22: 142500 | AD22: 596436.108 | AE22: 6.504204069 | AF22: 1.63568555 | AH22: 1 | AI22: 7.609724013 | AJ22: 9.8 | AK22: 2.45
A23: CBZZN 264 | B23: Raymond Terrace 33 | C23: =VLOOKUP(B23,'Zone - Area Plan'!$A$2:$B$224,2,1) -> Port Stephens | D23: 0.45 | E23: 0 | F23: 0.45 | G23: 0 | H23: 0 | I23: 3.6 | J23: 1 | K23: 0.225 | L23: 0.225 | M23: 0.23 | N23: 0.23 | O23: Port Stephens | P23: 0.225 | Q23: =VLOOKUP(B23,'OH & UG split'!$P$2:$S$187,3,FALSE)/VLOOKUP(B23,'OH & UG split'!$P$2:$S$187,4,FALSE) -> 0.7063068403 | R23: 0.2936931597 | S23: 0.1261432682 | T23: 0.05245229538 | U23: 0.1785955636 | W23: =250 -> 250 | X23: Sutherland | Y23: 2 | Z23: 0.07539248402 | AA23: 1.050536069 | AB23: 1.125928553 | AC23: 142500 | AD23: 504186.108 | AE23: 0.5290700633 | AF23: 2.083627558 | AH23: 1 | AI23: 4.503714212 | AJ23: 5.8 | AK23: 1.45
A24: CBZZN 265 | B24: Tomago 33 | C24: =VLOOKUP(B24,'Zone - Area Plan'!$A$2:$B$224,2,1) -> Port Stephens | D24: 0.35 | E24: 0.35 | F24: 0.35 | G24: 0.35 | H24: 1.4 | I24: 0 | J24: 1 | K24: 0.35 | L24: 0.35 | M24: 0.35 | N24: 0.35 | O24: Port Stephens | P24: 0.35 | Q24: =VLOOKUP(B24,'OH & UG split'!$P$2:$S$187,3,FALSE)/VLOOKUP(B24,'OH & UG split'!$P$2:$S$187,4,FALSE) -> 0.5796290327 | R24: 0.4203709673 | S24: 0.1575291775 | T24: 0.1142466802 | U24: 0.2717758576 | W24: =250 -> 250 | X24: Sydney CBD | Y24: 0 | Z24: 0 | AA24: 0 | AB24: 0 | AC24: n/a | AD24: n/a | AE24: 0 | AF24: =IFERROR($Z24/AD24*1000000,0) -> 0 | AH24: 0 | AI24: 0 | AJ24: 0 | AK24: 0
A25: CBZZN 502 | B25: Telarah 33 | C25: =VLOOKUP(B25,'Zone - Area Plan'!$A$2:$B$224,2,1) -> Maitland | D25: 1.5 | E25: 1.1 | F25: 1.5 | G25: 1.1 | H25: 4.4 | I25: 3.2 | J25: 2 | K25: 1.3 | L25: 1.3 | M25: 1.3 | N25: 1.3 | O25: Maitland | P25: 1.3 | Q25: =VLOOKUP(B25,'OH & UG split'!$P$2:$S$187,3,FALSE)/VLOOKUP(B25,'OH & UG split'!$P$2:$S$187,4,FALSE) -> 0.7320848128 | R25: 0.2679151872 | S25: 0.7390053463 | T25: 0.2704478392 | U25: 1.009453185 | W25: =250 -> 250 | X25: Upper Central Coast | Y25: 3 | Z25: 1.38964104 | AA25: 1.001986507 | AB25: 2.391627547 | AC25: =250000*$AC$1 -> 142500 | AD25: 504186.108 | AE25: 9.751866949 | AF25: =IFERROR($AA25/AD25*1000000,0) -> 1.987334619 | AH25: 0.5844155844 | AI25: 13.54220273 | AJ25: 17.44 | AK25: 3.08
A26: CBZZN 507 | B26: Kurri Kurri 132/11Kv | C26: =VLOOKUP(B26,'Zone - Area Plan'!$A$2:$B$224,2,1) -> Greater Cessnock | D26: 2.55 | E26: 0 | F26: 2.55 | G26: 0 | H26: 0 | I26: 20.4 | J26: 5 | K26: 1.275 | L26: 1.275 | M26: 1.28 | N26: 1.28 | O26: Greater Cessnock | P26: 1.275 | Q26: =VLOOKUP(B26,'OH & UG split'!$P$2:$S$187,3,FALSE)/VLOOKUP(B26,'OH & UG split'!$P$2:$S$187,4,FALSE) -> 0.879081152 | R26: 0.120918848 | S26: 0.8737390957 | T26: 0.1201840407 | U26: 0.9939231364 | W26: =250 -> 250 | X26: Upper Hunter | Y26: 3 | Z26: 1.76804084 | AA26: 0.2353354824 | AB26: 2.003376322 | AC26: =250000*$AC$1 -> 142500 | AD26: 818658.324 | AE26: 12.40730414 | AF26: =IFERROR($AA26/AD26*1000000,0) -> 0.2874648379 | AH26: 0.7364341085 | AI26: 10.12559195 | AJ26: 13.04 | AK26: 2.58
A27: CBZZN 511 | B27: Rutherford 33 | C27: =VLOOKUP(B27,'Zone - Area Plan'!$A$2:$B$224,2,1) -> Maitland | D27: 4.6 | E27: 1.45 | F27: 4.6 | G27: 1.45 | H27: 5.8 | I27: 25.2 | J27: 5 | K27: 3.025 | L27: 3.025 | M27: 3.03 | N27: 3.03 | O27: Maitland | P27: 3.025 | Q27: =VLOOKUP(B27,'OH & UG split'!$P$2:$S$187,3,FALSE)/VLOOKUP(B27,'OH & UG split'!$P$2:$S$187,4,FALSE) -> 0.822268502 | R27: 0.177731498 | S27: 1.934635325 | T27: 0.4181670995 | U27: 2.352802425 | W27: =250 -> 250 | X27: Upper North Shore | Y27: 1 | Z27: 0.07227712023 | AA27: 0.1606736149 | AB27: 0.2329507351 | AC27: =250000*$AC$1 -> 142500 | AD27: 596436.108 | AE27: 0.5072078612 | AF27: =IFERROR($AA27/AD27*1000000,0) -> 0.2693894832 | AH27: 1 | AI27: 0.9318029404 | AJ27: 1.2 | AK27: 0.3
A28: CBZZN 524 | B28: Nulkaba 33 | C28: =VLOOKUP(B28,'Zone - Area Plan'!$A$2:$B$224,2,1) -> Greater Cessnock | D28: 3.35 | E28: 1.7 | F28: 3.35 | G28: 1.7 | H28: 6.8 | I28: 13.2 | J28: 3 | K28: 2.525 | L28: 2.525 | M28: 2.53 | N28: 2.53 | O28: Greater Cessnock | P28: 2.525 | Q28: =VLOOKUP(B28,'OH & UG split'!$P$2:$S$187,3,FALSE)/VLOOKUP(B28,'OH & UG split'!$P$2:$S$187,4,FALSE) -> 0.843641653 | R28: 0.156358347 | S28: 1.657377221 | T28: 0.3071739781 | U28: 1.964551199 | W28: =250 -> 250 | X28: West Lake Macquarie | Y28: 1 | Z28: 1.29751642 | AA28: 0.2166633579 | AB28: 1.514179778 | AC28: =250000*$AC$1 -> 142500 | AD28: 1455183.324 | AE28: 9.105378388 | AF28: =IFERROR($AA28/AD28*1000000,0) -> 0.1488907647 | AH28: 0.8205128205 | AI28: 7.143822543 | AJ28: 9.2 | AK28: 1.95
A29: CBZZN 528 | B29: Maitland 33 | C29: =VLOOKUP(B29,'Zone - Area Plan'!$A$2:$B$224,2,1) -> Maitland | D29: 3.85 | E29: 1.15 | F29: 3.85 | G29: 1.15 | H29: 4.6 | I29: 21.6 | J29: 6 | K29: 2.5 | L29: 2.5 | M29: 2.5 | N29: 2.5 | O29: Maitland | P29: 2.5 | Q29: =VLOOKUP(B29,'OH & UG split'!$P$2:$S$187,3,FALSE)/VLOOKUP(B29,'OH & UG split'!$P$2:$S$187,4,FALSE) -> 0.7434181783 | R29: 0.2565818217 | S29: 1.443165093 | T29: 0.4980910332 | U29: 1.941256126 | Y29: =SUM(Y4:Y28) -> 67 | Z29: =SUM(Z4:Z28) -> 29.80131757 | AA29: =SUM(AA4:AA28) -> 30.40868243 | AB29: =SUM(AB4:AB28) -> 60.21 | AE29: =SUM(AE4:AE28) -> 209.1320531 | AF29: =SUM(AF4:AF28) -> 51.89873325 | AI29: =SUM(AI4:AI28) -> 276.8386536 | AJ29: =SUM(AJ4:AJ28) -> 356.52 | AK29: =SUM(AK4:AK28) -> 77.54
A30: CBZZN 532 | B30: Metford 33 | C30: =VLOOKUP(B30,'Zone - Area Plan'!$A$2:$B$224,2,1) -> Maitland | D30: 5.75 | E30: 5.75 | F30: 5.75 | G30: 5.75 | H30: 23 | I30: 0 | J30: 4 | K30: 5.75 | L30: 5.75 | M30: 5.75 | N30: 5.75 | O30: Maitland | P30: 5.75 | Q30: =VLOOKUP(B30,'OH & UG split'!$P$2:$S$187,3,FALSE)/VLOOKUP(B30,'OH & UG split'!$P$2:$S$187,4,FALSE) -> 0.5260747742 | R30: 0.4739252258 | S30: 2.34886552 | T30: 2.11602357 | U30: 4.46488909
A31: CBZZN 801 | B31: Muswellbrook 33 | C31: =VLOOKUP(B31,'Zone - Area Plan'!$A$2:$B$224,2,1) -> Upper Hunter | D31: 0.8 | E31: 0.25 | F31: 0.8 | G31: 0.25 | H31: 1 | I31: 4.4 | J31: 2 | K31: 0.525 | L31: 0.525 | M31: 0.53 | N31: 0.53 | O31: Upper Hunter | P31: 0.525 | Q31: =VLOOKUP(B31,'OH & UG split'!$P$2:$S$187,3,FALSE)/VLOOKUP(B31,'OH & UG split'!$P$2:$S$187,4,FALSE) -> 0.9418811308 | R31: 0.05811886923 | S31: 0.3876276932 | T31: 0.02391860552 | U31: 0.4115462987 | AB31: RIN 2.3.3 data | AC31: year 1 | AE31: =AE29/9 -> 23.23689479 | AF31: =AF29/9 -> 5.766525917
A32: CBZZN 812 | B32: Mitchell Line 66 | C32: =VLOOKUP(B32,'Zone - Area Plan'!$A$2:$B$224,2,1) -> Upper Hunter | D32: 1.4 | E32: 1.2 | F32: 1.4 | G32: 1.2 | H32: 4.8 | I32: 1.6 | J32: 2 | K32: 1.3 | L32: 1.3 | M32: 1.3 | N32: 1.3 | O32: Upper Hunter | P32: 1.3 | Q32: =VLOOKUP(B32,'OH & UG split'!$P$2:$S$187,3,FALSE)/VLOOKUP(B32,'OH & UG split'!$P$2:$S$187,4,FALSE) -> 0.8069043666 | R32: 0.1930956334 | S32: 0.8145321832 | T32: 0.1949210023 | U32: 1.009453185 | Y32: year 1 | Z32: =Z29/9*1000000 -> 3311257.508 | AA32: =AA29/9*1000000 -> 3378742.492 | AC32: year 2-5 | AE32: =AE31*2 -> 46.47378959 | AF32: =AF31*2 -> 11.53305183 | AI32: $/kVA threshold (total cost) | AJ32: based on $250/kVA direct
A33: CBZZN 813 | B33: Scone 66 | C33: =VLOOKUP(B33,'Zone - Area Plan'!$A$2:$B$224,2,1) -> Upper Hunter | D33: 1.05 | E33: 0.45 | F33: 1.05 | G33: 0.45 | H33: 1.8 | I33: 4.8 | J33: 2 | K33: 0.75 | L33: 0.75 | M33: 0.75 | N33: 0.75 | O33: Upper Hunter | P33: 0.75 | Q33: =VLOOKUP(B33,'OH & UG split'!$P$2:$S$187,3,FALSE)/VLOOKUP(B33,'OH & UG split'!$P$2:$S$187,4,FALSE) -> 0.971674913 | R33: 0.02832508698 | S33: 0.5658809632 | T33: 0.01649587459 | U33: 0.5823768378 | Y33: year 2-5 | Z33: =Z32*2 -> 6622515.016 | AA33: =AA32*2 -> 6757484.984 | AD33: upgraded | AE33: added | AF33: upgraded | AG33: added | AI33: =250/((Z29*AC1+AA29*AD1)/SUM(Z29:AA29)) -> 886.131785
A34: CBZZN 72 | B34: Five Dock Zone | C34: =VLOOKUP(B34,'Zone - Area Plan'!$A$2:$B$224,2,1) -> Auburn / Homebush | D34: 0.5 | E34: 0.5 | F34: 0 | G34: 0 | H34: 0 | I34: 0 | J34: 0 | K34: 0 | L34: 0.5 | M34: 0 | N34: 0 | P34: 0 | Q34: =VLOOKUP(B34,'OH & UG split'!$P$2:$S$187,3,FALSE)/VLOOKUP(B34,'OH & UG split'!$P$2:$S$187,4,FALSE) -> 2.164239822e-05 | R34: 0.9999783576 | S34: 0 | T34: 0 | U34: 0 | AB34: Forecast project info from HV expenditure forecast | AC34: 17/18 | AD34: 0.1 | AE34: 0 | AF34: 0.3 | AG34: 3.01
A35: CBZZN 80 | B35: Chatswood Zone | C35: =VLOOKUP(B35,'Zone - Area Plan'!$A$2:$B$224,2,1) -> Lower North Shore | D35: 0.8 | E35: 0.8 | F35: 0.5 | G35: 0.5 | H35: 2 | I35: 0 | J35: 1 | K35: 0.5 | L35: 0.8 | M35: 0.5 | N35: 0.5 | O35: Lower North Shore | P35: 0.5 | Q35: =VLOOKUP(B35,'OH & UG split'!$P$2:$S$187,3,FALSE)/VLOOKUP(B35,'OH & UG split'!$P$2:$S$187,4,FALSE) -> 0.1333828866 | R35: 0.8666171134 | S35: 0.05178606914 | T35: 0.336465156 | U35: 0.3882512252 | Z35: =Z32/SUM($Z32:$AA32) -> 0.4949562792 | AA35: =AA32/SUM($Z32:$AA32) -> 0.5050437208 | AC35: 18/19 | AD35: 3.65 | AE35: 0.08 | AF35: 0 | AG35: 4.25
A36: CBZZN 116 | B36: Leichhardt Zone | C36: =VLOOKUP(B36,'Zone - Area Plan'!$A$2:$B$224,2,1) -> Auburn / Homebush | D36: 1.1 | E36: 1.1 | F36: 0.55 | G36: 0.55 | H36: 2.2 | I36: 0 | J36: 2 | K36: 0.55 | L36: =D36-((D36-E36)*(1-$AN$1)) -> 1.1 | M36: =ROUNDUP((F36-((F36-G36)*(1-$AN$1))),2) -> 0.55 | N36: 0.55 | O36: Auburn / Homebush | P36: 0.55 | Q36: =VLOOKUP(B36,'OH & UG split'!$P$2:$S$187,3,FALSE)/VLOOKUP(B36,'OH & UG split'!$P$2:$S$187,4,FALSE) -> 0.02286284687 | R36: 0.9771371531 | S36: =Q36*$U36 -> 0.009764181138 | T36: =R36*$U36 -> 0.4173121666 | U36: 0.4270763477 | AD36: =SUM(AD34:AD35) -> 3.75 | AE36: =SUM(AE34:AE35) -> 0.08 | AF36: =SUM(AF34:AF35) -> 0.3 | AG36: =SUM(AG34:AG35) -> 7.26
A37: CBZZN 129 | B37: Hunters Hill Zone | C37: =VLOOKUP(B37,'Zone - Area Plan'!$A$2:$B$224,2,1) -> Carlingford | D37: 3.7 | E37: 3.7 | F37: 1.45 | G37: 1.45 | H37: 5.8 | I37: 0 | J37: 5 | K37: 1.45 | L37: 3.7 | M37: 1.45 | N37: 1.45 | O37: Carlingford | P37: 1.45 | Q37: =VLOOKUP(B37,'OH & UG split'!$P$2:$S$187,3,FALSE)/VLOOKUP(B37,'OH & UG split'!$P$2:$S$187,4,FALSE) -> 0.08679141251 | R37: 0.9132085875 | S37: 0.09772092951 | T37: 1.028207623 | U37: 1.125928553 | AD37: =AD36/SUM($AD$36:$AE$36) -> 0.9791122715 | AE37: =AE36/SUM($AD$36:$AE$36) -> 0.02088772846 | AF37: =AF36/SUM($AF$36:$AG$36) -> 0.03968253968 | AG37: =AG36/SUM($AF$36:$AG$36) -> 0.9603174603
A38: CBZZN 167 | B38: Auburn Zone | C38: =VLOOKUP(B38,'Zone - Area Plan'!$A$2:$B$224,2,1) -> Auburn / Homebush | D38: 0.9 | E38: 0.9 | F38: 0.45 | G38: 0.45 | H38: 1.8 | I38: 0 | J38: 1 | K38: 0.45 | L38: 0.9 | M38: 0.45 | N38: 0.45 | O38: Auburn / Homebush | P38: 0.45 | Q38: =VLOOKUP(B38,'OH & UG split'!$P$2:$S$187,3,FALSE)/VLOOKUP(B38,'OH & UG split'!$P$2:$S$187,4,FALSE) -> 0.007593907265 | R38: 0.9924060927 | S38: 0.00265350942 | T38: 0.3467725932 | U38: 0.3494261027 | Y38: direct % | Z38: =Z35*AC1+AA35*AD1 -> 0.2821250792
A39: CBZZN 188 | B39: Zetland Zone | C39: =VLOOKUP(B39,'Zone - Area Plan'!$A$2:$B$224,2,1) -> Eastern Suburbs | D39: 2.05 | E39: 2.05 | F39: 0 | G39: 0 | H39: 0 | I39: 0 | J39: 0 | K39: 0 | L39: 2.05 | M39: 0 | N39: 0 | P39: 0 | Q39: =VLOOKUP(B39,'OH & UG split'!$P$2:$S$187,3,FALSE)/VLOOKUP(B39,'OH & UG split'!$P$2:$S$187,4,FALSE) -> 0 | R39: 1 | S39: 0 | T39: 0 | U39: 0 | AC39: year 1 | AD39: =AD37*$AE$31 -> 22.75152885 | AE39: =AE37*$AE$31 -> 0.4853659487 | AF39: =AF37*$AF$31 -> 0.2288303935 | AG39: =AG37*$AF$31 -> 5.537695524
A40: CBZZN 262 | B40: Marrickville Zone | C40: =VLOOKUP(B40,'Zone - Area Plan'!$A$2:$B$224,2,1) -> Eastern Suburbs | D40: 1.1 | E40: 1.1 | F40: 0.5 | G40: 0.5 | H40: 2 | I40: 0 | J40: 2 | K40: 0.5 | L40: 1.1 | M40: 0.5 | N40: 0.5 | O40: Eastern Suburbs | P40: 0.5 | Q40: =VLOOKUP(B40,'OH & UG split'!$P$2:$S$187,3,FALSE)/VLOOKUP(B40,'OH & UG split'!$P$2:$S$187,4,FALSE) -> 2.978659524e-05 | R40: 0.9999702134 | S40: 1.156468209e-05 | T40: 0.3882396605 | U40: 0.3882512252 | AC40: year 2-5 | AD40: =AD37*$AE$32 -> 45.50305769 | AE40: =AE37*$AE$32 -> 0.9707318974 | AF40: =AF37*$AF$32 -> 0.4576607871 | AG40: =AG37*$AF$32 -> 11.07539105
A41: CBZZN 340 | B41: Botany Zone | C41: =VLOOKUP(B41,'Zone - Area Plan'!$A$2:$B$224,2,1) -> Eastern Suburbs | D41: 0.55 | E41: 0.55 | F41: 0 | G41: 0 | H41: 0 | I41: 0 | J41: 0 | K41: 0 | L41: 0.55 | M41: 0 | N41: 0 | P41: 0 | Q41: =VLOOKUP(B41,'OH & UG split'!$P$2:$S$187,3,FALSE)/VLOOKUP(B41,'OH & UG split'!$P$2:$S$187,4,FALSE) -> 0.002046545803 | R41: 0.9979534542 | S41: 0 | T41: 0 | U41: 0
A42: CBZZN 342 | B42: Paddington Zone | C42: =VLOOKUP(B42,'Zone - Area Plan'!$A$2:$B$224,2,1) -> Eastern Suburbs | D42: 0.35 | E42: 0.35 | F42: 0 | G42: 0 | H42: 0 | I42: 0 | J42: 0 | K42: 0 | L42: 0.35 | M42: 0 | N42: 0 | P42: 0 | Q42: =VLOOKUP(B42,'OH & UG split'!$P$2:$S$187,3,FALSE)/VLOOKUP(B42,'OH & UG split'!$P$2:$S$187,4,FALSE) -> 0 | R42: 1 | S42: 0 | T42: 0 | U42: 0
A43: CBZZN 384 | B43: Camperdown Zone | C43: =VLOOKUP(B43,'Zone - Area Plan'!$A$2:$B$224,2,1) -> Camperdown & Blackwattle Bay | D43: 1 | E43: 1 | F43: 0 | G43: 0 | H43: 0 | I43: 0 | J43: 0 | K43: 0 | L43: 1 | M43: 0 | N43: 0 | P43: 0 | Q43: =VLOOKUP(B43,'OH & UG split'!$P$2:$S$187,3,FALSE)/VLOOKUP(B43,'OH & UG split'!$P$2:$S$187,4,FALSE) -> 0 | R43: 1 | S43: 0 | T43: 0 | U43: 0
A44: CBZZN 398 | B44: Dulwich Hill Zone | C44: =VLOOKUP(B44,'Zone - Area Plan'!$A$2:$B$224,2,1) -> Canterbury Bankstown | D44: 1.25 | E44: 1.25 | F44: 0 | G44: 0 | H44: 0 | I44: 0 | J44: 0 | K44: 0 | L44: 1.25 | M44: 0 | N44: 0 | P44: 0 | Q44: =VLOOKUP(B44,'OH & UG split'!$P$2:$S$187,3,FALSE)/VLOOKUP(B44,'OH & UG split'!$P$2:$S$187,4,FALSE) -> 3.723010507e-05 | R44: 0.9999627699 | S44: 0 | T44: 0 | U44: 0
A45: CBZZN 630 | B45: Mascot Zone | C45: =VLOOKUP(B45,'Zone - Area Plan'!$A$2:$B$224,2,1) -> Eastern Suburbs | D45: 5.75 | E45: 5.75 | F45: 0 | G45: 0 | H45: 0 | I45: 0 | J45: 0 | K45: 0 | L45: 5.75 | M45: 0 | N45: 0 | P45: 0 | Q45: =VLOOKUP(B45,'OH & UG split'!$P$2:$S$187,3,FALSE)/VLOOKUP(B45,'OH & UG split'!$P$2:$S$187,4,FALSE) -> 0 | R45: 1 | S45: 0 | T45: 0 | U45: 0
A46: CBZZN 690 | B46: Campsie Zone | C46: =VLOOKUP(B46,'Zone - Area Plan'!$A$2:$B$224,2,1) -> Canterbury Bankstown | D46: 1 | E46: 1 | F46: 0.4 | G46: 0.4 | H46: 1.6 | I46: 0 | J46: 1 | K46: 0.4 | L46: 1 | M46: 0.4 | N46: 0.4 | O46: Canterbury Bankstown | P46: 0.4 | Q46: =VLOOKUP(B46,'OH & UG split'!$P$2:$S$187,3,FALSE)/VLOOKUP(B46,'OH & UG split'!$P$2:$S$187,4,FALSE) -> 2.205528135e-05 | R46: 0.9999779447 | S46: 6.850392005e-06 | T46: 0.3105941297 | U46: 0.3106009801
A47: CBZZN 847 | B47: Hornsby Zone | C47: =VLOOKUP(B47,'Zone - Area Plan'!$A$2:$B$224,2,1) -> North West | D47: 0.5 | E47: 0 | F47: 0 | G47: 0 | H47: 0 | I47: 0 | J47: 0 | K47: 0 | L47: 0.25 | M47: 0 | N47: 0 | P47: 0 | Q47: =VLOOKUP(B47,'OH & UG split'!$P$2:$S$187,3,FALSE)/VLOOKUP(B47,'OH & UG split'!$P$2:$S$187,4,FALSE) -> 0.3308780346 | R47: 0.6691219654 | S47: 0 | T47: 0 | U47: 0
A48: CBZZN 874 | B48: Concord Zone | C48: =VLOOKUP(B48,'Zone - Area Plan'!$A$2:$B$224,2,1) -> Auburn / Homebush | D48: 2.85 | E48: 2.85 | F48: 1.65 | G48: 1.65 | H48: 6.6 | I48: 0 | J48: 4 | K48: 1.65 | L48: 2.85 | M48: 1.65 | N48: 1.65 | O48: Auburn / Homebush | P48: 1.65 | Q48: =VLOOKUP(B48,'OH & UG split'!$P$2:$S$187,3,FALSE)/VLOOKUP(B48,'OH & UG split'!$P$2:$S$187,4,FALSE) -> 1.552288983e-05 | R48: 0.9999844771 | S48: 1.988837728e-05 | T48: 1.281209155 | U48: 1.281229043
A49: CBZZN 901 | B49: Surry Hills Zone | C49: =VLOOKUP(B49,'Zone - Area Plan'!$A$2:$B$224,2,1) -> Eastern Suburbs | D49: 1.85 | E49: 1.85 | F49: 0 | G49: 0 | H49: 0 | I49: 0 | J49: 0 | K49: 0 | L49: 1.85 | M49: 0 | N49: 0 | P49: 0 | Q49: =VLOOKUP(B49,'OH & UG split'!$P$2:$S$187,3,FALSE)/VLOOKUP(B49,'OH & UG split'!$P$2:$S$187,4,FALSE) -> 0 | R49: 1 | S49: 0 | T49: 0 | U49: 0
A50: CBZZN 965 | B50: Pennant Hills Zone | C50: =VLOOKUP(B50,'Zone - Area Plan'!$A$2:$B$224,2,1) -> North West | D50: 1.55 | E50: 1.55 | F50: 1.55 | G50: 1.55 | H50: 6.2 | I50: 0 | J50: 10 | K50: 1.55 | L50: 1.55 | M50: 1.55 | N50: 1.55 | O50: North West | P50: 1.55 | Q50: =VLOOKUP(B50,'OH & UG split'!$P$2:$S$187,3,FALSE)/VLOOKUP(B50,'OH & UG split'!$P$2:$S$187,4,FALSE) -> 0.1183892194 | R50: 0.8816107806 | S50: 0.1424907544 | T50: 1.061088044 | U50: 1.203578798
A51: CBZZN 1193 | B51: Lindfield Zone | C51: =VLOOKUP(B51,'Zone - Area Plan'!$A$2:$B$224,2,1) -> Upper North Shore | D51: 0.4 | E51: 0.4 | F51: 0 | G51: 0 | H51: 0 | I51: 0 | J51: 0 | K51: 0 | L51: 0.4 | M51: 0 | N51: 0 | P51: 0 | Q51: =VLOOKUP(B51,'OH & UG split'!$P$2:$S$187,3,FALSE)/VLOOKUP(B51,'OH & UG split'!$P$2:$S$187,4,FALSE) -> 0.3799812633 | R51: 0.6200187367 | S51: 0 | T51: 0 | U51: 0
A52: CBZZN 1285 | B52: Greenacre Park Zone | C52: =VLOOKUP(B52,'Zone - Area Plan'!$A$2:$B$224,2,1) -> Canterbury Bankstown | D52: 4.25 | E52: 4.25 | F52: 1.6 | G52: 1.6 | H52: 6.4 | I52: 0 | J52: 3 | K52: 1.6 | L52: 4.25 | M52: 1.6 | N52: 1.6 | O52: Canterbury Bankstown | P52: 1.6 | Q52: =VLOOKUP(B52,'OH & UG split'!$P$2:$S$187,3,FALSE)/VLOOKUP(B52,'OH & UG split'!$P$2:$S$187,4,FALSE) -> 0.1106213327 | R52: 0.8893786673 | S52: 0.1374363775 | T52: 1.104967543 | U52: 1.242403921
A53: CBZZN 1287 | B53: Revesby Zone | C53: =VLOOKUP(B53,'Zone - Area Plan'!$A$2:$B$224,2,1) -> Canterbury Bankstown | D53: 0.4 | E53: 0.4 | F53: 0 | G53: 0 | H53: 0 | I53: 0 | J53: 0 | K53: 0 | L53: 0.4 | M53: 0 | N53: 0 | P53: 0 | Q53: =VLOOKUP(B53,'OH & UG split'!$P$2:$S$187,3,FALSE)/VLOOKUP(B53,'OH & UG split'!$P$2:$S$187,4,FALSE) -> 0.2931544144 | R53: 0.7068455856 | S53: 0 | T53: 0 | U53: 0
A54: CBZZN 1610 | B54: Homebush Bay Zone | C54: =VLOOKUP(B54,'Zone - Area Plan'!$A$2:$B$224,2,1) -> Auburn / Homebush | D54: 1.05 | E54: 1.05 | F54: 0 | G54: 0 | H54: 0 | I54: 0 | J54: 0 | K54: 0 | L54: 1.05 | M54: 0 | N54: 0 | P54: 0 | Q54: =VLOOKUP(B54,'OH & UG split'!$P$2:$S$187,3,FALSE)/VLOOKUP(B54,'OH & UG split'!$P$2:$S$187,4,FALSE) -> 0.001439727458 | R54: 0.9985602725 | S54: 0 | T54: 0 | U54: 0
A55: CBZZN 1850 | B55: Bass Hill Zone | C55: =VLOOKUP(B55,'Zone - Area Plan'!$A$2:$B$224,2,1) -> Canterbury Bankstown | D55: 3.85 | E55: 3.85 | F55: 2.5 | G55: 2.5 | H55: 10 | I55: 0 | J55: 5 | K55: 2.5 | L55: 3.85 | M55: 2.5 | N55: 2.5 | O55: Canterbury Bankstown | P55: 2.5 | Q55: =VLOOKUP(B55,'OH & UG split'!$P$2:$S$187,3,FALSE)/VLOOKUP(B55,'OH & UG split'!$P$2:$S$187,4,FALSE) -> 0.2558785576 | R55: 0.7441214424 | S55: 0.4967258174 | T55: 1.444530308 | U55: 1.941256126
A56: CBZZN 2196 | B56: Milperra Zone | C56: =VLOOKUP(B56,'Zone - Area Plan'!$A$2:$B$224,2,1) -> Canterbury Bankstown | D56: 0.45 | E56: 0.45 | F56: 0 | G56: 0 | H56: 0 | I56: 0 | J56: 0 | K56: 0 | L56: 0.45 | M56: 0 | N56: 0 | P56: 0 | Q56: =VLOOKUP(B56,'OH & UG split'!$P$2:$S$187,3,FALSE)/VLOOKUP(B56,'OH & UG split'!$P$2:$S$187,4,FALSE) -> 0.2092634564 | R56: 0.7907365436 | S56: 0 | T56: 0 | U56: 0
A57: CBZZN 2310 | B57: Punchbowl Zone | C57: =VLOOKUP(B57,'Zone - Area Plan'!$A$2:$B$224,2,1) -> Canterbury Bankstown | D57: 2 | E57: 2 | F57: 1.15 | G57: 1.15 | H57: 4.6 | I57: 0 | J57: 4 | K57: 1.15 | L57: 2 | M57: 1.15 | N57: 1.15 | O57: Canterbury Bankstown | P57: 1.15 | Q57: =VLOOKUP(B57,'OH & UG split'!$P$2:$S$187,3,FALSE)/VLOOKUP(B57,'OH & UG split'!$P$2:$S$187,4,FALSE) -> 0 | R57: 1 | S57: 0 | T57: 0.8929778179 | U57: 0.8929778179
A58: CBZZN 2400 | B58: Berowra Zone | C58: =VLOOKUP(B58,'Zone - Area Plan'!$A$2:$B$224,2,1) -> North West | D58: 1.35 | E58: 0.95 | F58: 1.15 | G58: 0.75 | H58: 3 | I58: 3.2 | J58: 3 | K58: 0.95 | L58: 1.15 | M58: 0.95 | N58: 0.95 | O58: North West | P58: 0.95 | Q58: =VLOOKUP(B58,'OH & UG split'!$P$2:$S$187,3,FALSE)/VLOOKUP(B58,'OH & UG split'!$P$2:$S$187,4,FALSE) -> 0.6405978391 | R58: 0.3594021609 | S58: 0.4725545022 | T58: 0.2651228257 | U58: 0.7376773278
A59: CBZZN 2466 | B59: Flemington Zone | C59: =VLOOKUP(B59,'Zone - Area Plan'!$A$2:$B$224,2,1) -> Auburn / Homebush | D59: 2.05 | E59: 2.05 | F59: 0.35 | G59: 0.35 | H59: 1.4 | I59: 0 | J59: 2 | K59: 0.35 | L59: 2.05 | M59: 0.35 | N59: 0.35 | O59: Auburn / Homebush | P59: 0.35 | Q59: =VLOOKUP(B59,'OH & UG split'!$P$2:$S$187,3,FALSE)/VLOOKUP(B59,'OH & UG split'!$P$2:$S$187,4,FALSE) -> 0 | R59: 1 | S59: 0 | T59: 0.2717758576 | U59: 0.2717758576
A60: CBZZN 2568 | B60: St Peters Zone | C60: =VLOOKUP(B60,'Zone - Area Plan'!$A$2:$B$224,2,1) -> Eastern Suburbs | D60: 2.55 | E60: 2.55 | F60: 1.1 | G60: 1.1 | H60: 4.4 | I60: 0 | J60: 2 | K60: 1.1 | L60: 2.55 | M60: 1.1 | N60: 1.1 | O60: Eastern Suburbs | P60: 1.1 | Q60: =VLOOKUP(B60,'OH & UG split'!$P$2:$S$187,3,FALSE)/VLOOKUP(B60,'OH & UG split'!$P$2:$S$187,4,FALSE) -> 0 | R60: 1 | S60: 0 | T60: 0.8541526954 | U60: 0.8541526954
A61: CBZZN 2602 | B61: Clovelly Zone | C61: =VLOOKUP(B61,'Zone - Area Plan'!$A$2:$B$224,2,1) -> Eastern Suburbs | D61: 0.45 | E61: 0.45 | F61: 0 | G61: 0 | H61: 0 | I61: 0 | J61: 0 | K61: 0 | L61: 0.45 | M61: 0 | N61: 0 | P61: 0 | Q61: =VLOOKUP(B61,'OH & UG split'!$P$2:$S$187,3,FALSE)/VLOOKUP(B61,'OH & UG split'!$P$2:$S$187,4,FALSE) -> 0 | R61: 1 | S61: 0 | T61: 0 | U61: 0
A62: CBZZN 2835 | B62: Burwood Zone | C62: =VLOOKUP(B62,'Zone - Area Plan'!$A$2:$B$224,2,1) -> Auburn / Homebush | D62: 2.9 | E62: 2.9 | F62: 0.6 | G62: 0.6 | H62: 2.4 | I62: 0 | J62: 3 | K62: 0.6 | L62: 2.9 | M62: 0.6 | N62: 0.6 | O62: Auburn / Homebush | P62: 0.6 | Q62: =VLOOKUP(B62,'OH & UG split'!$P$2:$S$187,3,FALSE)/VLOOKUP(B62,'OH & UG split'!$P$2:$S$187,4,FALSE) -> 0 | R62: 1 | S62: 0 | T62: 0.4659014702 | U62: 0.4659014702
A63: CBZZN 3154 | B63: St Ives Zone | C63: =VLOOKUP(B63,'Zone - Area Plan'!$A$2:$B$224,2,1) -> Upper North Shore | D63: 0.65 | E63: 0.65 | F63: 0.3 | G63: 0.3 | H63: 1.2 | I63: 0 | J63: 2 | K63: 0.3 | L63: 0.65 | M63: 0.3 | N63: 0.3 | O63: Upper North Shore | P63: 0.3 | Q63: =VLOOKUP(B63,'OH & UG split'!$P$2:$S$187,3,FALSE)/VLOOKUP(B63,'OH & UG split'!$P$2:$S$187,4,FALSE) -> 0.3102678349 | R63: 0.6897321651 | S63: 0.07227712023 | T63: 0.1606736149 | U63: 0.2329507351
A64: CBZZN 3155 | B64: Double Bay Zone | C64: =VLOOKUP(B64,'Zone - Area Plan'!$A$2:$B$224,2,1) -> Eastern Suburbs | D64: 0.4 | E64: 0.4 | F64: 0 | G64: 0 | H64: 0 | I64: 0 | J64: 0 | K64: 0 | L64: 0.4 | M64: 0 | N64: 0 | P64: 0 | Q64: =VLOOKUP(B64,'OH & UG split'!$P$2:$S$187,3,FALSE)/VLOOKUP(B64,'OH & UG split'!$P$2:$S$187,4,FALSE) -> 0 | R64: 1 | S64: 0 | T64: 0 | U64: 0
A65: CBZZN 3472 | B65: Sefton Zone | C65: =VLOOKUP(B65,'Zone - Area Plan'!$A$2:$B$224,2,1) -> Canterbury Bankstown | D65: 2 | E65: 2 | F65: 1.25 | G65: 1.25 | H65: 5 | I65: 0 | J65: 3 | K65: 1.25 | L65: 2 | M65: 1.25 | N65: 1.25 | O65: Canterbury Bankstown | P65: 1.25 | Q65: =VLOOKUP(B65,'OH & UG split'!$P$2:$S$187,3,FALSE)/VLOOKUP(B65,'OH & UG split'!$P$2:$S$187,4,FALSE) -> 0.1574674037 | R65: 0.8425325963 | S65: 0.152842281 | T65: 0.8177857819 | U65: 0.9706280629
A66: CBZZN 3922 | B66: Drummoyne Zone | C66: =VLOOKUP(B66,'Zone - Area Plan'!$A$2:$B$224,2,1) -> Auburn / Homebush | D66: 3.6 | E66: 3.6 | F66: 1.95 | G66: 1.95 | H66: 7.8 | I66: 0 | J66: 5 | K66: 1.95 | L66: 3.6 | M66: 1.95 | N66: 1.95 | O66: Auburn / Homebush | P66: 1.95 | Q66: =VLOOKUP(B66,'OH & UG split'!$P$2:$S$187,3,FALSE)/VLOOKUP(B66,'OH & UG split'!$P$2:$S$187,4,FALSE) -> 0 | R66: 1 | S66: 0 | T66: 1.514179778 | U66: 1.514179778
A67: CBZZN 4545 | B67: Meadowbank Zone | C67: =VLOOKUP(B67,'Zone - Area Plan'!$A$2:$B$224,2,1) -> Carlingford | D67: 0.4 | E67: 0.4 | F67: 0 | G67: 0 | H67: 0 | I67: 0 | J67: 0 | K67: 0 | L67: 0.4 | M67: 0 | N67: 0 | P67: 0 | Q67: =VLOOKUP(B67,'OH & UG split'!$P$2:$S$187,3,FALSE)/VLOOKUP(B67,'OH & UG split'!$P$2:$S$187,4,FALSE) -> 0.1982034322 | R67: 0.8017965678 | S67: 0 | T67: 0 | U67: 0
A68: CBZZN 7481 | B68: Darling Harbour Zone | C68: =VLOOKUP(B68,'Zone - Area Plan'!$A$2:$B$224,2,1) -> Camperdown & Blackwattle Bay | D68: 2.9 | E68: 2.9 | F68: 0 | G68: 0 | H68: 0 | I68: 0 | J68: 0 | K68: 0 | L68: =D68-((D68-E68)*(1-$AN$1)) -> 2.9 | M68: =ROUNDUP((F68-((F68-G68)*(1-$AN$1))),2) -> 0 | N68: 0 | P68: 0 | Q68: =VLOOKUP(B68,'OH & UG split'!$P$2:$S$187,3,FALSE)/VLOOKUP(B68,'OH & UG split'!$P$2:$S$187,4,FALSE) -> 0 | R68: 1 | S68: =Q68*$U68 -> 0 | T68: =R68*$U68 -> 0 | U68: 0
A69: CBZZN 7900 | B69: Campbell St Zone | C69: =VLOOKUP(B69,'Zone - Area Plan'!$A$2:$B$224,2,1) -> Eastern Suburbs | D69: 1.45 | E69: 1.45 | F69: 0.55 | G69: 0.55 | H69: =G69/250*1000 -> 2.2 | I69: =(F69-G69)/125*1000 -> 0 | J69: 1 | K69: =AVERAGE(F69:G69) -> 0.55 | L69: 1.45 | M69: 0.55 | N69: =M69 -> 0.55 | O69: =IF(N69<>0,C69,"") -> Eastern Suburbs | P69: =(H69*250+I69*125*$AN$1)/1000 -> 0.55 | Q69: =VLOOKUP(B69,'OH & UG split'!$P$2:$S$187,3,FALSE)/VLOOKUP(B69,'OH & UG split'!$P$2:$S$187,4,FALSE) -> 0 | R69: =1-Q69 -> 1 | S69: 0 | T69: 0.4270763477 | U69: =N69*$T$1 -> 0.4270763477
A70: CBZZN 8000 | B70: Macquarie Park Zone | C70: =VLOOKUP(B70,'Zone - Area Plan'!$A$2:$B$224,2,1) -> Carlingford | D70: 9.05 | E70: 9.05 | F70: 0.5 | G70: 0.5 | H70: 2 | I70: 0 | J70: 1 | K70: 0.5 | L70: 9.05 | M70: 0.5 | N70: 0.5 | O70: Carlingford | P70: 0.5 | Q70: =VLOOKUP(B70,'OH & UG split'!$P$2:$S$187,3,FALSE)/VLOOKUP(B70,'OH & UG split'!$P$2:$S$187,4,FALSE) -> 0.05118477695 | R70: 0.948815223 | S70: 0.01987255236 | T70: 0.3683786728 | U70: 0.3882512252
A71: CBZZN 9035 | B71: Caringbah Zone | C71: =VLOOKUP(B71,'Zone - Area Plan'!$A$2:$B$224,2,1) -> Sutherland | D71: 0.55 | E71: 0.55 | F71: 0.3 | G71: 0.3 | H71: 1.2 | I71: 0 | J71: 1 | K71: 0.3 | L71: 0.55 | M71: 0.3 | N71: 0.3 | O71: Sutherland | P71: 0.3 | Q71: =VLOOKUP(B71,'OH & UG split'!$P$2:$S$187,3,FALSE)/VLOOKUP(B71,'OH & UG split'!$P$2:$S$187,4,FALSE) -> 0.07797617152 | R71: 0.9220238285 | S71: 0.01816460648 | T71: 0.2147861286 | U71: 0.2329507351
A72: CBZZN 9900 | B72: Menai Zone | C72: =VLOOKUP(B72,'Zone - Area Plan'!$A$2:$B$224,2,1) -> Sutherland | D72: 1.35 | E72: 1.35 | F72: 1.15 | G72: 1.15 | H72: 4.6 | I72: 0 | J72: 3 | K72: 1.15 | L72: 1.35 | M72: 1.15 | N72: 1.15 | O72: Sutherland | P72: 1.15 | Q72: =VLOOKUP(B72,'OH & UG split'!$P$2:$S$187,3,FALSE)/VLOOKUP(B72,'OH & UG split'!$P$2:$S$187,4,FALSE) -> 0.06408656116 | R72: 0.9359134388 | S72: 0.05722787754 | T72: 0.8357499404 | U72: 0.8929778179
A73: CBZZN10994 | B73: Mortdale Zone | C73: =VLOOKUP(B73,'Zone - Area Plan'!$A$2:$B$224,2,1) -> St George | D73: 2.55 | E73: 2.55 | F73: 2.45 | G73: 2.45 | H73: 9.8 | I73: 0 | J73: 4 | K73: 2.45 | L73: 2.55 | M73: 2.45 | N73: 2.45 | O73: St George | P73: 2.45 | Q73: =VLOOKUP(B73,'OH & UG split'!$P$2:$S$187,3,FALSE)/VLOOKUP(B73,'OH & UG split'!$P$2:$S$187,4,FALSE) -> 0.487191955 | R73: 0.512808045 | S73: 0.9268490798 | T73: 0.9755819236 | U73: 1.902431003
A74: CBZZN10997 | B74: Sans Souci Zone | C74: =VLOOKUP(B74,'Zone - Area Plan'!$A$2:$B$224,2,1) -> St George | D74: 0.8 | E74: 0.8 | F74: 0 | G74: 0 | H74: 0 | I74: 0 | J74: 0 | K74: 0 | L74: 0.8 | M74: 0 | N74: 0 | P74: 0 | Q74: =VLOOKUP(B74,'OH & UG split'!$P$2:$S$187,3,FALSE)/VLOOKUP(B74,'OH & UG split'!$P$2:$S$187,4,FALSE) -> 0.3686815894 | R74: 0.6313184106 | S74: 0 | T74: 0 | U74: 0
A75: CBZZN12570 | B75: Avoca Zone | C75: =VLOOKUP(B75,'Zone - Area Plan'!$A$2:$B$224,2,1) -> Lower Central Coast | D75: 0.3 | E75: 0 | F75: 0 | G75: 0 | H75: 0 | I75: 0 | J75: 0 | K75: 0 | L75: 0.15 | M75: 0 | N75: 0 | P75: 0 | Q75: =VLOOKUP(B75,'OH & UG split'!$P$2:$S$187,3,FALSE)/VLOOKUP(B75,'OH & UG split'!$P$2:$S$187,4,FALSE) -> 0.5403291537 | R75: 0.4596708463 | S75: 0 | T75: 0 | U75: 0
A76: CBZZN12580 | B76: Erina Zone | C76: =VLOOKUP(B76,'Zone - Area Plan'!$A$2:$B$224,2,1) -> Lower Central Coast | D76: 1.1 | E76: 1.1 | F76: 0.95 | G76: 0.95 | H76: 3.8 | I76: 0 | J76: 5 | K76: 0.95 | L76: 1.1 | M76: 0.95 | N76: 0.95 | O76: Lower Central Coast | P76: 0.95 | Q76: =VLOOKUP(B76,'OH & UG split'!$P$2:$S$187,3,FALSE)/VLOOKUP(B76,'OH & UG split'!$P$2:$S$187,4,FALSE) -> 0.4471182455 | R76: 0.5528817545 | S76: 0.3298289925 | T76: 0.4078483353 | U76: 0.7376773278
A77: CBZZN12600 | B77: Lisarow Zone | C77: =VLOOKUP(B77,'Zone - Area Plan'!$A$2:$B$224,2,1) -> Lower Central Coast | D77: 0.25 | E77: 0 | F77: 0 | G77: 0 | H77: 0 | I77: 0 | J77: 0 | K77: 0 | L77: 0.125 | M77: 0 | N77: 0 | P77: 0 | Q77: =VLOOKUP(B77,'OH & UG split'!$P$2:$S$187,3,FALSE)/VLOOKUP(B77,'OH & UG split'!$P$2:$S$187,4,FALSE) -> 0.7253764912 | R77: 0.2746235088 | S77: 0 | T77: 0 | U77: 0
A78: CBZZN12610 | B78: Long Jetty Zone | C78: =VLOOKUP(B78,'Zone - Area Plan'!$A$2:$B$224,2,1) -> Lower Central Coast | D78: 0.5 | E78: 0.5 | F78: 0.45 | G78: 0.45 | H78: 1.8 | I78: 0 | J78: 3 | K78: 0.45 | L78: 0.5 | M78: 0.45 | N78: 0.45 | O78: Lower Central Coast | P78: 0.45 | Q78: =VLOOKUP(B78,'OH & UG split'!$P$2:$S$187,3,FALSE)/VLOOKUP(B78,'OH & UG split'!$P$2:$S$187,4,FALSE) -> 0.6386020704 | R78: 0.3613979296 | S78: 0.2231442326 | T78: 0.12628187 | U78: 0.3494261027
A79: CBZZN12630 | B79: Peats Ridge Zone | C79: =VLOOKUP(B79,'Zone - Area Plan'!$A$2:$B$224,2,1) -> Lower Central Coast | D79: 0.8 | E79: 0 | F79: 0.6 | G79: 0 | H79: 0 | I79: 4.8 | J79: 1 | K79: 0.3 | L79: 0.4 | M79: 0.3 | N79: 0.3 | O79: Lower Central Coast | P79: 0.3 | Q79: =VLOOKUP(B79,'OH & UG split'!$P$2:$S$187,3,FALSE)/VLOOKUP(B79,'OH & UG split'!$P$2:$S$187,4,FALSE) -> 0.9253284405 | R79: 0.07467155952 | S79: 0.2155559404 | T79: 0.01739479468 | U79: 0.2329507351
A80: CBZZN12650 | B80: West Gosford Zone | C80: =VLOOKUP(B80,'Zone - Area Plan'!$A$2:$B$224,2,1) -> Lower Central Coast | D80: 2 | E80: 1.8 | F80: 1.25 | G80: 1.25 | H80: 5 | I80: 0 | J80: 6 | K80: 1.25 | L80: 1.9 | M80: 1.25 | N80: 1.25 | O80: Lower Central Coast | P80: 1.25 | Q80: =VLOOKUP(B80,'OH & UG split'!$P$2:$S$187,3,FALSE)/VLOOKUP(B80,'OH & UG split'!$P$2:$S$187,4,FALSE) -> 0.6279494742 | R80: 0.3720505258 | S80: 0.6095053818 | T80: 0.3611226812 | U80: 0.9706280629
A81: CBZZN12690 | B81: Berkeley Vale Zone | C81: =VLOOKUP(B81,'Zone - Area Plan'!$A$2:$B$224,2,1) -> Lower Central Coast | D81: 1.4 | E81: 1.1 | F81: 0.45 | G81: 0.45 | H81: 1.8 | I81: 0 | J81: 6 | K81: 0.45 | L81: 1.25 | M81: 0.45 | N81: 0.45 | O81: Lower Central Coast | P81: 0.45 | Q81: =VLOOKUP(B81,'OH & UG split'!$P$2:$S$187,3,FALSE)/VLOOKUP(B81,'OH & UG split'!$P$2:$S$187,4,FALSE) -> 0.5734952974 | R81: 0.4265047026 | S81: 0.2003942267 | T81: 0.149031876 | U81: 0.3494261027
A82: CBZZN13000 | B82: Lake Munmorah Zone | C82: =VLOOKUP(B82,'Zone - Area Plan'!$A$2:$B$224,2,1) -> Upper Central Coast | D82: 0.95 | E82: 0 | F82: 0.9 | G82: 0 | H82: 0 | I82: 7.2 | J82: 1 | K82: 0.45 | L82: 0.475 | M82: 0.45 | N82: 0.45 | O82: Upper Central Coast | P82: 0.45 | Q82: =VLOOKUP(B82,'OH & UG split'!$P$2:$S$187,3,FALSE)/VLOOKUP(B82,'OH & UG split'!$P$2:$S$187,4,FALSE) -> 0.6785603646 | R82: 0.3214396354 | S82: 0.2371067036 | T82: 0.112319399 | U82: 0.3494261027
A83: CBZZN14143 | B83: Somersby Zone | C83: =VLOOKUP(B83,'Zone - Area Plan'!$A$2:$B$224,2,1) -> Lower Central Coast | D83: 2.2 | E83: 1.65 | F83: 1.25 | G83: 1.25 | H83: 5 | I83: 0 | J83: 3 | K83: 1.25 | L83: 1.925 | M83: 1.25 | N83: 1.25 | O83: Lower Central Coast | P83: 1.25 | Q83: =VLOOKUP(B83,'OH & UG split'!$P$2:$S$187,3,FALSE)/VLOOKUP(B83,'OH & UG split'!$P$2:$S$187,4,FALSE) -> 0.7225019165 | R83: 0.2774980835 | S83: 0.7012806357 | T83: 0.2693474273 | U83: 0.9706280629
A84: CBZZN14891 | B84: Wyong Zone | C84: =VLOOKUP(B84,'Zone - Area Plan'!$A$2:$B$224,2,1) -> Upper Central Coast | D84: 2.65 | E84: 0.75 | F84: 2 | G84: 0.6 | H84: 2.4 | I84: 11.2 | J84: 10 | K84: 1.3 | L84: 1.7 | M84: 1.3 | N84: 1.3 | O84: Upper Central Coast | P84: 1.3 | Q84: =VLOOKUP(B84,'OH & UG split'!$P$2:$S$187,3,FALSE)/VLOOKUP(B84,'OH & UG split'!$P$2:$S$187,4,FALSE) -> 0.7351178255 | R84: 0.2648821745 | S84: 0.7420670307 | T84: 0.2673861548 | U84: 1.009453185
A85: CBZZN14892 | B85: Charmhaven Zone | C85: =VLOOKUP(B85,'Zone - Area Plan'!$A$2:$B$224,2,1) -> Upper Central Coast | D85: 1.9 | E85: 1.65 | F85: 1.45 | G85: 1.2 | H85: 4.8 | I85: 2 | J85: 6 | K85: 1.325 | L85: 1.775 | M85: 1.33 | N85: 1.33 | O85: Upper Central Coast | P85: 1.325 | Q85: =VLOOKUP(B85,'OH & UG split'!$P$2:$S$187,3,FALSE)/VLOOKUP(B85,'OH & UG split'!$P$2:$S$187,4,FALSE) -> 0.3974514626 | R85: 0.6025485374 | S85: 0.410467306 | T85: 0.622280953 | U85: 1.032748259
A86: CBZZN35400 | B86: North Sydney Zone | C86: =VLOOKUP(B86,'Zone - Area Plan'!$A$2:$B$224,2,1) -> Lower North Shore | D86: 0.8 | E86: 0.8 | F86: 0.4 | G86: 0.4 | H86: 1.6 | I86: 0 | J86: 1 | K86: 0.4 | L86: 0.8 | M86: 0.4 | N86: 0.4 | O86: Lower North Shore | P86: 0.4 | Q86: =VLOOKUP(B86,'OH & UG split'!$P$2:$S$187,3,FALSE)/VLOOKUP(B86,'OH & UG split'!$P$2:$S$187,4,FALSE) -> 0 | R86: 1 | S86: 0 | T86: 0.3106009801 | U86: 0.3106009801
A87: CBZZN35500 | B87: Top Ryde Zone | C87: =VLOOKUP(B87,'Zone - Area Plan'!$A$2:$B$224,2,1) -> Carlingford | D87: 6.65 | E87: 5.3 | F87: 0.4 | G87: 0.4 | H87: 1.6 | I87: 0 | J87: 3 | K87: 0.4 | L87: 5.975 | M87: 0.4 | N87: 0.4 | O87: Carlingford | P87: 0.4 | Q87: =VLOOKUP(B87,'OH & UG split'!$P$2:$S$187,3,FALSE)/VLOOKUP(B87,'OH & UG split'!$P$2:$S$187,4,FALSE) -> 0.2202566385 | R87: 0.7797433615 | S87: 0.06841192779 | T87: 0.2421890524 | U87: 0.3106009801
A88: CBZZN35700 | B88: Port Botany Zone | C88: =VLOOKUP(B88,'Zone - Area Plan'!$A$2:$B$224,2,1) -> Eastern Suburbs | D88: 0.95 | E88: 0.95 | F88: 0 | G88: 0 | H88: 0 | I88: 0 | J88: 0 | K88: 0 | L88: 0.95 | M88: 0 | N88: 0 | P88: 0 | Q88: =VLOOKUP(B88,'OH & UG split'!$P$2:$S$187,3,FALSE)/VLOOKUP(B88,'OH & UG split'!$P$2:$S$187,4,FALSE) -> 0 | R88: =1-Q88 -> 1 | S88: 0 | T88: 0 | U88: 0
A89: CBZZN35800 | B89: Bankstown Zone | C89: =VLOOKUP(B89,'Zone - Area Plan'!$A$2:$B$224,2,1) -> Canterbury Bankstown | D89: 2.2 | E89: 1.2 | F89: 1.9 | G89: 1 | H89: 4 | I89: 7.2 | J89: 4 | K89: 1.45 | L89: 1.7 | M89: 1.45 | N89: 1.45 | O89: Canterbury Bankstown | P89: 1.45 | Q89: =VLOOKUP(B89,'OH & UG split'!$P$2:$S$187,3,FALSE)/VLOOKUP(B89,'OH & UG split'!$P$2:$S$187,4,FALSE) -> 0.2348088639 | R89: =1-Q89 -> 0.7651911361 | S89: 0.2643780043 | T89: 0.8615505487 | U89: 1.125928553
A90: CBZZN35900 | B90: Potts Hill Zone | C90: =VLOOKUP(B90,'Zone - Area Plan'!$A$2:$B$224,2,1) -> Canterbury Bankstown | D90: 1.1 | E90: 1.1 | F90: 0.45 | G90: 0.45 | H90: 1.8 | I90: 0 | J90: 1 | K90: 0.45 | L90: 1.1 | M90: 0.45 | N90: 0.45 | O90: Canterbury Bankstown | P90: 0.45 | Q90: =VLOOKUP(B90,'OH & UG split'!$P$2:$S$187,3,FALSE)/VLOOKUP(B90,'OH & UG split'!$P$2:$S$187,4,FALSE) -> 0.1181097869 | R90: =1-Q90 -> 0.8818902131 | S90: 0.04127064252 | T90: 0.3081554601 | U90: 0.3494261027
A91: CBZZN36100 | B91: Rose Bay Zone | C91: =VLOOKUP(B91,'Zone - Area Plan'!$A$2:$B$224,2,1) -> Eastern Suburbs | D91: 1.1 | E91: 1.1 | F91: 0.65 | G91: 0.65 | H91: 2.6 | I91: 0 | J91: 3 | K91: 0.65 | L91: 1.1 | M91: 0.65 | N91: 0.65 | O91: Eastern Suburbs | P91: 0.65 | Q91: =VLOOKUP(B91,'OH & UG split'!$P$2:$S$187,3,FALSE)/VLOOKUP(B91,'OH & UG split'!$P$2:$S$187,4,FALSE) -> 0 | R91: =1-Q91 -> 1 | S91: 0 | T91: 0.5047265927 | U91: 0.5047265927
O93: total | P93: =SUM(P4:P91) -> 77.5

Sheet Zone - Area Plan
A1: Location | B1: AreaPlan | E1: Location | F1: AreaPlan
A2: Aberdeen | B2: Upper Hunter | E2: Avoca | F2: Lower Central Coast | G2: cc
A3: Aberdeen | B3: Upper Hunter | E3: Charmhaven | F3: Upper Central Coast | G3: cc
A4: Adamstown | B4: Newcastle Inner City | E4: Cessnock | F4: Greater Cessnock | G4: hun
A5: Adamstown | B5: Newcastle Inner City | E5: Brandy Hill | F5: Maitland | G5: hun
A6: Argenton | B6: Newcastle Western Corridor | E6: Adamstown | F6: Newcastle Inner City | G6: hun
A7: Arncliffe | B7: St George | E7: Jesmond | F7: Newcastle Port | G7: hun
A8: Auburn | B8: Auburn / Homebush | E8: Argenton | F8: Newcastle Western Corridor | G8: hun
A9: Avoca | B9: Lower Central Coast | E9: Charlestown | F9: North East Lake Macquarie | G9: hun
A10: Avondale | B10: West Lake Macquarie | E10: Medowie | F10: Port Stephens | G10: hun
A11: Baerami | B11: Upper Hunter | E11: Branxton | F11: Singleton | G11: hun
A12: Balgowlah | B12: Manly Warringah | E12: Aberdeen | F12: Upper Hunter | G12: hun
A13: Balgowlah North | B13: Manly Warringah | E13: Avondale | F13: West Lake Macquarie | G13: hun
A14: Bankstown | B14: Canterbury Bankstown | E14: Auburn | F14: Auburn / Homebush
A15: Bass Hill | B15: Canterbury Bankstown | E15: Burwood | F15: Auburn / Homebush
A16: Beacon Hill | B16: Manly Warringah | E16: Concord | F16: Auburn / Homebush
A17: Belmore Park | B17: Sydney CBD | E17: Croydon | F17: Auburn / Homebush
A18: Belrose | B18: Manly Warringah | E18: Drummoyne | F18: Auburn / Homebush
A19: Berkeley Vale | B19: Lower Central Coast | E19: Five Dock | F19: Auburn / Homebush
A20: Berowra | B20: North West | E20: Flemington | F20: Auburn / Homebush
A21: Blackwattle Bay | B21: Camperdown & Blackwattle Bay | E21: Homebush Bay | F21: Auburn / Homebush
A22: Blakehurst | B22: St George | E22: Leichhardt | F22: Auburn / Homebush
A23: Boolaroo | B23: Newcastle Western Corridor | E23: Leichhardt | F23: Auburn / Homebush
A24: Botany | B24: Eastern Suburbs | E24: Lidcombe | F24: Auburn / Homebush
A25: Brandy Hill | B25: Maitland | E25: Olympic Park | F25: Auburn / Homebush
A26: Branxton | B26: Singleton | E26: Blackwattle Bay | F26: Camperdown & Blackwattle Bay
A27: Broadmeadow | B27: Newcastle Inner City | E27: Camperdown | F27: Camperdown & Blackwattle Bay
A28: Broadmeadow | B28: Newcastle Inner City | E28: Camperdown | F28: Camperdown & Blackwattle Bay
A29: Brookvale | B29: Manly Warringah | E29: Darling Harbour | F29: Camperdown & Blackwattle Bay
A30: Burwood | B30: Auburn / Homebush | E30: Bankstown | F30: Canterbury Bankstown
A31: Campbell St | B31: Eastern Suburbs | E31: Bass Hill | F31: Canterbury Bankstown
A32: Camperdown | B32: Camperdown & Blackwattle Bay | E32: Campsie | F32: Canterbury Bankstown
A33: Camperdown | B33: Camperdown & Blackwattle Bay | E33: Dulwich Hill | F33: Canterbury Bankstown
A34: Campsie | B34: Canterbury Bankstown | E34: Enfield | F34: Canterbury Bankstown
A35: Cardiff | B35: Newcastle Western Corridor | E35: Greenacre Park | F35: Canterbury Bankstown
A36: Careel Bay | B36: Pittwater & Terrey Hills | E36: Leightonfield | F36: Canterbury Bankstown
A37: Caringbah | B37: Sutherland | E37: Milperra | F37: Canterbury Bankstown
A38: Carrington | B38: Newcastle Inner City | E38: Padstow | F38: Canterbury Bankstown
A39: Castle Cove | B39: Lower North Shore | E39: Potts Hill | F39: Canterbury Bankstown
A40: Cessnock | B40: Greater Cessnock | E40: Punchbowl | F40: Canterbury Bankstown
A41: Cessnock South | B41: Greater Cessnock | E41: Revesby | F41: Canterbury Bankstown
A42: Charlestown | B42: North East Lake Macquarie | E42: Sefton | F42: Canterbury Bankstown
A43: Charlestown | B43: North East Lake Macquarie | E43: Epping | F43: Carlingford
A44: Charmhaven | B44: Upper Central Coast | E44: Hunters Hill | F44: Carlingford
A45: Chatswood | B45: Lower North Shore | E45: Macquarie Park | F45: Carlingford
A46: City Central | B46: Sydney CBD | E46: Meadowbank | F46: Carlingford
A47: City East | B47: Sydney CBD | E47: North Ryde | F47: Carlingford
A48: City East | B48: Sydney CBD | E48: Top Ryde | F48: Carlingford
A49: City North | B49: Sydney CBD | E49: Botany | F49: Eastern Suburbs
A50: City North | B50: Sydney CBD | E50: Campbell St | F50: Eastern Suburbs
A51: City South | B51: Sydney CBD | E51: Clovelly | F51: Eastern Suburbs
A52: Clovelly | B52: Eastern Suburbs | E52: Darlinghurst | F52: Eastern Suburbs
A53: Concord | B53: Auburn / Homebush | E53: Double Bay | F53: Eastern Suburbs
A54: Cronulla | B54: Sutherland | E54: Graving Dock No 1 | F54: Eastern Suburbs
A55: Croudace Bay | B55: North East Lake Macquarie | E55: Graving Dock No 2 | F55: Eastern Suburbs
A56: Crows Nest | B56: Lower North Shore | E56: Green Square | F56: Eastern Suburbs
A57: Crows Nest | B57: Lower North Shore | E57: Kingsford | F57: Eastern Suburbs
A58: Croydon | B58: Auburn / Homebush | E58: Maroubra | F58: Eastern Suburbs
A59: Dalley St | B59: Sydney CBD | E59: Marrickville | F59: Eastern Suburbs
A60: Darling Harbour | B60: Camperdown & Blackwattle Bay | E60: Mascot | F60: Eastern Suburbs
A61: Darlinghurst | B61: Eastern Suburbs | E61: Matraville | F61: Eastern Suburbs
A62: Dee Why West | B62: Manly Warringah | E62: Paddington | F62: Eastern Suburbs
A63: Denman | B63: Upper Hunter | E63: Port Botany | F63: Eastern Suburbs
A64: Double Bay | B64: Eastern Suburbs | E64: Randwick | F64: Eastern Suburbs
A65: Drummoyne | B65: Auburn / Homebush | E65: Rose Bay | F65: Eastern Suburbs
A66: Dudley | B66: North East Lake Macquarie | E66: Rose Bay | F66: Eastern Suburbs
A67: Dulwich Hill | B67: Canterbury Bankstown | E67: St Peters | F67: Eastern Suburbs
A68: East Maitland | B68: Maitland | E68: Surry Hills | F68: Eastern Suburbs
A69: Edgeworth | B69: Newcastle Western Corridor | E69: Waverley | F69: Eastern Suburbs
A70: Empire Bay | B70: Lower Central Coast | E70: Waverley | F70: Eastern Suburbs
A71: Enfield | B71: Canterbury Bankstown | E71: Zetland | F71: Eastern Suburbs
A72: Engadine | B72: Sutherland | E72: Cessnock South | F72: Greater Cessnock
A73: Engadine | B73: Sutherland | E73: Kurri | F73: Greater Cessnock
A74: Epping | B74: Carlingford | E74: Kurri | F74: Greater Cessnock
A75: Erina | B75: Lower Central Coast | E75: Nulkaba | F75: Greater Cessnock
A76: Five Dock | B76: Auburn / Homebush | E76: Paxton | F76: Greater Cessnock
A77: Flemington | B77: Auburn / Homebush | E77: Rothbury | F77: Greater Cessnock
A78: Galston | B78: North West | E78: Tomalpin | F78: Greater Cessnock
A79: Gateshead | B79: North East Lake Macquarie | E79: Berkeley Vale | F79: Lower Central Coast
A80: Gore Hill | B80: Lower North Shore | E80: Empire Bay | F80: Lower Central Coast
A81: Graving Dock No 1 | B81: Eastern Suburbs | E81: Erina | F81: Lower Central Coast
A82: Graving Dock No 2 | B82: Eastern Suburbs | E82: Lisarow | F82: Lower Central Coast
A83: Green Square | B83: Eastern Suburbs | E83: Long Jetty | F83: Lower Central Coast
A84: Greenacre Park | B84: Canterbury Bankstown | E84: Long Jetty | F84: Lower Central Coast
A85: Gwawley Bay | B85: Sutherland | E85: Peats Ridge | F85: Lower Central Coast
A86: Gwawley Bay | B86: Sutherland | E86: Somersby | F86: Lower Central Coast
A87: Harbord | B87: Manly Warringah | E87: Umina | F87: Lower Central Coast
A88: Homebush Bay | B88: Auburn / Homebush | E88: Wamberal | F88: Lower Central Coast
A89: Hornsby | B89: North West | E89: Wamberal | F89: Lower Central Coast
A90: Howick 33kV | B90: Singleton | E90: West Gosford | F90: Lower Central Coast
A91: Hunters Hill | B91: Carlingford | E91: Woy Woy | F91: Lower Central Coast
A92: Hurstville North | B92: St George | E92: Castle Cove | F92: Lower North Shore
A93: Hurstville North | B93: St George | E93: Chatswood | F93: Lower North Shore
A94: Jannali | B94: Sutherland | E94: Crows Nest | F94: Lower North Shore
A95: Jesmond | B95: Newcastle Port | E95: Crows Nest | F95: Lower North Shore
A96: Jewells | B96: North East Lake Macquarie | E96: Gore Hill | F96: Lower North Shore
A97: Killarney | B97: Manly Warringah | E97: Mosman | F97: Lower North Shore
A98: Kingsford | B98: Eastern Suburbs | E98: North Sydney | F98: Lower North Shore
A99: Kirrawee | B99: Sutherland | E99: North Sydney | F99: Lower North Shore
A100: Kogarah | B100: St George | E100: RNS Hospital | F100: Lower North Shore
A101: Kotara | B101: Newcastle Inner City | E101: East Maitland | F101: Maitland
A102: Kurnell | B102: Sutherland | E102: Maitland | F102: Maitland
A103: Kurnell 33_6.3kV | B103: Sutherland | E103: Maitland Central | F103: Maitland
A104: Kurnell South | B104: Sutherland | E104: Metford | F104: Maitland
A105: Kurri | B105: Greater Cessnock | E105: Rutherford | F105: Maitland
A106: Kurri | B106: Greater Cessnock | E106: Tarro | F106: Maitland
A107: Lake Munmorah | B107: Upper Central Coast | E107: Telarah | F107: Maitland
A108: Lake Munmorah | B108: Upper Central Coast | E108: Thornton | F108: Maitland
A109: Leichhardt | B109: Auburn / Homebush | E109: Wallalong | F109: Maitland
A110: Leichhardt | B110: Auburn / Homebush | E110: Balgowlah | F110: Manly Warringah
A111: Leightonfield | B111: Canterbury Bankstown | E111: Balgowlah North | F111: Manly Warringah
A112: Lemington | B112: Singleton | E112: Beacon Hill | F112: Manly Warringah
A113: Lidcombe | B113: Auburn / Homebush | E113: Belrose | F113: Manly Warringah
A114: Lindfield | B114: Upper North Shore | E114: Brookvale | F114: Manly Warringah
A115: Lisarow | B115: Lower Central Coast | E115: Dee Why West | F115: Manly Warringah
A116: Long Jetty | B116: Lower Central Coast | E116: Harbord | F116: Manly Warringah
A117: Long Jetty | B117: Lower Central Coast | E117: Killarney | F117: Manly Warringah
A118: Lucas Heights | B118: Sutherland | E118: Manly | F118: Manly Warringah
A119: Macquarie Park | B119: Carlingford | E119: North Head | F119: Manly Warringah
A120: Maitland | B120: Maitland | E120: Adamstown | F120: Newcastle Inner City
A121: Maitland Central | B121: Maitland | E121: Broadmeadow | F121: Newcastle Inner City
A122: Manly | B122: Manly Warringah | E122: Broadmeadow | F122: Newcastle Inner City
A123: Maroubra | B123: Eastern Suburbs | E123: Carrington | F123: Newcastle Inner City
A124: Marrickville | B124: Eastern Suburbs | E124: Kotara | F124: Newcastle Inner City
A125: Maryland | B125: Newcastle Western Corridor | E125: New Lambton | F125: Newcastle Inner City
A126: Mascot | B126: Eastern Suburbs | E126: Newcastle CBD | F126: Newcastle Inner City
A127: Matraville | B127: Eastern Suburbs | E127: Tighes Hill | F127: Newcastle Inner City
A128: Mayfield | B128: Newcastle Port | E128: Mayfield | F128: Newcastle Port
A129: Mayfield West | B129: Newcastle Port | E129: Mayfield West | F129: Newcastle Port
A130: Meadowbank | B130: Carlingford | E130: Shortland | F130: Newcastle Port
A131: Medowie | B131: Port Stephens | E131: Boolaroo | F131: Newcastle Western Corridor
A132: Menai | B132: Sutherland | E132: Cardiff | F132: Newcastle Western Corridor
A133: Merriwa | B133: Upper Hunter | E133: Edgeworth | F133: Newcastle Western Corridor
A134: Metford | B134: Maitland | E134: Maryland | F134: Newcastle Western Corridor
A135: Milperra | B135: Canterbury Bankstown | E135: Wallsend | F135: Newcastle Western Corridor
A136: Miranda | B136: Sutherland | E136: Charlestown | F136: North East Lake Macquarie
A137: Mitchell Line | B137: Upper Hunter | E137: Croudace Bay | F137: North East Lake Macquarie
A138: Mitchells Flat | B138: Singleton | E138: Dudley | F138: North East Lake Macquarie
A139: Mona Vale | B139: Pittwater & Terrey Hills | E139: Gateshead | F139: North East Lake Macquarie
A140: Moonan | B140: Upper Hunter | E140: Jewells | F140: North East Lake Macquarie
A141: Morisset | B141: West Lake Macquarie | E141: Mount Hutton | F141: North East Lake Macquarie
A142: Morisset Temp | B142: West Lake Macquarie | E142: Pelican | F142: North East Lake Macquarie
A143: Mortdale | B143: St George | E143: Swansea | F143: North East Lake Macquarie
A144: Mosman | B144: Lower North Shore | E144: Berowra | F144: North West
A145: Mount Hutton | B145: North East Lake Macquarie | E145: Galston | F145: North West
A146: Mount Thorley | B146: Singleton | E146: Hornsby | F146: North West
A147: Muswellbrook | B147: Upper Hunter | E147: Pennant Hills | F147: North West
A148: Narrabeen | B148: Pittwater & Terrey Hills | E148: Careel Bay | F148: Pittwater & Terrey Hills
A149: Nelson Bay | B149: Port Stephens | E149: Mona Vale | F149: Pittwater & Terrey Hills
A150: New Lambton | B150: Newcastle Inner City | E150: Narrabeen | F150: Pittwater & Terrey Hills
A151: Newcastle CBD | B151: Newcastle Inner City | E151: Newport | F151: Pittwater & Terrey Hills
A152: Newdell | B152: Singleton | E152: Terrey Hills | F152: Pittwater & Terrey Hills
A153: Newport | B153: Pittwater & Terrey Hills | E153: Nelson Bay | F153: Port Stephens
A154: Noraville | B154: Upper Central Coast | E154: Raymond Terr NEW | F154: Port Stephens
A155: North Head | B155: Manly Warringah | E155: Raymond Terrace | F155: Port Stephens
A156: North Ryde | B156: Carlingford | E156: Salt Ash | F156: Port Stephens
A157: North Sydney | B157: Lower North Shore | E157: Stockton | F157: Port Stephens
A158: North Sydney | B158: Lower North Shore | E158: Tanilba Bay | F158: Port Stephens
A159: Nulkaba | B159: Greater Cessnock | E159: Tomago | F159: Port Stephens
A160: Olympic Park | B160: Auburn / Homebush | E160: Tomaree | F160: Port Stephens
A161: Paddington | B161: Eastern Suburbs | E161: Williamtown | F161: Port Stephens
A162: Padstow | B162: Canterbury Bankstown | E162: Howick 33kV | F162: Singleton
A163: Paxton | B163: Greater Cessnock | E163: Lemington | F163: Singleton
A164: Peats Ridge | B164: Lower Central Coast | E164: Mitchells Flat | F164: Singleton
A165: Pelican | B165: North East Lake Macquarie | E165: Mount Thorley | F165: Singleton
A166: Pennant Hills | B166: North West | E166: Newdell | F166: Singleton
A167: Port Botany | B167: Eastern Suburbs | E167: Singleton | F167: Singleton
A168: Potts Hill | B168: Canterbury Bankstown | E168: Singleton North | F168: Singleton
A169: Punchbowl | B169: Canterbury Bankstown | E169: Arncliffe | F169: St George
A170: Pymble | B170: Upper North Shore | E170: Blakehurst | F170: St George
A171: Randwick | B171: Eastern Suburbs | E171: Hurstville North | F171: St George
A172: Rathmines | B172: West Lake Macquarie | E172: Hurstville North | F172: St George
A173: Rathmines Temp | B173: West Lake Macquarie | E173: Kogarah | F173: St George
A174: Raymond Terr NEW | B174: Port Stephens | E174: Mortdale | F174: St George
A175: Raymond Terrace | B175: Port Stephens | E175: Riverwood | F175: St George
A176: Revesby | B176: Canterbury Bankstown | E176: Rockdale | F176: St George
A177: Riverwood | B177: St George | E177: Rockdale | F177: St George
A178: RNS Hospital | B178: Lower North Shore | E178: Sans Souci | F178: St George
A179: Rockdale | B179: St George | E179: Caringbah | F179: Sutherland
A180: Rockdale | B180: St George | E180: Cronulla | F180: Sutherland
A181: Rose Bay | B181: Eastern Suburbs | E181: Engadine | F181: Sutherland
A182: Rose Bay | B182: Eastern Suburbs | E182: Engadine | F182: Sutherland
A183: Rothbury | B183: Greater Cessnock | E183: Gwawley Bay | F183: Sutherland
A184: Rouchel | B184: Upper Hunter | E184: Gwawley Bay | F184: Sutherland
A185: Rutherford | B185: Maitland | E185: Jannali | F185: Sutherland
A186: Salt Ash | B186: Port Stephens | E186: Kirrawee | F186: Sutherland
A187: Sans Souci | B187: St George | E187: Kurnell | F187: Sutherland
A188: Scone | B188: Upper Hunter | E188: Kurnell 33_6.3kV | F188: Sutherland
A189: Sefton | B189: Canterbury Bankstown | E189: Kurnell South | F189: Sutherland
A190: Shortland | B190: Newcastle Port | E190: Lucas Heights | F190: Sutherland
A191: Singleton | B191: Singleton | E191: Menai | F191: Sutherland
A192: Singleton North | B192: Singleton | E192: Miranda | F192: Sutherland
A193: Somersby | B193: Lower Central Coast | E193: Belmore Park | F193: Sydney CBD
A194: St Ives | B194: Upper North Shore | E194: City Central | F194: Sydney CBD
A195: St Peters | B195: Eastern Suburbs | E195: City East | F195: Sydney CBD
A196: Stockton | B196: Port Stephens | E196: City East | F196: Sydney CBD
A197: Surry Hills | B197: Eastern Suburbs | E197: City North | F197: Sydney CBD
A198: Swansea | B198: North East Lake Macquarie | E198: City North | F198: Sydney CBD
A199: Tanilba Bay | B199: Port Stephens | E199: City South | F199: Sydney CBD
A200: Tarro | B200: Maitland | E200: Dalley St | F200: Sydney CBD
... 24 more rows

Sheet OH & UG split
A1: HV Feeder ID | B1: _FDRCAT_Feeder Category | C1: voltage | D1: Orig Sub | E1: HV UG Length | F1: HV OH Length | G1: Total Length KM | H1: HV UG % | I1: HV OH % | L1: LV OH Length | M1: LV UG Length | O1: Orig Sub | Q1: HV UG Length | R1: HV OH Length | S1: Total Length KM
A2: ZN 167PA 8 | B2: URBAN | C2: 11k | D2: AUBURN | E2: 3101.44212 | F2: 0 | G2: 3101.44212 | H2: =E2/$G2 -> 1 | I2: =F2/$G2 -> 0 | L2: 658.2943888 | M2: 428.4022285 | O2: ABERDEEN 66 814 | P2: =LEFT(O2,LEN(O2)-4) -> ABERDEEN 66 | Q2: =SUMIF($D$2:$D$2597,$O2,E$2:E$2597) -> 9234.372558 | R2: =SUMIF($D$2:$D$2597,$O2,F$2:F$2597) -> 192100.0014 | S2: =SUMIF($D$2:$D$2597,$O2,G$2:G$2597) -> 201334.3739
A3: ZN 1610PA28 | B3: URBAN | C3: 11k | D3: HOMEBUSH BAY | E3: 3967.404101 | F3: 0 | G3: 3967.404101 | H3: =E3/$G3 -> 1 | I3: =F3/$G3 -> 0 | L3: 0.799924996 | M3: 571.7365336 | O3: ADAMSTOWN 132 256 | P3: =LEFT(O3,LEN(O3)-4) -> ADAMSTOWN 132 | Q3: =SUMIF($D$2:$D$2597,$O3,E$2:E$2597) -> 16659.9907 | R3: =SUMIF($D$2:$D$2597,$O3,F$2:F$2597) -> 40990.12715 | S3: =SUMIF($D$2:$D$2597,$O3,G$2:G$2597) -> 57650.11785
A4: ZN 1290PA12 | B4: URBAN | C4: 11k | D4: LEIGHTONFIELD | E4: 1883.533619 | F4: 5868.982357 | G4: 7752.515976 | H4: 0.2429577217 | I4: 0.7570422783 | L4: 15208.62286 | M4: 526.4770858 | O4: ARGENTON 132/11 224 | P4: =LEFT(O4,LEN(O4)-4) -> ARGENTON 132/11 | Q4: 33357.73746 | R4: 91557.60406 | S4: 124915.3415
A5: ZN 965PA38 | B5: URBAN | C5: 11k | D5: PENNANT HILLS | E5: 11245.69511 | F5: 0 | G5: 11245.69511 | H5: 1 | I5: 0 | L5: 1554.631651 | M5: 13914.69214 | O5: ARNCLIFFE | Q5: 14257.50483 | R5: 14377.73502 | S5: 28635.23985
A6: ZN12650PA21 | B6: URBAN | C6: 11k | D6: WEST GOSFORD | E6: 3673.730785 | F6: 0 | G6: 3673.730785 | H6: 1 | I6: 0 | L6: 0 | M6: 870.2535025 | O6: AUBURN | P6: Auburn Zone | Q6: 48124.28338 | R6: 368.2477847 | S6: 48492.53116
A7: ZN15005PA 4 | B7: URBAN | C7: 11k | D7: BELROSE | E7: 2687.884825 | F7: 5943.013914 | G7: 8630.898739 | H7: 0.3114258325 | I7: 0.6885741675 | L7: 15868.65903 | M7: 5740.046166 | O7: AVOCA | P7: Avoca Zone | Q7: 70978.21538 | R7: 83432.74183 | S7: 154410.9572
A8: ZN35400PA106 | B8: URBAN | C8: 11k | D8: NORTH SYDNEY | E8: 613.811948 | F8: 0 | G8: 613.811948 | H8: 1 | I8: 0 | L8: 0 | M8: 163.8494598 | O8: AVONDALE 33 227 | P8: =LEFT(O8,LEN(O8)-4) -> AVONDALE 33 | Q8: 11246.1758 | R8: 131715.1105 | S8: 142961.2863
A9: ZN 2602PA 3 | B9: URBAN | C9: 11k | D9: CLOVELLY | E9: 3235.539873 | F9: 0 | G9: 3235.539873 | H9: 1 | I9: 0 | L9: 4612.256907 | M9: 1463.596076 | O9: BAERAMI 33 802 | P9: =LEFT(O9,LEN(O9)-4) -> BAERAMI 33 | Q9: 1215.921884 | R9: 155771.14 | S9: 156987.0619
A10: ZN 8100PA17R | B10: URBAN | C10: 11k | D10: GREEN SQUARE | E10: 5919.598426 | F10: 0 | G10: 5919.598426 | H10: 1 | I10: 0 | L10: 1341.699861 | M10: 570.0712824 | O10: BALGOWLAH NORTH | P10: Balgowlah North Zone | Q10: 57321.95096 | R10: 16760.37477 | S10: 74082.32573
A11: ZN35400PA76 | B11: URBAN | C11: 11k | D11: NORTH SYDNEY | E11: 840.2614456 | F11: 0 | G11: 840.2614456 | H11: 1 | I11: 0 | L11: 0 | M11: 0 | O11: BANKSTOWN | P11: Bankstown Zone | Q11: 88181.21255 | R11: 27059.5533 | S11: 115240.7659
A12: ZN35400PA56 | B12: URBAN | C12: 11k | D12: NORTH SYDNEY | E12: 920.3606668 | F12: 0 | G12: 920.3606668 | H12: 1 | I12: 0 | L12: 0 | M12: 80.33364982 | O12: BARNARD SWER ISOLATING 72050 | Q12: 0 | R12: 3376.13123 | S12: 3376.13123
A13: 13446 | B13: URBAN | C13: 11k | D13: TORONTO 33 225 | E13: 2480.558858 | F13: 7839.034773 | G13: 10319.59363 | H13: 0.2403736956 | I13: 0.7596263045 | L13: 12661.15145 | M13: 3600.323406 | O13: BASS HILL | P13: Bass Hill Zone | Q13: 25628.54566 | R13: 8812.802485 | S13: 34441.34814
A14: 11900 | B14: SHORT RURAL | C14: 11k | D14: GATESHEAD 33 221 | E14: 1892.737531 | F14: 5717.147176 | G14: 7609.884707 | H14: 0.2487209207 | I14: 0.7512790793 | L14: 12427.73435 | M14: 2751.837645 | O14: BEACON HILL | Q14: 24387.36162 | R14: 13043.3425 | S14: 37430.70412
A15: ZN35335PA 2 | B15: HV CUSTOMERS | C15: 11k | D15: ROYAL NORTH SHORE | E15: 349.2524254 | F15: 0 | G15: 349.2524254 | H15: 1 | I15: 0 | L15: 0 | M15: 12.03607761 | O15: BELROSE | P15: Belrose Zone | Q15: 26263.4935 | R15: 35985.3143 | S15: 62248.8078
A16: ZN 5868PA13 | B16: URBAN | C16: 11k | D16: GORE HILL | E16: 3472.040984 | F16: 0 | G16: 3472.040984 | H16: 1 | I16: 0 | L16: 1575.271362 | M16: 1499.792016 | O16: BERKELEY VALE | P16: Berkeley Vale Zone | Q16: 74936.58613 | R16: 100762.7336 | S16: 175699.3198
A17: ZN35400PA81 | B17: URBAN | C17: 11k | D17: NORTH SYDNEY | E17: 6986.090112 | F17: 0 | G17: 6986.090112 | H17: 1 | I17: 0 | L17: 5433.569047 | M17: 5579.379622 | O17: BEROWRA | P17: Berowra Zone | Q17: 37255.40797 | R17: 66403.97983 | S17: 103659.3878
A18: 33505 | B18: URBAN | C18: 11k | D18: SINGLETON NORTH 66 523 | E18: 7296.520701 | F18: 146.4837398 | G18: 7443.004441 | H18: 0.9803192728 | I18: 0.01968072718 | L18: 99.6942544 | M18: 24187.10656 | O18: BLACKWATTLE BAY | Q18: 43565.47778 | R18: 0 | S18: 43565.47778
A19: ZN 4545PA24 | B19: URBAN | C19: 11k | D19: MEADOWBANK | E19: 4758.098035 | F19: 1464.091201 | G19: 6222.189236 | H19: 0.764698381 | I19: 0.235301619 | L19: 13130.92556 | M19: 2468.098429 | O19: BLAKEHURST | P19: Blakehurst Zone | Q19: 15149.05823 | R19: 19876.92547 | S19: 35025.9837
A20: ZN 36300PA18L | B20: URBAN | C20: 11k | D20: BALGOWLAH NORTH | E20: 1248.476908 | F20: 0 | G20: 1248.476908 | H20: 1 | I20: 0 | L20: 0 | M20: 276.0699427 | O20: BOTANY | P20: Botany Zone | Q20: 58298.38563 | R20: 119.5549912 | S20: 58417.94062
A21: 81885 | B21: URBAN | C21: 11k | D21: CHARLESTOWN 132 261 | E21: 2625.75274 | F21: 1345.354375 | G21: 3971.107115 | H21: 0.6612142821 | I21: 0.3387857179 | L21: 6319.785633 | M21: 5100.059716 | O21: BRANDY HILL 132 508 | P21: =LEFT(O21,LEN(O21)-4) -> BRANDY HILL 132 | Q21: 21037.96459 | R21: 198478.8994 | S21: 219516.8639
A22: ZN 8000PA39 | B22: URBAN | C22: 11k | D22: MACQUARIE PARK | E22: 2436.67436 | F22: 0 | G22: 2436.67436 | H22: 1 | I22: 0 | L22: 0 | M22: 586.0517999 | O22: BRANXTON 66 512 | P22: =LEFT(O22,LEN(O22)-4) -> BRANXTON 66 | Q22: 13990.21952 | R22: 248212.0508 | S22: 262202.2704
A23: 8687 | B23: URBAN | C23: 11k | D23: JEWELLS 33 220 | E23: 406.8921306 | F23: 7232.702791 | G23: 7639.594922 | H23: 0.05326095621 | I23: 0.9467390437 | L23: 16649.8327 | M23: 2627.598091 | O23: BROADMEADOW 132 257 | P23: =LEFT(O23,LEN(O23)-4) -> BROADMEADOW 132 | Q23: 29933.88074 | R23: 26702.14134 | S23: 56636.02209
A24: ZN 931PA 7 | B24: URBAN | C24: 11k | D24: DARLINGHURST | E24: 569.1890527 | F24: 0 | G24: 569.1890527 | H24: 1 | I24: 0 | L24: 306.6781954 | M24: 78.30614061 | O24: BROOKVALE | P24: Brookvale Zone | Q24: 46979.53033 | R24: 6541.039429 | S24: 53520.56976
A25: ZN35900PA20L | B25: URBAN | C25: 11k | D25: POTTS HILL | E25: 5793.915134 | F25: 1266.568926 | G25: 7060.48406 | H25: 0.8206116018 | I25: 0.1793883982 | L25: 9672.971407 | M25: 2675.506422 | O25: BURWOOD | P25: Burwood Zone | Q25: 134143.42 | R25: 0 | S25: 134143.42
A26: ZN 5868PA 5R | B26: SHORT RURAL | C26: 11k | D26: GORE HILL | E26: 3047.47568 | F26: 0 | G26: 3047.47568 | H26: 1 | I26: 0 | L26: 0 | M26: 0 | O26: CAMPBELL ST | P26: Campbell St Zone | Q26: 38050.10802 | R26: 0 | S26: 38050.10802
A27: ZN 8100PA11 | B27: URBAN | C27: 11k | D27: GREEN SQUARE | E27: 874.2880833 | F27: 0 | G27: 874.2880833 | H27: 1 | I27: 0 | L27: 0 | M27: 0 | O27: CAMPERDOWN | P27: Camperdown Zone | Q27: 69031.30582 | R27: 0 | S27: 69031.30582
A28: 33574 | B28: SHORT RURAL | C28: 11k | D28: NULKABA 33 524 | E28: 517.6321017 | F28: 1692.305737 | G28: 2209.937839 | H28: 0.2342292587 | I28: 0.7657707412 | L28: 1403.884562 | M28: 333.0304978 | O28: CAMPSIE | P28: Campsie Zone | Q28: 149618.5587 | R28: 3.299952189 | S28: 149621.8587
A29: ZN 3154PA22 | B29: SHORT RURAL | C29: 11k | D29: ST IVES | E29: 3970.947545 | F29: 4215.937331 | G29: 8186.884876 | H29: 0.4850376676 | I29: 0.5149623324 | L29: 9464.100282 | M29: 874.1410226 | O29: CARDIFF 33 214 | P29: =LEFT(O29,LEN(O29)-4) -> CARDIFF 33 | Q29: 12678.73415 | R29: 26498.07021 | S29: 39176.80437
A30: ZN 262PA14 | B30: URBAN | C30: 11k | D30: MARRICKVILLE | E30: 1487.43939 | F30: 0 | G30: 1487.43939 | H30: 1 | I30: 0 | L30: 348.8217813 | M30: 744.6330544 | O30: CAREEL BAY | P30: Careel Bay Zone | Q30: 37638.63256 | R30: 1054.1289 | S30: 38692.76146
A31: 74119 | B31: URBAN | C31: 11k | D31: MUSWELLBROOK 33 801 | E31: 6742.643985 | F31: 0 | G31: 6742.643985 | H31: 1 | I31: 0 | L31: 1.004751703 | M31: 17728.96232 | O31: CARINGBAH | P31: Caringbah Zone | Q31: 33493.93372 | R31: 2832.604364 | S31: 36326.53808
A32: 13018 | B32: URBAN | C32: 11k | D32: AVONDALE 33 227 | E32: 2286.696094 | F32: 6805.615232 | G32: 9092.311326 | H32: 0.2514977778 | I32: 0.7485022222 | L32: 7823.459797 | M32: 3190.417904 | O32: CARRINGTON 33 203 | P32: =LEFT(O32,LEN(O32)-4) -> CARRINGTON 33 | Q32: 15447.10878 | R32: 29278.06297 | S32: 44725.17175
A33: ZN12600PA12 | B33: URBAN | C33: 11k | D33: LISAROW | E33: 3591.190041 | F33: 847.3828772 | G33: 4438.572918 | H33: 0.8090866383 | I33: 0.1909133618 | L33: 2700.516944 | M33: 1823.152241 | O33: CASTLE COVE | P33: Castle Cove Zone | Q33: 96688.86948 | R33: 16314.29007 | S33: 113003.1595
A34: ZN 711PA25 | B34: URBAN | C34: 5kV | D34: BLACKWATTLE BAY | E34: 516.4163876 | F34: 0 | G34: 516.4163876 | H34: 1 | I34: 0 | L34: 70.13141906 | M34: 195.8677727 | O34: CESSNOCK 33 504 | P34: =LEFT(O34,LEN(O34)-4) -> CESSNOCK 33 | Q34: 7460.107055 | R34: 195996.4737 | S34: 203456.5807
A35: ZN35400PA62 | B35: URBAN | C35: 11k | D35: NORTH SYDNEY | E35: 1200.016584 | F35: 0 | G35: 1200.016584 | H35: 1 | I35: 0 | L35: 0 | M35: 269.5122895 | O35: CHARLESTOWN 132 261 | P35: =LEFT(O35,LEN(O35)-4) -> CHARLESTOWN 132 | Q35: 17874.5318 | R35: 45762.76672 | S35: 63637.29852
A36: ZN 3672PA34 | B36: URBAN | C36: 11k | D36: MAROUBRA | E36: 5513.92165 | F36: 0 | G36: 5513.92165 | H36: 1 | I36: 0 | L36: 695.9493471 | M36: 757.7853273 | O36: CHARMHAVEN | P36: Charmhaven Zone | Q36: 79604.21227 | R36: 52508.31862 | S36: 132112.5309
A37: 2857 | B37: SHORT RURAL | C37: 11k | D37: TARRO 33 235 | E37: 740.6019715 | F37: 7830.027481 | G37: 8570.629453 | H37: 0.08641161954 | I37: 0.9135883804 | L37: 3828.649875 | M37: 1816.27705 | O37: CHATSWOOD | P37: Chatswood Zone | Q37: 78476.70741 | R37: 12078.51726 | S37: 90555.22467
A38: ZN 847PA46 | B38: URBAN | C38: 11k | D38: HORNSBY | E38: 2344.553579 | F38: 4229.516802 | G38: 6574.070381 | H38: 0.3566365194 | I38: 0.6433634806 | L38: 13237.96779 | M38: 1409.682313 | O38: CITY CENTRAL ZN4990 | Q38: 78493.02136 | R38: 0 | S38: 78493.02136
A39: 37C | B39: CBD | C39: 11k | D39: DALLEY ST ZN263 | E39: 15.19344814 | F39: 0 | G39: 15.19344814 | H39: 1 | I39: 0 | L39: 0 | M39: 0 | O39: CITY EAST ZN1600 | Q39: 32308.80758 | R39: 0 | S39: 32308.80758
A40: ZN12610PA11 | B40: URBAN | C40: 11k | D40: LONG JETTY | E40: 1117.113522 | F40: 8126.403788 | G40: 9243.51731 | H40: 0.1208537275 | I40: 0.8791462725 | L40: 18097.39069 | M40: 917.7580947 | O40: CITY NORTH ZN8700 | Q40: 48463.21138 | R40: 0 | S40: 48463.21138
A41: 80790 | B41: URBAN | C41: 11k | D41: JESMOND 132 258 | E41: 3673.264654 | F41: 1211.981111 | G41: 4885.245765 | H41: 0.7519098999 | I41: 0.2480901001 | L41: 3155.062516 | M41: 10266.94589 | O41: CITY SOUTH ZN3288 | Q41: 76347.90564 | R41: 0 | S41: 76347.90564
A42: 34441 | B42: URBAN | C42: 11k | D42: CROUDACE BAY 33/11 206 | E42: 1373.584044 | F42: 8025.449033 | G42: 9399.033077 | H42: 0.1461409948 | I42: 0.8538590052 | L42: 13651.20851 | M42: 3164.48548 | O42: CLOVELLY | P42: Clovelly Zone | Q42: 118973.8183 | R42: 0 | S42: 118973.8183
A43: ZN15001PA11L | B43: URBAN | C43: 11k | D43: BROOKVALE | E43: 2993.148777 | F43: 118.6214755 | G43: 3111.770252 | H43: 0.9618797452 | I43: 0.038120255 | L43: 1923.373951 | M43: 804.0145402 | O43: CONCORD | P43: Concord Zone | Q43: 77444.12425 | R43: 1.20217527 | S43: 77445.32642
A44: ZN 187PA10 | B44: URBAN | C44: 11k | D44: CROWS NEST | E44: 3843.949037 | F44: 0 | G44: 3843.949037 | H44: 1 | I44: 0 | L44: 2448.323044 | M44: 1677.417391 | O44: COORANBONG 33 246 | P44: =LEFT(O44,LEN(O44)-4) -> COORANBONG 33 | Q44: 29.5018024 | R44: 0 | S44: 29.5018024
A45: 51D | B45: CBD | C45: 11k | D45: CITY CENTRAL ZN4990 | E45: 2278.97288 | F45: 0 | G45: 2278.97288 | H45: 1 | I45: 0 | L45: 0 | M45: 262.7105588 | O45: CRONULLA | P45: Cronulla Zone | Q45: 99662.50304 | R45: 8388.930869 | S45: 108051.4339
A46: ZN12620PA 8 | B46: SHORT RURAL | C46: 11k | D46: NORAVILLE | E46: 4447.893833 | F46: 7529.10212 | G46: 11976.99595 | H46: 0.3713697367 | I46: 0.6286302635 | L46: 16699.50858 | M46: 898.0754606 | O46: CROUDACE BAY 33/11 206 | P46: =LEFT(O46,LEN(O46)-4) -> CROUDACE BAY 33/11 | Q46: 15148.51377 | R46: 33350.50044 | S46: 48499.01421
A47: 33397 | B47: SHORT RURAL | C47: 11k | D47: PAXTON 33 509 | E47: 343.1641853 | F47: 24796.84403 | G47: 25140.00822 | H47: 0.01365012224 | I47: 0.9863498776 | L47: 11031.73359 | M47: 29.04571739 | O47: CROWS NEST | Q47: 73692.23258 | R47: 0 | S47: 73692.23258
A48: ZN 3472PA29 | B48: URBAN | C48: 11k | D48: SEFTON | E48: 3428.455541 | F48: 1811.163049 | G48: 5239.61859 | H48: 0.6543330363 | I48: 0.3456669637 | L48: 7349.239171 | M48: 1581.856926 | O48: CROYDON | Q48: 12713.71305 | R48: 0 | S48: 12713.71305
A49: ZN 1285PA21L | B49: URBAN | C49: 11k | D49: GREENACRE PARK | E49: 8.481711825 | F49: 0 | G49: 8.481711825 | H49: 1 | I49: 0 | L49: 0 | M49: 0 | O49: DALLEY ST ZN263 | Q49: 51247.58333 | R49: 0 | S49: 51247.58333
A50: 34148 | B50: SHORT RURAL | C50: 11k | D50: THORNTON 33 238 | E50: 6914.505956 | F50: 27895.86875 | G50: 34810.37471 | H50: 0.1986334825 | I50: 0.8013665174 | L50: 15676.47472 | M50: 13827.4163 | O50: DARLING HARBOUR 132/11kV | P50: Darling Harbour Zone | Q50: 69622.04206 | R50: 0 | S50: 69622.04206
A51: 34643 | B51: SHORT RURAL | C51: 11k | D51: ROTHBURY 132/11KV 526 | E51: 6969.719732 | F51: 991.0949082 | G51: 7960.81464 | H51: 0.8755033306 | I51: 0.1244966694 | L51: 0.199612124 | M51: 12099.8072 | O51: DARLINGHURST | P51: Darlinghurst Zone | Q51: 42566.71551 | R51: 0 | S51: 42566.71551
A52: ZN 2602PA17L | B52: URBAN | C52: 11k | D52: CLOVELLY | E52: 1521.755432 | F52: 0 | G52: 1521.755432 | H52: 1 | I52: 0 | L52: 2737.827053 | M52: 1231.1276 | O52: DEE WHY WEST | P52: Dee Why West Zone | Q52: 67978.05927 | R52: 15254.4456 | S52: 83232.50487
A53: ZN 398PA20 | B53: URBAN | C53: 11k | D53: DULWICH HILL | E53: 7019.190186 | F53: 0 | G53: 7019.190186 | H53: 1 | I53: 0 | L53: 14980.61029 | M53: 2068.904369 | O53: DENMAN 66 807 | P53: =LEFT(O53,LEN(O53)-4) -> DENMAN 66 | Q53: 5818.870195 | R53: 317529.2156 | S53: 323348.0859
A54: ZN 2196PA14L | B54: URBAN | C54: 11k | D54: MILPERRA | E54: 3202.039977 | F54: 0 | G54: 3202.039977 | H54: 1 | I54: 0 | L54: 1585.790246 | M54: 813.7382355 | O54: DOUBLE BAY | P54: Double Bay Zone | Q54: 90436.51747 | R54: 0 | S54: 90436.51747
A55: ZN 2466PA26 | B55: URBAN | C55: 11k | D55: FLEMINGTON | E55: 4957.922973 | F55: 0 | G55: 4957.922973 | H55: 1 | I55: 0 | L55: 414.7630454 | M55: 1130.495032 | O55: DRUMMOYNE | P55: Drummoyne Zone | Q55: 146781.6511 | R55: 0 | S55: 146781.6511
A56: ZN 80PA36 | B56: URBAN | C56: 11k | D56: CHATSWOOD | E56: 3570.027109 | F56: 0 | G56: 3570.027109 | H56: 1 | I56: 0 | L56: 4413.591979 | M56: 505.6120953 | O56: DULWICH HILL | P56: Dulwich Hill Zone | Q56: 88463.92644 | R56: 3.293643899 | S56: 88467.22009
A57: ZN 36300PA13 | B57: URBAN | C57: 11k | D57: BALGOWLAH NORTH | E57: 2029.134971 | F57: 2131.80635 | G57: 4160.941321 | H57: 0.4876624817 | I57: 0.5123375183 | L57: 4766.095293 | M57: 1698.095354 | O57: EDGEWORTH 33 216 | P57: =LEFT(O57,LEN(O57)-4) -> EDGEWORTH 33 | Q57: 35280.88284 | R57: 39312.79322 | S57: 74593.67607
A58: 46B | B58: CBD | C58: 11k | D58: CITY SOUTH ZN3288 | E58: 941.3661786 | F58: 0 | G58: 941.3661786 | H58: 1 | I58: 0 | L58: 0 | M58: 1244.089357 | O58: EMPIRE BAY | P58: Empire Bay Zone | Q58: 13393.97312 | R58: 34183.6876 | S58: 47577.66073
A59: ZN 384PA43 | B59: URBAN | C59: 5kV | D59: CAMPERDOWN | E59: 2877.100419 | F59: 0 | G59: 2877.100419 | H59: 1 | I59: 0 | L59: 2943.423317 | M59: 1142.296345 | O59: ENFIELD | P59: Enfield Zone | Q59: 53240.14116 | R59: 0 | S59: 53240.14116
A60: ZN 8100PA 4R | B60: URBAN | C60: 11k | D60: GREEN SQUARE | E60: 3699.872861 | F60: 0 | G60: 3699.872861 | H60: 1 | I60: 0 | L60: 0 | M60: 536.2922972 | O60: ENGADINE | Q60: 41475.19764 | R60: 33981.70928 | S60: 75456.90694
A61: ZN 9534PA 1 | B61: AUX | C61: 11k | D61: KURNELL SOUTH | E61: 80.7607653 | F61: 0 | G61: 80.7607653 | H61: 1 | I61: 0 | L61: 0 | M61: 3.72146324 | O61: EPPING | P61: Epping Zone | Q61: 121249.9556 | R61: 18439.25583 | S61: 139689.2115
A62: 33612R | B62: URBAN | C62: 11k | D62: MOUNT HUTTON 33 217 | E62: 2417.560505 | F62: 7727.011492 | G62: 10144.572 | H62: 0.2383107444 | I62: 0.7616892553 | L62: 12845.90304 | M62: 11724.86198 | O62: ERINA | P62: Erina Zone | Q62: 42285.13372 | R62: 34196.19954 | S62: 76481.33326
A63: ZN 2835PA23L | B63: URBAN | C63: 11k | D63: BURWOOD | E63: 8345.358273 | F63: 0 | G63: 8345.358273 | H63: 1 | I63: 0 | L63: 13769.82539 | M63: 3547.507166 | O63: FIVE DOCK | P63: Five Dock Zone | Q63: 76280.2732 | R63: 1.650923779 | S63: 76281.92413
A64: 33572 | B64: SHORT RURAL | C64: 11k | D64: NULKABA 33 524 | E64: 10557.18979 | F64: 28097.85875 | G64: 38655.04854 | H64: 0.2731128323 | I64: 0.7268871677 | L64: 13429.59347 | M64: 16947.82655 | O64: FLEMINGTON | P64: Flemington Zone | Q64: 127103.4992 | R64: 0 | S64: 127103.4992
A65: 80641L | B65: URBAN | C65: 11k | D65: ADAMSTOWN 132 256 | E65: 971.195869 | F65: 3564.940833 | G65: 4536.136702 | H65: 0.2141019843 | I65: 0.7858980157 | L65: 8254.321014 | M65: 372.2854404 | O65: GALSTON | P65: Galston Zone | Q65: 7080.107859 | R65: 82217.59708 | S65: 89297.70494
A66: ZN12610PA13 | B66: URBAN | C66: 11k | D66: LONG JETTY | E66: 5414.793083 | F66: 3897.402382 | G66: 9312.195465 | H66: 0.581473306 | I66: 0.418526694 | L66: 13271.74418 | M66: 1672.681909 | O66: GATESHEAD 33 221 | P66: =LEFT(O66,LEN(O66)-4) -> GATESHEAD 33 | Q66: 12915.50719 | R66: 39851.27832 | S66: 52766.7855
A67: ZN 2602PA28 | B67: URBAN | C67: 11k | D67: CLOVELLY | E67: 3732.883088 | F67: 0 | G67: 3732.883088 | H67: =E67/$G67 -> 1 | I67: =F67/$G67 -> 0 | L67: 7926.312075 | M67: 1458.969037 | O67: GORE HILL | P67: Gore Hill Zone | Q67: =SUMIF($D$2:$D$2597,$O67,E$2:E$2597) -> 67524.36692 | R67: =SUMIF($D$2:$D$2597,$O67,F$2:F$2597) -> 0 | S67: =SUMIF($D$2:$D$2597,$O67,G$2:G$2597) -> 67524.36692
A68: ZN35555PA 8 | B68: URBAN | C68: 11k | D68: CROYDON | E68: 6906.256315 | F68: 0 | G68: 6906.256315 | H68: 1 | I68: 0 | L68: 10009.62829 | M68: 2127.566246 | O68: GREEN SQUARE | Q68: 57420.70717 | R68: 0 | S68: 57420.70717
A69: 74183 | B69: SHORT RURAL | C69: 11k | D69: DENMAN 66 807 | E69: 474.2524687 | F69: 23772.76676 | G69: 24247.01923 | H69: 0.01955920702 | I69: 0.9804407929 | L69: 1455.343879 | M69: 99.2988565 | O69: GREENACRE PARK | P69: Greenacre Park Zone | Q69: 83174.68957 | R69: 10345.30662 | S69: 93519.99619
A70: 31D | B70: CBD | C70: 11k | D70: DALLEY ST ZN263 | E70: 113.2419064 | F70: 0 | G70: 113.2419064 | H70: 1 | I70: 0 | L70: 0 | M70: 448.3486879 | O70: GWAWLEY BAY | P70: Gwawley Bay Zone | Q70: 44380.51767 | R70: 7779.043451 | S70: 52159.56112
A71: ZN 9171PA 3 | B71: HV CUSTOMERS | C71: 11k | D71: LUCAS HEIGHTS | E71: 70.60068996 | F71: 0 | G71: 70.60068996 | H71: 1 | I71: 0 | L71: 214.4161839 | M71: 2082.222849 | O71: HARBORD | Q71: 16766.04955 | R71: 20660.56057 | S71: 37426.61013
A72: 80077 | B72: SHORT RURAL | C72: 11k | D72: MORISSET 132 243 | E72: 2900.896745 | F72: 2775.319214 | G72: 5676.215959 | H72: 0.5110617295 | I72: 0.4889382705 | L72: 2618.271795 | M72: 2835.547902 | O72: HOMEBUSH 33kV TS7300 | Q72: 1897.472495 | R72: 0 | S72: 1897.472495
A73: 35D | B73: CBD | C73: 11k | D73: DALLEY ST ZN263 | E73: 1351.472454 | F73: 0 | G73: 1351.472454 | H73: 1 | I73: 0 | L73: 0 | M73: 9.212194206 | O73: HOMEBUSH BAY | P73: Homebush Bay Zone | Q73: 122364.3907 | R73: 176.4253776 | S73: 122540.8161
A74: 81440 | B74: SHORT RURAL | C74: 11k | D74: TANILBA BAY 33 230 | E74: 1872.276053 | F74: 9612.09226 | G74: 11484.36831 | H74: 0.1630282139 | I74: 0.8369717864 | L74: 21087.27801 | M74: 4236.549195 | O74: HORNSBY | P74: Hornsby Zone | Q74: 126367.1035 | R74: 62488.00818 | S74: 188855.1117
A75: ZN12690PA24R | B75: SHORT RURAL | C75: 11k | D75: BERKELEY VALE | E75: 1984.637926 | F75: 15192.91996 | G75: 17177.55789 | H75: 0.1155366752 | I75: 0.8844633246 | L75: 10173.71268 | M75: 3122.25587 | O75: HUNTER VALLEY CPP 530 | Q75: 9.996853155 | R75: 69.26274002 | S75: 79.25959317
A76: 33602 | B76: URBAN | C76: 11k | D76: PELICAN 33 222 | E76: 660.9606904 | F76: 4672.745665 | G76: 5333.706355 | H76: 0.1239214622 | I76: 0.8760785379 | L76: 8613.718068 | M76: 558.0271247 | O76: HUNTERS HILL | P76: Hunters Hill Zone | Q76: 80987.07884 | R76: 7697.018036 | S76: 88684.09688
A77: ZN 9252PA25 | B77: URBAN | C77: 11k | D77: JANNALI | E77: 5699.986579 | F77: 5170.339573 | G77: 10870.32615 | H77: 0.5243620569 | I77: 0.4756379433 | L77: 4448.979471 | M77: 9444.496708 | O77: HURSTVILLE NORTH | Q77: 15864.37289 | R77: 15664.97478 | S77: 31529.34768
A78: ZN 2466PA 5 | B78: URBAN | C78: 11k | D78: FLEMINGTON | E78: 7219.265495 | F78: 0 | G78: 7219.265495 | H78: 1 | I78: 0 | L78: 8503.363306 | M78: 2214.6319 | O78: JANNALI | P78: Jannali Zone | Q78: 34907.54 | R78: 35051.65452 | S78: 69959.19452
A79: 74120 | B79: URBAN | C79: 11k | D79: MUSWELLBROOK 33 801 | E79: 3353.157043 | F79: 3600.734336 | G79: 6953.891379 | H79: 0.4821986511 | I79: 0.5178013489 | L79: 3391.915542 | M79: 10293.40673 | O79: JESMOND 132 258 | P79: =LEFT(O79,LEN(O79)-4) -> JESMOND 132 | Q79: 30315.93866 | R79: 69229.89411 | S79: 99545.83277
A80: 41K | B80: CBD | C80: 11k | D80: CITY SOUTH ZN3288 | E80: 1478.868892 | F80: 0 | G80: 1478.868892 | H80: 1 | I80: 0 | L80: 0 | M80: 594.1449751 | O80: JEWELLS 33 220 | P80: =LEFT(O80,LEN(O80)-4) -> JEWELLS 33 | Q80: 8070.426898 | R80: 28411.35355 | S80: 36481.78045
A81: 43L | B81: CBD | C81: 11k | D81: CITY SOUTH ZN3288 | E81: 696.2696292 | F81: 0 | G81: 696.2696292 | H81: 1 | I81: 0 | L81: 0 | M81: 0 | O81: KILLARNEY | Q81: 20573.80658 | R81: 9807.486476 | S81: 30381.29305
A82: ZN 7900PA 7R | B82: URBAN | C82: 11k | D82: CAMPBELL ST | E82: 571.7194089 | F82: 0 | G82: 571.7194089 | H82: 1 | I82: 0 | L82: 1472.311732 | M82: 1844.37158 | O82: KINGSFORD | P82: Kingsford Zone | Q82: 114534.767 | R82: 0 | S82: 114534.767
A83: 13014 | B83: SHORT RURAL | C83: 11k | D83: AVONDALE 33 227 | E83: 559.9409337 | F83: 6957.4399 | G83: 7517.380834 | H83: 0.07448617358 | I83: 0.9255138264 | L83: 1672.142037 | M83: 0 | O83: KIRRAWEE | P83: Kirrawee Zone | Q83: 51365.24338 | R83: 25414.63627 | S83: 76779.87964
A84: 83465 | B84: URBAN | C84: 11k | D84: NEW LAMBTON 33 210 | E84: 566.3805502 | F84: 6453.500808 | G84: 7019.881358 | H84: 0.08068235363 | I84: 0.9193176464 | L84: 13852.04575 | M84: 2699.358009 | O84: KOGARAH | P84: Kogarah Zone | Q84: 70630.67886 | R84: 59915.72145 | S84: 130546.4003
A85: 13016 | B85: SHORT RURAL | C85: 11k | D85: AVONDALE 33 227 | E85: 324.7107934 | F85: 4589.368587 | G85: 4914.07938 | H85: 0.06607764513 | I85: 0.933922355 | L85: 4940.670844 | M85: 120.3507761 | O85: KOTARA 33 205 | P85: =LEFT(O85,LEN(O85)-4) -> KOTARA 33 | Q85: 11076.81029 | R85: 28965.23314 | S85: 40042.04343
A86: ZN 4545PA31 | B86: URBAN | C86: 11k | D86: MEADOWBANK | E86: 6214.767121 | F86: 4281.404741 | G86: 10496.17186 | H86: 0.592098453 | I86: 0.4079015472 | L86: 16484.87146 | M86: 3037.384468 | O86: KURNELL SOUTH | Q86: 9284.983438 | R86: 12076.41304 | S86: 21361.39648
A87: ZN 3425PA17 | B87: URBAN | C87: 11k | D87: CASTLE COVE | E87: 4227.207797 | F87: 0 | G87: 4227.207797 | H87: 1 | I87: 0 | L87: 0 | M87: 714.7028498 | O87: KURRI KURRI 132/11kV 507 | P87: =LEFT(O87,LEN(O87)-4) -> KURRI KURRI 132/11kV | Q87: 24045.37799 | R87: 174810.122 | S87: 198855.5
A88: ZN 931PA21 | B88: URBAN | C88: 11k | D88: DARLINGHURST | E88: 997.9674585 | F88: 0 | G88: 997.9674585 | H88: 1 | I88: 0 | L88: 0 | M88: 14.63891598 | O88: LAKE MUNMORAH | P88: Lake Munmorah Zone | Q88: 36054.67031 | R88: 76111.55425 | S88: 112166.2246
A89: ZN 9900PA 9 | B89: URBAN | C89: 11k | D89: MENAI | E89: 2751.523089 | F89: 0 | G89: 2751.523089 | H89: 1 | I89: 0 | L89: 0 | M89: 6384.805223 | O89: LEICHHARDT | P89: Leichhardt Zone | Q89: 58910.5044 | R89: 1378.375427 | S89: 60288.87983
A90: 80631R | B90: AUX | C90: 11k | D90: ADAMSTOWN 132 256 | E90: 35.94092491 | F90: 0 | G90: 35.94092491 | H90: 1 | I90: 0 | L90: 0 | M90: 0 | O90: LEIGHTONFIELD | Q90: 33265.95583 | R90: 12461.68997 | S90: 45727.6458
A91: ZN 1610PA29 | B91: URBAN | C91: 11k | D91: HOMEBUSH BAY | E91: 4510.679646 | F91: 0 | G91: 4510.679646 | H91: 1 | I91: 0 | L91: 0 | M91: 646.6612132 | O91: LEMINGTON 66 516 | P91: =LEFT(O91,LEN(O91)-4) -> LEMINGTON 66 | Q91: 476.1979812 | R91: 152414.8458 | S91: 152891.0437
A92: 37L | B92: CBD | C92: 11k | D92: DALLEY ST ZN263 | E92: 29.31767358 | F92: 0 | G92: 29.31767358 | H92: 1 | I92: 0 | L92: 0 | M92: 0 | O92: LIDCOMBE | P92: Lidcombe Zone | Q92: 39705.63792 | R92: 0.893780193 | S92: 39706.5317
A93: ZN 931PA26 | B93: URBAN | C93: 11k | D93: DARLINGHURST | E93: 2083.050471 | F93: 0 | G93: 2083.050471 | H93: 1 | I93: 0 | L93: 156.7434827 | M93: 2758.932344 | O93: LINDFIELD | P93: Lindfield Zone | Q93: 47141.84202 | R93: 28891.08929 | S93: 76032.9313
A94: ZN 3672PA43 | B94: URBAN | C94: 11k | D94: MAROUBRA | E94: 2631.627556 | F94: 0 | G94: 2631.627556 | H94: 1 | I94: 0 | L94: 6700.609161 | M94: 2694.488093 | O94: LISAROW | P94: Lisarow Zone | Q94: 26311.6309 | R94: 69498.19623 | S94: 95809.82715
A95: ZN 931PA13R | B95: URBAN | C95: 11k | D95: DARLINGHURST | E95: 646.0753478 | F95: 0 | G95: 646.0753478 | H95: 1 | I95: 0 | L95: 0 | M95: 0 | O95: LONG JETTY | P95: Long Jetty Zone | Q95: 46689.41367 | R95: 82501.73505 | S95: 129191.1487
A96: 34250 | B96: URBAN | C96: 11k | D96: NEWCASTLE CBD 33 202 | E96: 1814.152898 | F96: 2708.594975 | G96: 4522.747873 | H96: 0.4011174067 | I96: 0.5988825933 | L96: 8213.883356 | M96: 1176.530907 | O96: LUCAS HEIGHTS | Q96: 2940.448628 | R96: 0 | S96: 2940.448628
A97: ZN 3154PA14 | B97: URBAN | C97: 11k | D97: ST IVES | E97: 2685.826324 | F97: 4.680859136 | G97: 2690.507183 | H97: 0.9982602317 | I97: 0.00173976831 | L97: 6066.469475 | M97: 1470.610636 | O97: MACQUARIE PARK | P97: Macquarie Park Zone | Q97: 86307.34994 | R97: 4655.935475 | S97: 90963.28542
A98: 80923 | B98: SHORT RURAL | C98: 11k | D98: KURRI KURRI 132/11kV 507 | E98: 8963.039479 | F98: 12633.67419 | G98: 21596.71367 | H98: 0.4150186744 | I98: 0.5849813255 | L98: 10875.01538 | M98: 16449.64841 | O98: MAITLAND 33 528 | P98: =LEFT(O98,LEN(O98)-4) -> MAITLAND 33 | Q98: 31205.06531 | R98: 90413.31395 | S98: 121618.3793
A99: ZN 4545PA 4 | B99: URBAN | C99: 11k | D99: MEADOWBANK | E99: 7777.592377 | F99: 0 | G99: 7777.592377 | H99: 1 | I99: 0 | L99: 4533.494519 | M99: 5387.748137 | O99: MANLY | Q99: 17545.89816 | R99: 3031.961761 | S99: 20577.85992
A100: ZN 1648PA21 | B100: URBAN | C100: 11k | D100: ENFIELD | E100: 2522.945301 | F100: 0 | G100: 2522.945301 | H100: 1 | I100: 0 | L100: 3371.592208 | M100: 1042.733049 | O100: MAROUBRA | Q100: 90066.95288 | R100: 0 | S100: 90066.95288
A101: ZN 690PA37 | B101: FIU | C101: 11k | D101: CAMPSIE | E101: 13.16948827 | F101: 0 | G101: 13.16948827 | H101: 1 | I101: 0 | L101: 0 | M101: 0 | O101: MARRICKVILLE | P101: Marrickville Zone | Q101: 125810.9432 | R101: 3.747591268 | S101: 125814.6907
A102: ZN 2466PA 2 | B102: URBAN | C102: 11k | D102: FLEMINGTON | E102: 5169.808057 | F102: 0 | G102: 5169.808057 | H102: 1 | I102: 0 | L102: 2415.476398 | M102: 1353.738019 | O102: MARYLAND 132 213 | P102: =LEFT(O102,LEN(O102)-4) -> MARYLAND 132 | Q102: 57341.92626 | R102: 33722.86107 | S102: 91064.78734
A103: 43G | B103: CBD | C103: 11k | D103: CITY SOUTH ZN3288 | E103: 973.4207357 | F103: 0 | G103: 973.4207357 | H103: 1 | I103: 0 | L103: 0 | M103: 1135.248762 | O103: MASCOT | P103: Mascot Zone | Q103: 69931.6835 | R103: 0 | S103: 69931.6835
A104: ZN14891PA13 | B104: AUX | C104: 11k | D104: WYONG | E104: 16.80659369 | F104: 0 | G104: 16.80659369 | H104: 1 | I104: 0 | L104: 0 | M104: 0 | O104: MATRAVILLE | Q104: 120612.0988 | R104: 591.878236 | S104: 121203.977
A105: ZN15006PA 6R | B105: URBAN | C105: 11k | D105: DEE WHY WEST | E105: 155.5927293 | F105: 0 | G105: 155.5927293 | H105: 1 | I105: 0 | L105: 0 | M105: 16.38908501 | O105: MAYFIELD WEST 132 240 | P105: =LEFT(O105,LEN(O105)-4) -> MAYFIELD WEST 132 | Q105: 36232.31247 | R105: 28038.95697 | S105: 64271.26944
A106: ZN10995PA 5 | B106: URBAN | C106: 11k | D106: RIVERWOOD | E106: 2049.883135 | F106: 1514.524094 | G106: 3564.407229 | H106: 0.5750979064 | I106: 0.4249020936 | L106: 9732.885657 | M106: 2810.336005 | O106: MEADOWBANK | P106: Meadowbank Zone | Q106: 126180.2085 | R106: 31191.64064 | S106: 157371.8491
A107: ZN 8100PA 1 | B107: URBAN | C107: 11k | D107: GREEN SQUARE | E107: 1327.105275 | F107: 0 | G107: 1327.105275 | H107: 1 | I107: 0 | L107: 0 | M107: 156.3274597 | O107: MEDOWIE 33 233 | P107: =LEFT(O107,LEN(O107)-4) -> MEDOWIE 33 | Q107: 23496.52855 | R107: 56747.62015 | S107: 80244.14871
A108: ZN12570PA25 | B108: SHORT RURAL | C108: 11k | D108: AVOCA | E108: 3227.810812 | F108: 3775.659261 | G108: 7003.470073 | H108: 0.460887357 | I108: 0.539112643 | L108: 7483.5688 | M108: 1446.189249 | O108: MENAI | P108: Menai Zone | Q108: 94785.78023 | R108: 6490.445003 | S108: 101276.2252
A109: ZN 3922PA 7 | B109: URBAN | C109: 11k | D109: DRUMMOYNE | E109: 7015.939683 | F109: 0 | G109: 7015.939683 | H109: 1 | I109: 0 | L109: 11061.97965 | M109: 2800.321153 | O109: MERRIWA 33 810 | P109: =LEFT(O109,LEN(O109)-4) -> MERRIWA 33 | Q109: 193.5145597 | R109: 566588.2196 | S109: 566781.7341
A110: ZN15001PA13 | B110: URBAN | C110: 11k | D110: BROOKVALE | E110: 2300.506126 | F110: 0 | G110: 2300.506126 | H110: 1 | I110: 0 | L110: 332.4219336 | M110: 312.0647452 | O110: METFORD 33 532 | P110: =LEFT(O110,LEN(O110)-4) -> METFORD 33 | Q110: 40014.77814 | R110: 44417.90441 | S110: 84432.68256
A111: 29882 | B111: URBAN | C111: 11k | D111: RUTHERFORD 33 511 | E111: 1523.370486 | F111: 0 | G111: 1523.370486 | H111: 1 | I111: 0 | L111: 0 | M111: 0 | O111: MILPERRA | P111: Milperra Zone | Q111: 71121.28315 | R111: 18821.80058 | S111: 89943.08373
A112: 31L | B112: CBD | C112: 11k | D112: DALLEY ST ZN263 | E112: 909.1954401 | F112: 0 | G112: 909.1954401 | H112: 1 | I112: 0 | L112: 0 | M112: 273.7216508 | O112: MIRANDA | Q112: 28956.44074 | R112: 18174.68888 | S112: 47131.12962
A113: 8666 | B113: URBAN | C113: 11k | D113: CARDIFF 33 214 | E113: 1132.458257 | F113: 5942.256805 | G113: 7074.715062 | H113: 0.160071218 | I113: 0.839928782 | L113: 17065.72613 | M113: 6824.896078 | O113: MITCHELL LINE 66 812 | P113: =LEFT(O113,LEN(O113)-4) -> MITCHELL LINE 66 | Q113: 34517.98294 | R113: 144243.0916 | S113: 178761.0745
A114: 82132 | B114: URBAN | C114: 11k | D114: RATHMINES 132 239 | E114: 1779.489535 | F114: 8692.730182 | G114: 10472.21972 | H114: 0.1699247707 | I114: 0.830075229 | L114: 11608.98784 | M114: 7178.850597 | O114: MITCHELLS FLAT 66 520 | P114: =LEFT(O114,LEN(O114)-4) -> MITCHELLS FLAT 66 | Q114: 0 | R114: 182205.5266 | S114: 182205.5266
A115: 80083 | B115: SHORT RURAL | C115: 11k | D115: MORISSET 132 243 | E115: 1986.191644 | F115: 41505.68538 | G115: 43491.87702 | H115: 0.04566810586 | I115: 0.9543318942 | L115: 9573.16551 | M115: 1029.298428 | O115: MONA VALE | Q115: 63240.58641 | R115: 24810.91265 | S115: 88051.49907
A116: ZN 35370PA8 | B116: SHORT RURAL | C116: 11k | D116: GALSTON | E116: 866.1620795 | F116: 30453.51609 | G116: 31319.67817 | H116: 0.02765552298 | I116: 0.972344477 | L116: 28798.27256 | M116: 12.70280892 | O116: MOONAN 33 806 | P116: =LEFT(O116,LEN(O116)-4) -> MOONAN 33 | Q116: 642.4454778 | R116: 222743.8251 | S116: 223386.2706
A117: 19071 | B117: SHORT RURAL | C117: 11k | D117: MITCHELL LINE 66 812 | E117: 12834.92486 | F117: 15376.9955 | G117: 28211.92036 | H117: 0.4549468698 | I117: 0.5450531302 | L117: 7726.896607 | M117: 27174.28245 | O117: MORISSET 132 243 | P117: =LEFT(O117,LEN(O117)-4) -> MORISSET 132 | Q117: 32451.4847 | R117: 162758.4368 | S117: 195209.9215
A118: ZN 9534PA18 | B118: URBAN | C118: 11k | D118: KURNELL SOUTH | E118: 1134.155142 | F118: 5885.356466 | G118: 7019.511608 | H118: 0.1615718023 | I118: 0.8384281977 | L118: 3497.233255 | M118: 983.6291665 | O118: MORTDALE | P118: Mortdale Zone | Q118: 43846.4684 | R118: 41656.22374 | S118: 85502.69214
A119: ZN 3155PA20 | B119: URBAN | C119: 11k | D119: DOUBLE BAY | E119: 2016.787088 | F119: 0 | G119: 2016.787088 | H119: 1 | I119: 0 | L119: 2343.897573 | M119: 5636.457794 | O119: MOSMAN | P119: Mosman Zone | Q119: 150683.4596 | R119: 1456.37739 | S119: 152139.837
A120: ZN 187PA13L | B120: URBAN | C120: 11k | D120: CROWS NEST | E120: 4651.258198 | F120: 0 | G120: 4651.258198 | H120: 1 | I120: 0 | L120: 4935.882392 | M120: 2044.470345 | O120: MOUNT HUTTON 33 217 | P120: =LEFT(O120,LEN(O120)-4) -> MOUNT HUTTON 33 | Q120: 14715.37164 | R120: 24254.36669 | S120: 38969.73834
A121: 80931 | B121: URBAN | C121: 11k | D121: KURRI KURRI 132/11kV 507 | E121: 1520.593478 | F121: 6578.188083 | G121: 8098.781561 | H121: 0.187755833 | I121: 0.812244167 | L121: 18867.71204 | M121: 1959.158268 | O121: MT THORLEY 66 515 | P121: =LEFT(O121,LEN(O121)-4) -> MT THORLEY 66 | Q121: 3024.458487 | R121: 262919.8214 | S121: 265944.2799
A122: ZN 1193PA25 | B122: URBAN | C122: 11k | D122: LINDFIELD | E122: 2656.039736 | F122: 919.6393293 | G122: 3575.679065 | H122: 0.742807083 | I122: 0.2571929171 | L122: 5075.812202 | M122: 1516.455312 | O122: MUSWELLBROOK 33 801 | P122: =LEFT(O122,LEN(O122)-4) -> MUSWELLBROOK 33 | Q122: 17992.89221 | R122: 291594.8962 | S122: 309587.7884
A123: ZN 398PA10 | B123: URBAN | C123: 11k | D123: DULWICH HILL | E123: 3550.245853 | F123: 0 | G123: 3550.245853 | H123: 1 | I123: 0 | L123: 3463.304759 | M123: 1372.186984 | O123: MYUNA 33 245 | P123: =LEFT(O123,LEN(O123)-4) -> MYUNA 33 | Q123: 12.606 | R123: 0 | S123: 12.606
A124: ZN 7900PA 2 | B124: URBAN | C124: 11k | D124: CAMPBELL ST | E124: 3297.563827 | F124: 0 | G124: 3297.563827 | H124: 1 | I124: 0 | L124: 3032.722102 | M124: 4653.474543 | O124: NARRABEEN | Q124: 16606.20151 | R124: 17020.45452 | S124: 33626.65603
A125: ZN36800PA54 | B125: URBAN | C125: 11k | D125: WAVERLEY | E125: 1348.949394 | F125: 0 | G125: 1348.949394 | H125: 1 | I125: 0 | L125: 0 | M125: 518.3485718 | O125: NELSON BAY 33 232 | P125: =LEFT(O125,LEN(O125)-4) -> NELSON BAY 33 | Q125: 27707.05774 | R125: 103577.8192 | S125: 131284.8769
A126: ZN 340PA 2 | B126: URBAN | C126: 11k | D126: BOTANY | E126: 4739.720715 | F126: 0 | G126: 4739.720715 | H126: 1 | I126: 0 | L126: 4880.092685 | M126: 2817.899532 | O126: NEW LAMBTON 33 210 | P126: =LEFT(O126,LEN(O126)-4) -> NEW LAMBTON 33 | Q126: 4317.184435 | R126: 16187.03875 | S126: 20504.22318
A127: ZN 2400PA15 | B127: SHORT RURAL | C127: 11k | D127: BEROWRA | E127: 9083.024283 | F127: 4123.563909 | G127: 13206.58819 | H127: 0.6877646333 | I127: 0.3122353669 | L127: 11188.22934 | M127: 7910.999257 | O127: NEWCASTLE CBD 33 202 | P127: =LEFT(O127,LEN(O127)-4) -> NEWCASTLE CBD 33 | Q127: 63628.52183 | R127: 18460.2371 | S127: 82088.75893
A128: 61F | B128: CBD | C128: 11k | D128: CITY NORTH ZN8700 | E128: 458.5593945 | F128: 0 | G128: 458.5593945 | H128: 1 | I128: 0 | L128: 0 | M128: 5.587537031 | O128: NEWDELL 66 514 | P128: =LEFT(O128,LEN(O128)-4) -> NEWDELL 66 | Q128: 2205.299284 | R128: 112160.7295 | S128: 114366.0287
A129: ZN10997PA 11 | B129: URBAN | C129: 11k | D129: SANS SOUCI | E129: 980.3887942 | F129: 1906.309995 | G129: 2886.698789 | H129: 0.3396228238 | I129: 0.6603771763 | L129: 6722.362025 | M129: 1230.625543 | O129: NEWPORT | Q129: 28055.00493 | R129: 3342.950523 | S129: 31397.95545
A130: ZN10997PA 8 | B130: URBAN | C130: 11k | D130: SANS SOUCI | E130: 505.2673987 | F130: 906.8422594 | G130: 1412.109658 | H130: 0.357810313 | I130: 0.6421896871 | L130: 2476.363588 | M130: 559.5691643 | O130: NEWSTAN COLLIERY 33/11kV SUBSTATION 250 | Q130: 0 | R130: 16.28473052 | S130: 16.28473052
A131: 8667 | B131: URBAN | C131: 11k | D131: CARDIFF 33 214 | E131: 4234.631033 | F131: 5827.721545 | G131: 10062.35258 | H131: =E131/$G131 -> 0.4208390632 | I131: =F131/$G131 -> 0.5791609366 | L131: 8824.196783 | M131: 5369.325219 | O131: NORAVILLE | P131: Noraville Zone | Q131: =SUMIF($D$2:$D$2597,$O131,E$2:E$2597) -> 35362.79475 | R131: =SUMIF($D$2:$D$2597,$O131,F$2:F$2597) -> 63429.54213 | S131: =SUMIF($D$2:$D$2597,$O131,G$2:G$2597) -> 98792.33688
A132: 34635 | B132: SHORT RURAL | C132: 11k | D132: ROTHBURY 132/11KV 526 | E132: 1625.574895 | F132: 10838.61766 | G132: 12464.19256 | H132: 0.1304195909 | I132: 0.8695804087 | L132: 539.5755285 | M132: 10.0000164 | O132: NORTH HEAD | Q132: 10811.77699 | R132: 1440.045605 | S132: 12251.8226
A133: ZN15012PA 2 | B133: URBAN | C133: 11k | D133: KILLARNEY | E133: 6867.922382 | F133: 0 | G133: 6867.922382 | H133: 1 | I133: 0 | L133: 18090.91266 | M133: 2518.778223 | O133: NORTH SYDNEY | P133: North Sydney Zone | Q133: 73830.54235 | R133: 0 | S133: 73830.54235
A134: ZN15005PA10 | B134: URBAN | C134: 11k | D134: BELROSE | E134: 7430.527529 | F134: 5917.169473 | G134: 13347.697 | H134: 0.5566898566 | I134: 0.4433101435 | L134: 10535.53692 | M134: 11097.9678 | O134: NULKABA 33 524 | P134: =LEFT(O134,LEN(O134)-4) -> NULKABA 33 | Q134: 19498.79063 | R134: 105206.9958 | S134: 124705.7865
A135: ZN15005PA8R | B135: URBAN | C135: 11k | D135: BELROSE | E135: 883.7845182 | F135: 3987.422878 | G135: 4871.207396 | H135: 0.1814302793 | I135: 0.8185697208 | L135: 10539.51711 | M135: 415.8121361 | O135: PADDINGTON | P135: Paddington Zone | Q135: 50480.47808 | R135: 0 | S135: 50480.47808
A136: ZN35900PA17L | B136: URBAN | C136: 11k | D136: POTTS HILL | E136: 7646.388171 | F136: 3062.253087 | G136: 10708.64126 | H136: 0.714039063 | I136: 0.2859609368 | L136: 20137.52192 | M136: 1816.742126 | O136: PAXTON 33 509 | P136: =LEFT(O136,LEN(O136)-4) -> PAXTON 33 | Q136: 4224.685338 | R136: 346891.3002 | S136: 351115.9855
A137: 63B | B137: CBD | C137: 11k | D137: CITY NORTH ZN8700 | E137: 1123.737734 | F137: 0 | G137: 1123.737734 | H137: 1 | I137: 0 | L137: 0 | M137: 192.7058626 | O137: PEATS RIDGE | P137: Peats Ridge Zone | Q137: 21100.69539 | R137: 261479.3862 | S137: 282580.0816
A138: ZN 3425PA28 | B138: URBAN | C138: 11k | D138: CASTLE COVE | E138: 3589.449519 | F138: 4791.564386 | G138: 8381.013905 | H138: 0.4282834463 | I138: 0.5717165537 | L138: 11717.08807 | M138: 3492.864639 | O138: PELICAN 33 222 | P138: =LEFT(O138,LEN(O138)-4) -> PELICAN 33 | Q138: 6838.245206 | R138: 24985.87003 | S138: 31824.11524
A139: ZN 180PA30R | B139: URBAN | C139: 11k | D139: MOSMAN | E139: 5131.064413 | F139: 0 | G139: 5131.064413 | H139: 1 | I139: 0 | L139: 8487.211244 | M139: 1267.139075 | O139: PENNANT HILLS | P139: Pennant Hills Zone | Q139: 189436.4291 | R139: 25438.92551 | S139: 214875.3546
A140: ZN 8000PA33 | B140: HV CUSTOMERS | C140: 11k | D140: MACQUARIE PARK | E140: 1217.208547 | F140: 0 | G140: 1217.208547 | H140: 1 | I140: 0 | L140: 0 | M140: 0 | O140: PORT BOTANY | P140: Port Botany Zone | Q140: 14473.65304 | R140: 0 | S140: 14473.65304
A141: 82005 | B141: URBAN | C141: 11k | D141: BROADMEADOW 132 257 | E141: 1402.995337 | F141: 0 | G141: 1402.995337 | H141: 1 | I141: 0 | L141: 0 | M141: 0 | O141: POTTS HILL | P141: Potts Hill Zone | Q141: 108433.043 | R141: 14522.2199 | S141: 122955.2629
A142: ZN15014PA18 | B142: URBAN | C142: 11k | D142: MONA VALE | E142: 4106.171389 | F142: 557.631509 | G142: 4663.802898 | H142: 0.8804341604 | I142: 0.1195658396 | L142: 6896.655368 | M142: 1510.803514 | O142: PUNCHBOWL | P142: Punchbowl Zone | Q142: 87624.49189 | R142: 0 | S142: 87624.49189
A143: ZN 711PA5R | B143: URBAN | C143: 5kV | D143: BLACKWATTLE BAY | E143: 149.7091329 | F143: 0 | G143: 149.7091329 | H143: 1 | I143: 0 | L143: 0 | M143: 0 | O143: PYMBLE | P143: Pymble Zone | Q143: 63512.17943 | R143: 10172.48759 | S143: 73684.66703
A144: 82576 | B144: SHORT RURAL | C144: 11k | D144: BRANDY HILL 132 508 | E144: 9542.261462 | F144: 4196.09188 | G144: 13738.35334 | H144: 0.6945709741 | I144: 0.305429026 | L144: 2809.241174 | M144: 7310.901206 | O144: RATHMINES 132 239 | P144: =LEFT(O144,LEN(O144)-4) -> RATHMINES 132 | Q144: 13830.52478 | R144: 82825.87869 | S144: 96656.40347
A145: ZN 965PA30 | B145: URBAN | C145: 11k | D145: PENNANT HILLS | E145: 5351.643524 | F145: 0 | G145: 5351.643524 | H145: 1 | I145: 0 | L145: 385.6163771 | M145: 73.32909808 | O145: RAYMOND TERRACE 33 264 | P145: =LEFT(O145,LEN(O145)-4) -> RAYMOND TERRACE 33 | Q145: 42112.81575 | R145: 101277.7072 | S145: 143390.5229
A146: 46K | B146: CBD | C146: 11k | D146: CITY SOUTH ZN3288 | E146: 1850.434267 | F146: 0 | G146: 1850.434267 | H146: 1 | I146: 0 | L146: 0 | M146: 9.996159262 | O146: REVESBY | P146: Revesby Zone | Q146: 57084.18993 | R146: 23674.87697 | S146: 80759.0669
A147: ZN 3154PA 3 | B147: URBAN | C147: 11k | D147: ST IVES | E147: 2820.154701 | F147: 0 | G147: 2820.154701 | H147: 1 | I147: 0 | L147: 3716.991966 | M147: 2719.77205 | O147: RIVERWOOD | Q147: 16642.55494 | R147: 29152.01692 | S147: 45794.57186
A148: 34639 | B148: SHORT RURAL | C148: 11k | D148: ROTHBURY 132/11KV 526 | E148: 813.6126076 | F148: 51799.32704 | G148: 52612.93965 | H148: 0.01546411611 | I148: 0.9845358838 | L148: 4914.901635 | M148: 75.31369178 | O148: ROCKDALE | Q148: 20533.53852 | R148: 14636.70941 | S148: 35170.24792
A149: ZN 3154PA23 | B149: URBAN | C149: 11k | D149: ST IVES | E149: 1557.834906 | F149: 1839.356927 | G149: 3397.191833 | H149: 0.4585654807 | I149: 0.5414345193 | L149: 6978.674931 | M149: 625.4162912 | O149: ROSE BAY | P149: Rose Bay Zone | Q149: 79756.67959 | R149: 0 | S149: 79756.67959
A150: ZN 2466PA 6 | B150: URBAN | C150: 11k | D150: FLEMINGTON | E150: 2791.243079 | F150: 0 | G150: 2791.243079 | H150: 1 | I150: 0 | L150: 0 | M150: 1326.448585 | O150: ROTHBURY 132/11KV 526 | P150: =LEFT(O150,LEN(O150)-4) -> ROTHBURY 132/11KV | Q150: 37548.45413 | R150: 204934.35 | S150: 242482.8042
A151: ZN 7481PA14R | B151: URBAN | C151: 11k | D151: DARLING HARBOUR 132/11kV | E151: 2469.939672 | F151: 0 | G151: 2469.939672 | H151: 1 | I151: 0 | L151: 0 | M151: 13.13521057 | O151: ROUCHEL 33 811 | P151: =LEFT(O151,LEN(O151)-4) -> ROUCHEL 33 | Q151: 522.3500667 | R151: 115511.1852 | S151: 116033.5353
A152: ZN 901PA10 | B152: URBAN | C152: 11k | D152: SURRY HILLS | E152: 2882.140856 | F152: 0 | G152: 2882.140856 | H152: 1 | I152: 0 | L152: 471.4101928 | M152: 1772.09764 | O152: ROYAL NORTH SHORE | Q152: 14696.75131 | R152: 0 | S152: 14696.75131
A153: ZN36800PA32 | B153: URBAN | C153: 11k | D153: WAVERLEY | E153: 3843.743134 | F153: 0 | G153: 3843.743134 | H153: 1 | I153: 0 | L153: 867.3589982 | M153: 6882.656645 | O153: RUTHERFORD 33 511 | P153: =LEFT(O153,LEN(O153)-4) -> RUTHERFORD 33 | Q153: 47674.94894 | R153: 220566.4684 | S153: 268241.4173
A154: ZN 4545PA20 | B154: HV CUSTOMERS | C154: 11k | D154: MEADOWBANK | E154: 759.6714348 | F154: 0 | G154: 759.6714348 | H154: 1 | I154: 0 | L154: 0 | M154: 0 | O154: SANS SOUCI | P154: Sans Souci Zone | Q154: 17461.59528 | R154: 10197.34035 | S154: 27658.93562
A155: ZN 9035PA11L | B155: URBAN | C155: 11k | D155: CARINGBAH | E155: 428.075263 | F155: 0 | G155: 428.075263 | H155: 1 | I155: 0 | L155: 0 | M155: 0 | O155: SCA Pole Mounted Sub | Q155: 0 | R155: 0 | S155: 0
A156: 11899 | B156: SHORT RURAL | C156: 11k | D156: GATESHEAD 33 221 | E156: 1431.326455 | F156: 10645.09658 | G156: 12076.42303 | H156: 0.1185223846 | I156: 0.8814776158 | L156: 16627.19879 | M156: 3071.332909 | O156: SCONE 66 813 | P156: =LEFT(O156,LEN(O156)-4) -> SCONE 66 | Q156: 17879.69866 | R156: 613352.2103 | S156: 631231.9091
A157: ZN15006PA 9 | B157: URBAN | C157: 11k | D157: DEE WHY WEST | E157: 7362.360111 | F157: 362.0606951 | G157: 7724.420806 | H157: 0.9531277873 | I157: 0.04687221271 | L157: 8580.521604 | M157: 5207.883653 | O157: SEFTON | P157: Sefton Zone | Q157: 86641.78458 | R157: 16193.15019 | S157: 102834.9348
A158: 41C | B158: CBD | C158: 11k | D158: CITY SOUTH ZN3288 | E158: 687.5017684 | F158: 0 | G158: 687.5017684 | H158: 1 | I158: 0 | L158: 0 | M158: 29.99671214 | O158: SINGLETON 66 513 | P158: =LEFT(O158,LEN(O158)-4) -> SINGLETON 66 | Q158: 7158.919778 | R158: 159891.5109 | S158: 167050.4306
A159: 14394 | B159: URBAN | C159: 11k | D159: SWANSEA 33 223 | E159: 477.4869579 | F159: 5306.095308 | G159: 5783.582266 | H159: 0.08255903278 | I159: 0.9174409672 | L159: 17067.83456 | M159: 93.17519849 | O159: SINGLETON NORTH 66 523 | P159: =LEFT(O159,LEN(O159)-4) -> SINGLETON NORTH 66 | Q159: 29535.61977 | R159: 185465.1368 | S159: 215000.7566
A160: ZN 9900PA 3 | B160: URBAN | C160: 11k | D160: MENAI | E160: 5658.055268 | F160: 0 | G160: 5658.055268 | H160: 1 | I160: 0 | L160: 0 | M160: 15967.97578 | O160: SOMERSBY | P160: Somersby Zone | Q160: 32739.2877 | R160: 85240.94224 | S160: 117980.2299
A161: ZN12630PA 8 | B161: SHORT RURAL | C161: 11k | D161: PEATS RIDGE | E161: 12967.73005 | F161: 54313.57751 | G161: 67281.30756 | H161: 0.1927389719 | I161: 0.8072610281 | L161: 21912.03058 | M161: 131.7016973 | O161: ST IVES | P161: St Ives Zone | Q161: 74658.20457 | R161: 33584.10796 | S161: 108242.3125
A162: ZN 901PA 1 | B162: URBAN | C162: 11k | D162: SURRY HILLS | E162: 2055.516799 | F162: 0 | G162: 2055.516799 | H162: 1 | I162: 0 | L162: 0 | M162: 761.6432871 | O162: ST. PETERS | P162: St Peters Zone | Q162: 107421.4027 | R162: 0 | S162: 107421.4027
A163: 34640 | B163: SHORT RURAL | C163: 11k | D163: ROTHBURY 132/11KV 526 | E163: 4945.928668 | F163: 41233.66864 | G163: 46179.59731 | H163: 0.1071020311 | I163: 0.8928979688 | L163: 2577.634156 | M163: 151.0810016 | O163: STOCKTON 33 228 | P163: =LEFT(O163,LEN(O163)-4) -> STOCKTON 33 | Q163: 9403.662298 | R163: 24662.69658 | S163: 34066.35887
A164: ZN 2196PA 5 | B164: URBAN | C164: 11k | D164: MILPERRA | E164: 5580.461862 | F164: 6372.459525 | G164: 11952.92139 | H164: 0.4668701215 | I164: 0.5331298782 | L164: 22430.18067 | M164: 4696.391393 | O164: SURRY HILLS | P164: Surry Hills Zone | Q164: 43880.85177 | R164: 0 | S164: 43880.85177
A165: ZN 2835PA33 | B165: URBAN | C165: 11k | D165: BURWOOD | E165: 5319.953072 | F165: 0 | G165: 5319.953072 | H165: 1 | I165: 0 | L165: 956.5340709 | M165: 1259.277336 | O165: SWANSEA 33 223 | P165: =LEFT(O165,LEN(O165)-4) -> SWANSEA 33 | Q165: 21159.45551 | R165: 33613.99295 | S165: 54773.44846
A166: ZN 9550PA27 | B166: URBAN | C166: 11k | D166: GWAWLEY BAY | E166: 5341.499207 | F166: 0 | G166: 5341.499207 | H166: 1 | I166: 0 | L166: 958.2388165 | M166: 1863.894855 | O166: TANILBA BAY 33 230 | P166: =LEFT(O166,LEN(O166)-4) -> TANILBA BAY 33 | Q166: 7717.995048 | R166: 84312.30053 | S166: 92030.29558
A167: 33509 | B167: URBAN | C167: 11k | D167: SINGLETON NORTH 66 523 | E167: 2983.984597 | F167: 1787.93477 | G167: 4771.919367 | H167: 0.625321672 | I167: 0.374678328 | L167: 2182.314974 | M167: 10033.03539 | O167: TARRO 33 235 | P167: =LEFT(O167,LEN(O167)-4) -> TARRO 33 | Q167: 9620.600387 | R167: 101179.9579 | S167: 110800.5583
A168: ZN 2635PA48 | B168: CAP | C168: 11k | D168: EPPING | E168: 48.44125267 | F168: 0 | G168: 48.44125267 | H168: 1 | I168: 0 | L168: 0 | M168: 0 | O168: TELARAH 33 502 | P168: =LEFT(O168,LEN(O168)-4) -> TELARAH 33 | Q168: 12027.50301 | R168: 32865.44664 | S168: 44892.94966
A169: 44H | B169: CBD | C169: 11k | D169: CITY SOUTH ZN3288 | E169: 312.9088157 | F169: 0 | G169: 312.9088157 | H169: 1 | I169: 0 | L169: 0 | M169: 0 | O169: TERREY HILLS | P169: Terrey Hills Zone | Q169: 17984.56549 | R169: 46225.32215 | S169: 64209.88765
A170: ZN 129PA 43 | B170: URBAN | C170: 11k | D170: HUNTERS HILL | E170: 4010.589655 | F170: 0 | G170: 4010.589655 | H170: 1 | I170: 0 | L170: 377.9047115 | M170: 513.010143 | O170: THORNTON 33 238 | P170: =LEFT(O170,LEN(O170)-4) -> THORNTON 33 | Q170: 70092.40774 | R170: 103431.6893 | S170: 173524.097
A171: 80632 | B171: URBAN | C171: 11k | D171: ADAMSTOWN 132 256 | E171: 1652.156628 | F171: 7533.282195 | G171: 9185.438823 | H171: 0.1798669241 | I171: 0.8201330759 | L171: 10748.0166 | M171: 3518.294208 | O171: TOMAGO 33 265 | P171: =LEFT(O171,LEN(O171)-4) -> TOMAGO 33 | Q171: 23232.5177 | R171: 32034.18602 | S171: 55266.70373
A172: ZN15014PA12 | B172: SHORT RURAL | C172: 11k | D172: MONA VALE | E172: 14893.74593 | F172: 5242.727857 | G172: 20136.47379 | H172: 0.7396402213 | I172: 0.2603597786 | L172: 26625.17325 | M172: 4060.936739 | O172: TOMALPIN 33 525 | P172: =LEFT(O172,LEN(O172)-4) -> TOMALPIN 33 | Q172: 5227.824971 | R172: 436.4925253 | S172: 5664.317496
A173: ZN 3155PA34 | B173: URBAN | C173: 11k | D173: DOUBLE BAY | E173: 4634.409381 | F173: 0 | G173: 4634.409381 | H173: 1 | I173: 0 | L173: 722.9959668 | M173: 4500.973718 | O173: TOMAREE 33 242 | P173: =LEFT(O173,LEN(O173)-4) -> TOMAREE 33 | Q173: 22386.53205 | R173: 21307.39137 | S173: 43693.92342
A174: ZN 3472PA11 | B174: URBAN | C174: 11k | D174: SEFTON | E174: 2212.80466 | F174: 1673.527831 | G174: 3886.332491 | H174: 0.5693812007 | I174: 0.4306187993 | L174: 5038.63898 | M174: 1126.169451 | O174: TOP RYDE | P174: Top Ryde Zone | Q174: 92063.23607 | R174: 26005.40114 | S174: 118068.6372
A175: ZN10990PA 8 | B175: URBAN | C175: 11k | D175: ARNCLIFFE | E175: 2429.121462 | F175: 2020.428309 | G175: 4449.549771 | H175: 0.5459252255 | I175: 0.4540747745 | L175: 5210.980617 | M175: 4200.996792 | O175: TORONTO 33 225 | P175: =LEFT(O175,LEN(O175)-4) -> TORONTO 33 | Q175: 5238.417162 | R175: 21571.26341 | S175: 26809.68057
A176: ZN12600PA 3 | B176: URBAN | C176: 11k | D176: LISAROW | E176: 4162.709976 | F176: 6657.747289 | G176: 10820.45727 | H176: 0.3847073993 | I176: 0.6152926002 | L176: 11690.11943 | M176: 11543.46805 | O176: TORONTO WEST 132 270 | P176: =LEFT(O176,LEN(O176)-4) -> TORONTO WEST 132 | Q176: 5496.428281 | R176: 15252.99029 | S176: 20749.41857
A177: ZN10995PA12 | B177: URBAN | C177: 11k | D177: RIVERWOOD | E177: 1617.453214 | F177: 3872.018996 | G177: 5489.47221 | H177: 0.2946463981 | I177: 0.7053536019 | L177: 11964.57897 | M177: 2822.238157 | O177: TURRAMURRA | Q177: 73826.0277 | R177: 12147.23293 | S177: 85973.26063
A178: ZN 129PA 47 | B178: URBAN | C178: 11k | D178: HUNTERS HILL | E178: 9730.989994 | F178: 0 | G178: 9730.989994 | H178: 1 | I178: 0 | L178: 9916.020931 | M178: 3202.842185 | O178: UMINA | P178: Umina Zone | Q178: 23219.35185 | R178: 61486.28419 | S178: 84705.63604
A179: 82821 | B179: SHORT RURAL | C179: 11k | D179: MEDOWIE 33 233 | E179: 1950.943253 | F179: 3879.052388 | G179: 5829.995641 | H179: 0.3346388871 | I179: 0.6653611129 | L179: 5560.555204 | M179: 542.35274 | O179: VALES POINT | Q179: 1797.744606 | R179: 10169.43129 | S179: 11967.1759
A180: 35200 | B180: URBAN | C180: 11k | D180: MT THORLEY 66 515 | E180: 1124.452442 | F180: 6458.318505 | G180: 7582.770947 | H180: 0.1482904402 | I180: 0.8517095598 | L180: 4142.833795 | M180: 634.5474242 | O180: WAMBERAL | P180: Wamberal Zone | Q180: 20986.46644 | R180: 43901.31503 | S180: 64887.78147
A181: 8685 | B181: URBAN | C181: 11k | D181: TARRO 33 235 | E181: 287.0579165 | F181: 2111.36451 | G181: 2398.422426 | H181: 0.1196861376 | I181: 0.8803138626 | L181: 1632.497834 | M181: 47.10297989 | O181: WAVERLEY | Q181: 48673.3424 | R181: 0 | S181: 48673.3424
A182: ZN12650PA19 | B182: URBAN | C182: 11k | D182: WEST GOSFORD | E182: 3637.794425 | F182: 167.7487006 | G182: 3805.543126 | H182: 0.9559199054 | I182: 0.0440800945 | L182: 3442.070999 | M182: 1119.098531 | O182: WEST GOSFORD | P182: West Gosford Zone | Q182: 64024.10501 | R182: 108060.3313 | S182: 172084.4363
A183: 81988 | B183: URBAN | C183: 11k | D183: BROADMEADOW 132 257 | E183: 1931.301098 | F183: 4846.331045 | G183: 6777.632143 | H183: 0.2849521864 | I183: 0.7150478136 | L183: 11639.89663 | M183: 964.496673 | O183: WILLIAMTOWN 33 229 | P183: =LEFT(O183,LEN(O183)-4) -> WILLIAMTOWN 33 | Q183: 8979.118098 | R183: 54550.93631 | S183: 63530.05441
A184: ZN 3472PA17 | B184: URBAN | C184: 11k | D184: SEFTON | E184: 7969.237095 | F184: 0 | G184: 7969.237095 | H184: 1 | I184: 0 | L184: 15029.30619 | M184: 3096.502448 | O184: WOY WOY | Q184: 25767.72509 | R184: 41936.5727 | S184: 67704.29779
A185: ZN35900PA24 | B185: URBAN | C185: 11k | D185: POTTS HILL | E185: 5445.508834 | F185: 769.791847 | G185: 6215.300681 | H185: 0.8761456788 | I185: 0.1238543212 | L185: 12569.2322 | M185: 2552.902407 | O185: WYONG | P185: Wyong Zone | Q185: 86779.88916 | R185: 240837.0573 | S185: 327616.9464
A186: 52K | B186: CBD | C186: 11k | D186: CITY CENTRAL ZN4990 | E186: 2079.63832 | F186: 0 | G186: 2079.63832 | H186: 1 | I186: 0 | L186: 0 | M186: 201.8349553 | O186: ZETLAND | Q186: 119735.5857 | R186: 0 | S186: 119735.5857
A187: ZN 2635PA40 | B187: URBAN | C187: 11k | D187: EPPING | E187: 3715.742155 | F187: 0 | G187: 3715.742155 | H187: 1 | I187: 0 | L187: 0 | M187: 1687.548434 | O187: ZN 188PA26L unconnected | P187: Zetland Zone | Q187: 5162.125231 | R187: 0 | S187: 5162.125231
A188: ZN 342PA18L | B188: URBAN | C188: 11k | D188: PADDINGTON | E188: 3957.816127 | F188: 0 | G188: 3957.816127 | H188: 1 | I188: 0 | L188: 497.6641934 | M188: 4234.167772
A189: ZN 1850PA 4 | B189: URBAN | C189: 11k | D189: BASS HILL | E189: 4398.006045 | F189: 2105.028668 | G189: 6503.034713 | H189: 0.6763005641 | I189: 0.3236994359 | L189: 9787.950114 | M189: 2555.098027
A190: ZN 8100PA19 | B190: URBAN | C190: 11k | D190: GREEN SQUARE | E190: 2982.278059 | F190: 0 | G190: 2982.278059 | H190: 1 | I190: 0 | L190: 0 | M190: 397.6787034
A191: ZN 1287PA22 | B191: URBAN | C191: 11k | D191: REVESBY | E191: 4540.984987 | F191: 794.3302184 | G191: 5335.315205 | H191: 0.8511184087 | I191: 0.1488815914 | L191: 8849.57258 | M191: 1803.420774
A192: ZN 340PA 9 | B192: SHORT RURAL | C192: 11k | D192: BOTANY | E192: 1653.702065 | F192: 0 | G192: 1653.702065 | H192: 1 | I192: 0 | L192: 0 | M192: 0
A193: ZN12620PA 2 | B193: SHORT RURAL | C193: 11k | D193: NORAVILLE | E193: 417.4098891 | F193: 5542.826633 | G193: 5960.236522 | H193: 0.07003243706 | I193: 0.929967563 | L193: 8084.384802 | M193: 198.4310782
A194: ZN 9550PA41 | B194: URBAN | C194: 11k | D194: GWAWLEY BAY | E194: 3268.370833 | F194: 0 | G194: 3268.370833 | H194: 1 | I194: 0 | L194: 833.0368842 | M194: 113.7597273
A195: 54G | B195: CBD | C195: 11k | D195: CITY CENTRAL ZN4990 | E195: 1335.587622 | F195: 0 | G195: 1335.587622 | H195: =E195/$G195 -> 1 | I195: =F195/$G195 -> 0 | L195: 0 | M195: 6.997350797
A196: ZN 340PA 1 | B196: SHORT RURAL | C196: 11k | D196: BOTANY | E196: 5945.001447 | F196: 0 | G196: 5945.001447 | H196: 1 | I196: 0 | L196: 5219.703504 | M196: 948.4601124
A197: ZN 2602PA10 | B197: URBAN | C197: 11k | D197: CLOVELLY | E197: 3195.20653 | F197: 0 | G197: 3195.20653 | H197: 1 | I197: 0 | L197: 5275.588208 | M197: 1135.344398
A198: 74117 | B198: SHORT RURAL | C198: 11k | D198: MUSWELLBROOK 33 801 | E198: 62.67869602 | F198: 1924.848178 | G198: 1987.526874 | H198: 0.03153602441 | I198: 0.9684639756 | L198: 819.8308642 | M198: 0
A199: ZN 9037PA14 | B199: URBAN | C199: 11k | D199: MIRANDA | E199: 2633.921584 | F199: 0 | G199: 2633.921584 | H199: 1 | I199: 0 | L199: 555.0648509 | M199: 1113.039862
A200: ZN14891PA14L | B200: URBAN | C200: 11k | D200: WYONG | E200: 7465.594803 | F200: 0 | G200: 7465.594803 | H200: 1 | I200: 0 | L200: 0 | M200: 1626.886263
... 2397 more rows

Sheet 18-19
A1: ZONE | D1: Total Cost | E1: Direct Cost | F1: Indirect | G1: 0.57 | H1: 0.9 | M1: Direct % | Q1: 0.57 | R1: 0.9 | V1: Actual
A2: GIS ID | B2: NAME | C2: Area Plan | G2: OH% | H2: UG% | I2: OH ($M) | J2: UG ($M) | K2: Total ($M) | M2: Area Plan | N2: OH budget | O2: UG budget | P2: Total budget | Q2: OH Unit rate | R2: UG Unit rate | S2: OH Length | T2: UG Length | V2: OH Unit rate | W2: UG Unit rate | X2: OH Length | Y2: UG Length
I3: =SUM(I4:I7) -> 0.3146255448 | J3: =SUM(J4:J7) -> 1.153205498 | K3: =SUM(K4:K7) -> 1.467831043 | N3: ($M) | O3: ($M) | P3: ($M) | Q3: ($/km) | S3: (km) | T3: (km) | V3: ($/km) | X3: (km) | Y3: (km)
B4: St Peters Zone | C4: =VLOOKUP(B4,'Zone - Area Plan'!$A$2:$B$224,2,1) -> Eastern Suburbs | D4: 1 | E4: =D4*G4*$G$1+D4*H4*$H$1 -> 0.9 | G4: =VLOOKUP(B4,'OH & UG split'!$P$2:$S$187,3,FALSE)/VLOOKUP(B4,'OH & UG split'!$P$2:$S$187,4,FALSE) -> 0 | H4: =1-G4 -> 1 | I4: =G4*$K4 -> 0 | J4: =H4*$K4 -> 0.9 | K4: =E4 -> 0.9 | M4: Auburn / Homebush | N4: =SUMIF($C$4:$C$7,$M4,I$4:I$7) -> 0 | O4: 0 | P4: 0 | Q4: =250000*$Q$1 -> 142500 | R4: =#REF!*$R$1 ->  | S4: =IFERROR($N4/Q4*1000000,0) -> 0 | T4: =IFERROR($N4/R4*1000000,0) -> 0 | V4: 0 | W4: 0 | X4: 0 | Y4: 0
B5: Long Jetty Zone | C5: =VLOOKUP(B5,'Zone - Area Plan'!$A$2:$B$224,2,1) -> Lower Central Coast | D5: 0.305 | E5: =D5*G5/(1+$G$1)+D5*H5/(1+$H$1) -> 0.1942675159 | G5: 1 | H5: =1-G5 -> 0 | I5: =G5*$K5 -> 0.1942675159 | J5: 0 | K5: =E5 -> 0.1942675159 | M5: Camperdown & Blackwattle Bay | N5: 0 | O5: 0 | P5: 0 | Q5: 142500 | R5: =#REF!*$R$1 ->  | S5: 0 | T5: 0 | V5: 0 | W5: 0 | X5: 0 | Y5: 0
B6: Wyong Zone | C6: =VLOOKUP(B6,'Zone - Area Plan'!$A$2:$B$224,2,1) -> Upper Central Coast | D6: 0.4 | E6: 0.2282266175 | G6: 0.4 | H6: 0.6 | I6: 0.091290647 | J6: 0.1369359705 | K6: 0.2282266175 | M6: Canterbury Bankstown | N6: 0 | O6: 0 | P6: 0 | Q6: 142500 | R6: =#REF!*$R$1 ->  | S6: 0 | T6: 0 | V6: 0 | W6: 0 | X6: 0 | Y6: 0
B7: Somersby Zone | C7: =VLOOKUP(B7,'Zone - Area Plan'!$A$2:$B$224,2,1) -> Lower Central Coast | D7: 0.265 | E7: 0.1453369092 | G7: 0.2 | H7: 0.8 | I7: 0.02906738183 | J7: 0.1162695273 | K7: 0.1453369092 | M7: Carlingford | N7: 0 | O7: 0 | P7: 0 | Q7: 142500 | R7: =#REF!*$R$1 ->  | S7: 0 | T7: 0 | V7: 0 | W7: 0 | X7: 0 | Y7: 0
M8: Eastern Suburbs | N8: 0 | O8: 0.9 | P8: 0.9 | Q8: 142500 | R8: =#REF!*$R$1 ->  | S8: 0 | T8: 0 | V8: 0 | W8: =E7/Y8*1000000 -> 48445.63638 | X8: =IFERROR($N8/V8*1000000,0) -> 0 | Y8: 3
M9: Greater Cessnock | N9: 0 | O9: 0 | P9: 0 | Q9: 142500 | R9: =#REF!*$R$1 ->  | S9: 0 | T9: 0 | V9: 0 | W9: 0 | X9: 0 | Y9: 0
M10: Lower Central Coast | N10: 0.373 | O10: 0.212 | P10: =SUMIF($C$4:$C$7,$M10,K$4:K$7) -> 0.3396044251 | Q10: 142500 | R10: =#REF!*$R$1 ->  | S10: 2.61754386 | T10: 0 | V10: =N10/X10*1000000 -> 165777.7778 | W10: =O10/Y10*1000000 -> 141333.3333 | X10: 2.25 | Y10: 1.5
M11: Lower North Shore | N11: =SUMIF($C$4:$C$7,$M11,I$4:I$7) -> 0 | O11: =SUMIF($C$4:$C$7,$M11,J$4:J$7) -> 0 | P11: 0 | Q11: 142500 | R11: =#REF!*$R$1 ->  | S11: 0 | T11: 0 | V11: 0 | W11: 0 | X11: 0 | Y11: 0
M12: Maitland | N12: 0 | O12: 0 | P12: 0 | Q12: 142500 | R12: =#REF!*$R$1 ->  | S12: 0 | T12: 0 | V12: 0 | W12: 0 | X12: 0 | Y12: 0
M13: Manly Warringah | N13: 0 | O13: 0 | P13: 0 | Q13: 142500 | R13: =#REF!*$R$1 ->  | S13: 0 | T13: 0 | V13: 0 | W13: 0 | X13: 0 | Y13: 0
M14: Newcastle Inner City | N14: 0 | O14: 0 | P14: 0 | Q14: 142500 | R14: =#REF!*$R$1 ->  | S14: 0 | T14: 0 | V14: 0 | W14: 0 | X14: 0 | Y14: 0
M15: Newcastle Port | N15: 0 | O15: 0 | P15: 0 | Q15: 142500 | R15: =#REF!*$R$1 ->  | S15: 0 | T15: 0 | V15: 0 | W15: 0 | X15: 0 | Y15: 0
M16: Newcastle Western Corridor | N16: 0 | O16: 0 | P16: 0 | Q16: 142500 | R16: =#REF!*$R$1 ->  | S16: 0 | T16: 0 | V16: 0 | W16: 0 | X16: 0 | Y16: 0
M17: North East Lake Macquarie | N17: 0 | O17: 0 | P17: 0 | Q17: 142500 | R17: =#REF!*$R$1 ->  | S17: 0 | T17: 0 | V17: 0 | W17: 0 | X17: 0 | Y17: 0
M18: North West | N18: 0 | O18: 0 | P18: 0 | Q18: 142500 | R18: =#REF!*$R$1 ->  | S18: 0 | T18: 0 | V18: 0 | W18: 0 | X18: 0 | Y18: 0
M19: Pittwater | N19: 0 | O19: 0 | P19: 0 | Q19: 142500 | R19: =#REF!*$R$1 ->  | S19: 0 | T19: 0 | V19: 0 | W19: 0 | X19: 0 | Y19: 0
M20: Port Stephens | N20: 0 | O20: 0 | P20: 0 | Q20: 142500 | R20: =#REF!*$R$1 ->  | S20: 0 | T20: 0 | V20: 0 | W20: 0 | X20: 0 | Y20: 0
M21: Singleton | N21: 0 | O21: 0 | P21: 0 | Q21: 142500 | R21: =#REF!*$R$1 ->  | S21: 0 | T21: 0 | V21: 0 | W21: 0 | X21: 0 | Y21: 0
M22: St George | N22: 0 | O22: 0 | P22: 0 | Q22: 142500 | R22: =#REF!*$R$1 ->  | S22: 0 | T22: 0 | V22: 0 | W22: 0 | X22: 0 | Y22: 0
M23: Sutherland | N23: 0 | O23: 0 | P23: 0 | Q23: 142500 | R23: =#REF!*$R$1 ->  | S23: 0 | T23: 0 | V23: 0 | W23: 0 | X23: 0 | Y23: 0
M24: Sydney CBD | N24: 0 | O24: 0 | P24: 0 | Q24: n/a | R24: n/a | S24: 0 | T24: 0 | V24: n/a | W24: n/a | X24: 0 | Y24: 0
M25: Upper Central Coast | N25: 0.155 | O25: 0.245 | P25: 0.2282266175 | Q25: =250000*$Q$1 -> 142500 | R25: =#REF!*$R$1 ->  | S25: 1.087719298 | T25: 0 | V25: =N25/X25*1000000 -> 77500 | W25: =O25/Y25*1000000 -> 408333.3333 | X25: 2 | Y25: 0.6
M26: Upper Hunter | N26: =SUMIF($C$4:$C$7,$M26,I$4:I$7) -> 0 | O26: 0 | P26: 0 | Q26: =250000*$Q$1 -> 142500 | R26: =#REF!*$R$1 ->  | S26: 0 | T26: 0 | V26: 0 | W26: 0 | X26: 0 | Y26: 0
M27: Upper North Shore | N27: 0 | O27: 0 | P27: 0 | Q27: =250000*$Q$1 -> 142500 | R27: =#REF!*$R$1 ->  | S27: 0 | T27: 0 | V27: 0 | W27: 0 | X27: 0 | Y27: 0
M28: West Lake Macquarie | N28: 0 | O28: 0 | P28: 0 | Q28: =250000*$Q$1 -> 142500 | R28: =#REF!*$R$1 ->  | S28: 0 | T28: 0 | V28: 0 | W28: 0 | X28: 0 | Y28: 0

Sheet L1_nonres
A1: INPUTS | F1: All $1819 | Q1: OUTPUTS - present value | V1: Cashflow of DM cost
A2: Project type (S/M/L) | B2: L | E2: avg LAR (MVA) | F2: =VLOOKUP($B$2, 'DM analysis'!$O$9:$U$11, 6, 0) -> 5.571428571 | I2: res DR cost ($/kVA) | J2: =summary!B3 -> 250 | M2: Residential DR split | N2: =summary!E4 -> 0.05 | Q2: deferral yrs | R2: DM budget | S2: DM cost | T2: % budget | V2: deferral yrs | W2: 2019/20 | X2: 2020/21 | Y2: 2021/22 | Z2: 2022/23 | AA2: 2023/24
A3: discount rate | B3: =summary!$B$9 -> 0.039 | E3: avg LAR pa (MVA) | F3: =F2/5 -> 1.114285714 | I3: nonres DR cost ($/kVA) | J3: =summary!B4 -> 100 | M3: Non-residential DR split | N3: =1-N2 -> 0.95 | Q3: 1 | R3: =C29 -> 130323.6586 | S3: =C67 -> 107094.456 | T3: =C69 -> 0.8217575935 | V3: 1 | W3: =F67 -> 115610.7143 | X3: =G67 -> 0 | Y3: 0 | Z3: 0 | AA3: 0
A4: asset life | B4: 40 | C4: yrs | E4: 2024 proj cost ($M) | F4: =VLOOKUP($B$2, 'DM analysis'!$O$9:$U$11, 3, 0) -> 1.432432395 | I4: res DR learning rate | J4: =summary!B5 -> 0.15 | Q4: 2 | R4: =C42 -> 253983.9867 | S4: =C76 -> 277932.1381 | T4: =C78 -> 1.094290005 | V4: 2 | W4: =F76 -> 115610.7143 | X4: =G76 -> 191615.3571 | Y4: 0 | Z4: 0 | AA4: 0
A5: option value per yr (% proj cost) | B5: 0.05 | I5: nonres DR learning rate | J5: =summary!B6 -> 0.1 | Q5: 3 | R5: =C55 -> 371321.0693 | S5: =C85 -> 498610.7179 | T5: =C87 -> 1.342802117 | V5: 3 | W5: =F85 -> 115610.7143 | X5: =G85 -> 191615.3571 | Y5: 257171.2232 | Z5: 0 | AA5: 0
A6: regulatory year (1 to 5) | B6: 1 | I6: startup cost cost | J6: =summary!B7 -> 10000
I7: startup cost learning rate | J7: =summary!B8 -> 0.15
E9: =IF(D9=1, 1, IF(D13<>0, 1, "")) ->  | F9: =IF(E9=1, 1, IF(E13<>0, 1, "")) ->  | G9: 1 | H9: 1 | I9: 1 | J9: 1 | K9: 1 | L9: 1 | M9: 1 | N9: 1 | O9: 1 | P9: 1 | Q9: 1 | R9: 1 | S9: 1 | T9: 1 | U9: 1 | V9: 1 | W9: 1 | X9: 1 | AA9: 11kV model annual benefit calc
A10: =B2&" project - base case" -> L project - base case | F10: 1 | G10: 2 | H10: 3 | I10: 4 | J10: 5 | AA10: =F2 -> 5.571428571 | AB10: MVA
A11: DM Reduction | B11: ∆ NPV | C11: NPV | D11: 2017/18 | E11: 2018/19 | F11: 2019/20 | G11: 2020/21 | H11: 2021/22 | I11: 2022/23 | J11: 2023/24 | K11: 2024/25 | L11: 2025/26 | M11: 2026/27 | N11: 2027/28 | O11: 2028/29 | P11: 2029/30 | Q11: 2030/31 | R11: 2031/32 | S11: 2032/33 | T11: 2033/34 | U11: 2034/35 | V11: 2035/36 | W11: 2036/37 | X11: 2037/38 | AA11: 0.9 | AB11: pf
A12: Total Benefit | C12: =NPV($B$3, E12:X12)+D12 -> 2639016.445 | D12: 0 | E12: 0 | F12: =IF(F$10<$B$6, 0, F$10*$AA$17) -> 48137.14286 | G12: =IF(G$10<$B$6, 0, G$10*$AA$17) -> 96274.28571 | H12: =IF(H$10<$B$6, 0, H$10*$AA$17) -> 144411.4286 | I12: 192548.5714 | J12: 240685.7143 | K12: =J12 -> 240685.7143 | L12: =K12 -> 240685.7143 | M12: 240685.7143 | N12: 240685.7143 | O12: 240685.7143 | P12: 240685.7143 | Q12: 240685.7143 | R12: 240685.7143 | S12: 240685.7143 | T12: 240685.7143 | U12: 240685.7143 | V12: 240685.7143 | W12: 240685.7143 | X12: 240685.7143 | AA12: 5 | AB12: years
A13: Project Cost - Note 6(a) | C13: =NPV($B$3, E13:X13)+D13 -> -1326914.803 | D13: 0 | E13: 0 | F13: =IF(F$10=$B$6, -$F$4*1000000, 0) -> -1432432.395 | G13: =IF(G$10=$B$6, -$F$3*1000000, 0) -> 0 | H13: 0 | I13: 0 | J13: 0 | K13: 0 | L13: 0 | M13: 0 | N13: 0 | O13: 0 | P13: 0 | Q13: 0 | R13: 0 | S13: 0 | T13: 0 | U13: 0 | V13: 0 | W13: 0 | X13: 0 | AA13: 0.6 | AB13: saifi
A14: Residual Value | C14: 366543.7955 | D14: 0 | E14: 0 | F14: 0 | G14: 0 | H14: 0 | I14: 0 | J14: 0 | K14: 0 | L14: 0 | M14: 0 | N14: 0 | O14: 0 | P14: 0 | Q14: 0 | R14: 0 | S14: 0 | T14: 0 | U14: 0 | V14: 0 | W14: 0 | X14: =-SUM(D13:X13)*($B$4-SUM($D$9:$X$9))/$B$4 -> 787837.8172 | AA14: 2 | AB14: CAIDI improvement
A15: Net Benefit | C15: =SUM(C12:C14) -> 1678645.438 | D15: =SUM(D12:D14) -> 0 | E15: =SUM(E12:E14) -> 0 | F15: -1384295.252 | G15: 96274.28571 | H15: 144411.4286 | I15: 192548.5714 | J15: 240685.7143 | K15: 240685.7143 | L15: 240685.7143 | M15: 240685.7143 | N15: 240685.7143 | O15: 240685.7143 | P15: 240685.7143 | Q15: 240685.7143 | R15: 240685.7143 | S15: 240685.7143 | T15: 240685.7143 | U15: 240685.7143 | V15: 240685.7143 | W15: 240685.7143 | X15: 1028523.532 | AA15: =AA10*AA11*1/AA12*AA13*AA14 -> 1.203428571 | AB15: MWh
AA16: 40000 | AB16: $/MWh
AA17: =AA16*AA15 -> 48137.14286 | AB17: annual benefit
E18: =IF(D18=1, 1, IF(D22<>0, 1, "")) ->  | F18: =IF(E18=1, 1, IF(E22<>0, 1, "")) ->  | H18: 1 | I18: 1 | J18: 1 | K18: 1 | L18: 1 | M18: 1 | N18: 1 | O18: 1 | P18: 1 | Q18: 1 | R18: 1 | S18: 1 | T18: 1 | U18: 1 | V18: 1 | W18: 1 | X18: 1
A19: =$B$2&" project - "&B19&"yr deferral" -> L project - 1yr deferral | B19: 1 | E19: DM reduction | F19: =F3 -> 1.114285714
A20: DM Reduction | B20: ∆ NPV | C20: NPV | D20: 2017/18 | E20: 2018/19 | F20: 2019/20 | G20: 2020/21 | H20: 2021/22 | I20: 2022/23 | J20: 2023/24 | K20: 2024/25 | L20: 2025/26 | M20: 2026/27 | N20: 2027/28 | O20: 2028/29 | P20: 2029/30 | Q20: 2030/31 | R20: 2031/32 | S20: 2032/33 | T20: 2033/34 | U20: 2034/35 | V20: 2035/36 | W20: 2036/37 | X20: 2037/38
A21: Total Benefit | C21: =NPV($B$3, E21:X21)+D21 -> 2594425.24 | D21: =IF(E18=1, D$12, 0) -> 0 | E21: 0 | F21: =IF(G18=1, F$12, 0) -> 0 | G21: =IF(H18=1, G$12, 0) -> 96274.28571 | H21: =IF(I18=1, H$12, 0) -> 144411.4286 | I21: 192548.5714 | J21: 240685.7143 | K21: 240685.7143 | L21: 240685.7143 | M21: 240685.7143 | N21: 240685.7143 | O21: 240685.7143 | P21: 240685.7143 | Q21: 240685.7143 | R21: 240685.7143 | S21: 240685.7143 | T21: 240685.7143 | U21: 240685.7143 | V21: 240685.7143 | W21: 240685.7143 | X21: =W21 -> 240685.7143
A22: Project Cost - Note 6(a) | C22: -1277107.606 | D22: 0 | E22: =D13 -> 0 | F22: =E13 -> 0 | G22: -1432432.395 | H22: 0 | I22: 0 | J22: 0 | K22: 0 | L22: 0 | M22: 0 | N22: 0 | O22: 0 | P22: 0 | Q22: 0 | R22: 0 | S22: 0 | T22: 0 | U22: 0 | V22: 0 | W22: 0 | X22: 0
A23: Option value | C23: 63855.38031 | D23: =-D22*$B$5*$B$19 -> 0 | E23: =-E22*$B$5*$B$19 -> 0 | F23: =-F22*$B$5*$B$19 -> 0 | G23: =-G22*$B$5*$B$19 -> 71621.61975 | H23: =-H22*$B$5*$B$19 -> 0 | I23: 0 | J23: 0 | K23: 0 | L23: 0 | M23: 0 | N23: 0 | O23: 0 | P23: 0 | Q23: 0 | R23: 0 | S23: 0 | T23: 0 | U23: 0 | V23: 0 | W23: 0 | X23: 0
A24: Residual Value | C24: 383204.8771 | D24: 0 | E24: 0 | F24: 0 | G24: 0 | H24: 0 | I24: 0 | J24: 0 | K24: 0 | L24: 0 | M24: 0 | N24: 0 | O24: 0 | P24: 0 | Q24: 0 | R24: 0 | S24: 0 | T24: 0 | U24: 0 | V24: 0 | W24: 0 | X24: =-SUM(D22:X22)*($B$4-SUM(D18:X18))/$B$4 -> 823648.6271
A25: DM Impact on EUE | C25: 44591.2056 | D25: =IF(ISNUMBER(D19), D$12, 0) -> 0 | E25: 0 | F25: =IF(ISNUMBER(F19), F$12, 0) -> 48137.14286 | G25: =IF(ISNUMBER(G19), G$12, 0) -> 0 | H25: 0 | I25: 0 | J25: 0 | K25: 0 | L25: 0 | M25: 0 | N25: 0 | O25: 0 | P25: 0 | Q25: 0 | R25: 0 | S25: 0 | T25: 0 | U25: 0 | V25: 0 | W25: 0 | X25: 0
A26: Net Benefit | C26: =SUM(C21:C25) -> 1808969.097 | D26: =SUM(D21:D25) -> 0 | E26: =SUM(E21:E25) -> 0 | F26: 48137.14286 | G26: -1264536.49 | H26: 144411.4286 | I26: 192548.5714 | J26: 240685.7143 | K26: 240685.7143 | L26: 240685.7143 | M26: 240685.7143 | N26: 240685.7143 | O26: 240685.7143 | P26: 240685.7143 | Q26: 240685.7143 | R26: 240685.7143 | S26: 240685.7143 | T26: 240685.7143 | U26: 240685.7143 | V26: 240685.7143 | W26: 240685.7143 | X26: 1064334.341
A27: % Red EUE
A28: % Total Risk Reduction
A29: DM Budget - Note 6(d) | C29: =C26-$C$15 -> 130323.6586
E31: =IF(D31=1, 1, IF(D35<>0, 1, "")) ->  | F31: =IF(E31=1, 1, IF(E35<>0, 1, "")) ->  | I31: 1 | J31: 1 | K31: 1 | L31: 1 | M31: 1 | N31: 1 | O31: 1 | P31: 1 | Q31: 1 | R31: 1 | S31: 1 | T31: 1 | U31: 1 | V31: 1 | W31: 1 | X31: 1
A32: =$B$2&" project - "&B32&"yr deferral" -> L project - 2yr deferral | B32: 2 | E32: DM reduction | F32: =F19 -> 1.114285714 | G32: =F32+$F$3 -> 2.228571429
A33: DM Reduction | B33: ∆ NPV | C33: NPV | D33: 2017/18 | E33: 2018/19 | F33: 2019/20 | G33: 2020/21 | H33: 2021/22 | I33: 2022/23 | J33: 2023/24 | K33: 2024/25 | L33: 2025/26 | M33: 2026/27 | N33: 2027/28 | O33: 2028/29 | P33: 2029/30 | Q33: 2030/31 | R33: 2031/32 | S33: 2032/33 | T33: 2033/34 | U33: 2034/35 | V33: 2035/36 | W33: 2036/37 | X33: 2037/38
A34: Total Benefit | C34: =NPV($B$3, E34:X34)+D34 -> 2508590.388 | D34: =IF(E31=1, D$12, 0) -> 0 | E34: 0 | F34: =IF(G31=1, F$12, 0) -> 0 | G34: =IF(H31=1, G$12, 0) -> 0 | H34: =IF(I31=1, H$12, 0) -> 144411.4286 | I34: 192548.5714 | J34: 240685.7143 | K34: 240685.7143 | L34: 240685.7143 | M34: 240685.7143 | N34: 240685.7143 | O34: 240685.7143 | P34: 240685.7143 | Q34: 240685.7143 | R34: 240685.7143 | S34: 240685.7143 | T34: 240685.7143 | U34: 240685.7143 | V34: 240685.7143 | W34: 240685.7143 | X34: =W34 -> 240685.7143
A35: Project Cost - Note 6(a) | C35: -1229169.977 | D35: 0 | E35: 0 | F35: =D13 -> 0 | G35: =E13 -> 0 | H35: -1432432.395 | I35: 0 | J35: 0 | K35: 0 | L35: 0 | M35: 0 | N35: 0 | O35: 0 | P35: 0 | Q35: 0 | R35: 0 | S35: 0 | T35: 0 | U35: 0 | V35: 0 | W35: 0 | X35: 0
A36: Option value | C36: 122916.9977 | D36: =-D35*$B$5*$B$32 -> 0 | E36: =-E35*$B$5*$B$32 -> 0 | F36: 0 | G36: 0 | H36: 143243.2395 | I36: 0 | J36: 0 | K36: 0 | L36: 0 | M36: 0 | N36: 0 | O36: 0 | P36: 0 | Q36: 0 | R36: 0 | S36: 0 | T36: 0 | U36: 0 | V36: 0 | W36: 0 | X36: 0
A37: Residual Value | C37: 399865.9587 | D37: 0 | E37: 0 | F37: 0 | G37: 0 | H37: 0 | I37: 0 | J37: 0 | K37: 0 | L37: 0 | M37: 0 | N37: 0 | O37: 0 | P37: 0 | Q37: 0 | R37: 0 | S37: 0 | T37: 0 | U37: 0 | V37: 0 | W37: 0 | X37: =-SUM(D35:X35)*($B$4-SUM(D31:X31))/$B$4 -> 859459.437
A38: DM Impact on EUE | C38: 130426.0576 | D38: =IF(ISNUMBER(D32), D$12, 0) -> 0 | E38: 0 | F38: =IF(ISNUMBER(F32), F$12, 0) -> 48137.14286 | G38: =IF(ISNUMBER(G32), G$12, 0) -> 96274.28571 | H38: 0 | I38: 0 | J38: 0 | K38: 0 | L38: 0 | M38: 0 | N38: 0 | O38: 0 | P38: 0 | Q38: 0 | R38: 0 | S38: 0 | T38: 0 | U38: 0 | V38: 0 | W38: 0 | X38: 0
A39: Net Benefit | C39: =SUM(C34:C38) -> 1932629.425 | D39: =SUM(D34:D38) -> 0 | E39: =SUM(E34:E38) -> 0 | F39: 48137.14286 | G39: 96274.28571 | H39: -1144777.727 | I39: 192548.5714 | J39: 240685.7143 | K39: 240685.7143 | L39: 240685.7143 | M39: 240685.7143 | N39: 240685.7143 | O39: 240685.7143 | P39: 240685.7143 | Q39: 240685.7143 | R39: 240685.7143 | S39: 240685.7143 | T39: 240685.7143 | U39: 240685.7143 | V39: 240685.7143 | W39: 240685.7143 | X39: 1100145.151
A40: % Red EUE
A41: % Total Risk Reduction
A42: DM Budget - Note 6(d) | C42: =C39-$C$15 -> 253983.9867
E44: =IF(D44=1, 1, IF(D48<>0, 1, "")) ->  | F44: =IF(E44=1, 1, IF(E48<>0, 1, "")) ->  | J44: 1 | K44: 1 | L44: 1 | M44: 1 | N44: 1 | O44: 1 | P44: 1 | Q44: 1 | R44: 1 | S44: 1 | T44: 1 | U44: 1 | V44: 1 | W44: 1 | X44: 1
A45: =$B$2&" project - "&B45&"yr deferral" -> L project - 3yr deferral | B45: 3 | E45: DM reduction | F45: =F19 -> 1.114285714 | G45: =F45+$F$3 -> 2.228571429 | H45: 3.342857143
A46: DM Reduction | B46: ∆ NPV | C46: NPV | D46: 2017/18 | E46: 2018/19 | F46: 2019/20 | G46: 2020/21 | H46: 2021/22 | I46: 2022/23 | J46: 2023/24 | K46: 2024/25 | L46: 2025/26 | M46: 2026/27 | N46: 2027/28 | O46: 2028/29 | P46: 2029/30 | Q46: 2030/31 | R46: 2031/32 | S46: 2032/33 | T46: 2033/34 | U46: 2034/35 | V46: 2035/36 | W46: 2036/37 | X46: 2037/38
A47: Total Benefit | C47: =NPV($B$3, E47:X47)+D47 -> 2384670.967 | D47: =IF(E44=1, D$12, 0) -> 0 | E47: 0 | F47: =IF(G44=1, F$12, 0) -> 0 | G47: =IF(H44=1, G$12, 0) -> 0 | H47: =IF(I44=1, H$12, 0) -> 0 | I47: 192548.5714 | J47: 240685.7143 | K47: 240685.7143 | L47: 240685.7143 | M47: 240685.7143 | N47: 240685.7143 | O47: 240685.7143 | P47: 240685.7143 | Q47: 240685.7143 | R47: 240685.7143 | S47: 240685.7143 | T47: 240685.7143 | U47: 240685.7143 | V47: 240685.7143 | W47: 240685.7143 | X47: =W47 -> 240685.7143
A48: Project Cost - Note 6(a) | C48: -1183031.739 | D48: 0 | E48: 0 | F48: 0 | G48: =D13 -> 0 | H48: =E13 -> 0 | I48: -1432432.395 | J48: 0 | K48: 0 | L48: 0 | M48: 0 | N48: 0 | O48: 0 | P48: 0 | Q48: 0 | R48: 0 | S48: 0 | T48: 0 | U48: 0 | V48: 0 | W48: 0 | X48: 0
A49: Option value | C49: 177454.7609 | D49: =-D48*$B$5*$B$45 -> 0 | E49: =-E48*$B$5*$B$45 -> 0 | F49: 0 | G49: 0 | H49: 0 | I49: 214864.8592 | J49: 0 | K49: 0 | L49: 0 | M49: 0 | N49: 0 | O49: 0 | P49: 0 | Q49: 0 | R49: 0 | S49: 0 | T49: 0 | U49: 0 | V49: 0 | W49: 0 | X49: 0
A50: Residual Value | C50: 416527.0403 | D50: 0 | E50: 0 | F50: 0 | G50: 0 | H50: 0 | I50: 0 | J50: 0 | K50: 0 | L50: 0 | M50: 0 | N50: 0 | O50: 0 | P50: 0 | Q50: 0 | R50: 0 | S50: 0 | T50: 0 | U50: 0 | V50: 0 | W50: 0 | X50: =-SUM(D48:X48)*($B$4-SUM(D44:X44))/$B$4 -> 895270.2469
A51: DM Impact on EUE | C51: 254345.4781 | D51: =IF(ISNUMBER(D45), D$12, 0) -> 0 | E51: 0 | F51: =IF(ISNUMBER(F45), F$12, 0) -> 48137.14286 | G51: =IF(ISNUMBER(G45), G$12, 0) -> 96274.28571 | H51: 144411.4286 | I51: 0 | J51: 0 | K51: 0 | L51: 0 | M51: 0 | N51: 0 | O51: 0 | P51: 0 | Q51: 0 | R51: 0 | S51: 0 | T51: 0 | U51: 0 | V51: 0 | W51: 0 | X51: 0
A52: Net Benefit | C52: =SUM(C47:C51) -> 2049966.507 | D52: =SUM(D47:D51) -> 0 | E52: =SUM(E47:E51) -> 0 | F52: 48137.14286 | G52: 96274.28571 | H52: 144411.4286 | I52: -1025018.964 | J52: 240685.7143 | K52: 240685.7143 | L52: 240685.7143 | M52: 240685.7143 | N52: 240685.7143 | O52: 240685.7143 | P52: 240685.7143 | Q52: 240685.7143 | R52: 240685.7143 | S52: 240685.7143 | T52: 240685.7143 | U52: 240685.7143 | V52: 240685.7143 | W52: 240685.7143 | X52: 1135955.961
A53: % Red EUE
A54: % Total Risk Reduction
A55: DM Budget - Note 6(d) | C55: =C52-$C$15 -> 371321.0693
A57: DM cost parameters | B57: % split | D57: year | E57: =E46 -> 2018/19 | F57: 2019/20 | G57: 2020/21 | H57: 2021/22 | I57: 2022/23 | J57: 2023/24 | K57: =K46 -> 2024/25 | L57: 2025/26 | M57: 2026/27 | N57: 2027/28 | O57: 2028/29 | P57: 2029/30
A58: Residential DR % | B58: =N2 -> 0.05 | D58: res DR ($/kVA) | E58: =J2 -> 250 | F58: =E58*(1-$J$4) -> 212.5 | G58: =F58*(1-$J$4) -> 180.625 | H58: =G58*(1-$J$4) -> 153.53125 | I58: =H58*(1-$J$4) -> 130.5015625 | J58: =I58*(1-$J$4) -> 110.9263281 | K58: =J58*(1-$J$4) -> 94.28737891 | L58: 80.14427207 | M58: 68.12263126 | N58: 57.90423657 | O58: 49.21860109 | P58: 41.83581092
A59: Non-residential DR % | B59: =N3 -> 0.95 | D59: nonres DR ($/kVA) | E59: =J3 -> 100 | F59: =E59*(1-$J$5) -> 90 | G59: =F59*(1-$J$5) -> 81 | H59: 72.9 | I59: 65.61 | J59: 59.049 | K59: 53.1441 | L59: 47.82969 | M59: 43.046721 | N59: 38.7420489 | O59: 34.86784401 | P59: 31.38105961
D60: startup cost | E60: =J6 -> 10000 | F60: =E60*(1-$J$7) -> 8500 | G60: 7225 | H60: 6141.25 | I60: 5220.0625 | J60: 4437.053125 | K60: 3771.495156 | L60: 3205.770883 | M60: 2724.90525 | N60: 2316.169463 | O60: 1968.744043 | P60: 1673.432437
A62: DM cost - 1 yr deferral
C63: NPV | D63: 2017/18 | E63: 2018/19 | F63: 2019/20 | G63: 2020/21 | H63: 2021/22 | I63: 2022/23 | J63: 2023/24 | K63: 2024/25 | L63: 2025/26 | M63: 2026/27 | N63: 2027/28 | O63: 2028/29 | P63: 2029/30 | Q63: 2030/31 | R63: 2031/32 | S63: 2032/33 | T63: 2033/34 | U63: 2034/35 | V63: 2035/36 | W63: 2036/37 | X63: 2037/38
A64: Residential DR cost | C64: =NPV($B$3, E64:X64)+D64 -> 10967.16573 | D64: =IF(ISNUMBER(D$19), D$19*1000*$B$58*D$58, 0) -> 0 | E64: =IF(ISNUMBER(E$19), E$19*1000*$B$58*E$58, 0) -> 0 | F64: =IF(ISNUMBER(F$19), F$19*1000*$B$58*F$58, 0) -> 11839.28571 | G64: =IF(ISNUMBER(G$19), G$19*1000*$B$58*G$58, 0) -> 0 | H64: 0 | I64: 0 | J64: 0 | K64: 0 | L64: 0 | M64: 0 | N64: 0 | O64: 0 | P64: 0 | Q64: 0 | R64: 0 | S64: 0 | T64: 0 | U64: 0 | V64: 0 | W64: 0 | X64: 0
A65: Non-residential DR cost | C65: 88253.42774 | D65: =IF(ISNUMBER(D$19), D$19*1000*$B$59*D$59, 0) -> 0 | E65: 0 | F65: =IF(ISNUMBER(F$19), F$19*1000*$B$59*F$59, 0) -> 95271.42857 | G65: =IF(ISNUMBER(G$19), G$19*1000*$B$59*G$59, 0) -> 0 | H65: 0 | I65: 0 | J65: 0 | K65: 0 | L65: 0 | M65: 0 | N65: 0 | O65: 0 | P65: 0 | Q65: 0 | R65: 0 | S65: 0 | T65: 0 | U65: 0 | V65: 0 | W65: 0 | X65: 0
A66: startup cost | C66: 7873.862574 | D66: 0 | E66: =IF(SUM($D66:D66)<>0, 0, IF(E25<>0, E$60, 0)) -> 0 | F66: =IF(SUM($D66:E66)<>0, 0, IF(F25<>0, F$60, 0)) -> 8500 | G66: =IF(SUM($D66:F66)<>0, 0, IF(G25<>0, G$60, 0)) -> 0 | H66: =IF(SUM($D66:G66)<>0, 0, IF(H25<>0, H$60, 0)) -> 0 | I66: =IF(SUM($D66:H66)<>0, 0, IF(I25<>0, I$60, 0)) -> 0 | J66: =IF(SUM($D66:I66)<>0, 0, IF(J25<>0, J$60, 0)) -> 0 | K66: =IF(SUM($D66:J66)<>0, 0, IF(K25<>0, K$60, 0)) -> 0 | L66: =IF(SUM($D66:K66)<>0, 0, IF(L25<>0, L$60, 0)) -> 0 | M66: =IF(SUM($D66:L66)<>0, 0, IF(M25<>0, M$60, 0)) -> 0 | N66: =IF(SUM($D66:M66)<>0, 0, IF(N25<>0, N$60, 0)) -> 0 | O66: =IF(SUM($D66:N66)<>0, 0, IF(O25<>0, O$60, 0)) -> 0 | P66: =IF(SUM($D66:O66)<>0, 0, IF(P25<>0, P$60, 0)) -> 0 | Q66: =IF(SUM($D66:P66)<>0, 0, IF(Q25<>0, Q$60, 0)) -> 0 | R66: =IF(SUM($D66:Q66)<>0, 0, IF(R25<>0, R$60, 0)) -> 0 | S66: =IF(SUM($D66:R66)<>0, 0, IF(S25<>0, S$60, 0)) -> 0 | T66: =IF(SUM($D66:S66)<>0, 0, IF(T25<>0, T$60, 0)) -> 0 | U66: =IF(SUM($D66:T66)<>0, 0, IF(U25<>0, U$60, 0)) -> 0 | V66: =IF(SUM($D66:U66)<>0, 0, IF(V25<>0, V$60, 0)) -> 0 | W66: =IF(SUM($D66:V66)<>0, 0, IF(W25<>0, W$60, 0)) -> 0 | X66: =IF(SUM($D66:W66)<>0, 0, IF(X25<>0, X$60, 0)) -> 0
A67: Total DM cost | C67: =SUM(C64:C66) -> 107094.456 | D67: =SUM(D64:D66) -> 0 | E67: =SUM(E64:E66) -> 0 | F67: 115610.7143 | G67: 0 | H67: 0 | I67: 0 | J67: 0 | K67: 0 | L67: 0 | M67: 0 | N67: 0 | O67: 0 | P67: 0 | Q67: 0 | R67: 0 | S67: 0 | T67: 0 | U67: 0 | V67: 0 | W67: 0 | X67: 0
B69: % budget | C69: =C67/C29 -> 0.8217575935
A71: DM cost - 2 yr deferral
C72: NPV | D72: 2017/18 | E72: 2018/19 | F72: 2019/20 | G72: 2020/21 | H72: 2021/22 | I72: 2022/23 | J72: 2023/24 | K72: 2024/25 | L72: 2025/26 | M72: 2026/27 | N72: 2027/28 | O72: 2028/29 | P72: 2029/30 | Q72: 2030/31 | R72: 2031/32 | S72: 2032/33 | T72: 2033/34 | U72: 2034/35 | V72: 2035/36 | W72: 2036/37 | X72: 2037/38
A73: Residential DR cost | C73: =NPV($B$3, E73:X73)+D73 -> 28911.51774 | D73: =IF(ISNUMBER(D$32), D$32*1000*$B$58*D$58, 0) -> 0 | E73: 0 | F73: =IF(ISNUMBER(F$32), F$32*1000*$B$58*F$58, 0) -> 11839.28571 | G73: =IF(ISNUMBER(G$32), G$32*1000*$B$58*G$58, 0) -> 20126.78571 | H73: 0 | I73: 0 | J73: 0 | K73: 0 | L73: 0 | M73: 0 | N73: 0 | O73: 0 | P73: 0 | Q73: 0 | R73: 0 | S73: 0 | T73: 0 | U73: 0 | V73: 0 | W73: 0 | X73: 0
A74: Non-residential DR cost | C74: 241146.7578 | D74: =IF(ISNUMBER(D$32), D$32*1000*$B$59*D$59, 0) -> 0 | E74: 0 | F74: =IF(ISNUMBER(F$32), F$32*1000*$B$59*F$59, 0) -> 95271.42857 | G74: =IF(ISNUMBER(G$32), G$32*1000*$B$59*G$59, 0) -> 171488.5714 | H74: 0 | I74: 0 | J74: 0 | K74: 0 | L74: 0 | M74: 0 | N74: 0 | O74: 0 | P74: 0 | Q74: 0 | R74: 0 | S74: 0 | T74: 0 | U74: 0 | V74: 0 | W74: 0 | X74: 0
A75: startup cost | C75: 7873.862574 | D75: 0 | E75: =IF(SUM($D75:D75)<>0, 0, IF(E38<>0, E$60, 0)) -> 0 | F75: =IF(SUM($D75:E75)<>0, 0, IF(F38<>0, F$60, 0)) -> 8500 | G75: =IF(SUM($D75:F75)<>0, 0, IF(G38<>0, G$60, 0)) -> 0 | H75: =IF(SUM($D75:G75)<>0, 0, IF(H38<>0, H$60, 0)) -> 0 | I75: =IF(SUM($D75:H75)<>0, 0, IF(I38<>0, I$60, 0)) -> 0 | J75: =IF(SUM($D75:I75)<>0, 0, IF(J38<>0, J$60, 0)) -> 0 | K75: =IF(SUM($D75:J75)<>0, 0, IF(K38<>0, K$60, 0)) -> 0 | L75: =IF(SUM($D75:K75)<>0, 0, IF(L38<>0, L$60, 0)) -> 0 | M75: =IF(SUM($D75:L75)<>0, 0, IF(M38<>0, M$60, 0)) -> 0 | N75: =IF(SUM($D75:M75)<>0, 0, IF(N38<>0, N$60, 0)) -> 0 | O75: =IF(SUM($D75:N75)<>0, 0, IF(O38<>0, O$60, 0)) -> 0 | P75: =IF(SUM($D75:O75)<>0, 0, IF(P38<>0, P$60, 0)) -> 0 | Q75: =IF(SUM($D75:P75)<>0, 0, IF(Q38<>0, Q$60, 0)) -> 0 | R75: =IF(SUM($D75:Q75)<>0, 0, IF(R38<>0, R$60, 0)) -> 0 | S75: =IF(SUM($D75:R75)<>0, 0, IF(S38<>0, S$60, 0)) -> 0 | T75: =IF(SUM($D75:S75)<>0, 0, IF(T38<>0, T$60, 0)) -> 0 | U75: =IF(SUM($D75:T75)<>0, 0, IF(U38<>0, U$60, 0)) -> 0 | V75: =IF(SUM($D75:U75)<>0, 0, IF(V38<>0, V$60, 0)) -> 0 | W75: =IF(SUM($D75:V75)<>0, 0, IF(W38<>0, W$60, 0)) -> 0 | X75: =IF(SUM($D75:W75)<>0, 0, IF(X38<>0, X$60, 0)) -> 0
A76: Total DM cost | C76: =SUM(C73:C75) -> 277932.1381 | D76: =SUM(D73:D75) -> 0 | E76: =SUM(E73:E75) -> 0 | F76: 115610.7143 | G76: 191615.3571 | H76: 0 | I76: 0 | J76: 0 | K76: 0 | L76: 0 | M76: 0 | N76: 0 | O76: 0 | P76: 0 | Q76: 0 | R76: 0 | S76: 0 | T76: 0 | U76: 0 | V76: 0 | W76: 0 | X76: 0
B78: % budget | C78: =C76/C42 -> 1.094290005
A80: DM cost - 3 yr deferral
C81: NPV | D81: 2017/18 | E81: 2018/19 | F81: 2019/20 | G81: 2020/21 | H81: 2021/22 | I81: 2022/23 | J81: 2023/24 | K81: 2024/25 | L81: 2025/26 | M81: 2026/27 | N81: 2027/28 | O81: 2028/29 | P81: 2029/30 | Q81: 2030/31 | R81: 2031/32 | S81: 2032/33 | T81: 2033/34 | U81: 2034/35 | V81: 2035/36 | W81: 2036/37 | X81: 2037/38
A82: Residential DR cost | C82: =NPV($B$3, E82:X82)+D82 -> 50931.77646 | D82: =IF(ISNUMBER(D$45), D$45*1000*$B$58*D$58, 0) -> 0 | E82: 0 | F82: =IF(ISNUMBER(F$45), F$45*1000*$B$58*F$58, 0) -> 11839.28571 | G82: =IF(ISNUMBER(G$45), G$45*1000*$B$58*G$58, 0) -> 20126.78571 | H82: 25661.65179 | I82: 0 | J82: 0 | K82: 0 | L82: 0 | M82: 0 | N82: 0 | O82: 0 | P82: 0 | Q82: 0 | R82: 0 | S82: 0 | T82: 0 | U82: 0 | V82: 0 | W82: 0 | X82: 0
A83: Non-residential DR cost | C83: 439805.0789 | D83: =IF(ISNUMBER(D$45), D$45*1000*$B$59*D$59, 0) -> 0 | E83: 0 | F83: =IF(ISNUMBER(F$45), F$45*1000*$B$59*F$59, 0) -> 95271.42857 | G83: =IF(ISNUMBER(G$45), G$45*1000*$B$59*G$59, 0) -> 171488.5714 | H83: 231509.5714 | I83: 0 | J83: 0 | K83: 0 | L83: 0 | M83: 0 | N83: 0 | O83: 0 | P83: 0 | Q83: 0 | R83: 0 | S83: 0 | T83: 0 | U83: 0 | V83: 0 | W83: 0 | X83: 0
A84: startup cost | C84: 7873.862574 | D84: 0 | E84: =IF(SUM($D84:D84)<>0, 0, IF(E51<>0, E$60, 0)) -> 0 | F84: =IF(SUM($D84:E84)<>0, 0, IF(F51<>0, F$60, 0)) -> 8500 | G84: =IF(SUM($D84:F84)<>0, 0, IF(G51<>0, G$60, 0)) -> 0 | H84: =IF(SUM($D84:G84)<>0, 0, IF(H51<>0, H$60, 0)) -> 0 | I84: =IF(SUM($D84:H84)<>0, 0, IF(I51<>0, I$60, 0)) -> 0 | J84: =IF(SUM($D84:I84)<>0, 0, IF(J51<>0, J$60, 0)) -> 0 | K84: =IF(SUM($D84:J84)<>0, 0, IF(K51<>0, K$60, 0)) -> 0 | L84: =IF(SUM($D84:K84)<>0, 0, IF(L51<>0, L$60, 0)) -> 0 | M84: =IF(SUM($D84:L84)<>0, 0, IF(M51<>0, M$60, 0)) -> 0 | N84: 0 | O84: 0 | P84: 0 | Q84: 0 | R84: 0 | S84: 0 | T84: 0 | U84: 0 | V84: 0 | W84: 0 | X84: 0
A85: Total DM cost | C85: =SUM(C82:C84) -> 498610.7179 | D85: =SUM(D82:D84) -> 0 | E85: =SUM(E82:E84) -> 0 | F85: 115610.7143 | G85: 191615.3571 | H85: 257171.2232 | I85: 0 | J85: 0 | K85: 0 | L85: 0 | M85: 0 | N85: 0 | O85: 0 | P85: 0 | Q85: 0 | R85: 0 | S85: 0 | T85: 0 | U85: 0 | V85: 0 | W85: 0 | X85: 0
B87: % budget | C87: =C85/C55 -> 1.342802117

Sheet L2_nonres
A1: INPUTS | F1: All $1819 | Q1: OUTPUTS - present value | V1: Cashflow of DM cost
A2: Project type (S/M/L) | B2: L | E2: avg LAR (MVA) | F2: =VLOOKUP($B$2, 'DM analysis'!$O$9:$U$11, 6, 0) -> 5.571428571 | I2: res DR cost ($/kVA) | J2: =summary!B3 -> 250 | M2: Residential DR split | N2: =summary!E4 -> 0.05 | Q2: deferral yrs | R2: DM budget | S2: DM cost | T2: % budget | V2: deferral yrs | W2: 2019/20 | X2: 2020/21 | Y2: 2021/22 | Z2: 2022/23 | AA2: 2023/24
A3: discount rate | B3: =summary!$B$9 -> 0.039 | E3: avg LAR pa (MVA) | F3: =F2/5 -> 1.114285714 | I3: nonres DR cost ($/kVA) | J3: =summary!B4 -> 100 | M3: Non-residential DR split | N3: =1-N2 -> 0.95 | Q3: 1 | R3: =C29 -> 126057.2096 | S3: =C67 -> 91860.4033 | T3: =C69 -> 0.7287199487 | V3: 1 | W3: =F67 -> 0 | X3: =G67 -> 103032.6786 | Y3: 0 | Z3: 0 | AA3: 0
A4: asset life | B4: 40 | C4: yrs | E4: 2024 proj cost ($M) | F4: =VLOOKUP($B$2, 'DM analysis'!$O$9:$U$11, 3, 0) -> 1.432432395 | I4: res DR learning rate | J4: =summary!B5 -> 0.15 | Q4: 2 | R4: =C42 -> 245701.2041 | S4: =C76 -> 238979.4565 | T4: =C78 -> 0.9726425939 | V4: 2 | W4: =F76 -> 0 | X4: =G76 -> 103032.6786 | Y4: 171447.4821 | Z4: 0 | AA4: 0
A5: option value per yr (% proj cost) | B5: 0.05 | I5: nonres DR learning rate | J5: =summary!B6 -> 0.1 | Q5: 3 | R5: =C55 -> 359259.3031 | S5: =C85 -> 429075.4227 | T5: =C87 -> 1.194333505 | V5: 3 | W5: =F85 -> 0 | X5: =G85 -> 103032.6786 | Y5: 171447.4821 | Z5: 230171.0183 | AA5: 0
A6: regulatory year (1 to 5) | B6: 2 | I6: startup cost cost | J6: =summary!B7 -> 10000
I7: startup cost learning rate | J7: =summary!B8 -> 0.15
E9: =IF(D9=1, 1, IF(D13<>0, 1, "")) ->  | F9: =IF(E9=1, 1, IF(E13<>0, 1, "")) ->  | H9: 1 | I9: 1 | J9: 1 | K9: 1 | L9: 1 | M9: 1 | N9: 1 | O9: 1 | P9: 1 | Q9: 1 | R9: 1 | S9: 1 | T9: 1 | U9: 1 | V9: 1 | W9: 1 | X9: 1 | AA9: 11kV model annual benefit calc
A10: =B2&" project - base case" -> L project - base case | F10: 1 | G10: 2 | H10: 3 | I10: 4 | J10: 5 | AA10: =F2 -> 5.571428571 | AB10: MVA
A11: DM Reduction | B11: ∆ NPV | C11: NPV | D11: 2017/18 | E11: 2018/19 | F11: 2019/20 | G11: 2020/21 | H11: 2021/22 | I11: 2022/23 | J11: 2023/24 | K11: 2024/25 | L11: 2025/26 | M11: 2026/27 | N11: 2027/28 | O11: 2028/29 | P11: 2029/30 | Q11: 2030/31 | R11: 2031/32 | S11: 2032/33 | T11: 2033/34 | U11: 2034/35 | V11: 2035/36 | W11: 2036/37 | X11: 2037/38 | AA11: 0.9 | AB11: pf
A12: Total Benefit | C12: =NPV($B$3, E12:X12)+D12 -> 2594425.24 | D12: 0 | E12: 0 | F12: =IF(F$10<$B$6, 0, F$10*$AA$17) -> 0 | G12: =IF(G$10<$B$6, 0, G$10*$AA$17) -> 96274.28571 | H12: =IF(H$10<$B$6, 0, H$10*$AA$17) -> 144411.4286 | I12: 192548.5714 | J12: 240685.7143 | K12: =J12 -> 240685.7143 | L12: =K12 -> 240685.7143 | M12: 240685.7143 | N12: 240685.7143 | O12: 240685.7143 | P12: 240685.7143 | Q12: 240685.7143 | R12: 240685.7143 | S12: 240685.7143 | T12: 240685.7143 | U12: 240685.7143 | V12: 240685.7143 | W12: 240685.7143 | X12: 240685.7143 | AA12: 5 | AB12: years
A13: Project Cost - Note 6(a) | C13: =NPV($B$3, E13:X13)+D13 -> -1277107.606 | D13: 0 | E13: 0 | F13: =IF(F$10=$B$6, -$F$4*1000000, 0) -> 0 | G13: =IF(G$10=$B$6, -$F$4*1000000, 0) -> -1432432.395 | H13: =IF(H$10=$B$6, -$F$4*1000000, 0) -> 0 | I13: =IF(I$10=$B$6, -$F$4*1000000, 0) -> 0 | J13: =IF(J$10=$B$6, -$F$4*1000000, 0) -> 0 | K13: 0 | L13: 0 | M13: 0 | N13: 0 | O13: 0 | P13: 0 | Q13: 0 | R13: 0 | S13: 0 | T13: 0 | U13: 0 | V13: 0 | W13: 0 | X13: 0 | AA13: 0.6 | AB13: saifi
A14: Residual Value | C14: 383204.8771 | D14: 0 | E14: 0 | F14: 0 | G14: 0 | H14: 0 | I14: 0 | J14: 0 | K14: 0 | L14: 0 | M14: 0 | N14: 0 | O14: 0 | P14: 0 | Q14: 0 | R14: 0 | S14: 0 | T14: 0 | U14: 0 | V14: 0 | W14: 0 | X14: =-SUM(D13:X13)*($B$4-SUM($D$9:$X$9))/$B$4 -> 823648.6271 | AA14: 2 | AB14: CAIDI improvement
A15: Net Benefit | C15: =SUM(C12:C14) -> 1700522.511 | D15: =SUM(D12:D14) -> 0 | E15: =SUM(E12:E14) -> 0 | F15: 0 | G15: -1336158.109 | H15: 144411.4286 | I15: 192548.5714 | J15: 240685.7143 | K15: 240685.7143 | L15: 240685.7143 | M15: 240685.7143 | N15: 240685.7143 | O15: 240685.7143 | P15: 240685.7143 | Q15: 240685.7143 | R15: 240685.7143 | S15: 240685.7143 | T15: 240685.7143 | U15: 240685.7143 | V15: 240685.7143 | W15: 240685.7143 | X15: 1064334.341 | AA15: =AA10*AA11*1/AA12*AA13*AA14 -> 1.203428571 | AB15: MWh
AA16: 40000 | AB16: $/MWh
AA17: =AA16*AA15 -> 48137.14286 | AB17: annual benefit
E18: =IF(D18=1, 1, IF(D22<>0, 1, "")) ->  | F18: =IF(E18=1, 1, IF(E22<>0, 1, "")) ->  | I18: 1 | J18: 1 | K18: 1 | L18: 1 | M18: 1 | N18: 1 | O18: 1 | P18: 1 | Q18: 1 | R18: 1 | S18: 1 | T18: 1 | U18: 1 | V18: 1 | W18: 1 | X18: 1
A19: =$B$2&" project - "&B19&"yr deferral" -> L project - 1yr deferral | B19: 1 | E19: DM reduction | G19: =$F$3 -> 1.114285714 | H19: =IF(OR(H$10<$B$6, H$10-1>$B19), "", IF(H$10=$B$6, $F$3, G19+$F$3)) ->  | I19: =IF(OR(I$10<$B$6, I$10-1>$B19), "", IF(I$10=$B$6, $F$3, H19+$F$3)) -> 
A20: DM Reduction | B20: ∆ NPV | C20: NPV | D20: 2017/18 | E20: 2018/19 | F20: 2019/20 | G20: 2020/21 | H20: 2021/22 | I20: 2022/23 | J20: 2023/24 | K20: 2024/25 | L20: 2025/26 | M20: 2026/27 | N20: 2027/28 | O20: 2028/29 | P20: 2029/30 | Q20: 2030/31 | R20: 2031/32 | S20: 2032/33 | T20: 2033/34 | U20: 2034/35 | V20: 2035/36 | W20: 2036/37 | X20: 2037/38
A21: Total Benefit | C21: =NPV($B$3, E21:X21)+D21 -> 2508590.388 | D21: =IF(E18=1, D$12, 0) -> 0 | E21: 0 | F21: =IF(G18=1, F$12, 0) -> 0 | G21: =IF(H18=1, G$12, 0) -> 0 | H21: =IF(I18=1, H$12, 0) -> 144411.4286 | I21: 192548.5714 | J21: 240685.7143 | K21: 240685.7143 | L21: 240685.7143 | M21: 240685.7143 | N21: 240685.7143 | O21: 240685.7143 | P21: 240685.7143 | Q21: 240685.7143 | R21: 240685.7143 | S21: 240685.7143 | T21: 240685.7143 | U21: 240685.7143 | V21: 240685.7143 | W21: 240685.7143 | X21: =W21 -> 240685.7143
A22: Project Cost - Note 6(a) | C22: -1229169.977 | D22: 0 | E22: =D13 -> 0 | F22: =E13 -> 0 | G22: 0 | H22: -1432432.395 | I22: 0 | J22: 0 | K22: 0 | L22: 0 | M22: 0 | N22: 0 | O22: 0 | P22: 0 | Q22: 0 | R22: 0 | S22: 0 | T22: 0 | U22: 0 | V22: 0 | W22: 0 | X22: 0
A23: Option value | C23: 61458.49886 | D23: =-D22*$B$5*$B$19 -> 0 | E23: =-E22*$B$5*$B$19 -> 0 | F23: =-F22*$B$5*$B$19 -> 0 | G23: =-G22*$B$5*$B$19 -> 0 | H23: =-H22*$B$5*$B$19 -> 71621.61975 | I23: 0 | J23: 0 | K23: 0 | L23: 0 | M23: 0 | N23: 0 | O23: 0 | P23: 0 | Q23: 0 | R23: 0 | S23: 0 | T23: 0 | U23: 0 | V23: 0 | W23: 0 | X23: 0
A24: Residual Value | C24: 399865.9587 | D24: 0 | E24: 0 | F24: 0 | G24: 0 | H24: 0 | I24: 0 | J24: 0 | K24: 0 | L24: 0 | M24: 0 | N24: 0 | O24: 0 | P24: 0 | Q24: 0 | R24: 0 | S24: 0 | T24: 0 | U24: 0 | V24: 0 | W24: 0 | X24: =-SUM(D22:X22)*($B$4-SUM(D18:X18))/$B$4 -> 859459.437
A25: DM Impact on EUE | C25: 85834.85197 | D25: =IF(ISNUMBER(D19), D$12, 0) -> 0 | E25: 0 | F25: =IF(ISNUMBER(F19), F$12, 0) -> 0 | G25: =IF(ISNUMBER(G19), G$12, 0) -> 96274.28571 | H25: 0 | I25: 0 | J25: 0 | K25: 0 | L25: 0 | M25: 0 | N25: 0 | O25: 0 | P25: 0 | Q25: 0 | R25: 0 | S25: 0 | T25: 0 | U25: 0 | V25: 0 | W25: 0 | X25: 0
A26: Net Benefit | C26: =SUM(C21:C25) -> 1826579.72 | D26: =SUM(D21:D25) -> 0 | E26: =SUM(E21:E25) -> 0 | F26: 0 | G26: 96274.28571 | H26: -1216399.347 | I26: 192548.5714 | J26: 240685.7143 | K26: 240685.7143 | L26: 240685.7143 | M26: 240685.7143 | N26: 240685.7143 | O26: 240685.7143 | P26: 240685.7143 | Q26: 240685.7143 | R26: 240685.7143 | S26: 240685.7143 | T26: 240685.7143 | U26: 240685.7143 | V26: 240685.7143 | W26: 240685.7143 | X26: 1100145.151
A27: % Red EUE
A28: % Total Risk Reduction
A29: DM Budget - Note 6(d) | C29: =C26-$C$15 -> 126057.2096
E31: =IF(D31=1, 1, IF(D35<>0, 1, "")) ->  | F31: =IF(E31=1, 1, IF(E35<>0, 1, "")) ->  | J31: 1 | K31: 1 | L31: 1 | M31: 1 | N31: 1 | O31: 1 | P31: 1 | Q31: 1 | R31: 1 | S31: 1 | T31: 1 | U31: 1 | V31: 1 | W31: 1 | X31: 1
A32: =$B$2&" project - "&B32&"yr deferral" -> L project - 2yr deferral | B32: 2 | E32: DM reduction | G32: =G19 -> 1.114285714 | H32: =G32+$F$3 -> 2.228571429 | I32: =IF(OR(I$10<$B$6, I$10-1>$B32), "", IF(I$10=$B$6, $F$3, H32+$F$3)) ->  | J32: =IF(OR(J$10<$B$6, J$10-1>$B32), "", IF(J$10=$B$6, $F$3, I32+$F$3)) -> 
A33: DM Reduction | B33: ∆ NPV | C33: NPV | D33: 2017/18 | E33: 2018/19 | F33: 2019/20 | G33: 2020/21 | H33: 2021/22 | I33: 2022/23 | J33: 2023/24 | K33: 2024/25 | L33: 2025/26 | M33: 2026/27 | N33: 2027/28 | O33: 2028/29 | P33: 2029/30 | Q33: 2030/31 | R33: 2031/32 | S33: 2032/33 | T33: 2033/34 | U33: 2034/35 | V33: 2035/36 | W33: 2036/37 | X33: 2037/38
A34: Total Benefit | C34: =NPV($B$3, E34:X34)+D34 -> 2384670.967 | D34: =IF(E31=1, D$12, 0) -> 0 | E34: 0 | F34: =IF(G31=1, F$12, 0) -> 0 | G34: =IF(H31=1, G$12, 0) -> 0 | H34: =IF(I31=1, H$12, 0) -> 0 | I34: 192548.5714 | J34: 240685.7143 | K34: 240685.7143 | L34: 240685.7143 | M34: 240685.7143 | N34: 240685.7143 | O34: 240685.7143 | P34: 240685.7143 | Q34: 240685.7143 | R34: 240685.7143 | S34: 240685.7143 | T34: 240685.7143 | U34: 240685.7143 | V34: 240685.7143 | W34: 240685.7143 | X34: =W34 -> 240685.7143
A35: Project Cost - Note 6(a) | C35: -1183031.739 | D35: 0 | E35: 0 | F35: =D13 -> 0 | G35: =E13 -> 0 | H35: 0 | I35: -1432432.395 | J35: 0 | K35: 0 | L35: 0 | M35: 0 | N35: 0 | O35: 0 | P35: 0 | Q35: 0 | R35: 0 | S35: 0 | T35: 0 | U35: 0 | V35: 0 | W35: 0 | X35: 0
A36: Option value | C36: 118303.1739 | D36: =-D35*$B$5*$B$32 -> 0 | E36: =-E35*$B$5*$B$32 -> 0 | F36: 0 | G36: 0 | H36: 0 | I36: 143243.2395 | J36: 0 | K36: 0 | L36: 0 | M36: 0 | N36: 0 | O36: 0 | P36: 0 | Q36: 0 | R36: 0 | S36: 0 | T36: 0 | U36: 0 | V36: 0 | W36: 0 | X36: 0
A37: Residual Value | C37: 416527.0403 | D37: 0 | E37: 0 | F37: 0 | G37: 0 | H37: 0 | I37: 0 | J37: 0 | K37: 0 | L37: 0 | M37: 0 | N37: 0 | O37: 0 | P37: 0 | Q37: 0 | R37: 0 | S37: 0 | T37: 0 | U37: 0 | V37: 0 | W37: 0 | X37: =-SUM(D35:X35)*($B$4-SUM(D31:X31))/$B$4 -> 895270.2469
A38: DM Impact on EUE | C38: 209754.2725 | D38: =IF(ISNUMBER(D32), D$12, 0) -> 0 | E38: 0 | F38: =IF(ISNUMBER(F32), F$12, 0) -> 0 | G38: =IF(ISNUMBER(G32), G$12, 0) -> 96274.28571 | H38: 144411.4286 | I38: 0 | J38: 0 | K38: 0 | L38: 0 | M38: 0 | N38: 0 | O38: 0 | P38: 0 | Q38: 0 | R38: 0 | S38: 0 | T38: 0 | U38: 0 | V38: 0 | W38: 0 | X38: 0
A39: Net Benefit | C39: =SUM(C34:C38) -> 1946223.715 | D39: =SUM(D34:D38) -> 0 | E39: =SUM(E34:E38) -> 0 | F39: 0 | G39: 96274.28571 | H39: 144411.4286 | I39: -1096640.584 | J39: 240685.7143 | K39: 240685.7143 | L39: 240685.7143 | M39: 240685.7143 | N39: 240685.7143 | O39: 240685.7143 | P39: 240685.7143 | Q39: 240685.7143 | R39: 240685.7143 | S39: 240685.7143 | T39: 240685.7143 | U39: 240685.7143 | V39: 240685.7143 | W39: 240685.7143 | X39: 1135955.961
A40: % Red EUE
A41: % Total Risk Reduction
A42: DM Budget - Note 6(d) | C42: =C39-$C$15 -> 245701.2041
E44: =IF(D44=1, 1, IF(D48<>0, 1, "")) ->  | F44: =IF(E44=1, 1, IF(E48<>0, 1, "")) ->  | K44: 1 | L44: 1 | M44: 1 | N44: 1 | O44: 1 | P44: 1 | Q44: 1 | R44: 1 | S44: 1 | T44: 1 | U44: 1 | V44: 1 | W44: 1 | X44: 1
A45: =$B$2&" project - "&B45&"yr deferral" -> L project - 3yr deferral | B45: 3 | E45: DM reduction | G45: =G19 -> 1.114285714 | H45: =G45+$F$3 -> 2.228571429 | I45: =H45+$F$3 -> 3.342857143 | J45: =IF(OR(J$10<$B$6, J$10-1>$B45), "", IF(J$10=$B$6, $F$3, I45+$F$3)) -> 
A46: DM Reduction | B46: ∆ NPV | C46: NPV | D46: 2017/18 | E46: 2018/19 | F46: 2019/20 | G46: 2020/21 | H46: 2021/22 | I46: 2022/23 | J46: 2023/24 | K46: 2024/25 | L46: 2025/26 | M46: 2026/27 | N46: 2027/28 | O46: 2028/29 | P46: 2029/30 | Q46: 2030/31 | R46: 2031/32 | S46: 2032/33 | T46: 2033/34 | U46: 2034/35 | V46: 2035/36 | W46: 2036/37 | X46: 2037/38
A47: Total Benefit | C47: =NPV($B$3, E47:X47)+D47 -> 2225647.008 | D47: =IF(E44=1, D$12, 0) -> 0 | E47: 0 | F47: =IF(G44=1, F$12, 0) -> 0 | G47: =IF(H44=1, G$12, 0) -> 0 | H47: =IF(I44=1, H$12, 0) -> 0 | I47: 0 | J47: 240685.7143 | K47: 240685.7143 | L47: 240685.7143 | M47: 240685.7143 | N47: 240685.7143 | O47: 240685.7143 | P47: 240685.7143 | Q47: 240685.7143 | R47: 240685.7143 | S47: 240685.7143 | T47: 240685.7143 | U47: 240685.7143 | V47: 240685.7143 | W47: 240685.7143 | X47: =W47 -> 240685.7143
A48: Project Cost - Note 6(a) | C48: -1138625.351 | D48: 0 | E48: 0 | F48: 0 | G48: =D13 -> 0 | H48: =E13 -> 0 | I48: 0 | J48: -1432432.395 | K48: 0 | L48: 0 | M48: 0 | N48: 0 | O48: 0 | P48: 0 | Q48: 0 | R48: 0 | S48: 0 | T48: 0 | U48: 0 | V48: 0 | W48: 0 | X48: 0
A49: Option value | C49: 170793.8026 | D49: =-D48*$B$5*$B$45 -> 0 | E49: =-E48*$B$5*$B$45 -> 0 | F49: 0 | G49: 0 | H49: 0 | I49: 0 | J49: 214864.8592 | K49: 0 | L49: 0 | M49: 0 | N49: 0 | O49: 0 | P49: 0 | Q49: 0 | R49: 0 | S49: 0 | T49: 0 | U49: 0 | V49: 0 | W49: 0 | X49: 0
A50: Residual Value | C50: 433188.1219 | D50: 0 | E50: 0 | F50: 0 | G50: 0 | H50: 0 | I50: 0 | J50: 0 | K50: 0 | L50: 0 | M50: 0 | N50: 0 | O50: 0 | P50: 0 | Q50: 0 | R50: 0 | S50: 0 | T50: 0 | U50: 0 | V50: 0 | W50: 0 | X50: =-SUM(D48:X48)*($B$4-SUM(D44:X44))/$B$4 -> 931081.0567
A51: DM Impact on EUE | C51: 368778.2322 | D51: =IF(ISNUMBER(D45), D$12, 0) -> 0 | E51: 0 | F51: =IF(ISNUMBER(F45), F$12, 0) -> 0 | G51: =IF(ISNUMBER(G45), G$12, 0) -> 96274.28571 | H51: 144411.4286 | I51: 192548.5714 | J51: 0 | K51: 0 | L51: 0 | M51: 0 | N51: 0 | O51: 0 | P51: 0 | Q51: 0 | R51: 0 | S51: 0 | T51: 0 | U51: 0 | V51: 0 | W51: 0 | X51: 0
A52: Net Benefit | C52: =SUM(C47:C51) -> 2059781.814 | D52: =SUM(D47:D51) -> 0 | E52: =SUM(E47:E51) -> 0 | F52: 0 | G52: 96274.28571 | H52: 144411.4286 | I52: 192548.5714 | J52: -976881.8214 | K52: 240685.7143 | L52: 240685.7143 | M52: 240685.7143 | N52: 240685.7143 | O52: 240685.7143 | P52: 240685.7143 | Q52: 240685.7143 | R52: 240685.7143 | S52: 240685.7143 | T52: 240685.7143 | U52: 240685.7143 | V52: 240685.7143 | W52: 240685.7143 | X52: 1171766.771
A53: % Red EUE
A54: % Total Risk Reduction
A55: DM Budget - Note 6(d) | C55: =C52-$C$15 -> 359259.3031
A57: DM cost parameters | B57: % split | D57: year | E57: =E46 -> 2018/19 | F57: 2019/20 | G57: 2020/21 | H57: 2021/22 | I57: 2022/23 | J57: 2023/24 | K57: =K46 -> 2024/25 | L57: 2025/26 | M57: 2026/27 | N57: 2027/28 | O57: 2028/29 | P57: 2029/30
A58: Residential DR % | B58: =N2 -> 0.05 | D58: res DR ($/kVA) | E58: =J2 -> 250 | F58: =E58*(1-$J$4) -> 212.5 | G58: =F58*(1-$J$4) -> 180.625 | H58: =G58*(1-$J$4) -> 153.53125 | I58: =H58*(1-$J$4) -> 130.5015625 | J58: =I58*(1-$J$4) -> 110.9263281 | K58: =J58*(1-$J$4) -> 94.28737891 | L58: 80.14427207 | M58: 68.12263126 | N58: 57.90423657 | O58: 49.21860109 | P58: 41.83581092
A59: Non-residential DR % | B59: =N3 -> 0.95 | D59: nonres DR ($/kVA) | E59: =J3 -> 100 | F59: =E59*(1-$J$5) -> 90 | G59: =F59*(1-$J$5) -> 81 | H59: 72.9 | I59: 65.61 | J59: 59.049 | K59: 53.1441 | L59: 47.82969 | M59: 43.046721 | N59: 38.7420489 | O59: 34.86784401 | P59: 31.38105961
D60: startup cost | E60: =J6 -> 10000 | F60: =E60*(1-$J$7) -> 8500 | G60: 7225 | H60: 6141.25 | I60: 5220.0625 | J60: 4437.053125 | K60: 3771.495156 | L60: 3205.770883 | M60: 2724.90525 | N60: 2316.169463 | O60: 1968.744043 | P60: 1673.432437
A62: DM cost - 1 yr deferral
C63: NPV | D63: 2017/18 | E63: 2018/19 | F63: 2019/20 | G63: 2020/21 | H63: 2021/22 | I63: 2022/23 | J63: 2023/24 | K63: 2024/25 | L63: 2025/26 | M63: 2026/27 | N63: 2027/28 | O63: 2028/29 | P63: 2029/30 | Q63: 2030/31 | R63: 2031/32 | S63: 2032/33 | T63: 2033/34 | U63: 2034/35 | V63: 2035/36 | W63: 2036/37 | X63: 2037/38
A64: Residential DR cost | C64: =NPV($B$3, E64:X64)+D64 -> 8972.176005 | D64: =IF(ISNUMBER(D$19), D$19*1000*$B$58*D$58, 0) -> 0 | E64: =IF(ISNUMBER(E$19), E$19*1000*$B$58*E$58, 0) -> 0 | F64: =IF(ISNUMBER(F$19), F$19*1000*$B$58*F$58, 0) -> 0 | G64: =IF(ISNUMBER(G$19), G$19*1000*$B$58*G$58, 0) -> 10063.39286 | H64: 0 | I64: 0 | J64: 0 | K64: 0 | L64: 0 | M64: 0 | N64: 0 | O64: 0 | P64: 0 | Q64: 0 | R64: 0 | S64: 0 | T64: 0 | U64: 0 | V64: 0 | W64: 0 | X64: 0
A65: Non-residential DR cost | C65: 76446.66503 | D65: =IF(ISNUMBER(D$19), D$19*1000*$B$59*D$59, 0) -> 0 | E65: 0 | F65: =IF(ISNUMBER(F$19), F$19*1000*$B$59*F$59, 0) -> 0 | G65: =IF(ISNUMBER(G$19), G$19*1000*$B$59*G$59, 0) -> 85744.28571 | H65: 0 | I65: 0 | J65: 0 | K65: 0 | L65: 0 | M65: 0 | N65: 0 | O65: 0 | P65: 0 | Q65: 0 | R65: 0 | S65: 0 | T65: 0 | U65: 0 | V65: 0 | W65: 0 | X65: 0
A66: startup cost | C66: 6441.56226 | D66: 0 | E66: =IF(SUM($D66:D66)<>0, 0, IF(E25<>0, E$60, 0)) -> 0 | F66: =IF(SUM($D66:E66)<>0, 0, IF(F25<>0, F$60, 0)) -> 0 | G66: =IF(SUM($D66:F66)<>0, 0, IF(G25<>0, G$60, 0)) -> 7225 | H66: =IF(SUM($D66:G66)<>0, 0, IF(H25<>0, H$60, 0)) -> 0 | I66: =IF(SUM($D66:H66)<>0, 0, IF(I25<>0, I$60, 0)) -> 0 | J66: =IF(SUM($D66:I66)<>0, 0, IF(J25<>0, J$60, 0)) -> 0 | K66: =IF(SUM($D66:J66)<>0, 0, IF(K25<>0, K$60, 0)) -> 0 | L66: =IF(SUM($D66:K66)<>0, 0, IF(L25<>0, L$60, 0)) -> 0 | M66: =IF(SUM($D66:L66)<>0, 0, IF(M25<>0, M$60, 0)) -> 0 | N66: =IF(SUM($D66:M66)<>0, 0, IF(N25<>0, N$60, 0)) -> 0 | O66: =IF(SUM($D66:N66)<>0, 0, IF(O25<>0, O$60, 0)) -> 0 | P66: =IF(SUM($D66:O66)<>0, 0, IF(P25<>0, P$60, 0)) -> 0 | Q66: =IF(SUM($D66:P66)<>0, 0, IF(Q25<>0, Q$60, 0)) -> 0 | R66: =IF(SUM($D66:Q66)<>0, 0, IF(R25<>0, R$60, 0)) -> 0 | S66: =IF(SUM($D66:R66)<>0, 0, IF(S25<>0, S$60, 0)) -> 0 | T66: =IF(SUM($D66:S66)<>0, 0, IF(T25<>0, T$60, 0)) -> 0 | U66: =IF(SUM($D66:T66)<>0, 0, IF(U25<>0, U$60, 0)) -> 0 | V66: =IF(SUM($D66:U66)<>0, 0, IF(V25<>0, V$60, 0)) -> 0 | W66: =IF(SUM($D66:V66)<>0, 0, IF(W25<>0, W$60, 0)) -> 0 | X66: =IF(SUM($D66:W66)<>0, 0, IF(X25<>0, X$60, 0)) -> 0
A67: Total DM cost | C67: =SUM(C64:C66) -> 91860.4033 | D67: =SUM(D64:D66) -> 0 | E67: =SUM(E64:E66) -> 0 | F67: 0 | G67: 103032.6786 | H67: 0 | I67: 0 | J67: 0 | K67: 0 | L67: 0 | M67: 0 | N67: 0 | O67: 0 | P67: 0 | Q67: 0 | R67: 0 | S67: 0 | T67: 0 | U67: 0 | V67: 0 | W67: 0 | X67: 0
B69: % budget | C69: =C67/C29 -> 0.7287199487
A71: DM cost - 2 yr deferral
C72: NPV | D72: 2017/18 | E72: 2018/19 | F72: 2019/20 | G72: 2020/21 | H72: 2021/22 | I72: 2022/23 | J72: 2023/24 | K72: 2024/25 | L72: 2025/26 | M72: 2026/27 | N72: 2027/28 | O72: 2028/29 | P72: 2029/30 | Q72: 2030/31 | R72: 2031/32 | S72: 2032/33 | T72: 2033/34 | U72: 2034/35 | V72: 2035/36 | W72: 2036/37 | X72: 2037/38
A73: Residential DR cost | C73: =NPV($B$3, E73:X73)+D73 -> 23652.34849 | D73: =IF(ISNUMBER(D$32), D$32*1000*$B$58*D$58, 0) -> 0 | E73: 0 | F73: =IF(ISNUMBER(F$32), F$32*1000*$B$58*F$58, 0) -> 0 | G73: =IF(ISNUMBER(G$32), G$32*1000*$B$58*G$58, 0) -> 10063.39286 | H73: 17107.76786 | I73: 0 | J73: 0 | K73: 0 | L73: 0 | M73: 0 | N73: 0 | O73: 0 | P73: 0 | Q73: 0 | R73: 0 | S73: 0 | T73: 0 | U73: 0 | V73: 0 | W73: 0 | X73: 0
A74: Non-residential DR cost | C74: 208885.5457 | D74: =IF(ISNUMBER(D$32), D$32*1000*$B$59*D$59, 0) -> 0 | E74: 0 | F74: =IF(ISNUMBER(F$32), F$32*1000*$B$59*F$59, 0) -> 0 | G74: =IF(ISNUMBER(G$32), G$32*1000*$B$59*G$59, 0) -> 85744.28571 | H74: 154339.7143 | I74: 0 | J74: 0 | K74: 0 | L74: 0 | M74: 0 | N74: 0 | O74: 0 | P74: 0 | Q74: 0 | R74: 0 | S74: 0 | T74: 0 | U74: 0 | V74: 0 | W74: 0 | X74: 0
A75: startup cost | C75: 6441.56226 | D75: 0 | E75: =IF(SUM($D75:D75)<>0, 0, IF(E38<>0, E$60, 0)) -> 0 | F75: =IF(SUM($D75:E75)<>0, 0, IF(F38<>0, F$60, 0)) -> 0 | G75: =IF(SUM($D75:F75)<>0, 0, IF(G38<>0, G$60, 0)) -> 7225 | H75: =IF(SUM($D75:G75)<>0, 0, IF(H38<>0, H$60, 0)) -> 0 | I75: =IF(SUM($D75:H75)<>0, 0, IF(I38<>0, I$60, 0)) -> 0 | J75: =IF(SUM($D75:I75)<>0, 0, IF(J38<>0, J$60, 0)) -> 0 | K75: =IF(SUM($D75:J75)<>0, 0, IF(K38<>0, K$60, 0)) -> 0 | L75: =IF(SUM($D75:K75)<>0, 0, IF(L38<>0, L$60, 0)) -> 0 | M75: =IF(SUM($D75:L75)<>0, 0, IF(M38<>0, M$60, 0)) -> 0 | N75: =IF(SUM($D75:M75)<>0, 0, IF(N38<>0, N$60, 0)) -> 0 | O75: =IF(SUM($D75:N75)<>0, 0, IF(O38<>0, O$60, 0)) -> 0 | P75: =IF(SUM($D75:O75)<>0, 0, IF(P38<>0, P$60, 0)) -> 0 | Q75: =IF(SUM($D75:P75)<>0, 0, IF(Q38<>0, Q$60, 0)) -> 0 | R75: =IF(SUM($D75:Q75)<>0, 0, IF(R38<>0, R$60, 0)) -> 0 | S75: =IF(SUM($D75:R75)<>0, 0, IF(S38<>0, S$60, 0)) -> 0 | T75: =IF(SUM($D75:S75)<>0, 0, IF(T38<>0, T$60, 0)) -> 0 | U75: =IF(SUM($D75:T75)<>0, 0, IF(U38<>0, U$60, 0)) -> 0 | V75: =IF(SUM($D75:U75)<>0, 0, IF(V38<>0, V$60, 0)) -> 0 | W75: =IF(SUM($D75:V75)<>0, 0, IF(W38<>0, W$60, 0)) -> 0 | X75: =IF(SUM($D75:W75)<>0, 0, IF(X38<>0, X$60, 0)) -> 0
A76: Total DM cost | C76: =SUM(C73:C75) -> 238979.4565 | D76: =SUM(D73:D75) -> 0 | E76: =SUM(E73:E75) -> 0 | F76: 0 | G76: 103032.6786 | H76: 171447.4821 | I76: 0 | J76: 0 | K76: 0 | L76: 0 | M76: 0 | N76: 0 | O76: 0 | P76: 0 | Q76: 0 | R76: 0 | S76: 0 | T76: 0 | U76: 0 | V76: 0 | W76: 0 | X76: 0
B78: % budget | C78: =C76/C42 -> 0.9726425939
A80: DM cost - 3 yr deferral
C81: NPV | D81: 2017/18 | E81: 2018/19 | F81: 2019/20 | G81: 2020/21 | H81: 2021/22 | I81: 2022/23 | J81: 2023/24 | K81: 2024/25 | L81: 2025/26 | M81: 2026/27 | N81: 2027/28 | O81: 2028/29 | P81: 2029/30 | Q81: 2030/31 | R81: 2031/32 | S81: 2032/33 | T81: 2033/34 | U81: 2034/35 | V81: 2035/36 | W81: 2036/37 | X81: 2037/38
A82: Residential DR cost | C82: =NPV($B$3, E82:X82)+D82 -> 41666.9971 | D82: =IF(ISNUMBER(D$45), D$45*1000*$B$58*D$58, 0) -> 0 | E82: 0 | F82: =IF(ISNUMBER(F$45), F$45*1000*$B$58*F$58, 0) -> 0 | G82: =IF(ISNUMBER(G$45), G$45*1000*$B$58*G$58, 0) -> 10063.39286 | H82: 17107.76786 | I82: 21812.40402 | J82: 0 | K82: 0 | L82: 0 | M82: 0 | N82: 0 | O82: 0 | P82: 0 | Q82: 0 | R82: 0 | S82: 0 | T82: 0 | U82: 0 | V82: 0 | W82: 0 | X82: 0
A83: Non-residential DR cost | C83: 380966.8633 | D83: =IF(ISNUMBER(D$45), D$45*1000*$B$59*D$59, 0) -> 0 | E83: 0 | F83: =IF(ISNUMBER(F$45), F$45*1000*$B$59*F$59, 0) -> 0 | G83: =IF(ISNUMBER(G$45), G$45*1000*$B$59*G$59, 0) -> 85744.28571 | H83: 154339.7143 | I83: 208358.6143 | J83: 0 | K83: 0 | L83: 0 | M83: 0 | N83: 0 | O83: 0 | P83: 0 | Q83: 0 | R83: 0 | S83: 0 | T83: 0 | U83: 0 | V83: 0 | W83: 0 | X83: 0
A84: startup cost | C84: 6441.56226 | D84: 0 | E84: =IF(SUM($D84:D84)<>0, 0, IF(E51<>0, E$60, 0)) -> 0 | F84: =IF(SUM($D84:E84)<>0, 0, IF(F51<>0, F$60, 0)) -> 0 | G84: =IF(SUM($D84:F84)<>0, 0, IF(G51<>0, G$60, 0)) -> 7225 | H84: =IF(SUM($D84:G84)<>0, 0, IF(H51<>0, H$60, 0)) -> 0 | I84: =IF(SUM($D84:H84)<>0, 0, IF(I51<>0, I$60, 0)) -> 0 | J84: =IF(SUM($D84:I84)<>0, 0, IF(J51<>0, J$60, 0)) -> 0 | K84: =IF(SUM($D84:J84)<>0, 0, IF(K51<>0, K$60, 0)) -> 0 | L84: =IF(SUM($D84:K84)<>0, 0, IF(L51<>0, L$60, 0)) -> 0 | M84: =IF(SUM($D84:L84)<>0, 0, IF(M51<>0, M$60, 0)) -> 0 | N84: 0 | O84: 0 | P84: 0 | Q84: 0 | R84: 0 | S84: 0 | T84: 0 | U84: 0 | V84: 0 | W84: 0 | X84: 0
A85: Total DM cost | C85: =SUM(C82:C84) -> 429075.4227 | D85: =SUM(D82:D84) -> 0 | E85: =SUM(E82:E84) -> 0 | F85: 0 | G85: 103032.6786 | H85: 171447.4821 | I85: 230171.0183 | J85: 0 | K85: 0 | L85: 0 | M85: 0 | N85: 0 | O85: 0 | P85: 0 | Q85: 0 | R85: 0 | S85: 0 | T85: 0 | U85: 0 | V85: 0 | W85: 0 | X85: 0
B87: % budget | C87: =C85/C55 -> 1.194333505

Sheet L3_nonres
A1: INPUTS | F1: All $1819 | Q1: OUTPUTS - present value | V1: Cashflow of DM cost
A2: Project type (S/M/L) | B2: L | E2: avg LAR (MVA) | F2: =VLOOKUP($B$2, 'DM analysis'!$O$9:$U$11, 6, 0) -> 5.571428571 | I2: res DR cost ($/kVA) | J2: =summary!B3 -> 250 | M2: Residential DR split | N2: =summary!E4 -> 0.05 | Q2: deferral yrs | R2: DM budget | S2: DM cost | T2: % budget | V2: deferral yrs | W2: 2019/20 | X2: 2020/21 | Y2: 2021/22 | Z2: 2022/23 | AA2: 2023/24
A3: discount rate | B3: =summary!$B$9 -> 0.039 | E3: avg LAR pa (MVA) | F3: =F2/5 -> 1.114285714 | I3: nonres DR cost ($/kVA) | J3: =summary!B4 -> 100 | M3: Non-residential DR split | N3: =1-N2 -> 0.95 | Q3: 1 | R3: =C29 -> 121950.9064 | S3: =C67 -> 78829.3321 | T3: =C69 -> 0.6464021828 | V3: 1 | W3: =F67 -> 0 | X3: =G67 -> 0 | Y3: 91864.99107 | Z3: 0 | AA3: 0
A4: asset life | B4: 40 | C4: yrs | E4: 2024 proj cost ($M) | F4: =VLOOKUP($B$2, 'DM analysis'!$O$9:$U$11, 3, 0) -> 1.432432395 | I4: res DR learning rate | J4: =summary!B5 -> 0.15 | Q4: 2 | R4: =C42 -> 237729.3248 | S4: =C76 -> 205559.9762 | T4: =C78 -> 0.8646807726 | V4: 2 | W4: =F76 -> 0 | X4: =G76 -> 0 | Y4: 91864.99107 | Z4: 153447.3455 | AA4: 0
A5: option value per yr (% proj cost) | B5: 0.05 | I5: nonres DR learning rate | J5: =summary!B6 -> 0.1 | Q5: 3 | R5: =C55 -> 347650.2884 | S5: =C85 -> 369357.5096 | T5: =C87 -> 1.062439819 | V5: 3 | W5: =F85 -> 0 | X5: =G85 -> 0 | Y5: 91864.99107 | Z5: 153447.3455 | AA5: 206063.2963
A6: regulatory year (1 to 5) | B6: 3 | I6: startup cost cost | J6: =summary!B7 -> 10000
I7: startup cost learning rate | J7: =summary!B8 -> 0.15
E9: =IF(D9=1, 1, IF(D13<>0, 1, "")) ->  | F9: =IF(E9=1, 1, IF(E13<>0, 1, "")) ->  | I9: 1 | J9: 1 | K9: 1 | L9: 1 | M9: 1 | N9: 1 | O9: 1 | P9: 1 | Q9: 1 | R9: 1 | S9: 1 | T9: 1 | U9: 1 | V9: 1 | W9: 1 | X9: 1 | AA9: 11kV model annual benefit calc
A10: =B2&" project - base case" -> L project - base case | F10: 1 | G10: 2 | H10: 3 | I10: 4 | J10: 5 | AA10: =F2 -> 5.571428571 | AB10: MVA
A11: DM Reduction | B11: ∆ NPV | C11: NPV | D11: 2017/18 | E11: 2018/19 | F11: 2019/20 | G11: 2020/21 | H11: 2021/22 | I11: 2022/23 | J11: 2023/24 | K11: 2024/25 | L11: 2025/26 | M11: 2026/27 | N11: 2027/28 | O11: 2028/29 | P11: 2029/30 | Q11: 2030/31 | R11: 2031/32 | S11: 2032/33 | T11: 2033/34 | U11: 2034/35 | V11: 2035/36 | W11: 2036/37 | X11: 2037/38 | AA11: 0.9 | AB11: pf
A12: Total Benefit | C12: =NPV($B$3, E12:X12)+D12 -> 2508590.388 | D12: 0 | E12: 0 | F12: =IF(F$10<$B$6, 0, F$10*$AA$17) -> 0 | G12: =IF(G$10<$B$6, 0, G$10*$AA$17) -> 0 | H12: =IF(H$10<$B$6, 0, H$10*$AA$17) -> 144411.4286 | I12: 192548.5714 | J12: 240685.7143 | K12: =J12 -> 240685.7143 | L12: =K12 -> 240685.7143 | M12: 240685.7143 | N12: 240685.7143 | O12: 240685.7143 | P12: 240685.7143 | Q12: 240685.7143 | R12: 240685.7143 | S12: 240685.7143 | T12: 240685.7143 | U12: 240685.7143 | V12: 240685.7143 | W12: 240685.7143 | X12: 240685.7143 | AA12: 5 | AB12: years
A13: Project Cost - Note 6(a) | C13: =NPV($B$3, E13:X13)+D13 -> -1229169.977 | D13: 0 | E13: 0 | F13: =IF(F$10=$B$6, -$F$4*1000000, 0) -> 0 | G13: =IF(G$10=$B$6, -$F$4*1000000, 0) -> 0 | H13: =IF(H$10=$B$6, -$F$4*1000000, 0) -> -1432432.395 | I13: =IF(I$10=$B$6, -$F$4*1000000, 0) -> 0 | J13: =IF(J$10=$B$6, -$F$4*1000000, 0) -> 0 | K13: 0 | L13: 0 | M13: 0 | N13: 0 | O13: 0 | P13: 0 | Q13: 0 | R13: 0 | S13: 0 | T13: 0 | U13: 0 | V13: 0 | W13: 0 | X13: 0 | AA13: 0.6 | AB13: saifi
A14: Residual Value | C14: 399865.9587 | D14: 0 | E14: 0 | F14: 0 | G14: 0 | H14: 0 | I14: 0 | J14: 0 | K14: 0 | L14: 0 | M14: 0 | N14: 0 | O14: 0 | P14: 0 | Q14: 0 | R14: 0 | S14: 0 | T14: 0 | U14: 0 | V14: 0 | W14: 0 | X14: =-SUM(D13:X13)*($B$4-SUM($D$9:$X$9))/$B$4 -> 859459.437 | AA14: 2 | AB14: CAIDI improvement
A15: Net Benefit | C15: =SUM(C12:C14) -> 1679286.369 | D15: =SUM(D12:D14) -> 0 | E15: =SUM(E12:E14) -> 0 | F15: 0 | G15: 0 | H15: -1288020.966 | I15: 192548.5714 | J15: 240685.7143 | K15: 240685.7143 | L15: 240685.7143 | M15: 240685.7143 | N15: 240685.7143 | O15: 240685.7143 | P15: 240685.7143 | Q15: 240685.7143 | R15: 240685.7143 | S15: 240685.7143 | T15: 240685.7143 | U15: 240685.7143 | V15: 240685.7143 | W15: 240685.7143 | X15: 1100145.151 | AA15: =AA10*AA11*1/AA12*AA13*AA14 -> 1.203428571 | AB15: MWh
AA16: 40000 | AB16: $/MWh
AA17: =AA16*AA15 -> 48137.14286 | AB17: annual benefit
E18: =IF(D18=1, 1, IF(D22<>0, 1, "")) ->  | F18: =IF(E18=1, 1, IF(E22<>0, 1, "")) ->  | J18: 1 | K18: 1 | L18: 1 | M18: 1 | N18: 1 | O18: 1 | P18: 1 | Q18: 1 | R18: 1 | S18: 1 | T18: 1 | U18: 1 | V18: 1 | W18: 1 | X18: 1
A19: =$B$2&" project - "&B19&"yr deferral" -> L project - 1yr deferral | B19: 1 | E19: DM reduction | H19: =$F$3 -> 1.114285714 | I19: =IF(OR(I$10<$B$6, I$10-1>$B19), "", IF(I$10=$B$6, $F$3, H19+$F$3)) -> 
A20: DM Reduction | B20: ∆ NPV | C20: NPV | D20: 2017/18 | E20: 2018/19 | F20: 2019/20 | G20: 2020/21 | H20: 2021/22 | I20: 2022/23 | J20: 2023/24 | K20: 2024/25 | L20: 2025/26 | M20: 2026/27 | N20: 2027/28 | O20: 2028/29 | P20: 2029/30 | Q20: 2030/31 | R20: 2031/32 | S20: 2032/33 | T20: 2033/34 | U20: 2034/35 | V20: 2035/36 | W20: 2036/37 | X20: 2037/38
A21: Total Benefit | C21: =NPV($B$3, E21:X21)+D21 -> 2384670.967 | D21: =IF(E18=1, D$12, 0) -> 0 | E21: 0 | F21: =IF(G18=1, F$12, 0) -> 0 | G21: =IF(H18=1, G$12, 0) -> 0 | H21: =IF(I18=1, H$12, 0) -> 0 | I21: 192548.5714 | J21: 240685.7143 | K21: 240685.7143 | L21: 240685.7143 | M21: 240685.7143 | N21: 240685.7143 | O21: 240685.7143 | P21: 240685.7143 | Q21: 240685.7143 | R21: 240685.7143 | S21: 240685.7143 | T21: 240685.7143 | U21: 240685.7143 | V21: 240685.7143 | W21: 240685.7143 | X21: =W21 -> 240685.7143
A22: Project Cost - Note 6(a) | C22: -1183031.739 | D22: 0 | E22: =D13 -> 0 | F22: =E13 -> 0 | G22: 0 | H22: 0 | I22: -1432432.395 | J22: 0 | K22: 0 | L22: 0 | M22: 0 | N22: 0 | O22: 0 | P22: 0 | Q22: 0 | R22: 0 | S22: 0 | T22: 0 | U22: 0 | V22: 0 | W22: 0 | X22: 0
A23: Option value | C23: 59151.58697 | D23: =-D22*$B$5*$B$19 -> 0 | E23: =-E22*$B$5*$B$19 -> 0 | F23: =-F22*$B$5*$B$19 -> 0 | G23: =-G22*$B$5*$B$19 -> 0 | H23: =-H22*$B$5*$B$19 -> 0 | I23: 71621.61975 | J23: 0 | K23: 0 | L23: 0 | M23: 0 | N23: 0 | O23: 0 | P23: 0 | Q23: 0 | R23: 0 | S23: 0 | T23: 0 | U23: 0 | V23: 0 | W23: 0 | X23: 0
A24: Residual Value | C24: 416527.0403 | D24: 0 | E24: 0 | F24: 0 | G24: 0 | H24: 0 | I24: 0 | J24: 0 | K24: 0 | L24: 0 | M24: 0 | N24: 0 | O24: 0 | P24: 0 | Q24: 0 | R24: 0 | S24: 0 | T24: 0 | U24: 0 | V24: 0 | W24: 0 | X24: =-SUM(D22:X22)*($B$4-SUM(D18:X18))/$B$4 -> 895270.2469
A25: DM Impact on EUE | C25: 123919.4205 | D25: =IF(ISNUMBER(D19), D$12, 0) -> 0 | E25: 0 | F25: =IF(ISNUMBER(F19), F$12, 0) -> 0 | G25: =IF(ISNUMBER(G19), G$12, 0) -> 0 | H25: 144411.4286 | I25: 0 | J25: 0 | K25: 0 | L25: 0 | M25: 0 | N25: 0 | O25: 0 | P25: 0 | Q25: 0 | R25: 0 | S25: 0 | T25: 0 | U25: 0 | V25: 0 | W25: 0 | X25: 0
A26: Net Benefit | C26: =SUM(C21:C25) -> 1801237.276 | D26: =SUM(D21:D25) -> 0 | E26: =SUM(E21:E25) -> 0 | F26: 0 | G26: 0 | H26: 144411.4286 | I26: -1168262.204 | J26: 240685.7143 | K26: 240685.7143 | L26: 240685.7143 | M26: 240685.7143 | N26: 240685.7143 | O26: 240685.7143 | P26: 240685.7143 | Q26: 240685.7143 | R26: 240685.7143 | S26: 240685.7143 | T26: 240685.7143 | U26: 240685.7143 | V26: 240685.7143 | W26: 240685.7143 | X26: 1135955.961
A27: % Red EUE
A28: % Total Risk Reduction
A29: DM Budget - Note 6(d) | C29: =C26-$C$15 -> 121950.9064
E31: =IF(D31=1, 1, IF(D35<>0, 1, "")) ->  | F31: =IF(E31=1, 1, IF(E35<>0, 1, "")) ->  | K31: 1 | L31: 1 | M31: 1 | N31: 1 | O31: 1 | P31: 1 | Q31: 1 | R31: 1 | S31: 1 | T31: 1 | U31: 1 | V31: 1 | W31: 1 | X31: 1
A32: =$B$2&" project - "&B32&"yr deferral" -> L project - 2yr deferral | B32: 2 | E32: DM reduction | H32: =G32+$F$3 -> 1.114285714 | I32: =H32+$F$3 -> 2.228571429 | J32: =IF(OR(J$10<$B$6, J$10-1>$B32), "", IF(J$10=$B$6, $F$3, I32+$F$3)) -> 
A33: DM Reduction | B33: ∆ NPV | C33: NPV | D33: 2017/18 | E33: 2018/19 | F33: 2019/20 | G33: 2020/21 | H33: 2021/22 | I33: 2022/23 | J33: 2023/24 | K33: 2024/25 | L33: 2025/26 | M33: 2026/27 | N33: 2027/28 | O33: 2028/29 | P33: 2029/30 | Q33: 2030/31 | R33: 2031/32 | S33: 2032/33 | T33: 2033/34 | U33: 2034/35 | V33: 2035/36 | W33: 2036/37 | X33: 2037/38
A34: Total Benefit | C34: =NPV($B$3, E34:X34)+D34 -> 2225647.008 | D34: =IF(E31=1, D$12, 0) -> 0 | E34: 0 | F34: =IF(G31=1, F$12, 0) -> 0 | G34: =IF(H31=1, G$12, 0) -> 0 | H34: =IF(I31=1, H$12, 0) -> 0 | I34: 0 | J34: 240685.7143 | K34: 240685.7143 | L34: 240685.7143 | M34: 240685.7143 | N34: 240685.7143 | O34: 240685.7143 | P34: 240685.7143 | Q34: 240685.7143 | R34: 240685.7143 | S34: 240685.7143 | T34: 240685.7143 | U34: 240685.7143 | V34: 240685.7143 | W34: 240685.7143 | X34: =W34 -> 240685.7143
A35: Project Cost - Note 6(a) | C35: -1138625.351 | D35: 0 | E35: 0 | F35: =D13 -> 0 | G35: =E13 -> 0 | H35: 0 | I35: 0 | J35: -1432432.395 | K35: 0 | L35: 0 | M35: 0 | N35: 0 | O35: 0 | P35: 0 | Q35: 0 | R35: 0 | S35: 0 | T35: 0 | U35: 0 | V35: 0 | W35: 0 | X35: 0
A36: Option value | C36: 113862.5351 | D36: =-D35*$B$5*$B$32 -> 0 | E36: =-E35*$B$5*$B$32 -> 0 | F36: 0 | G36: 0 | H36: 0 | I36: 0 | J36: 143243.2395 | K36: 0 | L36: 0 | M36: 0 | N36: 0 | O36: 0 | P36: 0 | Q36: 0 | R36: 0 | S36: 0 | T36: 0 | U36: 0 | V36: 0 | W36: 0 | X36: 0
A37: Residual Value | C37: 433188.1219 | D37: 0 | E37: 0 | F37: 0 | G37: 0 | H37: 0 | I37: 0 | J37: 0 | K37: 0 | L37: 0 | M37: 0 | N37: 0 | O37: 0 | P37: 0 | Q37: 0 | R37: 0 | S37: 0 | T37: 0 | U37: 0 | V37: 0 | W37: 0 | X37: =-SUM(D35:X35)*($B$4-SUM(D31:X31))/$B$4 -> 931081.0567
A38: DM Impact on EUE | C38: 282943.3802 | D38: =IF(ISNUMBER(D32), D$12, 0) -> 0 | E38: 0 | F38: =IF(ISNUMBER(F32), F$12, 0) -> 0 | G38: =IF(ISNUMBER(G32), G$12, 0) -> 0 | H38: 144411.4286 | I38: 192548.5714 | J38: 0 | K38: 0 | L38: 0 | M38: 0 | N38: 0 | O38: 0 | P38: 0 | Q38: 0 | R38: 0 | S38: 0 | T38: 0 | U38: 0 | V38: 0 | W38: 0 | X38: 0
A39: Net Benefit | C39: =SUM(C34:C38) -> 1917015.694 | D39: =SUM(D34:D38) -> 0 | E39: =SUM(E34:E38) -> 0 | F39: 0 | G39: 0 | H39: 144411.4286 | I39: 192548.5714 | J39: -1048503.441 | K39: 240685.7143 | L39: 240685.7143 | M39: 240685.7143 | N39: 240685.7143 | O39: 240685.7143 | P39: 240685.7143 | Q39: 240685.7143 | R39: 240685.7143 | S39: 240685.7143 | T39: 240685.7143 | U39: 240685.7143 | V39: 240685.7143 | W39: 240685.7143 | X39: 1171766.771
A40: % Red EUE
A41: % Total Risk Reduction
A42: DM Budget - Note 6(d) | C42: =C39-$C$15 -> 237729.3248
E44: =IF(D44=1, 1, IF(D48<>0, 1, "")) ->  | F44: =IF(E44=1, 1, IF(E48<>0, 1, "")) ->  | L44: 1 | M44: 1 | N44: 1 | O44: 1 | P44: 1 | Q44: 1 | R44: 1 | S44: 1 | T44: 1 | U44: 1 | V44: 1 | W44: 1 | X44: 1
A45: =$B$2&" project - "&B45&"yr deferral" -> L project - 3yr deferral | B45: 3 | E45: DM reduction | H45: =G45+$F$3 -> 1.114285714 | I45: =H45+$F$3 -> 2.228571429 | J45: =I45+$F$3 -> 3.342857143
A46: DM Reduction | B46: ∆ NPV | C46: NPV | D46: 2017/18 | E46: 2018/19 | F46: 2019/20 | G46: 2020/21 | H46: 2021/22 | I46: 2022/23 | J46: 2023/24 | K46: 2024/25 | L46: 2025/26 | M46: 2026/27 | N46: 2027/28 | O46: 2028/29 | P46: 2029/30 | Q46: 2030/31 | R46: 2031/32 | S46: 2032/33 | T46: 2033/34 | U46: 2034/35 | V46: 2035/36 | W46: 2036/37 | X46: 2037/38
A47: Total Benefit | C47: =NPV($B$3, E47:X47)+D47 -> 2034328.481 | D47: =IF(E44=1, D$12, 0) -> 0 | E47: 0 | F47: =IF(G44=1, F$12, 0) -> 0 | G47: =IF(H44=1, G$12, 0) -> 0 | H47: =IF(I44=1, H$12, 0) -> 0 | I47: 0 | J47: 0 | K47: 240685.7143 | L47: 240685.7143 | M47: 240685.7143 | N47: 240685.7143 | O47: 240685.7143 | P47: 240685.7143 | Q47: 240685.7143 | R47: 240685.7143 | S47: 240685.7143 | T47: 240685.7143 | U47: 240685.7143 | V47: 240685.7143 | W47: 240685.7143 | X47: =W47 -> 240685.7143
A48: Project Cost - Note 6(a) | C48: -1095885.804 | D48: 0 | E48: 0 | F48: 0 | G48: =D13 -> 0 | H48: =E13 -> 0 | I48: 0 | J48: 0 | K48: -1432432.395 | L48: 0 | M48: 0 | N48: 0 | O48: 0 | P48: 0 | Q48: 0 | R48: 0 | S48: 0 | T48: 0 | U48: 0 | V48: 0 | W48: 0 | X48: 0
A49: Option value | C49: 164382.8706 | D49: =-D48*$B$5*$B$45 -> 0 | E49: =-E48*$B$5*$B$45 -> 0 | F49: 0 | G49: 0 | H49: 0 | I49: 0 | J49: 0 | K49: 214864.8592 | L49: 0 | M49: 0 | N49: 0 | O49: 0 | P49: 0 | Q49: 0 | R49: 0 | S49: 0 | T49: 0 | U49: 0 | V49: 0 | W49: 0 | X49: 0
A50: Residual Value | C50: 449849.2035 | D50: 0 | E50: 0 | F50: 0 | G50: 0 | H50: 0 | I50: 0 | J50: 0 | K50: 0 | L50: 0 | M50: 0 | N50: 0 | O50: 0 | P50: 0 | Q50: 0 | R50: 0 | S50: 0 | T50: 0 | U50: 0 | V50: 0 | W50: 0 | X50: =-SUM(D48:X48)*($B$4-SUM(D44:X44))/$B$4 -> 966891.8666
A51: DM Impact on EUE | C51: 474261.9072 | D51: =IF(ISNUMBER(D45), D$12, 0) -> 0 | E51: 0 | F51: =IF(ISNUMBER(F45), F$12, 0) -> 0 | G51: =IF(ISNUMBER(G45), G$12, 0) -> 0 | H51: 144411.4286 | I51: 192548.5714 | J51: 240685.7143 | K51: 0 | L51: 0 | M51: 0 | N51: 0 | O51: 0 | P51: 0 | Q51: 0 | R51: 0 | S51: 0 | T51: 0 | U51: 0 | V51: 0 | W51: 0 | X51: 0
A52: Net Benefit | C52: =SUM(C47:C51) -> 2026936.658 | D52: =SUM(D47:D51) -> 0 | E52: =SUM(E47:E51) -> 0 | F52: 0 | G52: 0 | H52: 144411.4286 | I52: 192548.5714 | J52: 240685.7143 | K52: -976881.8214 | L52: 240685.7143 | M52: 240685.7143 | N52: 240685.7143 | O52: 240685.7143 | P52: 240685.7143 | Q52: 240685.7143 | R52: 240685.7143 | S52: 240685.7143 | T52: 240685.7143 | U52: 240685.7143 | V52: 240685.7143 | W52: 240685.7143 | X52: 1207577.581
A53: % Red EUE
